Workbook

Sheet Лист5
A1: Месяц отгрузки | B1: 1
B3: Значения
A4: Названия строк | B4: Сумма по полю Сумма выручки для начисления з/п для куратора, с НДС | C4: Сумма по полю Сумма выручки для начисления з/п для менеджера, с НДС
A5: САНКТ-ПЕТЕРБУРГ
A6: Дауэнгауэр Н.Э.
A7: Дауэнгауэр Н.Э. | B7: 509106.3 | C7: 0
A8: Ипатов Д.В. | B8: 28500 | C8: 28500
A9: Молчанова Е.М. | B9: 14810 | C9: 14810
A10: Петров А.Б. (уволен) | B10: 900 | C10: 900
A11: Погорелов И.В. | B11: 250 | C11: 250
A12: Хабибуллов М.Р. | B12: 51093.75 | C12: 51093.75
A13: Зиновьев С.Ю.
A14: Зиновьев С.Ю. | B14: 58735 | C14: 0
A15: Ипатов Д.В.
A16: Ипатов Д.В. | B16: 820 | C16: 0
A17: Молчанова Е.М. | B17: 12000 | C17: 12000
A18: Ипатова Е.Н.
A19: Дауэнгауэр Н.Э. | B19: 3662.5 | C19: 3662.5
A20: Ипатов Д.В. | B20: 820 | C20: 820
A21: Ипатова Е.Н. | B21: 282019.83 | C21: 0
A22: Матросова Л.Ш. | B22: 1000 | C22: 1000
A23: Молчанова Е.М. | B23: 7500 | C23: 7500
A24: Сафонеев С.А. | B24: 8640.025 | C24: 8640.025
A25: Степура С.Н. | B25: 720 | C25: 720
A26: Матросова Л.Ш.
A27: Матросова Л.Ш. | B27: 20586 | C27: 0
A28: Степура С.Н. | B28: 450 | C28: 450
A29: Молчанова Е.М.
A30: Молчанова Е.М. | B30: 178040.7 | C30: 0
A31: Степура С.Н. | B31: 3120 | C31: 3120
A32: Петров А.Б. (уволен)
A33: Петров А.Б. (уволен) | B33: 32684.47 | C33: 0
A34: Погорелов И.В.
A35: Дауэнгауэр Н.Э. | B35: 2824.05 | C35: 2824.05
A36: Погорелов И.В. | B36: 56661 | C36: 0
A37: Степура С.Н. | B37: 1000 | C37: 1000
A38: Райская Н.А.
A39: Дауэнгауэр Н.Э. | B39: 2849.4 | C39: 2849.4
A40: Зиновьев С.Ю. | B40: 3150 | C40: 3150
A41: Ипатова Е.Н. | B41: 15573.105 | C41: 15573.105
A42: Матросова Л.Ш. | B42: 2255 | C42: 2255
A43: Молчанова Е.М. | B43: 7445 | C43: 7445
A44: Райская Н.А. | B44: 18009.5 | C44: 0
A45: Степура С.Н. | B45: 160 | C45: 160
A46: Сафонеев С.А.
A47: Дауэнгауэр Н.Э. | B47: 3496.5 | C47: 3496.5
A48: Зиновьев С.Ю. | B48: 375 | C48: 375
A49: Ипатов Д.В. | B49: 28500 | C49: 28500
A50: Райская Н.А. | B50: 495 | C50: 495
A51: Сафонеев С.А. | B51: 329024.55 | C51: 0
A52: Степура С.Н. | B52: 725 | C52: 725
A53: Хабибуллов М.Р. | B53: 15002.25 | C53: 15002.25
A54: Степура С.Н.
A55: Степура С.Н. | B55: 44080 | C55: 0
A56: Хабибуллов М.Р.
A57: Дауэнгауэр Н.Э. | B57: 22215 | C57: 22215
A58: Ипатова Е.Н. | B58: 14997 | C58: 14997
A59: Молчанова Е.М. | B59: 669.6 | C59: 669.6
A60: Погорелов И.В. | B60: 7491.75 | C60: 7491.75
A61: Степура С.Н. | B61: 15002.25 | C61: 15002.25
A62: Хабибуллов М.Р. | B62: 352362.5 | C62: 0
A63: Общий итог | B63: 2159822.03 | C63: 277692.18

Sheet Металлопроцессинг
A1: Месяц отгрузки | B1: Филиал отгрузки | C1: Дивизион отгрузки | D1: Менеджер | E1: Менеджер приказа | F1: Куратор договора | G1: Инициатор+исполнитель | H1: Оборот за месяц по контрагенту | I1: Распределение выручки для Куратора договора | J1: Распределение выручки для Менеджера договора | K1: Сумма выручки для начисления з/п для куратора, с НДС | L1: Сумма выручки для начисления з/п для менеджера, с НДС | M1: Тип производства | N1: Филиал производства | O1: Контрагент | P1: Полное наименование контрагента | Q1: Регион контрагента | R1: Регион грузополучателя | S1: Отрасль контрагента | T1: Номенклатура | U1: Клиентское наименование | V1: Количество ед изм | W1: Ед изм | X1: Сумма по позиции | Y1: Техническая операция | Z1: Станок | AA1: Сумма наценки | AB1: Количество операций | AC1: Количество изделий | AD1: Длительность операций | AE1: Филиал-заказчик | AF1: Дивизион заказчика | AG1: Количество металла
A2: 1 | B2: САНКТ-ПЕТЕРБУРГ | C2: Центр | D2: Дауэнгауэр Н.Э. | E2: Дауэнгауэр Н.Э. | F2: Дауэнгауэр Н.Э. | G2: =IF(Таблица_Металлопроцессинг_детализированный[[#This Row],[Куратор договора]]=Таблица_Металлопроцессинг_детализированный[[#This Row],[Менеджер]],TRUE,FALSE) -> TRUE | H2: =SUMIFS(AA2:AA177,O2:O177,Таблица_Металлопроцессинг_детализированный[[#This Row],[Контрагент]],A2:A177,Таблица_Металлопроцессинг_детализированный[[#This Row],[Месяц отгрузки]]) -> 16118.7 | I2: =IF(Таблица_Металлопроцессинг_детализированный[[#This Row],[Инициатор+исполнитель]],1,IF(Таблица_Металлопроцессинг_детализированный[[#This Row],[Оборот за месяц по контрагенту]]<1000000,0.5,0.7)) -> 1 | J2: =IF(Таблица_Металлопроцессинг_детализированный[[#This Row],[Инициатор+исполнитель]]=TRUE,0,IF(Таблица_Металлопроцессинг_детализированный[[#This Row],[Оборот за месяц по контрагенту]]<1000000,0.5,0.3)) -> 0 | K2: =Таблица_Металлопроцессинг_детализированный[[#This Row],[Сумма наценки]]*Таблица_Металлопроцессинг_детализированный[[#This Row],[Распределение выручки для Куратора договора]] -> 1840.8 | L2: =IF(Таблица_Металлопроцессинг_детализированный[[#This Row],[Распределение выручки для Менеджера договора]]=1,"",Таблица_Металлопроцессинг_детализированный[[#This Row],[Сумма наценки]]*Таблица_Металлопроцессинг_детализированный[[#This Row],[Распределение выручки для Менеджера договора]]) -> 0 | M2: Процессинг | N2: САНКТ-ПЕТЕРБУРГ | O2: НГ-ЭНЕРГО | P2: ЗАО "НГ-Энерго" | S2: Машиностроение | T2: Сталь листовая Х/к., 1.5, 1250x2500, Ст.кп/пс (ТУ 14-106-321-2010) | V2: 1.18 | W2: т | X2: 32237.6 | Y2: Порезка листового проката (ножницы) | AA2: 1840.8 | AB2: 1 | AC2: 1.2 | AE2: САНКТ-ПЕТЕРБУРГ | AF2: Центр | AG2: 1.18
A3: 1 | B3: САНКТ-ПЕТЕРБУРГ | C3: Центр | D3: Дауэнгауэр Н.Э. | E3: Дауэнгауэр Н.Э. | F3: Дауэнгауэр Н.Э. | G3: =IF(Таблица_Металлопроцессинг_детализированный[[#This Row],[Куратор договора]]=Таблица_Металлопроцессинг_детализированный[[#This Row],[Менеджер]],TRUE,FALSE) -> TRUE | H3: =SUMIFS(AA3:AA177,O3:O177,Таблица_Металлопроцессинг_детализированный[[#This Row],[Контрагент]],A3:A177,Таблица_Металлопроцессинг_детализированный[[#This Row],[Месяц отгрузки]]) -> 14277.9 | I3: =IF(Таблица_Металлопроцессинг_детализированный[[#This Row],[Инициатор+исполнитель]],1,IF(Таблица_Металлопроцессинг_детализированный[[#This Row],[Оборот за месяц по контрагенту]]<1000000,0.5,0.7)) -> 1 | J3: =IF(Таблица_Металлопроцессинг_детализированный[[#This Row],[Инициатор+исполнитель]]=TRUE,0,IF(Таблица_Металлопроцессинг_детализированный[[#This Row],[Оборот за месяц по контрагенту]]<1000000,0.5,0.3)) -> 0 | K3: =Таблица_Металлопроцессинг_детализированный[[#This Row],[Сумма наценки]]*Таблица_Металлопроцессинг_детализированный[[#This Row],[Распределение выручки для Куратора договора]] -> 9536.8 | L3: =IF(Таблица_Металлопроцессинг_детализированный[[#This Row],[Распределение выручки для Менеджера договора]]=1,"",Таблица_Металлопроцессинг_детализированный[[#This Row],[Сумма наценки]]*Таблица_Металлопроцессинг_детализированный[[#This Row],[Распределение выручки для Менеджера договора]]) -> 0 | M3: Процессинг | N3: САНКТ-ПЕТЕРБУРГ | O3: НГ-ЭНЕРГО | P3: ЗАО "НГ-Энерго" | S3: Машиностроение | T3: Сталь листовая Х/к., 2, 1250x2500, Ст.кп/пс (ТУ 14-106-321-2010) | V3: 7.28 | W3: т | X3: 198889.6 | Y3: Порезка листового проката (ножницы) | AA3: 9536.8 | AB3: 1 | AC3: 6.2 | AE3: САНКТ-ПЕТЕРБУРГ | AF3: Центр | AG3: 7.28
A4: 1 | B4: САНКТ-ПЕТЕРБУРГ | C4: Центр | D4: Дауэнгауэр Н.Э. | E4: Дауэнгауэр Н.Э. | F4: Дауэнгауэр Н.Э. | G4: =IF(Таблица_Металлопроцессинг_детализированный[[#This Row],[Куратор договора]]=Таблица_Металлопроцессинг_детализированный[[#This Row],[Менеджер]],TRUE,FALSE) -> TRUE | H4: =SUMIFS(AA4:AA177,O4:O177,Таблица_Металлопроцессинг_детализированный[[#This Row],[Контрагент]],A4:A177,Таблица_Металлопроцессинг_детализированный[[#This Row],[Месяц отгрузки]]) -> 4741.1 | I4: =IF(Таблица_Металлопроцессинг_детализированный[[#This Row],[Инициатор+исполнитель]],1,IF(Таблица_Металлопроцессинг_детализированный[[#This Row],[Оборот за месяц по контрагенту]]<1000000,0.5,0.7)) -> 1 | J4: =IF(Таблица_Металлопроцессинг_детализированный[[#This Row],[Инициатор+исполнитель]]=TRUE,0,IF(Таблица_Металлопроцессинг_детализированный[[#This Row],[Оборот за месяц по контрагенту]]<1000000,0.5,0.3)) -> 0 | K4: =Таблица_Металлопроцессинг_детализированный[[#This Row],[Сумма наценки]]*Таблица_Металлопроцессинг_детализированный[[#This Row],[Распределение выручки для Куратора договора]] -> 4741.1 | L4: =IF(Таблица_Металлопроцессинг_детализированный[[#This Row],[Распределение выручки для Менеджера договора]]=1,"",Таблица_Металлопроцессинг_детализированный[[#This Row],[Сумма наценки]]*Таблица_Металлопроцессинг_детализированный[[#This Row],[Распределение выручки для Менеджера договора]]) -> 0 | M4: Процессинг | N4: САНКТ-ПЕТЕРБУРГ | O4: НГ-ЭНЕРГО | P4: ЗАО "НГ-Энерго" | S4: Машиностроение | T4: Уголок стальной г/к равнополочный, 50x5, Ст.сп/пс (ГОСТ 8509-93) | V4: 5.21 | W4: т | X4: 141191 | Y4: Порезка (станок ленточнопильный) | AA4: 4741.1 | AB4: 1 | AC4: 7 | AE4: САНКТ-ПЕТЕРБУРГ | AF4: Центр | AG4: 5.21
A5: 1 | B5: САНКТ-ПЕТЕРБУРГ | C5: Центр | D5: Петров А.Б. (уволен) | E5: Петров(С.-П.) А.Б. | F5: Дауэнгауэр Н.Э. | G5: =IF(Таблица_Металлопроцессинг_детализированный[[#This Row],[Куратор договора]]=Таблица_Металлопроцессинг_детализированный[[#This Row],[Менеджер]],TRUE,FALSE) -> FALSE | H5: =SUMIFS(AA5:AA177,O5:O177,Таблица_Металлопроцессинг_детализированный[[#This Row],[Контрагент]],A5:A177,Таблица_Металлопроцессинг_детализированный[[#This Row],[Месяц отгрузки]]) -> 34484.47 | I5: =IF(Таблица_Металлопроцессинг_детализированный[[#This Row],[Инициатор+исполнитель]],1,IF(Таблица_Металлопроцессинг_детализированный[[#This Row],[Оборот за месяц по контрагенту]]<1000000,0.5,0.7)) -> 0.5 | J5: =IF(Таблица_Металлопроцессинг_детализированный[[#This Row],[Инициатор+исполнитель]]=TRUE,0,IF(Таблица_Металлопроцессинг_детализированный[[#This Row],[Оборот за месяц по контрагенту]]<1000000,0.5,0.3)) -> 0.5 | K5: =Таблица_Металлопроцессинг_детализированный[[#This Row],[Сумма наценки]]*Таблица_Металлопроцессинг_детализированный[[#This Row],[Распределение выручки для Куратора договора]] -> 900 | L5: =IF(Таблица_Металлопроцессинг_детализированный[[#This Row],[Распределение выручки для Менеджера договора]]=1,"",Таблица_Металлопроцессинг_детализированный[[#This Row],[Сумма наценки]]*Таблица_Металлопроцессинг_детализированный[[#This Row],[Распределение выручки для Менеджера договора]]) -> 900 | M5: Из давальческого сырья | N5: САНКТ-ПЕТЕРБУРГ | O5: АСТ СПБ | P5: ЗАО "АСТ" | S5: Стройиндустрия | T5: Изделие | U5: Каркас поддерживающий Вариант 3 | V5: 15 | W5: шт | X5: 5618.85 | Y5: Ручная сборка и доварка каркаса | Z5: IDEA | AA5: 1800 | AB5: 15 | AC5: 15 | AD5: 1 | AE5: САНКТ-ПЕТЕРБУРГ | AF5: Центр | AG5: 0.148
A6: 1 | B6: САНКТ-ПЕТЕРБУРГ | C6: Центр | D6: Петров А.Б. (уволен) | E6: Петров(С.-П.) А.Б. | F6: Петров А.Б. (уволен) | G6: =IF(Таблица_Металлопроцессинг_детализированный[[#This Row],[Куратор договора]]=Таблица_Металлопроцессинг_детализированный[[#This Row],[Менеджер]],TRUE,FALSE) -> TRUE | H6: =SUMIFS(AA6:AA177,O6:O177,Таблица_Металлопроцессинг_детализированный[[#This Row],[Контрагент]],A6:A177,Таблица_Металлопроцессинг_детализированный[[#This Row],[Месяц отгрузки]]) -> 32684.47 | I6: =IF(Таблица_Металлопроцессинг_детализированный[[#This Row],[Инициатор+исполнитель]],1,IF(Таблица_Металлопроцессинг_детализированный[[#This Row],[Оборот за месяц по контрагенту]]<1000000,0.5,0.7)) -> 1 | J6: =IF(Таблица_Металлопроцессинг_детализированный[[#This Row],[Инициатор+исполнитель]]=TRUE,0,IF(Таблица_Металлопроцессинг_детализированный[[#This Row],[Оборот за месяц по контрагенту]]<1000000,0.5,0.3)) -> 0 | K6: =Таблица_Металлопроцессинг_детализированный[[#This Row],[Сумма наценки]]*Таблица_Металлопроцессинг_детализированный[[#This Row],[Распределение выручки для Куратора договора]] -> 14791.67 | L6: =IF(Таблица_Металлопроцессинг_детализированный[[#This Row],[Распределение выручки для Менеджера договора]]=1,"",Таблица_Металлопроцессинг_детализированный[[#This Row],[Сумма наценки]]*Таблица_Металлопроцессинг_детализированный[[#This Row],[Распределение выручки для Менеджера договора]]) -> 0 | M6: Из давальческого сырья | N6: САНКТ-ПЕТЕРБУРГ | O6: АСТ СПБ | P6: ЗАО "АСТ" | S6: Стройиндустрия | T6: Изделие | U6: Каркас поддерживающий Вариант 1 | V6: 199 | W6: шт | X6: 50997.73 | Y6: Ручная сборка и доварка каркаса | Z6: IDEA | AA6: 14791.67 | AB6: 199 | AC6: 199 | AD6: 1 | AE6: САНКТ-ПЕТЕРБУРГ | AF6: Центр | AG6: 1.444
A7: 1 | B7: САНКТ-ПЕТЕРБУРГ | C7: Центр | D7: Дауэнгауэр Н.Э. | E7: Дауэнгауэр Н.Э. | F7: Дауэнгауэр Н.Э. | G7: =IF(Таблица_Металлопроцессинг_детализированный[[#This Row],[Куратор договора]]=Таблица_Металлопроцессинг_детализированный[[#This Row],[Менеджер]],TRUE,FALSE) -> TRUE | H7: =SUMIFS(AA7:AA177,O7:O177,Таблица_Металлопроцессинг_детализированный[[#This Row],[Контрагент]],A7:A177,Таблица_Металлопроцессинг_детализированный[[#This Row],[Месяц отгрузки]]) -> 21321.5 | I7: =IF(Таблица_Металлопроцессинг_детализированный[[#This Row],[Инициатор+исполнитель]],1,IF(Таблица_Металлопроцессинг_детализированный[[#This Row],[Оборот за месяц по контрагенту]]<1000000,0.5,0.7)) -> 1 | J7: =IF(Таблица_Металлопроцессинг_детализированный[[#This Row],[Инициатор+исполнитель]]=TRUE,0,IF(Таблица_Металлопроцессинг_детализированный[[#This Row],[Оборот за месяц по контрагенту]]<1000000,0.5,0.3)) -> 0 | K7: =Таблица_Металлопроцессинг_детализированный[[#This Row],[Сумма наценки]]*Таблица_Металлопроцессинг_детализированный[[#This Row],[Распределение выручки для Куратора договора]] -> 1650 | L7: =IF(Таблица_Металлопроцессинг_детализированный[[#This Row],[Распределение выручки для Менеджера договора]]=1,"",Таблица_Металлопроцессинг_детализированный[[#This Row],[Сумма наценки]]*Таблица_Металлопроцессинг_детализированный[[#This Row],[Распределение выручки для Менеджера договора]]) -> 0 | M7: Процессинг | N7: САНКТ-ПЕТЕРБУРГ | O7: БЗ-СУДОСТРОЕНИЕ | P7: ООО "Балтийский завод-Судостроение" | S7: Машиностроение | T7: Уголок стальной г/к равнополочный, 25x4, Ст.сп/пс (ГОСТ 8509-93) | V7: 1.5 | W7: т | X7: 41310 | Y7: Порезка (станок ленточнопильный) | AA7: 1650 | AB7: 1 | AC7: 1.5 | AE7: САНКТ-ПЕТЕРБУРГ | AF7: Центр | AG7: 1.5
A8: 1 | B8: САНКТ-ПЕТЕРБУРГ | C8: Центр | D8: Дауэнгауэр Н.Э. | E8: Дауэнгауэр Н.Э. | F8: Дауэнгауэр Н.Э. | G8: =IF(Таблица_Металлопроцессинг_детализированный[[#This Row],[Куратор договора]]=Таблица_Металлопроцессинг_детализированный[[#This Row],[Менеджер]],TRUE,FALSE) -> TRUE | H8: =SUMIFS(AA8:AA177,O8:O177,Таблица_Металлопроцессинг_детализированный[[#This Row],[Контрагент]],A8:A177,Таблица_Металлопроцессинг_детализированный[[#This Row],[Месяц отгрузки]]) -> 19671.5 | I8: =IF(Таблица_Металлопроцессинг_детализированный[[#This Row],[Инициатор+исполнитель]],1,IF(Таблица_Металлопроцессинг_детализированный[[#This Row],[Оборот за месяц по контрагенту]]<1000000,0.5,0.7)) -> 1 | J8: =IF(Таблица_Металлопроцессинг_детализированный[[#This Row],[Инициатор+исполнитель]]=TRUE,0,IF(Таблица_Металлопроцессинг_детализированный[[#This Row],[Оборот за месяц по контрагенту]]<1000000,0.5,0.3)) -> 0 | K8: =Таблица_Металлопроцессинг_детализированный[[#This Row],[Сумма наценки]]*Таблица_Металлопроцессинг_детализированный[[#This Row],[Распределение выручки для Куратора договора]] -> 2475 | L8: =IF(Таблица_Металлопроцессинг_детализированный[[#This Row],[Распределение выручки для Менеджера договора]]=1,"",Таблица_Металлопроцессинг_детализированный[[#This Row],[Сумма наценки]]*Таблица_Металлопроцессинг_детализированный[[#This Row],[Распределение выручки для Менеджера договора]]) -> 0 | M8: Процессинг | N8: САНКТ-ПЕТЕРБУРГ | O8: БЗ-СУДОСТРОЕНИЕ | P8: ООО "Балтийский завод-Судостроение" | S8: Машиностроение | T8: Швеллер стальной г/к, 10П, Ст.сп/пс, н/дл (ГОСТ 535-88/ ГОСТ 535-05) | V8: 0.99 | W8: т | X8: 24294.6 | Y8: Порезка (станок ленточнопильный) | AA8: 2475 | AB8: 1 | AC8: 1 | AE8: САНКТ-ПЕТЕРБУРГ | AF8: Центр | AG8: 0.99
A9: 1 | B9: САНКТ-ПЕТЕРБУРГ | C9: Центр | D9: Дауэнгауэр Н.Э. | E9: Дауэнгауэр Н.Э. | F9: Дауэнгауэр Н.Э. | G9: =IF(Таблица_Металлопроцессинг_детализированный[[#This Row],[Куратор договора]]=Таблица_Металлопроцессинг_детализированный[[#This Row],[Менеджер]],TRUE,FALSE) -> TRUE | H9: =SUMIFS(AA9:AA177,O9:O177,Таблица_Металлопроцессинг_детализированный[[#This Row],[Контрагент]],A9:A177,Таблица_Металлопроцессинг_детализированный[[#This Row],[Месяц отгрузки]]) -> 17196.5 | I9: =IF(Таблица_Металлопроцессинг_детализированный[[#This Row],[Инициатор+исполнитель]],1,IF(Таблица_Металлопроцессинг_детализированный[[#This Row],[Оборот за месяц по контрагенту]]<1000000,0.5,0.7)) -> 1 | J9: =IF(Таблица_Металлопроцессинг_детализированный[[#This Row],[Инициатор+исполнитель]]=TRUE,0,IF(Таблица_Металлопроцессинг_детализированный[[#This Row],[Оборот за месяц по контрагенту]]<1000000,0.5,0.3)) -> 0 | K9: =Таблица_Металлопроцессинг_детализированный[[#This Row],[Сумма наценки]]*Таблица_Металлопроцессинг_детализированный[[#This Row],[Распределение выручки для Куратора договора]] -> 1000 | L9: =IF(Таблица_Металлопроцессинг_детализированный[[#This Row],[Распределение выручки для Менеджера договора]]=1,"",Таблица_Металлопроцессинг_детализированный[[#This Row],[Сумма наценки]]*Таблица_Металлопроцессинг_детализированный[[#This Row],[Распределение выручки для Менеджера договора]]) -> 0 | M9: Процессинг | N9: САНКТ-ПЕТЕРБУРГ | O9: БЗ-СУДОСТРОЕНИЕ | P9: ООО "Балтийский завод-Судостроение" | S9: Машиностроение | T9: Швеллер стальной Г/к., 12П, Ст.сп/пс (ГОСТ 8240-97) | V9: 2 | W9: т | X9: 56420 | Y9: Порезка (станок ленточнопильный) | AA9: 1000 | AB9: 1 | AC9: 2 | AE9: САНКТ-ПЕТЕРБУРГ | AF9: Центр | AG9: 2
A10: 1 | B10: САНКТ-ПЕТЕРБУРГ | C10: Центр | D10: Дауэнгауэр Н.Э. | E10: Дауэнгауэр Н.Э. | F10: Дауэнгауэр Н.Э. | G10: =IF(Таблица_Металлопроцессинг_детализированный[[#This Row],[Куратор договора]]=Таблица_Металлопроцессинг_детализированный[[#This Row],[Менеджер]],TRUE,FALSE) -> TRUE | H10: =SUMIFS(AA10:AA177,O10:O177,Таблица_Металлопроцессинг_детализированный[[#This Row],[Контрагент]],A10:A177,Таблица_Металлопроцессинг_детализированный[[#This Row],[Месяц отгрузки]]) -> 16196.5 | I10: =IF(Таблица_Металлопроцессинг_детализированный[[#This Row],[Инициатор+исполнитель]],1,IF(Таблица_Металлопроцессинг_детализированный[[#This Row],[Оборот за месяц по контрагенту]]<1000000,0.5,0.7)) -> 1 | J10: =IF(Таблица_Металлопроцессинг_детализированный[[#This Row],[Инициатор+исполнитель]]=TRUE,0,IF(Таблица_Металлопроцессинг_детализированный[[#This Row],[Оборот за месяц по контрагенту]]<1000000,0.5,0.3)) -> 0 | K10: =Таблица_Металлопроцессинг_детализированный[[#This Row],[Сумма наценки]]*Таблица_Металлопроцессинг_детализированный[[#This Row],[Распределение выручки для Куратора договора]] -> 2757.5 | L10: =IF(Таблица_Металлопроцессинг_детализированный[[#This Row],[Распределение выручки для Менеджера договора]]=1,"",Таблица_Металлопроцессинг_детализированный[[#This Row],[Сумма наценки]]*Таблица_Металлопроцессинг_детализированный[[#This Row],[Распределение выручки для Менеджера договора]]) -> 0 | M10: Процессинг | N10: САНКТ-ПЕТЕРБУРГ | O10: БЗ-СУДОСТРОЕНИЕ | P10: ООО "Балтийский завод-Судостроение" | S10: Машиностроение | T10: Швеллер стальной Г/к., 14П, Ст.сп/пс (ГОСТ 8240-97) | V10: 5.515 | W10: т | X10: 155578.15 | Y10: Порезка (станок ленточнопильный) | AA10: 2757.5 | AB10: 1 | AC10: 5.5 | AE10: САНКТ-ПЕТЕРБУРГ | AF10: Центр | AG10: 5.515
A11: 1 | B11: САНКТ-ПЕТЕРБУРГ | C11: Центр | D11: Дауэнгауэр Н.Э. | E11: Дауэнгауэр Н.Э. | F11: Дауэнгауэр Н.Э. | G11: =IF(Таблица_Металлопроцессинг_детализированный[[#This Row],[Куратор договора]]=Таблица_Металлопроцессинг_детализированный[[#This Row],[Менеджер]],TRUE,FALSE) -> TRUE | H11: =SUMIFS(AA11:AA177,O11:O177,Таблица_Металлопроцессинг_детализированный[[#This Row],[Контрагент]],A11:A177,Таблица_Металлопроцессинг_детализированный[[#This Row],[Месяц отгрузки]]) -> 13439 | I11: =IF(Таблица_Металлопроцессинг_детализированный[[#This Row],[Инициатор+исполнитель]],1,IF(Таблица_Металлопроцессинг_детализированный[[#This Row],[Оборот за месяц по контрагенту]]<1000000,0.5,0.7)) -> 1 | J11: =IF(Таблица_Металлопроцессинг_детализированный[[#This Row],[Инициатор+исполнитель]]=TRUE,0,IF(Таблица_Металлопроцессинг_детализированный[[#This Row],[Оборот за месяц по контрагенту]]<1000000,0.5,0.3)) -> 0 | K11: =Таблица_Металлопроцессинг_детализированный[[#This Row],[Сумма наценки]]*Таблица_Металлопроцессинг_детализированный[[#This Row],[Распределение выручки для Куратора договора]] -> 2232 | L11: =IF(Таблица_Металлопроцессинг_детализированный[[#This Row],[Распределение выручки для Менеджера договора]]=1,"",Таблица_Металлопроцессинг_детализированный[[#This Row],[Сумма наценки]]*Таблица_Металлопроцессинг_детализированный[[#This Row],[Распределение выручки для Менеджера договора]]) -> 0 | M11: Процессинг | N11: САНКТ-ПЕТЕРБУРГ | O11: БЗ-СУДОСТРОЕНИЕ | P11: ООО "Балтийский завод-Судостроение" | S11: Машиностроение | T11: Уголок стальной г/к равнополочный, 100x10, Ст.сп/пс (ГОСТ 8509-93) | V11: 7.44 | W11: т | X11: 209882.4 | Y11: Порезка (станок ленточнопильный) | AA11: 2232 | AB11: 1 | AC11: 9.414 | AE11: САНКТ-ПЕТЕРБУРГ | AF11: Центр | AG11: 7.44
A12: 1 | B12: САНКТ-ПЕТЕРБУРГ | C12: Центр | D12: Дауэнгауэр Н.Э. | E12: Дауэнгауэр Н.Э. | F12: Дауэнгауэр Н.Э. | G12: =IF(Таблица_Металлопроцессинг_детализированный[[#This Row],[Куратор договора]]=Таблица_Металлопроцессинг_детализированный[[#This Row],[Менеджер]],TRUE,FALSE) -> TRUE | H12: =SUMIFS(AA12:AA177,O12:O177,Таблица_Металлопроцессинг_детализированный[[#This Row],[Контрагент]],A12:A177,Таблица_Металлопроцессинг_детализированный[[#This Row],[Месяц отгрузки]]) -> 65514 | I12: =IF(Таблица_Металлопроцессинг_детализированный[[#This Row],[Инициатор+исполнитель]],1,IF(Таблица_Металлопроцессинг_детализированный[[#This Row],[Оборот за месяц по контрагенту]]<1000000,0.5,0.7)) -> 1 | J12: =IF(Таблица_Металлопроцессинг_детализированный[[#This Row],[Инициатор+исполнитель]]=TRUE,0,IF(Таблица_Металлопроцессинг_детализированный[[#This Row],[Оборот за месяц по контрагенту]]<1000000,0.5,0.3)) -> 0 | K12: =Таблица_Металлопроцессинг_детализированный[[#This Row],[Сумма наценки]]*Таблица_Металлопроцессинг_детализированный[[#This Row],[Распределение выручки для Куратора договора]] -> 6090 | L12: =IF(Таблица_Металлопроцессинг_детализированный[[#This Row],[Распределение выручки для Менеджера договора]]=1,"",Таблица_Металлопроцессинг_детализированный[[#This Row],[Сумма наценки]]*Таблица_Металлопроцессинг_детализированный[[#This Row],[Распределение выручки для Менеджера договора]]) -> 0 | M12: Процессинг | N12: САНКТ-ПЕТЕРБУРГ | O12: СКМ Фирма | P12: ООО "Фирма СКМ" | Q12: Ленинградская обл. | R12: Ленинградская обл. | S12: Машиностроение | T12: Сталь листовая Х/к., 1.5, 1250x2500, Ст.кп/пс (ТУ 14-106-321-2010) | V12: 2.03 | W12: т | X12: 55459.6 | Y12: Порезка листового проката (ножницы) | AA12: 6090 | AB12: 1 | AC12: 2 | AE12: САНКТ-ПЕТЕРБУРГ | AF12: Центр | AG12: 2.03
A13: 1 | B13: САНКТ-ПЕТЕРБУРГ | C13: Центр | D13: Дауэнгауэр Н.Э. | E13: Дауэнгауэр Н.Э. | F13: Дауэнгауэр Н.Э. | G13: =IF(Таблица_Металлопроцессинг_детализированный[[#This Row],[Куратор договора]]=Таблица_Металлопроцессинг_детализированный[[#This Row],[Менеджер]],TRUE,FALSE) -> TRUE | H13: =SUMIFS(AA13:AA177,O13:O177,Таблица_Металлопроцессинг_детализированный[[#This Row],[Контрагент]],A13:A177,Таблица_Металлопроцессинг_детализированный[[#This Row],[Месяц отгрузки]]) -> 11207 | I13: =IF(Таблица_Металлопроцессинг_детализированный[[#This Row],[Инициатор+исполнитель]],1,IF(Таблица_Металлопроцессинг_детализированный[[#This Row],[Оборот за месяц по контрагенту]]<1000000,0.5,0.7)) -> 1 | J13: =IF(Таблица_Металлопроцессинг_детализированный[[#This Row],[Инициатор+исполнитель]]=TRUE,0,IF(Таблица_Металлопроцессинг_детализированный[[#This Row],[Оборот за месяц по контрагенту]]<1000000,0.5,0.3)) -> 0 | K13: =Таблица_Металлопроцессинг_детализированный[[#This Row],[Сумма наценки]]*Таблица_Металлопроцессинг_детализированный[[#This Row],[Распределение выручки для Куратора договора]] -> 3600 | L13: =IF(Таблица_Металлопроцессинг_детализированный[[#This Row],[Распределение выручки для Менеджера договора]]=1,"",Таблица_Металлопроцессинг_детализированный[[#This Row],[Сумма наценки]]*Таблица_Металлопроцессинг_детализированный[[#This Row],[Распределение выручки для Менеджера договора]]) -> 0 | M13: Процессинг | N13: САНКТ-ПЕТЕРБУРГ | O13: БЗ-СУДОСТРОЕНИЕ | P13: ООО "Балтийский завод-Судостроение" | S13: Машиностроение | T13: Уголок стальной г/к равнополочный, 63x5, Ст.сп/пс, н/дл (ГОСТ 8509-93) | V13: 3 | W13: т | X13: 75300 | Y13: Порезка (станок ленточнопильный) | AA13: 3600 | AB13: 1 | AC13: 3 | AE13: САНКТ-ПЕТЕРБУРГ | AF13: Центр | AG13: 3
A14: 1 | B14: САНКТ-ПЕТЕРБУРГ | C14: Центр | D14: Дауэнгауэр Н.Э. | E14: Дауэнгауэр Н.Э. | F14: Дауэнгауэр Н.Э. | G14: =IF(Таблица_Металлопроцессинг_детализированный[[#This Row],[Куратор договора]]=Таблица_Металлопроцессинг_детализированный[[#This Row],[Менеджер]],TRUE,FALSE) -> TRUE | H14: =SUMIFS(AA14:AA177,O14:O177,Таблица_Металлопроцессинг_детализированный[[#This Row],[Контрагент]],A14:A177,Таблица_Металлопроцессинг_детализированный[[#This Row],[Месяц отгрузки]]) -> 59424 | I14: =IF(Таблица_Металлопроцессинг_детализированный[[#This Row],[Инициатор+исполнитель]],1,IF(Таблица_Металлопроцессинг_детализированный[[#This Row],[Оборот за месяц по контрагенту]]<1000000,0.5,0.7)) -> 1 | J14: =IF(Таблица_Металлопроцессинг_детализированный[[#This Row],[Инициатор+исполнитель]]=TRUE,0,IF(Таблица_Металлопроцессинг_детализированный[[#This Row],[Оборот за месяц по контрагенту]]<1000000,0.5,0.3)) -> 0 | K14: =Таблица_Металлопроцессинг_детализированный[[#This Row],[Сумма наценки]]*Таблица_Металлопроцессинг_детализированный[[#This Row],[Распределение выручки для Куратора договора]] -> 18225 | L14: =IF(Таблица_Металлопроцессинг_детализированный[[#This Row],[Распределение выручки для Менеджера договора]]=1,"",Таблица_Металлопроцессинг_детализированный[[#This Row],[Сумма наценки]]*Таблица_Металлопроцессинг_детализированный[[#This Row],[Распределение выручки для Менеджера договора]]) -> 0 | M14: Процессинг | N14: САНКТ-ПЕТЕРБУРГ | O14: СКМ Фирма | P14: ООО "Фирма СКМ" | Q14: Ленинградская обл. | R14: Ленинградская обл. | S14: Машиностроение | T14: Сталь рулонная х/к, 1.5, 1250, Ст.сп/пс (ТУ 14-106-321-2010) | V14: 4.05 | W14: т | X14: 113359.5 | Y14: Порезка листового проката поперечная | Z14: CAMU RDC 1500/6 | AA14: 18225 | AB14: 1 | AC14: 5 | AD14: 1 | AE14: САНКТ-ПЕТЕРБУРГ | AF14: Центр | AG14: 4.05
A15: 1 | B15: САНКТ-ПЕТЕРБУРГ | C15: Центр | D15: Ипатова Е.Н. | E15: Ипатова Е.Н. | F15: Ипатова Е.Н. | G15: =IF(Таблица_Металлопроцессинг_детализированный[[#This Row],[Куратор договора]]=Таблица_Металлопроцессинг_детализированный[[#This Row],[Менеджер]],TRUE,FALSE) -> TRUE | H15: =SUMIFS(AA15:AA177,O15:O177,Таблица_Металлопроцессинг_детализированный[[#This Row],[Контрагент]],A15:A177,Таблица_Металлопроцессинг_детализированный[[#This Row],[Месяц отгрузки]]) -> 61200 | I15: =IF(Таблица_Металлопроцессинг_детализированный[[#This Row],[Инициатор+исполнитель]],1,IF(Таблица_Металлопроцессинг_детализированный[[#This Row],[Оборот за месяц по контрагенту]]<1000000,0.5,0.7)) -> 1 | J15: =IF(Таблица_Металлопроцессинг_детализированный[[#This Row],[Инициатор+исполнитель]]=TRUE,0,IF(Таблица_Металлопроцессинг_детализированный[[#This Row],[Оборот за месяц по контрагенту]]<1000000,0.5,0.3)) -> 0 | K15: =Таблица_Металлопроцессинг_детализированный[[#This Row],[Сумма наценки]]*Таблица_Металлопроцессинг_детализированный[[#This Row],[Распределение выручки для Куратора договора]] -> 27000 | L15: =IF(Таблица_Металлопроцессинг_детализированный[[#This Row],[Распределение выручки для Менеджера договора]]=1,"",Таблица_Металлопроцессинг_детализированный[[#This Row],[Сумма наценки]]*Таблица_Металлопроцессинг_детализированный[[#This Row],[Распределение выручки для Менеджера договора]]) -> 0 | M15: Процессинг | N15: САНКТ-ПЕТЕРБУРГ | O15: НИКОЛЬСКИЙ ЗМК | P15: ООО "Никольский завод металлоконструкций" | Q15: Ленинградская обл. | R15: Ленинградская обл. | S15: Металлоконструкции | T15: Сталь листовая Г/к., 12, 1500x6000, Ст.сп/пс (ГОСТ 14637) | V15: 25.5 | W15: т | X15: 580635 | Y15: Очистка проката (дробь 1,0мм, 0,8мм) | Z15: ROSLER | AA15: 27000 | AB15: 270 | AC15: 8.5 | AD15: 1 | AE15: САНКТ-ПЕТЕРБУРГ | AF15: Центр | AG15: 25.5
A16: 1 | B16: САНКТ-ПЕТЕРБУРГ | C16: Центр | D16: Зиновьев С.Ю. | E16: Зиновьев С.Ю. | F16: Зиновьев С.Ю. | G16: =IF(Таблица_Металлопроцессинг_детализированный[[#This Row],[Куратор договора]]=Таблица_Металлопроцессинг_детализированный[[#This Row],[Менеджер]],TRUE,FALSE) -> TRUE | H16: =SUMIFS(AA16:AA862,O16:O862,Таблица_Металлопроцессинг_детализированный[[#This Row],[Контрагент]],A16:A862,Таблица_Металлопроцессинг_детализированный[[#This Row],[Месяц отгрузки]]) -> 340 | I16: =IF(Таблица_Металлопроцессинг_детализированный[[#This Row],[Инициатор+исполнитель]],1,IF(Таблица_Металлопроцессинг_детализированный[[#This Row],[Оборот за месяц по контрагенту]]<1000000,0.5,0.7)) -> 1 | J16: =IF(Таблица_Металлопроцессинг_детализированный[[#This Row],[Инициатор+исполнитель]]=TRUE,0,IF(Таблица_Металлопроцессинг_детализированный[[#This Row],[Оборот за месяц по контрагенту]]<1000000,0.5,0.3)) -> 0 | K16: =Таблица_Металлопроцессинг_детализированный[[#This Row],[Сумма наценки]]*Таблица_Металлопроцессинг_детализированный[[#This Row],[Распределение выручки для Куратора договора]] -> 340 | L16: =IF(Таблица_Металлопроцессинг_детализированный[[#This Row],[Распределение выручки для Менеджера договора]]=1,"",Таблица_Металлопроцессинг_детализированный[[#This Row],[Сумма наценки]]*Таблица_Металлопроцессинг_детализированный[[#This Row],[Распределение выручки для Менеджера договора]]) -> 0 | M16: Процессинг | N16: САНКТ-ПЕТЕРБУРГ | O16: Северо-Запад ПГ | P16: ООО "Промышленная группа "СЕВЕРО-ЗАПАД" | S16: Металлоторговля | T16: Швеллер стальной Г/к., 8У, Ст.сп/пс (ГОСТ 8240-97) | V16: 0.16 | W16: т | X16: 4336 | Y16: Станок ленточнопильный | Z16: PEGASUS | AA16: 340 | AB16: 2 | AC16: 0.165 | AD16: 1 | AE16: САНКТ-ПЕТЕРБУРГ | AF16: Центр | AG16: 0.16
A17: 1 | B17: САНКТ-ПЕТЕРБУРГ | C17: Центр | D17: Ипатова Е.Н. | E17: Ипатова Е.Н. | F17: Ипатова Е.Н. | G17: =IF(Таблица_Металлопроцессинг_детализированный[[#This Row],[Куратор договора]]=Таблица_Металлопроцессинг_детализированный[[#This Row],[Менеджер]],TRUE,FALSE) -> TRUE | H17: =SUMIFS(AA17:AA872,O17:O872,Таблица_Металлопроцессинг_детализированный[[#This Row],[Контрагент]],A17:A872,Таблица_Металлопроцессинг_детализированный[[#This Row],[Месяц отгрузки]]) -> 14476 | I17: =IF(Таблица_Металлопроцессинг_детализированный[[#This Row],[Инициатор+исполнитель]],1,IF(Таблица_Металлопроцессинг_детализированный[[#This Row],[Оборот за месяц по контрагенту]]<1000000,0.5,0.7)) -> 1 | J17: =IF(Таблица_Металлопроцессинг_детализированный[[#This Row],[Инициатор+исполнитель]]=TRUE,0,IF(Таблица_Металлопроцессинг_детализированный[[#This Row],[Оборот за месяц по контрагенту]]<1000000,0.5,0.3)) -> 0 | K17: =Таблица_Металлопроцессинг_детализированный[[#This Row],[Сумма наценки]]*Таблица_Металлопроцессинг_детализированный[[#This Row],[Распределение выручки для Куратора договора]] -> 500 | L17: =IF(Таблица_Металлопроцессинг_детализированный[[#This Row],[Распределение выручки для Менеджера договора]]=1,"",Таблица_Металлопроцессинг_детализированный[[#This Row],[Сумма наценки]]*Таблица_Металлопроцессинг_детализированный[[#This Row],[Распределение выручки для Менеджера договора]]) -> 0 | M17: Процессинг | N17: САНКТ-ПЕТЕРБУРГ | O17: ОЛЛТРЕЙД-НЕВА | P17: ООО"ОЛЛТРЕЙД-НЕВА" | S17: Металлоторговля | T17: Арматура класс АI, 12, Ст.сп/пс, в бунтах (ГОСТ 5781-82) | V17: 0.1 | W17: т | X17: 2899 | Y17: Размотка/резка арматурного проката | Z17: MELC 16x4 | AA17: 500 | AB17: 1 | AC17: 0.1 | AD17: 1 | AE17: САНКТ-ПЕТЕРБУРГ | AF17: Центр | AG17: 0.1
A18: 1 | B18: САНКТ-ПЕТЕРБУРГ | C18: Центр | D18: Дауэнгауэр Н.Э. | E18: Дауэнгауэр Н.Э. | F18: Ипатова Е.Н. | G18: =IF(Таблица_Металлопроцессинг_детализированный[[#This Row],[Куратор договора]]=Таблица_Металлопроцессинг_детализированный[[#This Row],[Менеджер]],TRUE,FALSE) -> FALSE | H18: =SUMIFS(AA18:AA878,O18:O878,Таблица_Металлопроцессинг_детализированный[[#This Row],[Контрагент]],A18:A878,Таблица_Металлопроцессинг_детализированный[[#This Row],[Месяц отгрузки]]) -> 55198.2 | I18: =IF(Таблица_Металлопроцессинг_детализированный[[#This Row],[Инициатор+исполнитель]],1,IF(Таблица_Металлопроцессинг_детализированный[[#This Row],[Оборот за месяц по контрагенту]]<1000000,0.5,0.7)) -> 0.5 | J18: =IF(Таблица_Металлопроцессинг_детализированный[[#This Row],[Инициатор+исполнитель]]=TRUE,0,IF(Таблица_Металлопроцессинг_детализированный[[#This Row],[Оборот за месяц по контрагенту]]<1000000,0.5,0.3)) -> 0.5 | K18: =Таблица_Металлопроцессинг_детализированный[[#This Row],[Сумма наценки]]*Таблица_Металлопроцессинг_детализированный[[#This Row],[Распределение выручки для Куратора договора]] -> 3662.5 | L18: =IF(Таблица_Металлопроцессинг_детализированный[[#This Row],[Распределение выручки для Менеджера договора]]=1,"",Таблица_Металлопроцессинг_детализированный[[#This Row],[Сумма наценки]]*Таблица_Металлопроцессинг_детализированный[[#This Row],[Распределение выручки для Менеджера договора]]) -> 3662.5 | M18: Процессинг | N18: САНКТ-ПЕТЕРБУРГ | O18: НОВАЯ ЭРА | P18: ОАО "Новая ЭРА" | Q18: г. Санкт-Петербург | R18: г. Санкт-Петербург | S18: Машиностроение | T18: Сталь листовая Х/к., 2, 1250x2500, Ст.кп/пс (ТУ 14-106-321-2010) | V18: 2.93 | W18: т | X18: 80047.6 | Y18: Порезка листового проката (ножницы) | AA18: 7325 | AB18: 1 | AC18: 3 | AE18: САНКТ-ПЕТЕРБУРГ | AF18: Центр | AG18: 2.93
A19: 1 | B19: САНКТ-ПЕТЕРБУРГ | C19: Центр | D19: Дауэнгауэр Н.Э. | E19: Дауэнгауэр Н.Э. | F19: Дауэнгауэр Н.Э. | G19: =IF(Таблица_Металлопроцессинг_детализированный[[#This Row],[Куратор договора]]=Таблица_Металлопроцессинг_детализированный[[#This Row],[Менеджер]],TRUE,FALSE) -> TRUE | H19: =SUMIFS(AA19:AA879,O19:O879,Таблица_Металлопроцессинг_детализированный[[#This Row],[Контрагент]],A19:A879,Таблица_Металлопроцессинг_детализированный[[#This Row],[Месяц отгрузки]]) -> 47873.2 | I19: =IF(Таблица_Металлопроцессинг_детализированный[[#This Row],[Инициатор+исполнитель]],1,IF(Таблица_Металлопроцессинг_детализированный[[#This Row],[Оборот за месяц по контрагенту]]<1000000,0.5,0.7)) -> 1 | J19: =IF(Таблица_Металлопроцессинг_детализированный[[#This Row],[Инициатор+исполнитель]]=TRUE,0,IF(Таблица_Металлопроцессинг_детализированный[[#This Row],[Оборот за месяц по контрагенту]]<1000000,0.5,0.3)) -> 0 | K19: =Таблица_Металлопроцессинг_детализированный[[#This Row],[Сумма наценки]]*Таблица_Металлопроцессинг_детализированный[[#This Row],[Распределение выручки для Куратора договора]] -> 5020 | L19: =IF(Таблица_Металлопроцессинг_детализированный[[#This Row],[Распределение выручки для Менеджера договора]]=1,"",Таблица_Металлопроцессинг_детализированный[[#This Row],[Сумма наценки]]*Таблица_Металлопроцессинг_детализированный[[#This Row],[Распределение выручки для Менеджера договора]]) -> 0 | M19: Процессинг | N19: САНКТ-ПЕТЕРБУРГ | O19: НОВАЯ ЭРА | P19: ОАО "Новая ЭРА" | Q19: г. Санкт-Петербург | R19: г. Санкт-Петербург | S19: Машиностроение | T19: Сталь листовая Х/к., 1.5, 1250x2500, Ст.кп/пс (ТУ 14-106-321-2010) | V19: 2 | W19: т | X19: 54640 | Y19: Порезка листового проката (ножницы) | AA19: 5020 | AB19: 1 | AC19: 2 | AE19: САНКТ-ПЕТЕРБУРГ | AF19: Центр | AG19: 2
A20: 1 | B20: САНКТ-ПЕТЕРБУРГ | C20: Центр | D20: Молчанова Е.М. | E20: Молчанова Е.М. | F20: Молчанова Е.М. | G20: =IF(Таблица_Металлопроцессинг_детализированный[[#This Row],[Куратор договора]]=Таблица_Металлопроцессинг_детализированный[[#This Row],[Менеджер]],TRUE,FALSE) -> TRUE | H20: =SUMIFS(AA20:AA881,O20:O881,Таблица_Металлопроцессинг_детализированный[[#This Row],[Контрагент]],A20:A881,Таблица_Металлопроцессинг_детализированный[[#This Row],[Месяц отгрузки]]) -> 1000 | I20: =IF(Таблица_Металлопроцессинг_детализированный[[#This Row],[Инициатор+исполнитель]],1,IF(Таблица_Металлопроцессинг_детализированный[[#This Row],[Оборот за месяц по контрагенту]]<1000000,0.5,0.7)) -> 1 | J20: =IF(Таблица_Металлопроцессинг_детализированный[[#This Row],[Инициатор+исполнитель]]=TRUE,0,IF(Таблица_Металлопроцессинг_детализированный[[#This Row],[Оборот за месяц по контрагенту]]<1000000,0.5,0.3)) -> 0 | K20: =Таблица_Металлопроцессинг_детализированный[[#This Row],[Сумма наценки]]*Таблица_Металлопроцессинг_детализированный[[#This Row],[Распределение выручки для Куратора договора]] -> 100 | L20: =IF(Таблица_Металлопроцессинг_детализированный[[#This Row],[Распределение выручки для Менеджера договора]]=1,"",Таблица_Металлопроцессинг_детализированный[[#This Row],[Сумма наценки]]*Таблица_Металлопроцессинг_детализированный[[#This Row],[Распределение выручки для Менеджера договора]]) -> 0 | M20: Процессинг | N20: САНКТ-ПЕТЕРБУРГ | O20: НеваБалтСтрой | P20: ООО "НеваБалтСтрой" | S20: Металлоторговля | T20: Арматура класс АI, 12, Ст.сп/пс, в бунтах (ГОСТ 5781-82) | V20: 0.1 | W20: т | X20: 2899 | Y20: Размотка/резка арматурного проката | Z20: MELC 16x4 | AA20: 100 | AB20: 1 | AC20: 0.1 | AD20: 1 | AE20: САНКТ-ПЕТЕРБУРГ | AF20: Центр | AG20: 0.1
A21: 1 | B21: САНКТ-ПЕТЕРБУРГ | C21: Центр | D21: Молчанова Е.М. | E21: Молчанова Е.М. | F21: Молчанова Е.М. | G21: =IF(Таблица_Металлопроцессинг_детализированный[[#This Row],[Куратор договора]]=Таблица_Металлопроцессинг_детализированный[[#This Row],[Менеджер]],TRUE,FALSE) -> TRUE | H21: =SUMIFS(AA21:AA882,O21:O882,Таблица_Металлопроцессинг_детализированный[[#This Row],[Контрагент]],A21:A882,Таблица_Металлопроцессинг_детализированный[[#This Row],[Месяц отгрузки]]) -> 900 | I21: =IF(Таблица_Металлопроцессинг_детализированный[[#This Row],[Инициатор+исполнитель]],1,IF(Таблица_Металлопроцессинг_детализированный[[#This Row],[Оборот за месяц по контрагенту]]<1000000,0.5,0.7)) -> 1 | J21: =IF(Таблица_Металлопроцессинг_детализированный[[#This Row],[Инициатор+исполнитель]]=TRUE,0,IF(Таблица_Металлопроцессинг_детализированный[[#This Row],[Оборот за месяц по контрагенту]]<1000000,0.5,0.3)) -> 0 | K21: =Таблица_Металлопроцессинг_детализированный[[#This Row],[Сумма наценки]]*Таблица_Металлопроцессинг_детализированный[[#This Row],[Распределение выручки для Куратора договора]] -> 900 | L21: =IF(Таблица_Металлопроцессинг_детализированный[[#This Row],[Распределение выручки для Менеджера договора]]=1,"",Таблица_Металлопроцессинг_детализированный[[#This Row],[Сумма наценки]]*Таблица_Металлопроцессинг_детализированный[[#This Row],[Распределение выручки для Менеджера договора]]) -> 0 | M21: Процессинг | N21: САНКТ-ПЕТЕРБУРГ | O21: НеваБалтСтрой | P21: ООО "НеваБалтСтрой" | S21: Металлоторговля | T21: Арматура класс АI, 8, Ст.сп/пс, в бунтах (ГОСТ5781-82) | V21: 0.6 | W21: т | X21: 16392 | Y21: Размотка/резка арматурного проката | Z21: MELC 16x4 | AA21: 900 | AB21: 1 | AC21: 0.6 | AD21: 1 | AE21: САНКТ-ПЕТЕРБУРГ | AF21: Центр | AG21: 0.6
A22: 1 | B22: САНКТ-ПЕТЕРБУРГ | C22: Центр | D22: Райская Н.А. | E22: Райская Н.А. | F22: Райская Н.А. | G22: =IF(Таблица_Металлопроцессинг_детализированный[[#This Row],[Куратор договора]]=Таблица_Металлопроцессинг_детализированный[[#This Row],[Менеджер]],TRUE,FALSE) -> TRUE | H22: =SUMIFS(AA22:AA887,O22:O887,Таблица_Металлопроцессинг_детализированный[[#This Row],[Контрагент]],A22:A887,Таблица_Металлопроцессинг_детализированный[[#This Row],[Месяц отгрузки]]) -> 4672 | I22: =IF(Таблица_Металлопроцессинг_детализированный[[#This Row],[Инициатор+исполнитель]],1,IF(Таблица_Металлопроцессинг_детализированный[[#This Row],[Оборот за месяц по контрагенту]]<1000000,0.5,0.7)) -> 1 | J22: =IF(Таблица_Металлопроцессинг_детализированный[[#This Row],[Инициатор+исполнитель]]=TRUE,0,IF(Таблица_Металлопроцессинг_детализированный[[#This Row],[Оборот за месяц по контрагенту]]<1000000,0.5,0.3)) -> 0 | K22: =Таблица_Металлопроцессинг_детализированный[[#This Row],[Сумма наценки]]*Таблица_Металлопроцессинг_детализированный[[#This Row],[Распределение выручки для Куратора договора]] -> 3612 | L22: =IF(Таблица_Металлопроцессинг_детализированный[[#This Row],[Распределение выручки для Менеджера договора]]=1,"",Таблица_Металлопроцессинг_детализированный[[#This Row],[Сумма наценки]]*Таблица_Металлопроцессинг_детализированный[[#This Row],[Распределение выручки для Менеджера договора]]) -> 0 | M22: Процессинг | N22: САНКТ-ПЕТЕРБУРГ | O22: КонкордМеталл | P22: ООО"КонкордМеталл" | Q22: г. Санкт-Петербург | R22: г. Санкт-Петербург | S22: Металлоторговля | T22: Сталь рулонная Г/к., 3, 1500, Ст.сп/пс (19903) | V22: 3.01 | W22: т | X22: 66521 | Y22: Порезка листового проката поперечная | Z22: CAMU RDC 1500/6 | AA22: 3612 | AB22: 1 | AC22: 2.98 | AD22: 1 | AE22: САНКТ-ПЕТЕРБУРГ | AF22: Центр | AG22: 3.01
A23: 1 | B23: САНКТ-ПЕТЕРБУРГ | C23: Центр | D23: Погорелов И.В. | E23: Погорелов И.В. | F23: Дауэнгауэр Н.Э. | G23: =IF(Таблица_Металлопроцессинг_детализированный[[#This Row],[Куратор договора]]=Таблица_Металлопроцессинг_детализированный[[#This Row],[Менеджер]],TRUE,FALSE) -> FALSE | H23: =SUMIFS(AA23:AA888,O23:O888,Таблица_Металлопроцессинг_детализированный[[#This Row],[Контрагент]],A23:A888,Таблица_Металлопроцессинг_детализированный[[#This Row],[Месяц отгрузки]]) -> 500 | I23: =IF(Таблица_Металлопроцессинг_детализированный[[#This Row],[Инициатор+исполнитель]],1,IF(Таблица_Металлопроцессинг_детализированный[[#This Row],[Оборот за месяц по контрагенту]]<1000000,0.5,0.7)) -> 0.5 | J23: =IF(Таблица_Металлопроцессинг_детализированный[[#This Row],[Инициатор+исполнитель]]=TRUE,0,IF(Таблица_Металлопроцессинг_детализированный[[#This Row],[Оборот за месяц по контрагенту]]<1000000,0.5,0.3)) -> 0.5 | K23: =Таблица_Металлопроцессинг_детализированный[[#This Row],[Сумма наценки]]*Таблица_Металлопроцессинг_детализированный[[#This Row],[Распределение выручки для Куратора договора]] -> 250 | L23: =IF(Таблица_Металлопроцессинг_детализированный[[#This Row],[Распределение выручки для Менеджера договора]]=1,"",Таблица_Металлопроцессинг_детализированный[[#This Row],[Сумма наценки]]*Таблица_Металлопроцессинг_детализированный[[#This Row],[Распределение выручки для Менеджера договора]]) -> 250 | M23: Процессинг | N23: САНКТ-ПЕТЕРБУРГ | O23: МКС СПБ | P23: ООО "Металл Комплект Сервис" | S23: Металлоторговля | T23: Сталь листовая Г/к., 5, 1500x6000, Ст.сп/пс (ГОСТ 14637) | V23: 0.35 | W23: т | X23: 7969.5 | Y23: Порезка листового проката (ножницы) | Z23: COLGAR CI-34-TR | AA23: 500 | AB23: 1 | AC23: 0.35 | AD23: 1 | AE23: САНКТ-ПЕТЕРБУРГ | AF23: Центр | AG23: 0.35
A24: 1 | B24: САНКТ-ПЕТЕРБУРГ | C24: Центр | D24: Матросова Л.Ш. | E24: Матросова Л.Ш. | F24: Матросова Л.Ш. | G24: =IF(Таблица_Металлопроцессинг_детализированный[[#This Row],[Куратор договора]]=Таблица_Металлопроцессинг_детализированный[[#This Row],[Менеджер]],TRUE,FALSE) -> TRUE | H24: =SUMIFS(AA24:AA902,O24:O902,Таблица_Металлопроцессинг_детализированный[[#This Row],[Контрагент]],A24:A902,Таблица_Металлопроцессинг_детализированный[[#This Row],[Месяц отгрузки]]) -> 8656 | I24: =IF(Таблица_Металлопроцессинг_детализированный[[#This Row],[Инициатор+исполнитель]],1,IF(Таблица_Металлопроцессинг_детализированный[[#This Row],[Оборот за месяц по контрагенту]]<1000000,0.5,0.7)) -> 1 | J24: =IF(Таблица_Металлопроцессинг_детализированный[[#This Row],[Инициатор+исполнитель]]=TRUE,0,IF(Таблица_Металлопроцессинг_детализированный[[#This Row],[Оборот за месяц по контрагенту]]<1000000,0.5,0.3)) -> 0 | K24: =Таблица_Металлопроцессинг_детализированный[[#This Row],[Сумма наценки]]*Таблица_Металлопроцессинг_детализированный[[#This Row],[Распределение выручки для Куратора договора]] -> 6656 | L24: =IF(Таблица_Металлопроцессинг_детализированный[[#This Row],[Распределение выручки для Менеджера договора]]=1,"",Таблица_Металлопроцессинг_детализированный[[#This Row],[Сумма наценки]]*Таблица_Металлопроцессинг_детализированный[[#This Row],[Распределение выручки для Менеджера договора]]) -> 0 | M24: Процессинг | N24: САНКТ-ПЕТЕРБУРГ | O24: ТэтаКом | P24: ООО "ТэтаКом" | Q24: г. Санкт-Петербург | R24: г. Санкт-Петербург | S24: Металлоторговля | T24: Сталь листовая Г/к., 16, 1500x6000, Ст.сп/пс (ГОСТ 14637) | V24: 0.13 | W24: т | X24: 3017.3 | Y24: Порезка листового проката плазменная PLAZMA | Z24: LINEACORD PCL40 | AA24: 6656 | AB24: 52 | AC24: 0.13 | AD24: 1 | AE24: САНКТ-ПЕТЕРБУРГ | AF24: Центр | AG24: 0.13
A25: 1 | B25: САНКТ-ПЕТЕРБУРГ | C25: Центр | D25: Ипатова Е.Н. | E25: Ипатова Е.Н. | F25: Ипатова Е.Н. | G25: =IF(Таблица_Металлопроцессинг_детализированный[[#This Row],[Куратор договора]]=Таблица_Металлопроцессинг_детализированный[[#This Row],[Менеджер]],TRUE,FALSE) -> TRUE | H25: =SUMIFS(AA25:AA914,O25:O914,Таблица_Металлопроцессинг_детализированный[[#This Row],[Контрагент]],A25:A914,Таблица_Металлопроцессинг_детализированный[[#This Row],[Месяц отгрузки]]) -> 1870 | I25: =IF(Таблица_Металлопроцессинг_детализированный[[#This Row],[Инициатор+исполнитель]],1,IF(Таблица_Металлопроцессинг_детализированный[[#This Row],[Оборот за месяц по контрагенту]]<1000000,0.5,0.7)) -> 1 | J25: =IF(Таблица_Металлопроцессинг_детализированный[[#This Row],[Инициатор+исполнитель]]=TRUE,0,IF(Таблица_Металлопроцессинг_детализированный[[#This Row],[Оборот за месяц по контрагенту]]<1000000,0.5,0.3)) -> 0 | K25: =Таблица_Металлопроцессинг_детализированный[[#This Row],[Сумма наценки]]*Таблица_Металлопроцессинг_детализированный[[#This Row],[Распределение выручки для Куратора договора]] -> 800 | L25: =IF(Таблица_Металлопроцессинг_детализированный[[#This Row],[Распределение выручки для Менеджера договора]]=1,"",Таблица_Металлопроцессинг_детализированный[[#This Row],[Сумма наценки]]*Таблица_Металлопроцессинг_детализированный[[#This Row],[Распределение выручки для Менеджера договора]]) -> 0 | M25: Процессинг | N25: САНКТ-ПЕТЕРБУРГ | O25: ЕВРАЗ Металл Инпром_РОЗНИЦА | P25: ЕВРАЗ Металл Инпром_РОЗНИЦА | Q25: Ростовская обл. | R25: Ростовская обл. | S25: Розница | T25: Сталь листовая Г/к. рифленая, 4, 1500x6000, Ст.сп/пс (ГОСТ 8568-77) | V25: 0.28 | W25: т | X25: 7495.6 | Y25: Порезка листового проката (ножницы) | Z25: COLGAR CI-34-TR | AA25: 800 | AB25: 2 | AC25: 0.29 | AD25: 1 | AE25: САНКТ-ПЕТЕРБУРГ | AF25: Центр | AG25: 0.28
A26: 1 | B26: САНКТ-ПЕТЕРБУРГ | C26: Центр | D26: Райская Н.А. | E26: Райская Н.А. | F26: Райская Н.А. | G26: =IF(Таблица_Металлопроцессинг_детализированный[[#This Row],[Куратор договора]]=Таблица_Металлопроцессинг_детализированный[[#This Row],[Менеджер]],TRUE,FALSE) -> TRUE | H26: =SUMIFS(AA26:AA924,O26:O924,Таблица_Металлопроцессинг_детализированный[[#This Row],[Контрагент]],A26:A924,Таблица_Металлопроцессинг_детализированный[[#This Row],[Месяц отгрузки]]) -> 5208 | I26: =IF(Таблица_Металлопроцессинг_детализированный[[#This Row],[Инициатор+исполнитель]],1,IF(Таблица_Металлопроцессинг_детализированный[[#This Row],[Оборот за месяц по контрагенту]]<1000000,0.5,0.7)) -> 1 | J26: =IF(Таблица_Металлопроцессинг_детализированный[[#This Row],[Инициатор+исполнитель]]=TRUE,0,IF(Таблица_Металлопроцессинг_детализированный[[#This Row],[Оборот за месяц по контрагенту]]<1000000,0.5,0.3)) -> 0 | K26: =Таблица_Металлопроцессинг_детализированный[[#This Row],[Сумма наценки]]*Таблица_Металлопроцессинг_детализированный[[#This Row],[Распределение выручки для Куратора договора]] -> 5208 | L26: =IF(Таблица_Металлопроцессинг_детализированный[[#This Row],[Распределение выручки для Менеджера договора]]=1,"",Таблица_Металлопроцессинг_детализированный[[#This Row],[Сумма наценки]]*Таблица_Металлопроцессинг_детализированный[[#This Row],[Распределение выручки для Менеджера договора]]) -> 0 | M26: Процессинг | N26: САНКТ-ПЕТЕРБУРГ | O26: Блок-СПб | P26: ООО "Блок-СПб" | S26: Металлоторговля | T26: Арматура B500C, 8, Ст.сп/пс , в бунтах(ГОСТ 52544-2006) | V26: 4.34 | W26: т | X26: 113751.4 | Y26: Размотка/резка арматурного проката | Z26: MELC 16x4 | AA26: 5208 | AB26: 1 | AC26: 4.25 | AD26: 1 | AE26: САНКТ-ПЕТЕРБУРГ | AF26: Центр | AG26: 4.34
A27: 1 | B27: САНКТ-ПЕТЕРБУРГ | C27: Центр | D27: Дауэнгауэр Н.Э. | E27: Дауэнгауэр Н.Э. | F27: Дауэнгауэр Н.Э. | G27: =IF(Таблица_Металлопроцессинг_детализированный[[#This Row],[Куратор договора]]=Таблица_Металлопроцессинг_детализированный[[#This Row],[Менеджер]],TRUE,FALSE) -> TRUE | H27: =SUMIFS(AA27:AA928,O27:O928,Таблица_Металлопроцессинг_детализированный[[#This Row],[Контрагент]],A27:A928,Таблица_Металлопроцессинг_детализированный[[#This Row],[Месяц отгрузки]]) -> 23135 | I27: =IF(Таблица_Металлопроцессинг_детализированный[[#This Row],[Инициатор+исполнитель]],1,IF(Таблица_Металлопроцессинг_детализированный[[#This Row],[Оборот за месяц по контрагенту]]<1000000,0.5,0.7)) -> 1 | J27: =IF(Таблица_Металлопроцессинг_детализированный[[#This Row],[Инициатор+исполнитель]]=TRUE,0,IF(Таблица_Металлопроцессинг_детализированный[[#This Row],[Оборот за месяц по контрагенту]]<1000000,0.5,0.3)) -> 0 | K27: =Таблица_Металлопроцессинг_детализированный[[#This Row],[Сумма наценки]]*Таблица_Металлопроцессинг_детализированный[[#This Row],[Распределение выручки для Куратора договора]] -> 23135 | L27: =IF(Таблица_Металлопроцессинг_детализированный[[#This Row],[Распределение выручки для Менеджера договора]]=1,"",Таблица_Металлопроцессинг_детализированный[[#This Row],[Сумма наценки]]*Таблица_Металлопроцессинг_детализированный[[#This Row],[Распределение выручки для Менеджера договора]]) -> 0 | M27: Процессинг | N27: САНКТ-ПЕТЕРБУРГ | O27: ЛССМУ-КОМФОРТ | P27: ООО "ЛенСпецСМУ-Комфорт" | S27: Машиностроение | T27: Сталь листовая Г/к., 5, 1500x6000, Ст.сп/пс (ГОСТ 14637) | V27: 3.5 | W27: т | X27: 79695 | Y27: Порезка листового проката (ножницы) | AA27: 23135 | AB27: 1 | AC27: 5.6 | AE27: САНКТ-ПЕТЕРБУРГ | AF27: Центр | AG27: 3.5
A28: 1 | B28: САНКТ-ПЕТЕРБУРГ | C28: Центр | D28: Хабибуллов М.Р. | E28: Хабибуллов М.Р. | F28: Хабибуллов М.Р. | G28: =IF(Таблица_Металлопроцессинг_детализированный[[#This Row],[Куратор договора]]=Таблица_Металлопроцессинг_детализированный[[#This Row],[Менеджер]],TRUE,FALSE) -> TRUE | H28: =SUMIFS(AA28:AA953,O28:O953,Таблица_Металлопроцессинг_детализированный[[#This Row],[Контрагент]],A28:A953,Таблица_Металлопроцессинг_детализированный[[#This Row],[Месяц отгрузки]]) -> 464674.5 | I28: =IF(Таблица_Металлопроцессинг_детализированный[[#This Row],[Инициатор+исполнитель]],1,IF(Таблица_Металлопроцессинг_детализированный[[#This Row],[Оборот за месяц по контрагенту]]<1000000,0.5,0.7)) -> 1 | J28: =IF(Таблица_Металлопроцессинг_детализированный[[#This Row],[Инициатор+исполнитель]]=TRUE,0,IF(Таблица_Металлопроцессинг_детализированный[[#This Row],[Оборот за месяц по контрагенту]]<1000000,0.5,0.3)) -> 0 | K28: =Таблица_Металлопроцессинг_детализированный[[#This Row],[Сумма наценки]]*Таблица_Металлопроцессинг_детализированный[[#This Row],[Распределение выручки для Куратора договора]] -> 29985 | L28: =IF(Таблица_Металлопроцессинг_детализированный[[#This Row],[Распределение выручки для Менеджера договора]]=1,"",Таблица_Металлопроцессинг_детализированный[[#This Row],[Сумма наценки]]*Таблица_Металлопроцессинг_детализированный[[#This Row],[Распределение выручки для Менеджера договора]]) -> 0 | M28: Процессинг | N28: САНКТ-ПЕТЕРБУРГ | O28: АртЛэнд | P28: ООО "Строительная компания "АртЛэнд" | S28: Стройиндустрия | T28: Шпунт Ларсена Л5-УМ, С255 (ТУ 14-102-8-2003) | V28: 19.99 | W28: т | X28: 789605 | Y28: Очистка и покраска проката (грунт ЭМЛАК 263) | Z28: ROSLER | AA28: 29985 | AB28: 19.99 | AC28: 19.99 | AD28: 1 | AE28: САНКТ-ПЕТЕРБУРГ | AF28: Центр | AG28: 19.99
A29: 1 | B29: САНКТ-ПЕТЕРБУРГ | C29: Центр | D29: Степура С.Н. | E29: Степура С.Н. | F29: Ипатова Е.Н. | G29: =IF(Таблица_Металлопроцессинг_детализированный[[#This Row],[Куратор договора]]=Таблица_Металлопроцессинг_детализированный[[#This Row],[Менеджер]],TRUE,FALSE) -> FALSE | H29: =SUMIFS(AA29:AA959,O29:O959,Таблица_Металлопроцессинг_детализированный[[#This Row],[Контрагент]],A29:A959,Таблица_Металлопроцессинг_детализированный[[#This Row],[Месяц отгрузки]]) -> 7680 | I29: =IF(Таблица_Металлопроцессинг_детализированный[[#This Row],[Инициатор+исполнитель]],1,IF(Таблица_Металлопроцессинг_детализированный[[#This Row],[Оборот за месяц по контрагенту]]<1000000,0.5,0.7)) -> 0.5 | J29: =IF(Таблица_Металлопроцессинг_детализированный[[#This Row],[Инициатор+исполнитель]]=TRUE,0,IF(Таблица_Металлопроцессинг_детализированный[[#This Row],[Оборот за месяц по контрагенту]]<1000000,0.5,0.3)) -> 0.5 | K29: =Таблица_Металлопроцессинг_детализированный[[#This Row],[Сумма наценки]]*Таблица_Металлопроцессинг_детализированный[[#This Row],[Распределение выручки для Куратора договора]] -> 720 | L29: =IF(Таблица_Металлопроцессинг_детализированный[[#This Row],[Распределение выручки для Менеджера договора]]=1,"",Таблица_Металлопроцессинг_детализированный[[#This Row],[Сумма наценки]]*Таблица_Металлопроцессинг_детализированный[[#This Row],[Распределение выручки для Менеджера договора]]) -> 720 | M29: Из давальческого сырья | N29: САНКТ-ПЕТЕРБУРГ | O29: САТУРН СПБ | P29: ЗАО "САТУРН" | S29: Металлоторговля | T29: Изделие | U29: Труба 80х80х5 L=460мм | V29: 24 | W29: шт | X29: 0 | Y29: Станок ленточнопильный | Z29: PEGASUS | AA29: 1440 | AB29: 24 | AC29: 24 | AD29: 1 | AE29: САНКТ-ПЕТЕРБУРГ | AF29: Центр | AG29: 0.145
A30: 1 | B30: САНКТ-ПЕТЕРБУРГ | C30: Центр | D30: Молчанова Е.М. | E30: Матросова Л.Ш. | F30: Молчанова Е.М. | G30: =IF(Таблица_Металлопроцессинг_детализированный[[#This Row],[Куратор договора]]=Таблица_Металлопроцессинг_детализированный[[#This Row],[Менеджер]],TRUE,FALSE) -> TRUE | H30: =SUMIFS(AA30:AA962,O30:O962,Таблица_Металлопроцессинг_детализированный[[#This Row],[Контрагент]],A30:A962,Таблица_Металлопроцессинг_детализированный[[#This Row],[Месяц отгрузки]]) -> 1620 | I30: =IF(Таблица_Металлопроцессинг_детализированный[[#This Row],[Инициатор+исполнитель]],1,IF(Таблица_Металлопроцессинг_детализированный[[#This Row],[Оборот за месяц по контрагенту]]<1000000,0.5,0.7)) -> 1 | J30: =IF(Таблица_Металлопроцессинг_детализированный[[#This Row],[Инициатор+исполнитель]]=TRUE,0,IF(Таблица_Металлопроцессинг_детализированный[[#This Row],[Оборот за месяц по контрагенту]]<1000000,0.5,0.3)) -> 0 | K30: =Таблица_Металлопроцессинг_детализированный[[#This Row],[Сумма наценки]]*Таблица_Металлопроцессинг_детализированный[[#This Row],[Распределение выручки для Куратора договора]] -> 720 | L30: =IF(Таблица_Металлопроцессинг_детализированный[[#This Row],[Распределение выручки для Менеджера договора]]=1,"",Таблица_Металлопроцессинг_детализированный[[#This Row],[Сумма наценки]]*Таблица_Металлопроцессинг_детализированный[[#This Row],[Распределение выручки для Менеджера договора]]) -> 0 | M30: Процессинг | N30: САНКТ-ПЕТЕРБУРГ | O30: Билдинг (Молчанова) | P30: ООО "Билдинг" | S30: Металлоторговля | T30: Арматура B500C, 10, Ст.сп/пс , в бунтах(ГОСТ 52544-2006) | V30: 0.9 | W30: т | X30: 23589 | Y30: Размотка/резка арматурного проката | Z30: MELC 16x4 | AA30: 720 | AB30: 1 | AC30: 0.9 | AD30: 1 | AE30: САНКТ-ПЕТЕРБУРГ | AF30: Центр | AG30: 0.9
A31: 1 | B31: САНКТ-ПЕТЕРБУРГ | C31: Центр | D31: Молчанова Е.М. | E31: Матросова Л.Ш. | F31: Молчанова Е.М. | G31: =IF(Таблица_Металлопроцессинг_детализированный[[#This Row],[Куратор договора]]=Таблица_Металлопроцессинг_детализированный[[#This Row],[Менеджер]],TRUE,FALSE) -> TRUE | H31: =SUMIFS(AA31:AA963,O31:O963,Таблица_Металлопроцессинг_детализированный[[#This Row],[Контрагент]],A31:A963,Таблица_Металлопроцессинг_детализированный[[#This Row],[Месяц отгрузки]]) -> 900 | I31: =IF(Таблица_Металлопроцессинг_детализированный[[#This Row],[Инициатор+исполнитель]],1,IF(Таблица_Металлопроцессинг_детализированный[[#This Row],[Оборот за месяц по контрагенту]]<1000000,0.5,0.7)) -> 1 | J31: =IF(Таблица_Металлопроцессинг_детализированный[[#This Row],[Инициатор+исполнитель]]=TRUE,0,IF(Таблица_Металлопроцессинг_детализированный[[#This Row],[Оборот за месяц по контрагенту]]<1000000,0.5,0.3)) -> 0 | K31: =Таблица_Металлопроцессинг_детализированный[[#This Row],[Сумма наценки]]*Таблица_Металлопроцессинг_детализированный[[#This Row],[Распределение выручки для Куратора договора]] -> 900 | L31: =IF(Таблица_Металлопроцессинг_детализированный[[#This Row],[Распределение выручки для Менеджера договора]]=1,"",Таблица_Металлопроцессинг_детализированный[[#This Row],[Сумма наценки]]*Таблица_Металлопроцессинг_детализированный[[#This Row],[Распределение выручки для Менеджера договора]]) -> 0 | M31: Процессинг | N31: САНКТ-ПЕТЕРБУРГ | O31: Билдинг (Молчанова) | P31: ООО "Билдинг" | S31: Металлоторговля | T31: Арматура класс АIII (А400), 8, Ст.35ГС, в бунтах (ГОСТ5781-82) | V31: 1 | W31: т | X31: 26770 | Y31: Размотка/резка арматурного проката | Z31: MELC 16x4 | AA31: 900 | AB31: 1 | AC31: 1 | AD31: 1 | AE31: САНКТ-ПЕТЕРБУРГ | AF31: Центр | AG31: 1
A32: 1 | B32: САНКТ-ПЕТЕРБУРГ | C32: Центр | D32: Степура С.Н. | E32: Степура С.Н. | F32: Погорелов И.В. | G32: =IF(Таблица_Металлопроцессинг_детализированный[[#This Row],[Куратор договора]]=Таблица_Металлопроцессинг_детализированный[[#This Row],[Менеджер]],TRUE,FALSE) -> FALSE | H32: =SUMIFS(AA32:AA965,O32:O965,Таблица_Металлопроцессинг_детализированный[[#This Row],[Контрагент]],A32:A965,Таблица_Металлопроцессинг_детализированный[[#This Row],[Месяц отгрузки]]) -> 2000 | I32: =IF(Таблица_Металлопроцессинг_детализированный[[#This Row],[Инициатор+исполнитель]],1,IF(Таблица_Металлопроцессинг_детализированный[[#This Row],[Оборот за месяц по контрагенту]]<1000000,0.5,0.7)) -> 0.5 | J32: =IF(Таблица_Металлопроцессинг_детализированный[[#This Row],[Инициатор+исполнитель]]=TRUE,0,IF(Таблица_Металлопроцессинг_детализированный[[#This Row],[Оборот за месяц по контрагенту]]<1000000,0.5,0.3)) -> 0.5 | K32: =Таблица_Металлопроцессинг_детализированный[[#This Row],[Сумма наценки]]*Таблица_Металлопроцессинг_детализированный[[#This Row],[Распределение выручки для Куратора договора]] -> 1000 | L32: =IF(Таблица_Металлопроцессинг_детализированный[[#This Row],[Распределение выручки для Менеджера договора]]=1,"",Таблица_Металлопроцессинг_детализированный[[#This Row],[Сумма наценки]]*Таблица_Металлопроцессинг_детализированный[[#This Row],[Распределение выручки для Менеджера договора]]) -> 1000 | M32: Процессинг | N32: САНКТ-ПЕТЕРБУРГ | O32: БМК-Петербург | P32: ООО "БМК-Петербург" | S32: Металлоконструкции | T32: Арматура класс АI, 8, Ст.сп/пс, в бунтах (ГОСТ5781-82) | V32: 1.76 | W32: т | X32: 48083.2 | Y32: Размотка/резка арматурного проката | Z32: MELC 16x4 | AA32: 2000 | AB32: 2 | AC32: 2 | AD32: 1 | AE32: САНКТ-ПЕТЕРБУРГ | AF32: Центр | AG32: 1.76
A33: 1 | B33: САНКТ-ПЕТЕРБУРГ | C33: Центр | D33: Дауэнгауэр Н.Э. | E33: Дауэнгауэр Н.Э. | F33: Дауэнгауэр Н.Э. | G33: =IF(Таблица_Металлопроцессинг_детализированный[[#This Row],[Куратор договора]]=Таблица_Металлопроцессинг_детализированный[[#This Row],[Менеджер]],TRUE,FALSE) -> TRUE | H33: =SUMIFS(AA33:AA973,O33:O973,Таблица_Металлопроцессинг_детализированный[[#This Row],[Контрагент]],A33:A973,Таблица_Металлопроцессинг_детализированный[[#This Row],[Месяц отгрузки]]) -> 7607 | I33: =IF(Таблица_Металлопроцессинг_детализированный[[#This Row],[Инициатор+исполнитель]],1,IF(Таблица_Металлопроцессинг_детализированный[[#This Row],[Оборот за месяц по контрагенту]]<1000000,0.5,0.7)) -> 1 | J33: =IF(Таблица_Металлопроцессинг_детализированный[[#This Row],[Инициатор+исполнитель]]=TRUE,0,IF(Таблица_Металлопроцессинг_детализированный[[#This Row],[Оборот за месяц по контрагенту]]<1000000,0.5,0.3)) -> 0 | K33: =Таблица_Металлопроцессинг_детализированный[[#This Row],[Сумма наценки]]*Таблица_Металлопроцессинг_детализированный[[#This Row],[Распределение выручки для Куратора договора]] -> 2835 | L33: =IF(Таблица_Металлопроцессинг_детализированный[[#This Row],[Распределение выручки для Менеджера договора]]=1,"",Таблица_Металлопроцессинг_детализированный[[#This Row],[Сумма наценки]]*Таблица_Металлопроцессинг_детализированный[[#This Row],[Распределение выручки для Менеджера договора]]) -> 0 | M33: Процессинг | N33: САНКТ-ПЕТЕРБУРГ | O33: БЗ-СУДОСТРОЕНИЕ | P33: ООО "Балтийский завод-Судостроение" | S33: Машиностроение | T33: Уголок стальной г/к равнополочный, 100x10, Ст.сп/пс (ГОСТ 8509-93) | V33: 9.45 | W33: т | X33: 266584.5 | Y33: Порезка (станок ленточнопильный) | AA33: 2835 | AB33: 1 | AC33: 9.414 | AE33: САНКТ-ПЕТЕРБУРГ | AF33: Центр | AG33: 9.45
A34: 1 | B34: САНКТ-ПЕТЕРБУРГ | C34: Центр | D34: Дауэнгауэр Н.Э. | E34: Дауэнгауэр Н.Э. | F34: Дауэнгауэр Н.Э. | G34: =IF(Таблица_Металлопроцессинг_детализированный[[#This Row],[Куратор договора]]=Таблица_Металлопроцессинг_детализированный[[#This Row],[Менеджер]],TRUE,FALSE) -> TRUE | H34: =SUMIFS(AA34:AA981,O34:O981,Таблица_Металлопроцессинг_детализированный[[#This Row],[Контрагент]],A34:A981,Таблица_Металлопроцессинг_детализированный[[#This Row],[Месяц отгрузки]]) -> 4772 | I34: =IF(Таблица_Металлопроцессинг_детализированный[[#This Row],[Инициатор+исполнитель]],1,IF(Таблица_Металлопроцессинг_детализированный[[#This Row],[Оборот за месяц по контрагенту]]<1000000,0.5,0.7)) -> 1 | J34: =IF(Таблица_Металлопроцессинг_детализированный[[#This Row],[Инициатор+исполнитель]]=TRUE,0,IF(Таблица_Металлопроцессинг_детализированный[[#This Row],[Оборот за месяц по контрагенту]]<1000000,0.5,0.3)) -> 0 | K34: =Таблица_Металлопроцессинг_детализированный[[#This Row],[Сумма наценки]]*Таблица_Металлопроцессинг_детализированный[[#This Row],[Распределение выручки для Куратора договора]] -> 4772 | L34: =IF(Таблица_Металлопроцессинг_детализированный[[#This Row],[Распределение выручки для Менеджера договора]]=1,"",Таблица_Металлопроцессинг_детализированный[[#This Row],[Сумма наценки]]*Таблица_Металлопроцессинг_детализированный[[#This Row],[Распределение выручки для Менеджера договора]]) -> 0 | M34: Процессинг | N34: САНКТ-ПЕТЕРБУРГ | O34: БЗ-СУДОСТРОЕНИЕ | P34: ООО "Балтийский завод-Судостроение" | S34: Машиностроение | T34: Уголок стальной г/к равнополочный, 50x5, Ст.сп/пс (ГОСТ 8509-93) | V34: 11.93 | W34: т | X34: 323303 | Y34: Порезка (станок ленточнопильный) | AA34: 4772 | AB34: 1 | AC34: 12 | AE34: САНКТ-ПЕТЕРБУРГ | AF34: Центр | AG34: 11.93
A35: 1 | B35: САНКТ-ПЕТЕРБУРГ | C35: Центр | D35: Ипатова Е.Н. | E35: Ипатова Е.Н. | F35: Ипатова Е.Н. | G35: =IF(Таблица_Металлопроцессинг_детализированный[[#This Row],[Куратор договора]]=Таблица_Металлопроцессинг_детализированный[[#This Row],[Менеджер]],TRUE,FALSE) -> TRUE | H35: =SUMIFS(AA35:AA982,O35:O982,Таблица_Металлопроцессинг_детализированный[[#This Row],[Контрагент]],A35:A982,Таблица_Металлопроцессинг_детализированный[[#This Row],[Месяц отгрузки]]) -> 13976 | I35: =IF(Таблица_Металлопроцессинг_детализированный[[#This Row],[Инициатор+исполнитель]],1,IF(Таблица_Металлопроцессинг_детализированный[[#This Row],[Оборот за месяц по контрагенту]]<1000000,0.5,0.7)) -> 1 | J35: =IF(Таблица_Металлопроцессинг_детализированный[[#This Row],[Инициатор+исполнитель]]=TRUE,0,IF(Таблица_Металлопроцессинг_детализированный[[#This Row],[Оборот за месяц по контрагенту]]<1000000,0.5,0.3)) -> 0 | K35: =Таблица_Металлопроцессинг_детализированный[[#This Row],[Сумма наценки]]*Таблица_Металлопроцессинг_детализированный[[#This Row],[Распределение выручки для Куратора договора]] -> 9800 | L35: =IF(Таблица_Металлопроцессинг_детализированный[[#This Row],[Распределение выручки для Менеджера договора]]=1,"",Таблица_Металлопроцессинг_детализированный[[#This Row],[Сумма наценки]]*Таблица_Металлопроцессинг_детализированный[[#This Row],[Распределение выручки для Менеджера договора]]) -> 0 | M35: Процессинг | N35: САНКТ-ПЕТЕРБУРГ | O35: ОЛЛТРЕЙД-НЕВА | P35: ООО"ОЛЛТРЕЙД-НЕВА" | S35: Металлоторговля | T35: Сталь рулонная Х/к., 1.5, 1250, Ст.кп/пс (19904) | V35: 9.8 | W35: т | X35: 274302 | Y35: Порезка листового проката поперечная | Z35: CAMU RDC 1500/6 | AA35: 9800 | AB35: 1 | AC35: 10 | AD35: 1 | AE35: САНКТ-ПЕТЕРБУРГ | AF35: Центр | AG35: 9.8
A36: 1 | B36: САНКТ-ПЕТЕРБУРГ | C36: Центр | D36: Степура С.Н. | E36: Степура С.Н. | F36: Молчанова Е.М. | G36: =IF(Таблица_Металлопроцессинг_детализированный[[#This Row],[Куратор договора]]=Таблица_Металлопроцессинг_детализированный[[#This Row],[Менеджер]],TRUE,FALSE) -> FALSE | H36: =SUMIFS(AA36:AA986,O36:O986,Таблица_Металлопроцессинг_детализированный[[#This Row],[Контрагент]],A36:A986,Таблица_Металлопроцессинг_детализированный[[#This Row],[Месяц отгрузки]]) -> 6240 | I36: =IF(Таблица_Металлопроцессинг_детализированный[[#This Row],[Инициатор+исполнитель]],1,IF(Таблица_Металлопроцессинг_детализированный[[#This Row],[Оборот за месяц по контрагенту]]<1000000,0.5,0.7)) -> 0.5 | J36: =IF(Таблица_Металлопроцессинг_детализированный[[#This Row],[Инициатор+исполнитель]]=TRUE,0,IF(Таблица_Металлопроцессинг_детализированный[[#This Row],[Оборот за месяц по контрагенту]]<1000000,0.5,0.3)) -> 0.5 | K36: =Таблица_Металлопроцессинг_детализированный[[#This Row],[Сумма наценки]]*Таблица_Металлопроцессинг_детализированный[[#This Row],[Распределение выручки для Куратора договора]] -> 3120 | L36: =IF(Таблица_Металлопроцессинг_детализированный[[#This Row],[Распределение выручки для Менеджера договора]]=1,"",Таблица_Металлопроцессинг_детализированный[[#This Row],[Сумма наценки]]*Таблица_Металлопроцессинг_детализированный[[#This Row],[Распределение выручки для Менеджера договора]]) -> 3120 | M36: Процессинг | N36: САНКТ-ПЕТЕРБУРГ | O36: САТУРН СПБ | P36: ЗАО "САТУРН" | S36: Металлоторговля | T36: Сталь листовая Г/к., 8, 1500x6000, Ст.09Г2С (ГОСТ 19281) | V36: 0.56 | W36: т | X36: 14369.6 | Y36: Порезка листового проката (ножницы) | Z36: COLGAR CI-34-TR | AA36: 6240 | AB36: 48 | AC36: 0.56 | AD36: 1 | AE36: САНКТ-ПЕТЕРБУРГ | AF36: Центр | AG36: 0.56
A37: 1 | B37: САНКТ-ПЕТЕРБУРГ | C37: Центр | D37: Дауэнгауэр Н.Э. | E37: Дауэнгауэр Н.Э. | F37: Райская Н.А. | G37: =IF(Таблица_Металлопроцессинг_детализированный[[#This Row],[Куратор договора]]=Таблица_Металлопроцессинг_детализированный[[#This Row],[Менеджер]],TRUE,FALSE) -> FALSE | H37: =SUMIFS(AA37:AA987,O37:O987,Таблица_Металлопроцессинг_детализированный[[#This Row],[Контрагент]],A37:A987,Таблица_Металлопроцессинг_детализированный[[#This Row],[Месяц отгрузки]]) -> 326303.8 | I37: =IF(Таблица_Металлопроцессинг_детализированный[[#This Row],[Инициатор+исполнитель]],1,IF(Таблица_Металлопроцессинг_детализированный[[#This Row],[Оборот за месяц по контрагенту]]<1000000,0.5,0.7)) -> 0.5 | J37: =IF(Таблица_Металлопроцессинг_детализированный[[#This Row],[Инициатор+исполнитель]]=TRUE,0,IF(Таблица_Металлопроцессинг_детализированный[[#This Row],[Оборот за месяц по контрагенту]]<1000000,0.5,0.3)) -> 0.5 | K37: =Таблица_Металлопроцессинг_детализированный[[#This Row],[Сумма наценки]]*Таблица_Металлопроцессинг_детализированный[[#This Row],[Распределение выручки для Куратора договора]] -> 1485 | L37: =IF(Таблица_Металлопроцессинг_детализированный[[#This Row],[Распределение выручки для Менеджера договора]]=1,"",Таблица_Металлопроцессинг_детализированный[[#This Row],[Сумма наценки]]*Таблица_Металлопроцессинг_детализированный[[#This Row],[Распределение выручки для Менеджера договора]]) -> 1485 | M37: Процессинг | N37: САНКТ-ПЕТЕРБУРГ | O37: АМИРА СК | P37: ООО "Амира-СтальКонструкция" | Q37: Санкт-Петербург | R37: Санкт-Петербург | S37: Металлоконструкции | T37: Сталь листовая Г/к., 14, 1500x6000, Ст.09Г2С (ГОСТ 19281) | V37: 1.98 | W37: т | X37: 50806.8 | Y37: Порезка листового проката (ножницы) | AA37: 2970 | AB37: 1 | AC37: 4.97 | AE37: САНКТ-ПЕТЕРБУРГ | AF37: Центр | AG37: 1.98
A38: 1 | B38: САНКТ-ПЕТЕРБУРГ | C38: Центр | D38: Дауэнгауэр Н.Э. | E38: Дауэнгауэр Н.Э. | F38: Дауэнгауэр Н.Э. | G38: =IF(Таблица_Металлопроцессинг_детализированный[[#This Row],[Куратор договора]]=Таблица_Металлопроцессинг_детализированный[[#This Row],[Менеджер]],TRUE,FALSE) -> TRUE | H38: =SUMIFS(AA38:AA997,O38:O997,Таблица_Металлопроцессинг_детализированный[[#This Row],[Контрагент]],A38:A997,Таблица_Металлопроцессинг_детализированный[[#This Row],[Месяц отгрузки]]) -> 40822 | I38: =IF(Таблица_Металлопроцессинг_детализированный[[#This Row],[Инициатор+исполнитель]],1,IF(Таблица_Металлопроцессинг_детализированный[[#This Row],[Оборот за месяц по контрагенту]]<1000000,0.5,0.7)) -> 1 | J38: =IF(Таблица_Металлопроцессинг_детализированный[[#This Row],[Инициатор+исполнитель]]=TRUE,0,IF(Таблица_Металлопроцессинг_детализированный[[#This Row],[Оборот за месяц по контрагенту]]<1000000,0.5,0.3)) -> 0 | K38: =Таблица_Металлопроцессинг_детализированный[[#This Row],[Сумма наценки]]*Таблица_Металлопроцессинг_детализированный[[#This Row],[Распределение выручки для Куратора договора]] -> 17010 | L38: =IF(Таблица_Металлопроцессинг_детализированный[[#This Row],[Распределение выручки для Менеджера договора]]=1,"",Таблица_Металлопроцессинг_детализированный[[#This Row],[Сумма наценки]]*Таблица_Металлопроцессинг_детализированный[[#This Row],[Распределение выручки для Менеджера договора]]) -> 0 | M38: Процессинг | N38: САНКТ-ПЕТЕРБУРГ | O38: ОСТ НПП | P38: ЗАО "НПП ОСТ" | Q38: г. Санкт-Петербург | R38: г. Санкт-Петербург | S38: Машиностроение | T38: Сталь листовая Х/к., 0.8, 1250x2500, Ст.08пс (ГОСТ 16523) | V38: 4.86 | W38: т | X38: 135496.8 | Y38: Порезка листового проката (ножницы) | AA38: 17010 | AB38: 1 | AC38: 4.5 | AE38: САНКТ-ПЕТЕРБУРГ | AF38: Центр | AG38: 4.86
A39: 1 | B39: САНКТ-ПЕТЕРБУРГ | C39: Центр | D39: Дауэнгауэр Н.Э. | E39: Дауэнгауэр Н.Э. | F39: Дауэнгауэр Н.Э. | G39: =IF(Таблица_Металлопроцессинг_детализированный[[#This Row],[Куратор договора]]=Таблица_Металлопроцессинг_детализированный[[#This Row],[Менеджер]],TRUE,FALSE) -> TRUE | H39: =SUMIFS(AA39:AA998,O39:O998,Таблица_Металлопроцессинг_детализированный[[#This Row],[Контрагент]],A39:A998,Таблица_Металлопроцессинг_детализированный[[#This Row],[Месяц отгрузки]]) -> 23812 | I39: =IF(Таблица_Металлопроцессинг_детализированный[[#This Row],[Инициатор+исполнитель]],1,IF(Таблица_Металлопроцессинг_детализированный[[#This Row],[Оборот за месяц по контрагенту]]<1000000,0.5,0.7)) -> 1 | J39: =IF(Таблица_Металлопроцессинг_детализированный[[#This Row],[Инициатор+исполнитель]]=TRUE,0,IF(Таблица_Металлопроцессинг_детализированный[[#This Row],[Оборот за месяц по контрагенту]]<1000000,0.5,0.3)) -> 0 | K39: =Таблица_Металлопроцессинг_детализированный[[#This Row],[Сумма наценки]]*Таблица_Металлопроцессинг_детализированный[[#This Row],[Распределение выручки для Куратора договора]] -> 1860 | L39: =IF(Таблица_Металлопроцессинг_детализированный[[#This Row],[Распределение выручки для Менеджера договора]]=1,"",Таблица_Металлопроцессинг_детализированный[[#This Row],[Сумма наценки]]*Таблица_Металлопроцессинг_детализированный[[#This Row],[Распределение выручки для Менеджера договора]]) -> 0 | M39: Процессинг | N39: САНКТ-ПЕТЕРБУРГ | O39: ОСТ НПП | P39: ЗАО "НПП ОСТ" | Q39: г. Санкт-Петербург | R39: г. Санкт-Петербург | S39: Машиностроение | T39: Сталь листовая Х/к., 2.5, 1250x2500, Ст.кп/пс (ТУ 14-106-321-2010) | V39: 0.62 | W39: т | X39: 17285.6 | Y39: Порезка листового проката (ножницы) | AA39: 1860 | AB39: 1 | AC39: 0.625 | AE39: САНКТ-ПЕТЕРБУРГ | AF39: Центр | AG39: 0.62
A40: 1 | B40: САНКТ-ПЕТЕРБУРГ | C40: Центр | D40: Матросова Л.Ш. | E40: Матросова Л.Ш. | F40: Матросова Л.Ш. | G40: =IF(Таблица_Металлопроцессинг_детализированный[[#This Row],[Куратор договора]]=Таблица_Металлопроцессинг_детализированный[[#This Row],[Менеджер]],TRUE,FALSE) -> TRUE | H40: =SUMIFS(AA40:AA1001,O40:O1001,Таблица_Металлопроцессинг_детализированный[[#This Row],[Контрагент]],A40:A1001,Таблица_Металлопроцессинг_детализированный[[#This Row],[Месяц отгрузки]]) -> 7000 | I40: =IF(Таблица_Металлопроцессинг_детализированный[[#This Row],[Инициатор+исполнитель]],1,IF(Таблица_Металлопроцессинг_детализированный[[#This Row],[Оборот за месяц по контрагенту]]<1000000,0.5,0.7)) -> 1 | J40: =IF(Таблица_Металлопроцессинг_детализированный[[#This Row],[Инициатор+исполнитель]]=TRUE,0,IF(Таблица_Металлопроцессинг_детализированный[[#This Row],[Оборот за месяц по контрагенту]]<1000000,0.5,0.3)) -> 0 | K40: =Таблица_Металлопроцессинг_детализированный[[#This Row],[Сумма наценки]]*Таблица_Металлопроцессинг_детализированный[[#This Row],[Распределение выручки для Куратора договора]] -> 3500 | L40: =IF(Таблица_Металлопроцессинг_детализированный[[#This Row],[Распределение выручки для Менеджера договора]]=1,"",Таблица_Металлопроцессинг_детализированный[[#This Row],[Сумма наценки]]*Таблица_Металлопроцессинг_детализированный[[#This Row],[Распределение выручки для Менеджера договора]]) -> 0 | M40: Процессинг | N40: САНКТ-ПЕТЕРБУРГ | O40: СИРИУС-МК | P40: ООО "Сириус-МК" | Q40: г. Санкт-Петербург | R40: г. Санкт-Петербург | S40: Металлоторговля | T40: Арматура B500C, 10, Ст.сп/пс , в бунтах(ГОСТ 52544-2006) | V40: 3.5 | W40: т | X40: 91735 | Y40: Размотка/резка арматурного проката | Z40: MELC 16x4 | AA40: 3500 | AB40: 1 | AC40: 3.5 | AD40: 1 | AE40: САНКТ-ПЕТЕРБУРГ | AF40: Центр | AG40: 3.5
A41: 1 | B41: САНКТ-ПЕТЕРБУРГ | C41: Центр | D41: Матросова Л.Ш. | E41: Матросова Л.Ш. | F41: Матросова Л.Ш. | G41: =IF(Таблица_Металлопроцессинг_детализированный[[#This Row],[Куратор договора]]=Таблица_Металлопроцессинг_детализированный[[#This Row],[Менеджер]],TRUE,FALSE) -> TRUE | H41: =SUMIFS(AA41:AA1002,O41:O1002,Таблица_Металлопроцессинг_детализированный[[#This Row],[Контрагент]],A41:A1002,Таблица_Металлопроцессинг_детализированный[[#This Row],[Месяц отгрузки]]) -> 3500 | I41: =IF(Таблица_Металлопроцессинг_детализированный[[#This Row],[Инициатор+исполнитель]],1,IF(Таблица_Металлопроцессинг_детализированный[[#This Row],[Оборот за месяц по контрагенту]]<1000000,0.5,0.7)) -> 1 | J41: =IF(Таблица_Металлопроцессинг_детализированный[[#This Row],[Инициатор+исполнитель]]=TRUE,0,IF(Таблица_Металлопроцессинг_детализированный[[#This Row],[Оборот за месяц по контрагенту]]<1000000,0.5,0.3)) -> 0 | K41: =Таблица_Металлопроцессинг_детализированный[[#This Row],[Сумма наценки]]*Таблица_Металлопроцессинг_детализированный[[#This Row],[Распределение выручки для Куратора договора]] -> 1500 | L41: =IF(Таблица_Металлопроцессинг_детализированный[[#This Row],[Распределение выручки для Менеджера договора]]=1,"",Таблица_Металлопроцессинг_детализированный[[#This Row],[Сумма наценки]]*Таблица_Металлопроцессинг_детализированный[[#This Row],[Распределение выручки для Менеджера договора]]) -> 0 | M41: Процессинг | N41: САНКТ-ПЕТЕРБУРГ | O41: СИРИУС-МК | P41: ООО "Сириус-МК" | Q41: г. Санкт-Петербург | R41: г. Санкт-Петербург | S41: Металлоторговля | T41: Арматура B500C, 8, Ст.сп/пс , в бунтах(ГОСТ 52544-2006) | V41: 1.5 | W41: т | X41: 39315 | Y41: Размотка/резка арматурного проката | Z41: MELC 16x4 | AA41: 1500 | AB41: 1 | AC41: 1.341 | AD41: 1 | AE41: САНКТ-ПЕТЕРБУРГ | AF41: Центр | AG41: 1.5
A42: 1 | B42: САНКТ-ПЕТЕРБУРГ | C42: Центр | D42: Матросова Л.Ш. | E42: Матросова Л.Ш. | F42: Матросова Л.Ш. | G42: =IF(Таблица_Металлопроцессинг_детализированный[[#This Row],[Куратор договора]]=Таблица_Металлопроцессинг_детализированный[[#This Row],[Менеджер]],TRUE,FALSE) -> TRUE | H42: =SUMIFS(AA42:AA1003,O42:O1003,Таблица_Металлопроцессинг_детализированный[[#This Row],[Контрагент]],A42:A1003,Таблица_Металлопроцессинг_детализированный[[#This Row],[Месяц отгрузки]]) -> 2000 | I42: =IF(Таблица_Металлопроцессинг_детализированный[[#This Row],[Инициатор+исполнитель]],1,IF(Таблица_Металлопроцессинг_детализированный[[#This Row],[Оборот за месяц по контрагенту]]<1000000,0.5,0.7)) -> 1 | J42: =IF(Таблица_Металлопроцессинг_детализированный[[#This Row],[Инициатор+исполнитель]]=TRUE,0,IF(Таблица_Металлопроцессинг_детализированный[[#This Row],[Оборот за месяц по контрагенту]]<1000000,0.5,0.3)) -> 0 | K42: =Таблица_Металлопроцессинг_детализированный[[#This Row],[Сумма наценки]]*Таблица_Металлопроцессинг_детализированный[[#This Row],[Распределение выручки для Куратора договора]] -> 2000 | L42: =IF(Таблица_Металлопроцессинг_детализированный[[#This Row],[Распределение выручки для Менеджера договора]]=1,"",Таблица_Металлопроцессинг_детализированный[[#This Row],[Сумма наценки]]*Таблица_Металлопроцессинг_детализированный[[#This Row],[Распределение выручки для Менеджера договора]]) -> 0 | M42: Процессинг | N42: САНКТ-ПЕТЕРБУРГ | O42: СИРИУС-МК | P42: ООО "Сириус-МК" | Q42: г. Санкт-Петербург | R42: г. Санкт-Петербург | S42: Металлоторговля | T42: Арматура класс АI, 8, Ст.сп/пс, в бунтах (ГОСТ5781-82) | V42: 2 | W42: т | X42: 54640 | Y42: Размотка/резка арматурного проката | Z42: MELC 16x4 | AA42: 2000 | AB42: 1 | AC42: 0.33 | AD42: 1 | AE42: САНКТ-ПЕТЕРБУРГ | AF42: Центр | AG42: 2
A43: 1 | B43: САНКТ-ПЕТЕРБУРГ | C43: Центр | D43: Ипатова Е.Н. | E43: Ипатова Е.Н. | F43: Ипатова Е.Н. | G43: =IF(Таблица_Металлопроцессинг_детализированный[[#This Row],[Куратор договора]]=Таблица_Металлопроцессинг_детализированный[[#This Row],[Менеджер]],TRUE,FALSE) -> TRUE | H43: =SUMIFS(AA43:AA1008,O43:O1008,Таблица_Металлопроцессинг_детализированный[[#This Row],[Контрагент]],A43:A1008,Таблица_Металлопроцессинг_детализированный[[#This Row],[Месяц отгрузки]]) -> 3224 | I43: =IF(Таблица_Металлопроцессинг_детализированный[[#This Row],[Инициатор+исполнитель]],1,IF(Таблица_Металлопроцессинг_детализированный[[#This Row],[Оборот за месяц по контрагенту]]<1000000,0.5,0.7)) -> 1 | J43: =IF(Таблица_Металлопроцессинг_детализированный[[#This Row],[Инициатор+исполнитель]]=TRUE,0,IF(Таблица_Металлопроцессинг_детализированный[[#This Row],[Оборот за месяц по контрагенту]]<1000000,0.5,0.3)) -> 0 | K43: =Таблица_Металлопроцессинг_детализированный[[#This Row],[Сумма наценки]]*Таблица_Металлопроцессинг_детализированный[[#This Row],[Распределение выручки для Куратора договора]] -> 3224 | L43: =IF(Таблица_Металлопроцессинг_детализированный[[#This Row],[Распределение выручки для Менеджера договора]]=1,"",Таблица_Металлопроцессинг_детализированный[[#This Row],[Сумма наценки]]*Таблица_Металлопроцессинг_детализированный[[#This Row],[Распределение выручки для Менеджера договора]]) -> 0 | M43: Процессинг | N43: САНКТ-ПЕТЕРБУРГ | O43: ПетроКомплект | P43: ООО"ПетроКомплект" | Q43: г. Санкт-Петербург | R43: г. Санкт-Петербург | S43: Металлоторговля | T43: Арматура B500C, 10, Ст.сп/пс , в бунтах(ГОСТ 52544-2006) | V43: 2.48 | W43: т | X43: 65000.8 | Y43: Размотка/резка арматурного проката | Z43: MELC 16x4 | AA43: 3224 | AB43: 1 | AC43: 3.066 | AD43: 1 | AE43: САНКТ-ПЕТЕРБУРГ | AF43: Центр | AG43: 2.48
A44: 1 | B44: САНКТ-ПЕТЕРБУРГ | C44: Центр | D44: Хабибуллов М.Р. | E44: Хабибуллов М.Р. | F44: Хабибуллов М.Р. | G44: =IF(Таблица_Металлопроцессинг_детализированный[[#This Row],[Куратор договора]]=Таблица_Металлопроцессинг_детализированный[[#This Row],[Менеджер]],TRUE,FALSE) -> TRUE | H44: =SUMIFS(AA44:AA1010,O44:O1010,Таблица_Металлопроцессинг_детализированный[[#This Row],[Контрагент]],A44:A1010,Таблица_Металлопроцессинг_детализированный[[#This Row],[Месяц отгрузки]]) -> 434689.5 | I44: =IF(Таблица_Металлопроцессинг_детализированный[[#This Row],[Инициатор+исполнитель]],1,IF(Таблица_Металлопроцессинг_детализированный[[#This Row],[Оборот за месяц по контрагенту]]<1000000,0.5,0.7)) -> 1 | J44: =IF(Таблица_Металлопроцессинг_детализированный[[#This Row],[Инициатор+исполнитель]]=TRUE,0,IF(Таблица_Металлопроцессинг_детализированный[[#This Row],[Оборот за месяц по контрагенту]]<1000000,0.5,0.3)) -> 0 | K44: =Таблица_Металлопроцессинг_детализированный[[#This Row],[Сумма наценки]]*Таблица_Металлопроцессинг_детализированный[[#This Row],[Распределение выручки для Куратора договора]] -> 29938.5 | L44: =IF(Таблица_Металлопроцессинг_детализированный[[#This Row],[Распределение выручки для Менеджера договора]]=1,"",Таблица_Металлопроцессинг_детализированный[[#This Row],[Сумма наценки]]*Таблица_Металлопроцессинг_детализированный[[#This Row],[Распределение выручки для Менеджера договора]]) -> 0 | M44: Процессинг | N44: САНКТ-ПЕТЕРБУРГ | O44: АртЛэнд | P44: ООО "Строительная компания "АртЛэнд" | S44: Стройиндустрия | T44: Шпунт Ларсена Л5-УМ, С255 (ТУ 14-102-8-2003) | V44: 19.959 | W44: т | X44: 788380.5 | Y44: Очистка и покраска проката (грунт ЭМЛАК 263) | Z44: ROSLER | AA44: 29938.5 | AB44: 19.959 | AC44: 19.959 | AD44: 1 | AE44: САНКТ-ПЕТЕРБУРГ | AF44: Центр | AG44: 19.959
A45: 1 | B45: САНКТ-ПЕТЕРБУРГ | C45: Центр | D45: Степура С.Н. | E45: Степура С.Н. | F45: Степура С.Н. | G45: =IF(Таблица_Металлопроцессинг_детализированный[[#This Row],[Куратор договора]]=Таблица_Металлопроцессинг_детализированный[[#This Row],[Менеджер]],TRUE,FALSE) -> TRUE | H45: =SUMIFS(AA45:AA1014,O45:O1014,Таблица_Металлопроцессинг_детализированный[[#This Row],[Контрагент]],A45:A1014,Таблица_Металлопроцессинг_детализированный[[#This Row],[Месяц отгрузки]]) -> 1300 | I45: =IF(Таблица_Металлопроцессинг_детализированный[[#This Row],[Инициатор+исполнитель]],1,IF(Таблица_Металлопроцессинг_детализированный[[#This Row],[Оборот за месяц по контрагенту]]<1000000,0.5,0.7)) -> 1 | J45: =IF(Таблица_Металлопроцессинг_детализированный[[#This Row],[Инициатор+исполнитель]]=TRUE,0,IF(Таблица_Металлопроцессинг_детализированный[[#This Row],[Оборот за месяц по контрагенту]]<1000000,0.5,0.3)) -> 0 | K45: =Таблица_Металлопроцессинг_детализированный[[#This Row],[Сумма наценки]]*Таблица_Металлопроцессинг_детализированный[[#This Row],[Распределение выручки для Куратора договора]] -> 1300 | L45: =IF(Таблица_Металлопроцессинг_детализированный[[#This Row],[Распределение выручки для Менеджера договора]]=1,"",Таблица_Металлопроцессинг_детализированный[[#This Row],[Сумма наценки]]*Таблица_Металлопроцессинг_детализированный[[#This Row],[Распределение выручки для Менеджера договора]]) -> 0 | M45: Процессинг | N45: САНКТ-ПЕТЕРБУРГ | O45: ЭРА СПБ | P45: ОАО "ЭлектроРадиоАвтоматика" | S45: Машиностроение | T45: Сталь листовая Г/к., 10, 1500x6000, Ст.09Г2С (ГОСТ 19281) | V45: 0.05 | W45: т | X45: 1283 | Y45: Порезка листового проката плазменная PLAZMA | Z45: LINEACORD PCL40 | AA45: 1300 | AB45: 1 | AC45: 0.04 | AD45: 1 | AE45: САНКТ-ПЕТЕРБУРГ | AF45: Центр | AG45: 0.05
A46: 1 | B46: САНКТ-ПЕТЕРБУРГ | C46: Центр | D46: Дауэнгауэр Н.Э. | E46: Дауэнгауэр Н.Э. | F46: Дауэнгауэр Н.Э. | G46: =IF(Таблица_Металлопроцессинг_детализированный[[#This Row],[Куратор договора]]=Таблица_Металлопроцессинг_детализированный[[#This Row],[Менеджер]],TRUE,FALSE) -> TRUE | H46: =SUMIFS(AA46:AA1028,O46:O1028,Таблица_Металлопроцессинг_детализированный[[#This Row],[Контрагент]],A46:A1028,Таблица_Металлопроцессинг_детализированный[[#This Row],[Месяц отгрузки]]) -> 323333.8 | I46: =IF(Таблица_Металлопроцессинг_детализированный[[#This Row],[Инициатор+исполнитель]],1,IF(Таблица_Металлопроцессинг_детализированный[[#This Row],[Оборот за месяц по контрагенту]]<1000000,0.5,0.7)) -> 1 | J46: =IF(Таблица_Металлопроцессинг_детализированный[[#This Row],[Инициатор+исполнитель]]=TRUE,0,IF(Таблица_Металлопроцессинг_детализированный[[#This Row],[Оборот за месяц по контрагенту]]<1000000,0.5,0.3)) -> 0 | K46: =Таблица_Металлопроцессинг_детализированный[[#This Row],[Сумма наценки]]*Таблица_Металлопроцессинг_детализированный[[#This Row],[Распределение выручки для Куратора договора]] -> 87635 | L46: =IF(Таблица_Металлопроцессинг_детализированный[[#This Row],[Распределение выручки для Менеджера договора]]=1,"",Таблица_Металлопроцессинг_детализированный[[#This Row],[Сумма наценки]]*Таблица_Металлопроцессинг_детализированный[[#This Row],[Распределение выручки для Менеджера договора]]) -> 0 | M46: Процессинг | N46: САНКТ-ПЕТЕРБУРГ | O46: АМИРА СК | P46: ООО "Амира-СтальКонструкция" | Q46: Санкт-Петербург | R46: Санкт-Петербург | S46: Металлоконструкции | T46: Сталь рулонная Г/к., 4, 1500, Ст.сп/пс (19903) | V46: 10.31 | W46: т | X46: 231253.3 | Y46: Порезка листового проката поперечная | Z46: CAMU RDC 1500/6 | AA46: 87635 | AB46: 1 | AC46: 1.4 | AD46: 1 | AE46: САНКТ-ПЕТЕРБУРГ | AF46: Центр | AG46: 10.31
A47: 1 | B47: САНКТ-ПЕТЕРБУРГ | C47: Центр | D47: Дауэнгауэр Н.Э. | E47: Дауэнгауэр Н.Э. | F47: Дауэнгауэр Н.Э. | G47: =IF(Таблица_Металлопроцессинг_детализированный[[#This Row],[Куратор договора]]=Таблица_Металлопроцессинг_детализированный[[#This Row],[Менеджер]],TRUE,FALSE) -> TRUE | H47: =SUMIFS(AA47:AA1029,O47:O1029,Таблица_Металлопроцессинг_детализированный[[#This Row],[Контрагент]],A47:A1029,Таблица_Металлопроцессинг_детализированный[[#This Row],[Месяц отгрузки]]) -> 235698.8 | I47: =IF(Таблица_Металлопроцессинг_детализированный[[#This Row],[Инициатор+исполнитель]],1,IF(Таблица_Металлопроцессинг_детализированный[[#This Row],[Оборот за месяц по контрагенту]]<1000000,0.5,0.7)) -> 1 | J47: =IF(Таблица_Металлопроцессинг_детализированный[[#This Row],[Инициатор+исполнитель]]=TRUE,0,IF(Таблица_Металлопроцессинг_детализированный[[#This Row],[Оборот за месяц по контрагенту]]<1000000,0.5,0.3)) -> 0 | K47: =Таблица_Металлопроцессинг_детализированный[[#This Row],[Сумма наценки]]*Таблица_Металлопроцессинг_детализированный[[#This Row],[Распределение выручки для Куратора договора]] -> 23120 | L47: =IF(Таблица_Металлопроцессинг_детализированный[[#This Row],[Распределение выручки для Менеджера договора]]=1,"",Таблица_Металлопроцессинг_детализированный[[#This Row],[Сумма наценки]]*Таблица_Металлопроцессинг_детализированный[[#This Row],[Распределение выручки для Менеджера договора]]) -> 0 | M47: Процессинг | N47: САНКТ-ПЕТЕРБУРГ | O47: АМИРА СК | P47: ООО "Амира-СтальКонструкция" | Q47: Санкт-Петербург | R47: Санкт-Петербург | S47: Металлоконструкции | T47: Сталь рулонная Г/к., 4, 1500, Ст.сп/пс (19903) | V47: 2.72 | W47: т | X47: 61009.6 | Y47: Порезка листового проката поперечная | Z47: CAMU RDC 1500/6 | AA47: 23120 | AB47: 1 | AC47: 1.4 | AD47: 1 | AE47: САНКТ-ПЕТЕРБУРГ | AF47: Центр | AG47: 2.72
A48: 1 | B48: САНКТ-ПЕТЕРБУРГ | C48: Центр | D48: Ипатова Е.Н. | E48: Ипатова Е.Н. | F48: Ипатова Е.Н. | G48: =IF(Таблица_Металлопроцессинг_детализированный[[#This Row],[Куратор договора]]=Таблица_Металлопроцессинг_детализированный[[#This Row],[Менеджер]],TRUE,FALSE) -> TRUE | H48: =SUMIFS(AA48:AA1032,O48:O1032,Таблица_Металлопроцессинг_детализированный[[#This Row],[Контрагент]],A48:A1032,Таблица_Металлопроцессинг_детализированный[[#This Row],[Месяц отгрузки]]) -> 34200 | I48: =IF(Таблица_Металлопроцессинг_детализированный[[#This Row],[Инициатор+исполнитель]],1,IF(Таблица_Металлопроцессинг_детализированный[[#This Row],[Оборот за месяц по контрагенту]]<1000000,0.5,0.7)) -> 1 | J48: =IF(Таблица_Металлопроцессинг_детализированный[[#This Row],[Инициатор+исполнитель]]=TRUE,0,IF(Таблица_Металлопроцессинг_детализированный[[#This Row],[Оборот за месяц по контрагенту]]<1000000,0.5,0.3)) -> 0 | K48: =Таблица_Металлопроцессинг_детализированный[[#This Row],[Сумма наценки]]*Таблица_Металлопроцессинг_детализированный[[#This Row],[Распределение выручки для Куратора договора]] -> 25200 | L48: =IF(Таблица_Металлопроцессинг_детализированный[[#This Row],[Распределение выручки для Менеджера договора]]=1,"",Таблица_Металлопроцессинг_детализированный[[#This Row],[Сумма наценки]]*Таблица_Металлопроцессинг_детализированный[[#This Row],[Распределение выручки для Менеджера договора]]) -> 0 | M48: Процессинг | N48: САНКТ-ПЕТЕРБУРГ | O48: НИКОЛЬСКИЙ ЗМК | P48: ООО "Никольский завод металлоконструкций" | Q48: Ленинградская обл. | R48: Ленинградская обл. | S48: Металлоконструкции | T48: Сталь листовая Г/к., 12, 1500x6000, Ст.сп/пс (ГОСТ 14637) | V48: 23.57 | W48: т | X48: 536688.9 | Y48: Очистка проката (дробь 1,0мм, 0,8мм) | Z48: ROSLER | AA48: 25200 | AB48: 252 | AC48: 8.5 | AD48: 1 | AE48: САНКТ-ПЕТЕРБУРГ | AF48: Центр | AG48: 23.57
A49: 1 | B49: САНКТ-ПЕТЕРБУРГ | C49: Центр | D49: Ипатов Д.В. | E49: Ипатов Д.В. | F49: Ипатов Д.В. | G49: =IF(Таблица_Металлопроцессинг_детализированный[[#This Row],[Куратор договора]]=Таблица_Металлопроцессинг_детализированный[[#This Row],[Менеджер]],TRUE,FALSE) -> TRUE | H49: =SUMIFS(AA49:AA1033,O49:O1033,Таблица_Металлопроцессинг_детализированный[[#This Row],[Контрагент]],A49:A1033,Таблица_Металлопроцессинг_детализированный[[#This Row],[Месяц отгрузки]]) -> 1220 | I49: =IF(Таблица_Металлопроцессинг_детализированный[[#This Row],[Инициатор+исполнитель]],1,IF(Таблица_Металлопроцессинг_детализированный[[#This Row],[Оборот за месяц по контрагенту]]<1000000,0.5,0.7)) -> 1 | J49: =IF(Таблица_Металлопроцессинг_детализированный[[#This Row],[Инициатор+исполнитель]]=TRUE,0,IF(Таблица_Металлопроцессинг_детализированный[[#This Row],[Оборот за месяц по контрагенту]]<1000000,0.5,0.3)) -> 0 | K49: =Таблица_Металлопроцессинг_детализированный[[#This Row],[Сумма наценки]]*Таблица_Металлопроцессинг_детализированный[[#This Row],[Распределение выручки для Куратора договора]] -> 420 | L49: =IF(Таблица_Металлопроцессинг_детализированный[[#This Row],[Распределение выручки для Менеджера договора]]=1,"",Таблица_Металлопроцессинг_детализированный[[#This Row],[Сумма наценки]]*Таблица_Металлопроцессинг_детализированный[[#This Row],[Распределение выручки для Менеджера договора]]) -> 0 | M49: Процессинг | N49: САНКТ-ПЕТЕРБУРГ | O49: Трансбетон СПб | P49: ООО "Трансбетон" | S49: Стройиндустрия | T49: Арматура B500C, 10, Ст.сп/пс , в бунтах(ГОСТ 52544-2006) | V49: 0.21 | W49: т | X49: 5504.1 | Y49: Размотка/резка арматурного проката | Z49: MELC 16x4 | AA49: 420 | AB49: 1 | AC49: 0.1 | AD49: 1 | AE49: САНКТ-ПЕТЕРБУРГ | AF49: Центр | AG49: 0.21
A50: 1 | B50: САНКТ-ПЕТЕРБУРГ | C50: Центр | D50: Ипатов Д.В. | E50: Ипатов Д.В. | F50: Ипатов Д.В. | G50: =IF(Таблица_Металлопроцессинг_детализированный[[#This Row],[Куратор договора]]=Таблица_Металлопроцессинг_детализированный[[#This Row],[Менеджер]],TRUE,FALSE) -> TRUE | H50: =SUMIFS(AA50:AA1034,O50:O1034,Таблица_Металлопроцессинг_детализированный[[#This Row],[Контрагент]],A50:A1034,Таблица_Металлопроцессинг_детализированный[[#This Row],[Месяц отгрузки]]) -> 800 | I50: =IF(Таблица_Металлопроцессинг_детализированный[[#This Row],[Инициатор+исполнитель]],1,IF(Таблица_Металлопроцессинг_детализированный[[#This Row],[Оборот за месяц по контрагенту]]<1000000,0.5,0.7)) -> 1 | J50: =IF(Таблица_Металлопроцессинг_детализированный[[#This Row],[Инициатор+исполнитель]]=TRUE,0,IF(Таблица_Металлопроцессинг_детализированный[[#This Row],[Оборот за месяц по контрагенту]]<1000000,0.5,0.3)) -> 0 | K50: =Таблица_Металлопроцессинг_детализированный[[#This Row],[Сумма наценки]]*Таблица_Металлопроцессинг_детализированный[[#This Row],[Распределение выручки для Куратора договора]] -> 400 | L50: =IF(Таблица_Металлопроцессинг_детализированный[[#This Row],[Распределение выручки для Менеджера договора]]=1,"",Таблица_Металлопроцессинг_детализированный[[#This Row],[Сумма наценки]]*Таблица_Металлопроцессинг_детализированный[[#This Row],[Распределение выручки для Менеджера договора]]) -> 0 | M50: Процессинг | N50: САНКТ-ПЕТЕРБУРГ | O50: Трансбетон СПб | P50: ООО "Трансбетон" | S50: Стройиндустрия | T50: Арматура А400С/А500С, 16, Ст.сп/пс, н/дл (СТО АСЧМ 7-93 / ТУ 14-1-5254-94) | V50: 0.2 | W50: т | X50: 4908 | Y50: Размотка/резка арматурного проката | Z50: MELC 16x4 | AA50: 400 | AB50: 1 | AC50: 0.2 | AD50: 1 | AE50: САНКТ-ПЕТЕРБУРГ | AF50: Центр | AG50: 0.2
A51: 1 | B51: САНКТ-ПЕТЕРБУРГ | C51: Центр | D51: Ипатов Д.В. | E51: Ипатов Д.В. | F51: Ипатова Е.Н. | G51: =IF(Таблица_Металлопроцессинг_детализированный[[#This Row],[Куратор договора]]=Таблица_Металлопроцессинг_детализированный[[#This Row],[Менеджер]],TRUE,FALSE) -> FALSE | H51: =SUMIFS(AA51:AA1035,O51:O1035,Таблица_Металлопроцессинг_детализированный[[#This Row],[Контрагент]],A51:A1035,Таблица_Металлопроцессинг_детализированный[[#This Row],[Месяц отгрузки]]) -> 400 | I51: =IF(Таблица_Металлопроцессинг_детализированный[[#This Row],[Инициатор+исполнитель]],1,IF(Таблица_Металлопроцессинг_детализированный[[#This Row],[Оборот за месяц по контрагенту]]<1000000,0.5,0.7)) -> 0.5 | J51: =IF(Таблица_Металлопроцессинг_детализированный[[#This Row],[Инициатор+исполнитель]]=TRUE,0,IF(Таблица_Металлопроцессинг_детализированный[[#This Row],[Оборот за месяц по контрагенту]]<1000000,0.5,0.3)) -> 0.5 | K51: =Таблица_Металлопроцессинг_детализированный[[#This Row],[Сумма наценки]]*Таблица_Металлопроцессинг_детализированный[[#This Row],[Распределение выручки для Куратора договора]] -> 200 | L51: =IF(Таблица_Металлопроцессинг_детализированный[[#This Row],[Распределение выручки для Менеджера договора]]=1,"",Таблица_Металлопроцессинг_детализированный[[#This Row],[Сумма наценки]]*Таблица_Металлопроцессинг_детализированный[[#This Row],[Распределение выручки для Менеджера договора]]) -> 200 | M51: Процессинг | N51: САНКТ-ПЕТЕРБУРГ | O51: Трансбетон СПб | P51: ООО "Трансбетон" | S51: Стройиндустрия | T51: Арматура А400С/А500С, 25, Ст.сп/пс (СТО АСЧМ 7-93 / ТУ 14-1-5254-94) | V51: 0.2 | W51: т | X51: 5220 | Y51: Размотка/резка арматурного проката | Z51: MELC 16x4 | AA51: 400 | AB51: 1 | AC51: 0.3 | AD51: 1 | AE51: САНКТ-ПЕТЕРБУРГ | AF51: Центр | AG51: 0.2
A52: 1 | B52: САНКТ-ПЕТЕРБУРГ | C52: Центр | D52: Ипатова Е.Н. | E52: Ипатова Е.Н. | F52: Ипатова Е.Н. | G52: =IF(Таблица_Металлопроцессинг_детализированный[[#This Row],[Куратор договора]]=Таблица_Металлопроцессинг_детализированный[[#This Row],[Менеджер]],TRUE,FALSE) -> TRUE | H52: =SUMIFS(AA52:AA1039,O52:O1039,Таблица_Металлопроцессинг_детализированный[[#This Row],[Контрагент]],A52:A1039,Таблица_Металлопроцессинг_детализированный[[#This Row],[Месяц отгрузки]]) -> 4176 | I52: =IF(Таблица_Металлопроцессинг_детализированный[[#This Row],[Инициатор+исполнитель]],1,IF(Таблица_Металлопроцессинг_детализированный[[#This Row],[Оборот за месяц по контрагенту]]<1000000,0.5,0.7)) -> 1 | J52: =IF(Таблица_Металлопроцессинг_детализированный[[#This Row],[Инициатор+исполнитель]]=TRUE,0,IF(Таблица_Металлопроцессинг_детализированный[[#This Row],[Оборот за месяц по контрагенту]]<1000000,0.5,0.3)) -> 0 | K52: =Таблица_Металлопроцессинг_детализированный[[#This Row],[Сумма наценки]]*Таблица_Металлопроцессинг_детализированный[[#This Row],[Распределение выручки для Куратора договора]] -> 4176 | L52: =IF(Таблица_Металлопроцессинг_детализированный[[#This Row],[Распределение выручки для Менеджера договора]]=1,"",Таблица_Металлопроцессинг_детализированный[[#This Row],[Сумма наценки]]*Таблица_Металлопроцессинг_детализированный[[#This Row],[Распределение выручки для Менеджера договора]]) -> 0 | M52: Процессинг | N52: САНКТ-ПЕТЕРБУРГ | O52: ОЛЛТРЕЙД-НЕВА | P52: ООО"ОЛЛТРЕЙД-НЕВА" | S52: Металлоторговля | T52: Сталь рулонная Г/к., 1.5, 1250, Ст.сп/пс (19903) | V52: 4.64 | W52: т | X52: 118505.6 | Y52: Порезка листового проката поперечная | Z52: CAMU RDC 1500/6 | AA52: 4176 | AB52: 1 | AC52: 4.45 | AD52: 1 | AE52: САНКТ-ПЕТЕРБУРГ | AF52: Центр | AG52: 4.64
A53: 1 | B53: САНКТ-ПЕТЕРБУРГ | C53: Центр | D53: Ипатов Д.В. | E53: Ипатов Д.В. | F53: Ипатова Е.Н. | G53: =IF(Таблица_Металлопроцессинг_детализированный[[#This Row],[Куратор договора]]=Таблица_Металлопроцессинг_детализированный[[#This Row],[Менеджер]],TRUE,FALSE) -> FALSE | H53: =SUMIFS(AA53:AA1606,O53:O1606,Таблица_Металлопроцессинг_детализированный[[#This Row],[Контрагент]],A53:A1606,Таблица_Металлопроцессинг_детализированный[[#This Row],[Месяц отгрузки]]) -> 1240 | I53: =IF(Таблица_Металлопроцессинг_детализированный[[#This Row],[Инициатор+исполнитель]],1,IF(Таблица_Металлопроцессинг_детализированный[[#This Row],[Оборот за месяц по контрагенту]]<1000000,0.5,0.7)) -> 0.5 | J53: =IF(Таблица_Металлопроцессинг_детализированный[[#This Row],[Инициатор+исполнитель]]=TRUE,0,IF(Таблица_Металлопроцессинг_детализированный[[#This Row],[Оборот за месяц по контрагенту]]<1000000,0.5,0.3)) -> 0.5 | K53: =Таблица_Металлопроцессинг_детализированный[[#This Row],[Сумма наценки]]*Таблица_Металлопроцессинг_детализированный[[#This Row],[Распределение выручки для Куратора договора]] -> 620 | L53: =IF(Таблица_Металлопроцессинг_детализированный[[#This Row],[Распределение выручки для Менеджера договора]]=1,"",Таблица_Металлопроцессинг_детализированный[[#This Row],[Сумма наценки]]*Таблица_Металлопроцессинг_детализированный[[#This Row],[Распределение выручки для Менеджера договора]]) -> 620 | M53: Процессинг | N53: САНКТ-ПЕТЕРБУРГ | O53: Панорама Оконный завод СПб | P53: ООО "Панорама. Оконный завод" | S53: Другое | T53: Уголок стальной г/к равнополочный, 75x6, Ст.сп/пс (ГОСТ 8509-93) | V53: 0.15 | W53: т | X53: 4131 | Y53: Станок ленточнопильный | Z53: PEGASUS | AA53: 1240 | AB53: 8 | AC53: 0.17 | AD53: 1 | AE53: САНКТ-ПЕТЕРБУРГ | AF53: Центр | AG53: 0.15
A54: 1 | B54: САНКТ-ПЕТЕРБУРГ | C54: Центр | D54: Хабибуллов М.Р. | E54: Хабибуллов М.Р. | F54: Хабибуллов М.Р. | G54: =IF(Таблица_Металлопроцессинг_детализированный[[#This Row],[Куратор договора]]=Таблица_Металлопроцессинг_детализированный[[#This Row],[Менеджер]],TRUE,FALSE) -> TRUE | H54: =SUMIFS(AA54:AA1608,O54:O1608,Таблица_Металлопроцессинг_детализированный[[#This Row],[Контрагент]],A54:A1608,Таблица_Металлопроцессинг_детализированный[[#This Row],[Месяц отгрузки]]) -> 404751 | I54: =IF(Таблица_Металлопроцессинг_детализированный[[#This Row],[Инициатор+исполнитель]],1,IF(Таблица_Металлопроцессинг_детализированный[[#This Row],[Оборот за месяц по контрагенту]]<1000000,0.5,0.7)) -> 1 | J54: =IF(Таблица_Металлопроцессинг_детализированный[[#This Row],[Инициатор+исполнитель]]=TRUE,0,IF(Таблица_Металлопроцессинг_детализированный[[#This Row],[Оборот за месяц по контрагенту]]<1000000,0.5,0.3)) -> 0 | K54: =Таблица_Металлопроцессинг_детализированный[[#This Row],[Сумма наценки]]*Таблица_Металлопроцессинг_детализированный[[#This Row],[Распределение выручки для Куратора договора]] -> 29883 | L54: =IF(Таблица_Металлопроцессинг_детализированный[[#This Row],[Распределение выручки для Менеджера договора]]=1,"",Таблица_Металлопроцессинг_детализированный[[#This Row],[Сумма наценки]]*Таблица_Металлопроцессинг_детализированный[[#This Row],[Распределение выручки для Менеджера договора]]) -> 0 | M54: Процессинг | N54: САНКТ-ПЕТЕРБУРГ | O54: АртЛэнд | P54: ООО "Строительная компания "АртЛэнд" | S54: Стройиндустрия | T54: Шпунт Ларсена Л5-УМ, С255 (ТУ 14-102-8-2003) | V54: 19.922 | W54: т | X54: 786919 | Y54: Очистка и покраска проката (грунт ЭМЛАК 263) | Z54: ROSLER | AA54: 29883 | AB54: 19.922 | AC54: 19.922 | AD54: 1 | AE54: САНКТ-ПЕТЕРБУРГ | AF54: Центр | AG54: 19.922
A55: 1 | B55: САНКТ-ПЕТЕРБУРГ | C55: Центр | D55: Сафонеев С.А. | E55: Сафонеев С.А. | F55: Ипатова Е.Н. | G55: =IF(Таблица_Металлопроцессинг_детализированный[[#This Row],[Куратор договора]]=Таблица_Металлопроцессинг_детализированный[[#This Row],[Менеджер]],TRUE,FALSE) -> FALSE | H55: =SUMIFS(AA55:AA1625,O55:O1625,Таблица_Металлопроцессинг_детализированный[[#This Row],[Контрагент]],A55:A1625,Таблица_Металлопроцессинг_детализированный[[#This Row],[Месяц отгрузки]]) -> 343784.6 | I55: =IF(Таблица_Металлопроцессинг_детализированный[[#This Row],[Инициатор+исполнитель]],1,IF(Таблица_Металлопроцессинг_детализированный[[#This Row],[Оборот за месяц по контрагенту]]<1000000,0.5,0.7)) -> 0.5 | J55: =IF(Таблица_Металлопроцессинг_детализированный[[#This Row],[Инициатор+исполнитель]]=TRUE,0,IF(Таблица_Металлопроцессинг_детализированный[[#This Row],[Оборот за месяц по контрагенту]]<1000000,0.5,0.3)) -> 0.5 | K55: =Таблица_Металлопроцессинг_детализированный[[#This Row],[Сумма наценки]]*Таблица_Металлопроцессинг_детализированный[[#This Row],[Распределение выручки для Куратора договора]] -> 8640.025 | L55: =IF(Таблица_Металлопроцессинг_детализированный[[#This Row],[Распределение выручки для Менеджера договора]]=1,"",Таблица_Металлопроцессинг_детализированный[[#This Row],[Сумма наценки]]*Таблица_Металлопроцессинг_детализированный[[#This Row],[Распределение выручки для Менеджера договора]]) -> 8640.025 | M55: Из давальческого сырья | N55: САНКТ-ПЕТЕРБУРГ | O55: НЕВА-МЕТАЛЛТРЭЙД ООО | P55: ООО "Нева-МеталлТрэйд" | Q55: г. Санкт-Петербург | R55: г. Санкт-Петербург | S55: Машиностроение | T55: Изделие | U55: Сталь листовая РСД32, 18*2000*8000 | V55: 13.56 | W55: т | X55: 0 | Y55: Очистка и покраска проката (грунт HEMPEL) | Z55: ROSLER | AA55: 17280.05 | AB55: 13.56 | AC55: 13.56 | AD55: 1 | AE55: САНКТ-ПЕТЕРБУРГ | AF55: Центр | AG55: 13.56
A56: 1 | B56: САНКТ-ПЕТЕРБУРГ | C56: Центр | D56: Сафонеев С.А. | E56: Сафонеев С.А. | F56: Сафонеев С.А. | G56: =IF(Таблица_Металлопроцессинг_детализированный[[#This Row],[Куратор договора]]=Таблица_Металлопроцессинг_детализированный[[#This Row],[Менеджер]],TRUE,FALSE) -> TRUE | H56: =SUMIFS(AA56:AA1633,O56:O1633,Таблица_Металлопроцессинг_детализированный[[#This Row],[Контрагент]],A56:A1633,Таблица_Металлопроцессинг_детализированный[[#This Row],[Месяц отгрузки]]) -> 1920 | I56: =IF(Таблица_Металлопроцессинг_детализированный[[#This Row],[Инициатор+исполнитель]],1,IF(Таблица_Металлопроцессинг_детализированный[[#This Row],[Оборот за месяц по контрагенту]]<1000000,0.5,0.7)) -> 1 | J56: =IF(Таблица_Металлопроцессинг_детализированный[[#This Row],[Инициатор+исполнитель]]=TRUE,0,IF(Таблица_Металлопроцессинг_детализированный[[#This Row],[Оборот за месяц по контрагенту]]<1000000,0.5,0.3)) -> 0 | K56: =Таблица_Металлопроцессинг_детализированный[[#This Row],[Сумма наценки]]*Таблица_Металлопроцессинг_детализированный[[#This Row],[Распределение выручки для Куратора договора]] -> 1920 | L56: =IF(Таблица_Металлопроцессинг_детализированный[[#This Row],[Распределение выручки для Менеджера договора]]=1,"",Таблица_Металлопроцессинг_детализированный[[#This Row],[Сумма наценки]]*Таблица_Металлопроцессинг_детализированный[[#This Row],[Распределение выручки для Менеджера договора]]) -> 0 | M56: Из давальческого сырья | N56: САНКТ-ПЕТЕРБУРГ | O56: ФЕНИКС НПО | P56: Научно-производственное объединение "Феникс" | Q56: Санкт-Петербург | R56: Санкт-Петербург | S56: Машиностроение | T56: Изделие | U56: Плазмення резка | V56: 16 | W56: п/м | X56: 0 | Y56: Порезка листового проката плазменная PLAZMA | Z56: LINEACORD PCL40 | AA56: 1920 | AB56: 16 | AC56: 16 | AD56: 1 | AE56: САНКТ-ПЕТЕРБУРГ | AF56: Центр | AG56: 0.183
A57: 1 | B57: САНКТ-ПЕТЕРБУРГ | C57: Центр | D57: Дауэнгауэр Н.Э. | E57: Дауэнгауэр Н.Э. | F57: Дауэнгауэр Н.Э. | G57: =IF(Таблица_Металлопроцессинг_детализированный[[#This Row],[Куратор договора]]=Таблица_Металлопроцессинг_детализированный[[#This Row],[Менеджер]],TRUE,FALSE) -> TRUE | H57: =SUMIFS(AA57:AA1638,O57:O1638,Таблица_Металлопроцессинг_детализированный[[#This Row],[Контрагент]],A57:A1638,Таблица_Металлопроцессинг_детализированный[[#This Row],[Месяц отгрузки]]) -> 41199 | I57: =IF(Таблица_Металлопроцессинг_детализированный[[#This Row],[Инициатор+исполнитель]],1,IF(Таблица_Металлопроцессинг_детализированный[[#This Row],[Оборот за месяц по контрагенту]]<1000000,0.5,0.7)) -> 1 | J57: =IF(Таблица_Металлопроцессинг_детализированный[[#This Row],[Инициатор+исполнитель]]=TRUE,0,IF(Таблица_Металлопроцессинг_детализированный[[#This Row],[Оборот за месяц по контрагенту]]<1000000,0.5,0.3)) -> 0 | K57: =Таблица_Металлопроцессинг_детализированный[[#This Row],[Сумма наценки]]*Таблица_Металлопроцессинг_детализированный[[#This Row],[Распределение выручки для Куратора договора]] -> 17775 | L57: =IF(Таблица_Металлопроцессинг_детализированный[[#This Row],[Распределение выручки для Менеджера договора]]=1,"",Таблица_Металлопроцессинг_детализированный[[#This Row],[Сумма наценки]]*Таблица_Металлопроцессинг_детализированный[[#This Row],[Распределение выручки для Менеджера договора]]) -> 0 | M57: Процессинг | N57: САНКТ-ПЕТЕРБУРГ | O57: СКМ Фирма | P57: ООО "Фирма СКМ" | Q57: Ленинградская обл. | R57: Ленинградская обл. | S57: Машиностроение | T57: Сталь рулонная Х/к., 1.5, 1250, Ст.кп/пс (19904) | V57: 3.95 | W57: т | X57: 110560.5 | Y57: Порезка листового проката поперечная | Z57: CAMU RDC 1500/6 | AA57: 17775 | AB57: 1 | AC57: 4 | AD57: 1 | AE57: САНКТ-ПЕТЕРБУРГ | AF57: Центр | AG57: 3.95
A58: 1 | B58: САНКТ-ПЕТЕРБУРГ | C58: Центр | D58: Райская Н.А. | E58: Хабибуллов М.Р. | F58: Райская Н.А. | G58: =IF(Таблица_Металлопроцессинг_детализированный[[#This Row],[Куратор договора]]=Таблица_Металлопроцессинг_детализированный[[#This Row],[Менеджер]],TRUE,FALSE) -> TRUE | H58: =SUMIFS(AA58:AA1646,O58:O1646,Таблица_Металлопроцессинг_детализированный[[#This Row],[Контрагент]],A58:A1646,Таблица_Металлопроцессинг_детализированный[[#This Row],[Месяц отгрузки]]) -> 6139.5 | I58: =IF(Таблица_Металлопроцессинг_детализированный[[#This Row],[Инициатор+исполнитель]],1,IF(Таблица_Металлопроцессинг_детализированный[[#This Row],[Оборот за месяц по контрагенту]]<1000000,0.5,0.7)) -> 1 | J58: =IF(Таблица_Металлопроцессинг_детализированный[[#This Row],[Инициатор+исполнитель]]=TRUE,0,IF(Таблица_Металлопроцессинг_детализированный[[#This Row],[Оборот за месяц по контрагенту]]<1000000,0.5,0.3)) -> 0 | K58: =Таблица_Металлопроцессинг_детализированный[[#This Row],[Сумма наценки]]*Таблица_Металлопроцессинг_детализированный[[#This Row],[Распределение выручки для Куратора договора]] -> 6139.5 | L58: =IF(Таблица_Металлопроцессинг_детализированный[[#This Row],[Распределение выручки для Менеджера договора]]=1,"",Таблица_Металлопроцессинг_детализированный[[#This Row],[Сумма наценки]]*Таблица_Металлопроцессинг_детализированный[[#This Row],[Распределение выручки для Менеджера договора]]) -> 0 | M58: Из давальческого сырья | N58: САНКТ-ПЕТЕРБУРГ | O58: СтройТехИмпорт | P58: ООО "СтройТехИмпорт" | S58: Стройиндустрия | T58: Шпунт Ларсена Л5-УМ, С255 (ТУ 14-102-8-2010) | V58: 4.093 | W58: т | X58: 0 | Y58: Очистка и покраска проката (грунт ЭМЛАК 263) | Z58: ROSLER | AA58: 6139.5 | AB58: 4.093 | AC58: 4.093 | AD58: 1 | AE58: САНКТ-ПЕТЕРБУРГ | AF58: Центр | AG58: 4.093
A59: 1 | B59: САНКТ-ПЕТЕРБУРГ | C59: Центр | D59: Матросова Л.Ш. | E59: Матросова Л.Ш. | F59: Ипатова Е.Н. | G59: =IF(Таблица_Металлопроцессинг_детализированный[[#This Row],[Куратор договора]]=Таблица_Металлопроцессинг_детализированный[[#This Row],[Менеджер]],TRUE,FALSE) -> FALSE | H59: =SUMIFS(AA59:AA1648,O59:O1648,Таблица_Металлопроцессинг_детализированный[[#This Row],[Контрагент]],A59:A1648,Таблица_Металлопроцессинг_детализированный[[#This Row],[Месяц отгрузки]]) -> 2000 | I59: =IF(Таблица_Металлопроцессинг_детализированный[[#This Row],[Инициатор+исполнитель]],1,IF(Таблица_Металлопроцессинг_детализированный[[#This Row],[Оборот за месяц по контрагенту]]<1000000,0.5,0.7)) -> 0.5 | J59: =IF(Таблица_Металлопроцессинг_детализированный[[#This Row],[Инициатор+исполнитель]]=TRUE,0,IF(Таблица_Металлопроцессинг_детализированный[[#This Row],[Оборот за месяц по контрагенту]]<1000000,0.5,0.3)) -> 0.5 | K59: =Таблица_Металлопроцессинг_детализированный[[#This Row],[Сумма наценки]]*Таблица_Металлопроцессинг_детализированный[[#This Row],[Распределение выручки для Куратора договора]] -> 1000 | L59: =IF(Таблица_Металлопроцессинг_детализированный[[#This Row],[Распределение выручки для Менеджера договора]]=1,"",Таблица_Металлопроцессинг_детализированный[[#This Row],[Сумма наценки]]*Таблица_Металлопроцессинг_детализированный[[#This Row],[Распределение выручки для Менеджера договора]]) -> 1000 | M59: Процессинг | N59: САНКТ-ПЕТЕРБУРГ | O59: ТэтаКом | P59: ООО "ТэтаКом" | Q59: г. Санкт-Петербург | R59: г. Санкт-Петербург | S59: Металлоторговля | T59: Сталь рулонная Г/к., 3, 1500, Ст.сп/пс (19903) | V59: 1.69 | W59: т | X59: 37349 | Y59: Порезка листового проката поперечная | Z59: CAMU RDC 1500/6 | AA59: 2000 | AB59: 1 | AC59: 1.71 | AD59: 1 | AE59: САНКТ-ПЕТЕРБУРГ | AF59: Центр | AG59: 1.69
A60: 1 | B60: САНКТ-ПЕТЕРБУРГ | C60: Центр | D60: Молчанова Е.М. | E60: Молчанова Е.М. | F60: Дауэнгауэр Н.Э. | G60: =IF(Таблица_Металлопроцессинг_детализированный[[#This Row],[Куратор договора]]=Таблица_Металлопроцессинг_детализированный[[#This Row],[Менеджер]],TRUE,FALSE) -> FALSE | H60: =SUMIFS(AA60:AA1653,O60:O1653,Таблица_Металлопроцессинг_детализированный[[#This Row],[Контрагент]],A60:A1653,Таблица_Металлопроцессинг_детализированный[[#This Row],[Месяц отгрузки]]) -> 164940 | I60: =IF(Таблица_Металлопроцессинг_детализированный[[#This Row],[Инициатор+исполнитель]],1,IF(Таблица_Металлопроцессинг_детализированный[[#This Row],[Оборот за месяц по контрагенту]]<1000000,0.5,0.7)) -> 0.5 | J60: =IF(Таблица_Металлопроцессинг_детализированный[[#This Row],[Инициатор+исполнитель]]=TRUE,0,IF(Таблица_Металлопроцессинг_детализированный[[#This Row],[Оборот за месяц по контрагенту]]<1000000,0.5,0.3)) -> 0.5 | K60: =Таблица_Металлопроцессинг_детализированный[[#This Row],[Сумма наценки]]*Таблица_Металлопроцессинг_детализированный[[#This Row],[Распределение выручки для Куратора договора]] -> 7590 | L60: =IF(Таблица_Металлопроцессинг_детализированный[[#This Row],[Распределение выручки для Менеджера договора]]=1,"",Таблица_Металлопроцессинг_детализированный[[#This Row],[Сумма наценки]]*Таблица_Металлопроцессинг_детализированный[[#This Row],[Распределение выручки для Менеджера договора]]) -> 7590 | M60: Из давальческого сырья | N60: САНКТ-ПЕТЕРБУРГ | O60: НЕВСКИЙ МЕТАЛЛ (СПб) | P60: ООО "НЕВСКИЙ МЕТАЛЛ" | S60: Металлоторговля | T60: Изделие | U60: ПВЛ 406 дробь+эмлак обе стороны листа | V60: 1.28 | W60: т | X60: 0 | Y60: Очистка и покраска проката (грунт ЭМЛАК 263) | Z60: ROSLER | AA60: 15180 | AB60: 138 | AC60: 138 | AD60: 1 | AE60: САНКТ-ПЕТЕРБУРГ | AF60: Центр | AG60: 1.28
A61: 1 | B61: САНКТ-ПЕТЕРБУРГ | C61: Центр | D61: Молчанова Е.М. | E61: Молчанова Е.М. | F61: Райская Н.А. | G61: =IF(Таблица_Металлопроцессинг_детализированный[[#This Row],[Куратор договора]]=Таблица_Металлопроцессинг_детализированный[[#This Row],[Менеджер]],TRUE,FALSE) -> FALSE | H61: =SUMIFS(AA61:AA1654,O61:O1654,Таблица_Металлопроцессинг_детализированный[[#This Row],[Контрагент]],A61:A1654,Таблица_Металлопроцессинг_детализированный[[#This Row],[Месяц отгрузки]]) -> 149760 | I61: =IF(Таблица_Металлопроцессинг_детализированный[[#This Row],[Инициатор+исполнитель]],1,IF(Таблица_Металлопроцессинг_детализированный[[#This Row],[Оборот за месяц по контрагенту]]<1000000,0.5,0.7)) -> 0.5 | J61: =IF(Таблица_Металлопроцессинг_детализированный[[#This Row],[Инициатор+исполнитель]]=TRUE,0,IF(Таблица_Металлопроцессинг_детализированный[[#This Row],[Оборот за месяц по контрагенту]]<1000000,0.5,0.3)) -> 0.5 | K61: =Таблица_Металлопроцессинг_детализированный[[#This Row],[Сумма наценки]]*Таблица_Металлопроцессинг_детализированный[[#This Row],[Распределение выручки для Куратора договора]] -> 5060 | L61: =IF(Таблица_Металлопроцессинг_детализированный[[#This Row],[Распределение выручки для Менеджера договора]]=1,"",Таблица_Металлопроцессинг_детализированный[[#This Row],[Сумма наценки]]*Таблица_Металлопроцессинг_детализированный[[#This Row],[Распределение выручки для Менеджера договора]]) -> 5060 | M61: Из давальческого сырья | N61: САНКТ-ПЕТЕРБУРГ | O61: НЕВСКИЙ МЕТАЛЛ (СПб) | P61: ООО "НЕВСКИЙ МЕТАЛЛ" | S61: Металлоторговля | T61: Изделие | U61: полоса 4*70*3000 дробь+эмлак с обеих сторон | V61: 1.33 | W61: т | X61: 0 | Y61: Очистка и покраска проката (грунт ЭМЛАК 263) | Z61: ROSLER | AA61: 10120 | AB61: 92 | AC61: 92 | AD61: 1 | AE61: САНКТ-ПЕТЕРБУРГ | AF61: Центр | AG61: 1.33
A62: 1 | B62: САНКТ-ПЕТЕРБУРГ | C62: Центр | D62: Молчанова Е.М. | E62: Матросова Л.Ш. | F62: Молчанова Е.М. | G62: =IF(Таблица_Металлопроцессинг_детализированный[[#This Row],[Куратор договора]]=Таблица_Металлопроцессинг_детализированный[[#This Row],[Менеджер]],TRUE,FALSE) -> TRUE | H62: =SUMIFS(AA62:AA1657,O62:O1657,Таблица_Металлопроцессинг_детализированный[[#This Row],[Контрагент]],A62:A1657,Таблица_Металлопроцессинг_детализированный[[#This Row],[Месяц отгрузки]]) -> 139640 | I62: =IF(Таблица_Металлопроцессинг_детализированный[[#This Row],[Инициатор+исполнитель]],1,IF(Таблица_Металлопроцессинг_детализированный[[#This Row],[Оборот за месяц по контрагенту]]<1000000,0.5,0.7)) -> 1 | J62: =IF(Таблица_Металлопроцессинг_детализированный[[#This Row],[Инициатор+исполнитель]]=TRUE,0,IF(Таблица_Металлопроцессинг_детализированный[[#This Row],[Оборот за месяц по контрагенту]]<1000000,0.5,0.3)) -> 0 | K62: =Таблица_Металлопроцессинг_детализированный[[#This Row],[Сумма наценки]]*Таблица_Металлопроцессинг_детализированный[[#This Row],[Распределение выручки для Куратора договора]] -> 300 | L62: =IF(Таблица_Металлопроцессинг_детализированный[[#This Row],[Распределение выручки для Менеджера договора]]=1,"",Таблица_Металлопроцессинг_детализированный[[#This Row],[Сумма наценки]]*Таблица_Металлопроцессинг_детализированный[[#This Row],[Распределение выручки для Менеджера договора]]) -> 0 | M62: Процессинг | N62: САНКТ-ПЕТЕРБУРГ | O62: НЕВСКИЙ МЕТАЛЛ (СПб) | P62: ООО "НЕВСКИЙ МЕТАЛЛ" | S62: Металлоторговля | T62: Арматура класс АI, 12, Ст.сп/пс, в бунтах (ГОСТ 5781-82) | V62: 0.3 | W62: т | X62: 8697 | Y62: Размотка/резка арматурного проката | Z62: MELC 16x4 | AA62: 300 | AB62: 1 | AC62: 0.3 | AD62: 1 | AE62: САНКТ-ПЕТЕРБУРГ | AF62: Центр | AG62: 0.3
A63: 1 | B63: САНКТ-ПЕТЕРБУРГ | C63: Центр | D63: Молчанова Е.М. | E63: Матросова Л.Ш. | F63: Ипатова Е.Н. | G63: =IF(Таблица_Металлопроцессинг_детализированный[[#This Row],[Куратор договора]]=Таблица_Металлопроцессинг_детализированный[[#This Row],[Менеджер]],TRUE,FALSE) -> FALSE | H63: =SUMIFS(AA63:AA1664,O63:O1664,Таблица_Металлопроцессинг_детализированный[[#This Row],[Контрагент]],A63:A1664,Таблица_Металлопроцессинг_детализированный[[#This Row],[Месяц отгрузки]]) -> 139340 | I63: =IF(Таблица_Металлопроцессинг_детализированный[[#This Row],[Инициатор+исполнитель]],1,IF(Таблица_Металлопроцессинг_детализированный[[#This Row],[Оборот за месяц по контрагенту]]<1000000,0.5,0.7)) -> 0.5 | J63: =IF(Таблица_Металлопроцессинг_детализированный[[#This Row],[Инициатор+исполнитель]]=TRUE,0,IF(Таблица_Металлопроцессинг_детализированный[[#This Row],[Оборот за месяц по контрагенту]]<1000000,0.5,0.3)) -> 0.5 | K63: =Таблица_Металлопроцессинг_детализированный[[#This Row],[Сумма наценки]]*Таблица_Металлопроцессинг_детализированный[[#This Row],[Распределение выручки для Куратора договора]] -> 7500 | L63: =IF(Таблица_Металлопроцессинг_детализированный[[#This Row],[Распределение выручки для Менеджера договора]]=1,"",Таблица_Металлопроцессинг_детализированный[[#This Row],[Сумма наценки]]*Таблица_Металлопроцессинг_детализированный[[#This Row],[Распределение выручки для Менеджера договора]]) -> 7500 | M63: Из давальческого сырья | N63: САНКТ-ПЕТЕРБУРГ | O63: НЕВСКИЙ МЕТАЛЛ (СПб) | P63: ООО "НЕВСКИЙ МЕТАЛЛ" | S63: Металлоторговля | T63: Изделие | U63: тр. 168*10 HEMPEL | V63: 9.55 | W63: т | X63: 0 | Y63: Очистка и покраска проката (грунт HEMPEL) | Z63: ROSLER | AA63: 15000 | AB63: 125 | AC63: 105 | AD63: 1 | AE63: САНКТ-ПЕТЕРБУРГ | AF63: Центр | AG63: 9.55
A64: 1 | B64: САНКТ-ПЕТЕРБУРГ | C64: Центр | D64: Молчанова Е.М. | E64: Матросова Л.Ш. | F64: Ипатов Д.В. | G64: =IF(Таблица_Металлопроцессинг_детализированный[[#This Row],[Куратор договора]]=Таблица_Металлопроцессинг_детализированный[[#This Row],[Менеджер]],TRUE,FALSE) -> FALSE | H64: =SUMIFS(AA64:AA1665,O64:O1665,Таблица_Металлопроцессинг_детализированный[[#This Row],[Контрагент]],A64:A1665,Таблица_Металлопроцессинг_детализированный[[#This Row],[Месяц отгрузки]]) -> 124340 | I64: =IF(Таблица_Металлопроцессинг_детализированный[[#This Row],[Инициатор+исполнитель]],1,IF(Таблица_Металлопроцессинг_детализированный[[#This Row],[Оборот за месяц по контрагенту]]<1000000,0.5,0.7)) -> 0.5 | J64: =IF(Таблица_Металлопроцессинг_детализированный[[#This Row],[Инициатор+исполнитель]]=TRUE,0,IF(Таблица_Металлопроцессинг_детализированный[[#This Row],[Оборот за месяц по контрагенту]]<1000000,0.5,0.3)) -> 0.5 | K64: =Таблица_Металлопроцессинг_детализированный[[#This Row],[Сумма наценки]]*Таблица_Металлопроцессинг_детализированный[[#This Row],[Распределение выручки для Куратора договора]] -> 12000 | L64: =IF(Таблица_Металлопроцессинг_детализированный[[#This Row],[Распределение выручки для Менеджера договора]]=1,"",Таблица_Металлопроцессинг_детализированный[[#This Row],[Сумма наценки]]*Таблица_Металлопроцессинг_детализированный[[#This Row],[Распределение выручки для Менеджера договора]]) -> 12000 | M64: Из давальческого сырья | N64: САНКТ-ПЕТЕРБУРГ | O64: НЕВСКИЙ МЕТАЛЛ (СПб) | P64: ООО "НЕВСКИЙ МЕТАЛЛ" | S64: Металлоторговля | T64: Изделие | U64: тр. 76*4 HEMPEL | V64: 6.2 | W64: т | X64: 0 | Y64: Очистка и покраска проката (грунт HEMPEL) | Z64: ROSLER | AA64: 24000 | AB64: 200 | AC64: 186 | AD64: 1 | AE64: САНКТ-ПЕТЕРБУРГ | AF64: Центр | AG64: 6.2
A65: 1 | B65: САНКТ-ПЕТЕРБУРГ | C65: Центр | D65: Сафонеев С.А. | E65: Сафонеев С.А. | F65: Сафонеев С.А. | G65: =IF(Таблица_Металлопроцессинг_детализированный[[#This Row],[Куратор договора]]=Таблица_Металлопроцессинг_детализированный[[#This Row],[Менеджер]],TRUE,FALSE) -> TRUE | H65: =SUMIFS(AA65:AA1667,O65:O1667,Таблица_Металлопроцессинг_детализированный[[#This Row],[Контрагент]],A65:A1667,Таблица_Металлопроцессинг_детализированный[[#This Row],[Месяц отгрузки]]) -> 600 | I65: =IF(Таблица_Металлопроцессинг_детализированный[[#This Row],[Инициатор+исполнитель]],1,IF(Таблица_Металлопроцессинг_детализированный[[#This Row],[Оборот за месяц по контрагенту]]<1000000,0.5,0.7)) -> 1 | J65: =IF(Таблица_Металлопроцессинг_детализированный[[#This Row],[Инициатор+исполнитель]]=TRUE,0,IF(Таблица_Металлопроцессинг_детализированный[[#This Row],[Оборот за месяц по контрагенту]]<1000000,0.5,0.3)) -> 0 | K65: =Таблица_Металлопроцессинг_детализированный[[#This Row],[Сумма наценки]]*Таблица_Металлопроцессинг_детализированный[[#This Row],[Распределение выручки для Куратора договора]] -> 600 | L65: =IF(Таблица_Металлопроцессинг_детализированный[[#This Row],[Распределение выручки для Менеджера договора]]=1,"",Таблица_Металлопроцессинг_детализированный[[#This Row],[Сумма наценки]]*Таблица_Металлопроцессинг_детализированный[[#This Row],[Распределение выручки для Менеджера договора]]) -> 0 | M65: Процессинг | N65: САНКТ-ПЕТЕРБУРГ | O65: ГЕСЕР ЗАО СПБ | P65: ЗАО "Гесер" | Q65: Ленинградская обл. | R65: Ленинградская обл. | S65: Машиностроение | T65: Швеллер стальной г/к, 16У, Ст.С255 (ГОСТ 27772-88) | V65: 0.352 | W65: т | X65: 9929.92 | Y65: Станок ленточнопильный | Z65: PEGASUS | AA65: 600 | AB65: 2 | AC65: 0.352 | AD65: 1 | AE65: САНКТ-ПЕТЕРБУРГ | AF65: Центр | AG65: 0.352
A66: 1 | B66: САНКТ-ПЕТЕРБУРГ | C66: Центр | D66: Хабибуллов М.Р. | E66: Хабибуллов М.Р. | F66: Дауэнгауэр Н.Э. | G66: =IF(Таблица_Металлопроцессинг_детализированный[[#This Row],[Куратор договора]]=Таблица_Металлопроцессинг_детализированный[[#This Row],[Менеджер]],TRUE,FALSE) -> FALSE | H66: =SUMIFS(AA66:AA1669,O66:O1669,Таблица_Металлопроцессинг_детализированный[[#This Row],[Контрагент]],A66:A1669,Таблица_Металлопроцессинг_детализированный[[#This Row],[Месяц отгрузки]]) -> 374868 | I66: =IF(Таблица_Металлопроцессинг_детализированный[[#This Row],[Инициатор+исполнитель]],1,IF(Таблица_Металлопроцессинг_детализированный[[#This Row],[Оборот за месяц по контрагенту]]<1000000,0.5,0.7)) -> 0.5 | J66: =IF(Таблица_Металлопроцессинг_детализированный[[#This Row],[Инициатор+исполнитель]]=TRUE,0,IF(Таблица_Металлопроцессинг_детализированный[[#This Row],[Оборот за месяц по контрагенту]]<1000000,0.5,0.3)) -> 0.5 | K66: =Таблица_Металлопроцессинг_детализированный[[#This Row],[Сумма наценки]]*Таблица_Металлопроцессинг_детализированный[[#This Row],[Распределение выручки для Куратора договора]] -> 14991 | L66: =IF(Таблица_Металлопроцессинг_детализированный[[#This Row],[Распределение выручки для Менеджера договора]]=1,"",Таблица_Металлопроцессинг_детализированный[[#This Row],[Сумма наценки]]*Таблица_Металлопроцессинг_детализированный[[#This Row],[Распределение выручки для Менеджера договора]]) -> 14991 | M66: Процессинг | N66: САНКТ-ПЕТЕРБУРГ | O66: АртЛэнд | P66: ООО "Строительная компания "АртЛэнд" | S66: Стройиндустрия | T66: Шпунт Ларсена Л5-УМ, С255 (ТУ 14-102-8-2003) | V66: 19.988 | W66: т | X66: 789526 | Y66: Очистка и покраска проката (грунт ЭМЛАК 263) | Z66: ROSLER | AA66: 29982 | AB66: 19.988 | AC66: 61.65 | AD66: 1 | AE66: САНКТ-ПЕТЕРБУРГ | AF66: Центр | AG66: 19.988
A67: 1 | B67: САНКТ-ПЕТЕРБУРГ | C67: Центр | D67: Молчанова Е.М. | E67: Молчанова Е.М. | F67: Молчанова Е.М. | G67: =IF(Таблица_Металлопроцессинг_детализированный[[#This Row],[Куратор договора]]=Таблица_Металлопроцессинг_детализированный[[#This Row],[Менеджер]],TRUE,FALSE) -> TRUE | H67: =SUMIFS(AA67:AA1684,O67:O1684,Таблица_Металлопроцессинг_детализированный[[#This Row],[Контрагент]],A67:A1684,Таблица_Металлопроцессинг_детализированный[[#This Row],[Месяц отгрузки]]) -> 100340 | I67: =IF(Таблица_Металлопроцессинг_детализированный[[#This Row],[Инициатор+исполнитель]],1,IF(Таблица_Металлопроцессинг_детализированный[[#This Row],[Оборот за месяц по контрагенту]]<1000000,0.5,0.7)) -> 1 | J67: =IF(Таблица_Металлопроцессинг_детализированный[[#This Row],[Инициатор+исполнитель]]=TRUE,0,IF(Таблица_Металлопроцессинг_детализированный[[#This Row],[Оборот за месяц по контрагенту]]<1000000,0.5,0.3)) -> 0 | K67: =Таблица_Металлопроцессинг_детализированный[[#This Row],[Сумма наценки]]*Таблица_Металлопроцессинг_детализированный[[#This Row],[Распределение выручки для Куратора договора]] -> 1980 | L67: =IF(Таблица_Металлопроцессинг_детализированный[[#This Row],[Распределение выручки для Менеджера договора]]=1,"",Таблица_Металлопроцессинг_детализированный[[#This Row],[Сумма наценки]]*Таблица_Металлопроцессинг_детализированный[[#This Row],[Распределение выручки для Менеджера договора]]) -> 0 | M67: Из давальческого сырья | N67: САНКТ-ПЕТЕРБУРГ | O67: НЕВСКИЙ МЕТАЛЛ (СПб) | P67: ООО "НЕВСКИЙ МЕТАЛЛ" | S67: Металлоторговля | T67: Изделие | U67: тр. 89*4 HEMPEL | V67: 0.503 | W67: т | X67: 0 | Y67: Очистка и покраска проката (грунт HEMPEL) | Z67: ROSLER | AA67: 1980 | AB67: 16.5 | AC67: 16.5 | AD67: 1 | AE67: САНКТ-ПЕТЕРБУРГ | AF67: Центр | AG67: 0.503
A68: 1 | B68: САНКТ-ПЕТЕРБУРГ | C68: Центр | D68: Погорелов И.В. | E68: Погорелов И.В. | F68: Погорелов И.В. | G68: =IF(Таблица_Металлопроцессинг_детализированный[[#This Row],[Куратор договора]]=Таблица_Металлопроцессинг_детализированный[[#This Row],[Менеджер]],TRUE,FALSE) -> TRUE | H68: =SUMIFS(AA68:AA1686,O68:O1686,Таблица_Металлопроцессинг_детализированный[[#This Row],[Контрагент]],A68:A1686,Таблица_Металлопроцессинг_детализированный[[#This Row],[Месяц отгрузки]]) -> 19085 | I68: =IF(Таблица_Металлопроцессинг_детализированный[[#This Row],[Инициатор+исполнитель]],1,IF(Таблица_Металлопроцессинг_детализированный[[#This Row],[Оборот за месяц по контрагенту]]<1000000,0.5,0.7)) -> 1 | J68: =IF(Таблица_Металлопроцессинг_детализированный[[#This Row],[Инициатор+исполнитель]]=TRUE,0,IF(Таблица_Металлопроцессинг_детализированный[[#This Row],[Оборот за месяц по контрагенту]]<1000000,0.5,0.3)) -> 0 | K68: =Таблица_Металлопроцессинг_детализированный[[#This Row],[Сумма наценки]]*Таблица_Металлопроцессинг_детализированный[[#This Row],[Распределение выручки для Куратора договора]] -> 11408 | L68: =IF(Таблица_Металлопроцессинг_детализированный[[#This Row],[Распределение выручки для Менеджера договора]]=1,"",Таблица_Металлопроцессинг_детализированный[[#This Row],[Сумма наценки]]*Таблица_Металлопроцессинг_детализированный[[#This Row],[Распределение выручки для Менеджера договора]]) -> 0 | M68: Процессинг | N68: САНКТ-ПЕТЕРБУРГ | O68: АЛЬЯНС ПРОФИТ | P68: ООО "Альянс ПРОФИТ" | S68: Металлоконструкции | T68: Сталь листовая Х/к., 0.8, 1250x2500, Ст.08пс (ГОСТ 16523) | V68: 14.26 | W68: т | X68: 397568.8 | Y68: Порезка листового проката (ножницы) | AA68: 11408 | AB68: 1 | AC68: 14.2 | AE68: САНКТ-ПЕТЕРБУРГ | AF68: Центр | AG68: 14.26
A69: 1 | B69: САНКТ-ПЕТЕРБУРГ | C69: Центр | D69: Погорелов И.В. | E69: Погорелов И.В. | F69: Погорелов И.В. | G69: =IF(Таблица_Металлопроцессинг_детализированный[[#This Row],[Куратор договора]]=Таблица_Металлопроцессинг_детализированный[[#This Row],[Менеджер]],TRUE,FALSE) -> TRUE | H69: =SUMIFS(AA69:AA1687,O69:O1687,Таблица_Металлопроцессинг_детализированный[[#This Row],[Контрагент]],A69:A1687,Таблица_Металлопроцессинг_детализированный[[#This Row],[Месяц отгрузки]]) -> 7677 | I69: =IF(Таблица_Металлопроцессинг_детализированный[[#This Row],[Инициатор+исполнитель]],1,IF(Таблица_Металлопроцессинг_детализированный[[#This Row],[Оборот за месяц по контрагенту]]<1000000,0.5,0.7)) -> 1 | J69: =IF(Таблица_Металлопроцессинг_детализированный[[#This Row],[Инициатор+исполнитель]]=TRUE,0,IF(Таблица_Металлопроцессинг_детализированный[[#This Row],[Оборот за месяц по контрагенту]]<1000000,0.5,0.3)) -> 0 | K69: =Таблица_Металлопроцессинг_детализированный[[#This Row],[Сумма наценки]]*Таблица_Металлопроцессинг_детализированный[[#This Row],[Распределение выручки для Куратора договора]] -> 1416 | L69: =IF(Таблица_Металлопроцессинг_детализированный[[#This Row],[Распределение выручки для Менеджера договора]]=1,"",Таблица_Металлопроцессинг_детализированный[[#This Row],[Сумма наценки]]*Таблица_Металлопроцессинг_детализированный[[#This Row],[Распределение выручки для Менеджера договора]]) -> 0 | M69: Процессинг | N69: САНКТ-ПЕТЕРБУРГ | O69: АЛЬЯНС ПРОФИТ | P69: ООО "Альянс ПРОФИТ" | S69: Металлоконструкции | T69: Сталь листовая Х/к., 1, 1250x2500, Ст.кп/пс (ГОСТ 16523) | V69: 1.18 | W69: т | X69: 32768.6 | Y69: Порезка листового проката (ножницы) | AA69: 1416 | AB69: 1 | AC69: 1.2 | AE69: САНКТ-ПЕТЕРБУРГ | AF69: Центр | AG69: 1.18
A70: 1 | B70: САНКТ-ПЕТЕРБУРГ | C70: Центр | D70: Погорелов И.В. | E70: Погорелов И.В. | F70: Погорелов И.В. | G70: =IF(Таблица_Металлопроцессинг_детализированный[[#This Row],[Куратор договора]]=Таблица_Металлопроцессинг_детализированный[[#This Row],[Менеджер]],TRUE,FALSE) -> TRUE | H70: =SUMIFS(AA70:AA1688,O70:O1688,Таблица_Металлопроцессинг_детализированный[[#This Row],[Контрагент]],A70:A1688,Таблица_Металлопроцессинг_детализированный[[#This Row],[Месяц отгрузки]]) -> 6261 | I70: =IF(Таблица_Металлопроцессинг_детализированный[[#This Row],[Инициатор+исполнитель]],1,IF(Таблица_Металлопроцессинг_детализированный[[#This Row],[Оборот за месяц по контрагенту]]<1000000,0.5,0.7)) -> 1 | J70: =IF(Таблица_Металлопроцессинг_детализированный[[#This Row],[Инициатор+исполнитель]]=TRUE,0,IF(Таблица_Металлопроцессинг_детализированный[[#This Row],[Оборот за месяц по контрагенту]]<1000000,0.5,0.3)) -> 0 | K70: =Таблица_Металлопроцессинг_детализированный[[#This Row],[Сумма наценки]]*Таблица_Металлопроцессинг_детализированный[[#This Row],[Распределение выручки для Куратора договора]] -> 1500 | L70: =IF(Таблица_Металлопроцессинг_детализированный[[#This Row],[Распределение выручки для Менеджера договора]]=1,"",Таблица_Металлопроцессинг_детализированный[[#This Row],[Сумма наценки]]*Таблица_Металлопроцессинг_детализированный[[#This Row],[Распределение выручки для Менеджера договора]]) -> 0 | M70: Процессинг | N70: САНКТ-ПЕТЕРБУРГ | O70: АЛЬЯНС ПРОФИТ | P70: ООО "Альянс ПРОФИТ" | S70: Металлоконструкции | T70: Сталь листовая Х/к., 1.5, 1250x2500, Ст.кп/пс (ТУ 14-106-321-2010) | V70: 1 | W70: т | X70: 26990 | Y70: Порезка листового проката (ножницы) | AA70: 1500 | AB70: 1 | AC70: 1 | AE70: САНКТ-ПЕТЕРБУРГ | AF70: Центр | AG70: 1
A71: 1 | B71: САНКТ-ПЕТЕРБУРГ | C71: Центр | D71: Погорелов И.В. | E71: Погорелов И.В. | F71: Погорелов И.В. | G71: =IF(Таблица_Металлопроцессинг_детализированный[[#This Row],[Куратор договора]]=Таблица_Металлопроцессинг_детализированный[[#This Row],[Менеджер]],TRUE,FALSE) -> TRUE | H71: =SUMIFS(AA71:AA1689,O71:O1689,Таблица_Металлопроцессинг_детализированный[[#This Row],[Контрагент]],A71:A1689,Таблица_Металлопроцессинг_детализированный[[#This Row],[Месяц отгрузки]]) -> 4761 | I71: =IF(Таблица_Металлопроцессинг_детализированный[[#This Row],[Инициатор+исполнитель]],1,IF(Таблица_Металлопроцессинг_детализированный[[#This Row],[Оборот за месяц по контрагенту]]<1000000,0.5,0.7)) -> 1 | J71: =IF(Таблица_Металлопроцессинг_детализированный[[#This Row],[Инициатор+исполнитель]]=TRUE,0,IF(Таблица_Металлопроцессинг_детализированный[[#This Row],[Оборот за месяц по контрагенту]]<1000000,0.5,0.3)) -> 0 | K71: =Таблица_Металлопроцессинг_детализированный[[#This Row],[Сумма наценки]]*Таблица_Металлопроцессинг_детализированный[[#This Row],[Распределение выручки для Куратора договора]] -> 1185 | L71: =IF(Таблица_Металлопроцессинг_детализированный[[#This Row],[Распределение выручки для Менеджера договора]]=1,"",Таблица_Металлопроцессинг_детализированный[[#This Row],[Сумма наценки]]*Таблица_Металлопроцессинг_детализированный[[#This Row],[Распределение выручки для Менеджера договора]]) -> 0 | M71: Процессинг | N71: САНКТ-ПЕТЕРБУРГ | O71: АЛЬЯНС ПРОФИТ | P71: ООО "Альянс ПРОФИТ" | S71: Металлоконструкции | T71: Сталь листовая Х/к., 2, 1250x2500, Ст.кп/пс (ТУ 14-106-321-2010) | V71: 0.79 | W71: т | X71: 21148.3 | Y71: Порезка листового проката (ножницы) | AA71: 1185 | AB71: 1 | AC71: 0.8 | AE71: САНКТ-ПЕТЕРБУРГ | AF71: Центр | AG71: 0.79
A72: 1 | B72: САНКТ-ПЕТЕРБУРГ | C72: Центр | D72: Погорелов И.В. | E72: Погорелов И.В. | F72: Погорелов И.В. | G72: =IF(Таблица_Металлопроцессинг_детализированный[[#This Row],[Куратор договора]]=Таблица_Металлопроцессинг_детализированный[[#This Row],[Менеджер]],TRUE,FALSE) -> TRUE | H72: =SUMIFS(AA72:AA1690,O72:O1690,Таблица_Металлопроцессинг_детализированный[[#This Row],[Контрагент]],A72:A1690,Таблица_Металлопроцессинг_детализированный[[#This Row],[Месяц отгрузки]]) -> 3576 | I72: =IF(Таблица_Металлопроцессинг_детализированный[[#This Row],[Инициатор+исполнитель]],1,IF(Таблица_Металлопроцессинг_детализированный[[#This Row],[Оборот за месяц по контрагенту]]<1000000,0.5,0.7)) -> 1 | J72: =IF(Таблица_Металлопроцессинг_детализированный[[#This Row],[Инициатор+исполнитель]]=TRUE,0,IF(Таблица_Металлопроцессинг_детализированный[[#This Row],[Оборот за месяц по контрагенту]]<1000000,0.5,0.3)) -> 0 | K72: =Таблица_Металлопроцессинг_детализированный[[#This Row],[Сумма наценки]]*Таблица_Металлопроцессинг_детализированный[[#This Row],[Распределение выручки для Куратора договора]] -> 3576 | L72: =IF(Таблица_Металлопроцессинг_детализированный[[#This Row],[Распределение выручки для Менеджера договора]]=1,"",Таблица_Металлопроцессинг_детализированный[[#This Row],[Сумма наценки]]*Таблица_Металлопроцессинг_детализированный[[#This Row],[Распределение выручки для Менеджера договора]]) -> 0 | M72: Процессинг | N72: САНКТ-ПЕТЕРБУРГ | O72: АЛЬЯНС ПРОФИТ | P72: ООО "Альянс ПРОФИТ" | S72: Металлоконструкции | T72: Сталь листовая Х/к., 3, 1250x2500, Ст.кп/пс (ТУ 14-106-321-2010) | V72: 2.98 | W72: т | X72: 79774.6 | Y72: Порезка листового проката (ножницы) | AA72: 3576 | AB72: 1 | AC72: 3 | AE72: САНКТ-ПЕТЕРБУРГ | AF72: Центр | AG72: 2.98
A73: 1 | B73: САНКТ-ПЕТЕРБУРГ | C73: Центр | D73: Погорелов И.В. | E73: Погорелов И.В. | F73: Погорелов И.В. | G73: =IF(Таблица_Металлопроцессинг_детализированный[[#This Row],[Куратор договора]]=Таблица_Металлопроцессинг_детализированный[[#This Row],[Менеджер]],TRUE,FALSE) -> TRUE | H73: =SUMIFS(AA73:AA1693,O73:O1693,Таблица_Металлопроцессинг_детализированный[[#This Row],[Контрагент]],A73:A1693,Таблица_Металлопроцессинг_детализированный[[#This Row],[Месяц отгрузки]]) -> 14570 | I73: =IF(Таблица_Металлопроцессинг_детализированный[[#This Row],[Инициатор+исполнитель]],1,IF(Таблица_Металлопроцессинг_детализированный[[#This Row],[Оборот за месяц по контрагенту]]<1000000,0.5,0.7)) -> 1 | J73: =IF(Таблица_Металлопроцессинг_детализированный[[#This Row],[Инициатор+исполнитель]]=TRUE,0,IF(Таблица_Металлопроцессинг_детализированный[[#This Row],[Оборот за месяц по контрагенту]]<1000000,0.5,0.3)) -> 0 | K73: =Таблица_Металлопроцессинг_детализированный[[#This Row],[Сумма наценки]]*Таблица_Металлопроцессинг_детализированный[[#This Row],[Распределение выручки для Куратора договора]] -> 4082 | L73: =IF(Таблица_Металлопроцессинг_детализированный[[#This Row],[Распределение выручки для Менеджера договора]]=1,"",Таблица_Металлопроцессинг_детализированный[[#This Row],[Сумма наценки]]*Таблица_Металлопроцессинг_детализированный[[#This Row],[Распределение выручки для Менеджера договора]]) -> 0 | M73: Процессинг | N73: САНКТ-ПЕТЕРБУРГ | O73: СОТЭКС | P73: ООО "СОТЭКС" | S73: Стройиндустрия | T73: Арматура А500С, 12, Ст.сп/пс (ГОСТ 52544-2006) | V73: 15.7 | W73: т | X73: 404589 | Y73: Порезка (станок ленточнопильный) | AA73: 4082 | AB73: 1 | AC73: 16 | AE73: САНКТ-ПЕТЕРБУРГ | AF73: Центр | AG73: 15.7
A74: 1 | B74: САНКТ-ПЕТЕРБУРГ | C74: Центр | D74: Хабибуллов М.Р. | E74: Хабибуллов М.Р. | F74: Хабибуллов М.Р. | G74: =IF(Таблица_Металлопроцессинг_детализированный[[#This Row],[Куратор договора]]=Таблица_Металлопроцессинг_детализированный[[#This Row],[Менеджер]],TRUE,FALSE) -> TRUE | H74: =SUMIFS(AA74:AA1695,O74:O1695,Таблица_Металлопроцессинг_детализированный[[#This Row],[Контрагент]],A74:A1695,Таблица_Металлопроцессинг_детализированный[[#This Row],[Месяц отгрузки]]) -> 344886 | I74: =IF(Таблица_Металлопроцессинг_детализированный[[#This Row],[Инициатор+исполнитель]],1,IF(Таблица_Металлопроцессинг_детализированный[[#This Row],[Оборот за месяц по контрагенту]]<1000000,0.5,0.7)) -> 1 | J74: =IF(Таблица_Металлопроцессинг_детализированный[[#This Row],[Инициатор+исполнитель]]=TRUE,0,IF(Таблица_Металлопроцессинг_детализированный[[#This Row],[Оборот за месяц по контрагенту]]<1000000,0.5,0.3)) -> 0 | K74: =Таблица_Металлопроцессинг_детализированный[[#This Row],[Сумма наценки]]*Таблица_Металлопроцессинг_детализированный[[#This Row],[Распределение выручки для Куратора договора]] -> 30036 | L74: =IF(Таблица_Металлопроцессинг_детализированный[[#This Row],[Распределение выручки для Менеджера договора]]=1,"",Таблица_Металлопроцессинг_детализированный[[#This Row],[Сумма наценки]]*Таблица_Металлопроцессинг_детализированный[[#This Row],[Распределение выручки для Менеджера договора]]) -> 0 | M74: Процессинг | N74: САНКТ-ПЕТЕРБУРГ | O74: АртЛэнд | P74: ООО "Строительная компания "АртЛэнд" | S74: Стройиндустрия | T74: Шпунт Ларсена Л5-УМ, С255 (ТУ 14-102-8-2003) | V74: 20.024 | W74: т | X74: 790948 | Y74: Очистка и покраска проката (грунт ЭМЛАК 263) | Z74: ROSLER | AA74: 30036 | AB74: 20.024 | AC74: 61.65 | AD74: 1 | AE74: САНКТ-ПЕТЕРБУРГ | AF74: Центр | AG74: 20.024
A75: 1 | B75: САНКТ-ПЕТЕРБУРГ | C75: Центр | D75: Дауэнгауэр Н.Э. | E75: Дауэнгауэр Н.Э. | F75: Дауэнгауэр Н.Э. | G75: =IF(Таблица_Металлопроцессинг_детализированный[[#This Row],[Куратор договора]]=Таблица_Металлопроцессинг_детализированный[[#This Row],[Менеджер]],TRUE,FALSE) -> TRUE | H75: =SUMIFS(AA75:AA1703,O75:O1703,Таблица_Металлопроцессинг_детализированный[[#This Row],[Контрагент]],A75:A1703,Таблица_Металлопроцессинг_детализированный[[#This Row],[Месяц отгрузки]]) -> 42853.2 | I75: =IF(Таблица_Металлопроцессинг_детализированный[[#This Row],[Инициатор+исполнитель]],1,IF(Таблица_Металлопроцессинг_детализированный[[#This Row],[Оборот за месяц по контрагенту]]<1000000,0.5,0.7)) -> 1 | J75: =IF(Таблица_Металлопроцессинг_детализированный[[#This Row],[Инициатор+исполнитель]]=TRUE,0,IF(Таблица_Металлопроцессинг_детализированный[[#This Row],[Оборот за месяц по контрагенту]]<1000000,0.5,0.3)) -> 0 | K75: =Таблица_Металлопроцессинг_детализированный[[#This Row],[Сумма наценки]]*Таблица_Металлопроцессинг_детализированный[[#This Row],[Распределение выручки для Куратора договора]] -> 2838.1 | L75: =IF(Таблица_Металлопроцессинг_детализированный[[#This Row],[Распределение выручки для Менеджера договора]]=1,"",Таблица_Металлопроцессинг_детализированный[[#This Row],[Сумма наценки]]*Таблица_Металлопроцессинг_детализированный[[#This Row],[Распределение выручки для Менеджера договора]]) -> 0 | M75: Процессинг | N75: САНКТ-ПЕТЕРБУРГ | O75: НОВАЯ ЭРА | P75: ОАО "Новая ЭРА" | Q75: г. Санкт-Петербург | R75: г. Санкт-Петербург | S75: Машиностроение | T75: Сталь листовая Х/к., 1.5, 1250x2500, Ст.кп/пс (ТУ 14-106-321-2010) | V75: 1.01 | W75: т | X75: 27259.9 | Y75: Порезка листового проката (ножницы) | AA75: 2838.1 | AB75: 1 | AC75: 1 | AE75: САНКТ-ПЕТЕРБУРГ | AF75: Центр | AG75: 1.01
A76: 1 | B76: САНКТ-ПЕТЕРБУРГ | C76: Центр | D76: Дауэнгауэр Н.Э. | E76: Дауэнгауэр Н.Э. | F76: Погорелов И.В. | G76: =IF(Таблица_Металлопроцессинг_детализированный[[#This Row],[Куратор договора]]=Таблица_Металлопроцессинг_детализированный[[#This Row],[Менеджер]],TRUE,FALSE) -> FALSE | H76: =SUMIFS(AA76:AA1704,O76:O1704,Таблица_Металлопроцессинг_детализированный[[#This Row],[Контрагент]],A76:A1704,Таблица_Металлопроцессинг_детализированный[[#This Row],[Месяц отгрузки]]) -> 40015.1 | I76: =IF(Таблица_Металлопроцессинг_детализированный[[#This Row],[Инициатор+исполнитель]],1,IF(Таблица_Металлопроцессинг_детализированный[[#This Row],[Оборот за месяц по контрагенту]]<1000000,0.5,0.7)) -> 0.5 | J76: =IF(Таблица_Металлопроцессинг_детализированный[[#This Row],[Инициатор+исполнитель]]=TRUE,0,IF(Таблица_Металлопроцессинг_детализированный[[#This Row],[Оборот за месяц по контрагенту]]<1000000,0.5,0.3)) -> 0.5 | K76: =Таблица_Металлопроцессинг_детализированный[[#This Row],[Сумма наценки]]*Таблица_Металлопроцессинг_детализированный[[#This Row],[Распределение выручки для Куратора договора]] -> 2824.05 | L76: =IF(Таблица_Металлопроцессинг_детализированный[[#This Row],[Распределение выручки для Менеджера договора]]=1,"",Таблица_Металлопроцессинг_детализированный[[#This Row],[Сумма наценки]]*Таблица_Металлопроцессинг_детализированный[[#This Row],[Распределение выручки для Менеджера договора]]) -> 2824.05 | M76: Процессинг | N76: САНКТ-ПЕТЕРБУРГ | O76: НОВАЯ ЭРА | P76: ОАО "Новая ЭРА" | Q76: г. Санкт-Петербург | R76: г. Санкт-Петербург | S76: Машиностроение | T76: Сталь листовая Х/к., 1.5, 1250x2500, Ст.кп/пс (ТУ 14-106-321-2010) | V76: 2.01 | W76: т | X76: 54249.9 | Y76: Порезка листового проката (ножницы) | AA76: 5648.1 | AB76: 1 | AC76: 2 | AE76: САНКТ-ПЕТЕРБУРГ | AF76: Центр | AG76: 2.01
A77: 1 | B77: САНКТ-ПЕТЕРБУРГ | C77: Центр | D77: Дауэнгауэр Н.Э. | E77: Дауэнгауэр Н.Э. | F77: Хабибуллов М.Р. | G77: =IF(Таблица_Металлопроцессинг_детализированный[[#This Row],[Куратор договора]]=Таблица_Металлопроцессинг_детализированный[[#This Row],[Менеджер]],TRUE,FALSE) -> FALSE | H77: =SUMIFS(AA77:AA1705,O77:O1705,Таблица_Металлопроцессинг_детализированный[[#This Row],[Контрагент]],A77:A1705,Таблица_Металлопроцессинг_детализированный[[#This Row],[Месяц отгрузки]]) -> 34367 | I77: =IF(Таблица_Металлопроцессинг_детализированный[[#This Row],[Инициатор+исполнитель]],1,IF(Таблица_Металлопроцессинг_детализированный[[#This Row],[Оборот за месяц по контрагенту]]<1000000,0.5,0.7)) -> 0.5 | J77: =IF(Таблица_Металлопроцессинг_детализированный[[#This Row],[Инициатор+исполнитель]]=TRUE,0,IF(Таблица_Металлопроцессинг_детализированный[[#This Row],[Оборот за месяц по контрагенту]]<1000000,0.5,0.3)) -> 0.5 | K77: =Таблица_Металлопроцессинг_детализированный[[#This Row],[Сумма наценки]]*Таблица_Металлопроцессинг_детализированный[[#This Row],[Распределение выручки для Куратора договора]] -> 4365 | L77: =IF(Таблица_Металлопроцессинг_детализированный[[#This Row],[Распределение выручки для Менеджера договора]]=1,"",Таблица_Металлопроцессинг_детализированный[[#This Row],[Сумма наценки]]*Таблица_Металлопроцессинг_детализированный[[#This Row],[Распределение выручки для Менеджера договора]]) -> 4365 | M77: Процессинг | N77: САНКТ-ПЕТЕРБУРГ | O77: НОВАЯ ЭРА | P77: ОАО "Новая ЭРА" | Q77: г. Санкт-Петербург | R77: г. Санкт-Петербург | S77: Машиностроение | T77: Сталь листовая Х/к., 2, 1250x2500, Ст.кп/пс (ТУ 14-106-321-2010) | V77: 2.91 | W77: т | X77: 77900.7 | Y77: Порезка листового проката (ножницы) | AA77: 8730 | AB77: 1 | AC77: 3 | AE77: САНКТ-ПЕТЕРБУРГ | AF77: Центр | AG77: 2.91
A78: 1 | B78: САНКТ-ПЕТЕРБУРГ | C78: Центр | D78: Ипатов Д.В. | E78: Ипатов Д.В. | F78: Дауэнгауэр Н.Э. | G78: =IF(Таблица_Металлопроцессинг_детализированный[[#This Row],[Куратор договора]]=Таблица_Металлопроцессинг_детализированный[[#This Row],[Менеджер]],TRUE,FALSE) -> FALSE | H78: =SUMIFS(AA78:AA1706,O78:O1706,Таблица_Металлопроцессинг_детализированный[[#This Row],[Контрагент]],A78:A1706,Таблица_Металлопроцессинг_детализированный[[#This Row],[Месяц отгрузки]]) -> 114000 | I78: =IF(Таблица_Металлопроцессинг_детализированный[[#This Row],[Инициатор+исполнитель]],1,IF(Таблица_Металлопроцессинг_детализированный[[#This Row],[Оборот за месяц по контрагенту]]<1000000,0.5,0.7)) -> 0.5 | J78: =IF(Таблица_Металлопроцессинг_детализированный[[#This Row],[Инициатор+исполнитель]]=TRUE,0,IF(Таблица_Металлопроцессинг_детализированный[[#This Row],[Оборот за месяц по контрагенту]]<1000000,0.5,0.3)) -> 0.5 | K78: =Таблица_Металлопроцессинг_детализированный[[#This Row],[Сумма наценки]]*Таблица_Металлопроцессинг_детализированный[[#This Row],[Распределение выручки для Куратора договора]] -> 28500 | L78: =IF(Таблица_Металлопроцессинг_детализированный[[#This Row],[Распределение выручки для Менеджера договора]]=1,"",Таблица_Металлопроцессинг_детализированный[[#This Row],[Сумма наценки]]*Таблица_Металлопроцессинг_детализированный[[#This Row],[Распределение выручки для Менеджера договора]]) -> 28500 | M78: Из давальческого сырья | N78: САНКТ-ПЕТЕРБУРГ | O78: СК БалтМонтажСтрой | P78: ООО "СК БалтМонтажСтрой" | Q78: Ленинградская обл. | R78: Ленинградская обл. | S78: Стройиндустрия | T78: Труба стальная профильная, 160x160x4, Ст.сп/пс (ГОСТ 30245-03) | V78: 20 | W78: т | X78: 0 | Y78: Очистка и покраска проката (грунт ЭМЛАК 263) | Z78: ROSLER | AA78: 57000 | AB78: 475 | AC78: 475 | AD78: 1 | AE78: САНКТ-ПЕТЕРБУРГ | AF78: Центр | AG78: 20
A79: 1 | B79: САНКТ-ПЕТЕРБУРГ | C79: Центр | D79: Дауэнгауэр Н.Э. | E79: Дауэнгауэр Н.Э. | F79: Дауэнгауэр Н.Э. | G79: =IF(Таблица_Металлопроцессинг_детализированный[[#This Row],[Куратор договора]]=Таблица_Металлопроцессинг_детализированный[[#This Row],[Менеджер]],TRUE,FALSE) -> TRUE | H79: =SUMIFS(AA79:AA1707,O79:O1707,Таблица_Металлопроцессинг_детализированный[[#This Row],[Контрагент]],A79:A1707,Таблица_Металлопроцессинг_детализированный[[#This Row],[Месяц отгрузки]]) -> 800 | I79: =IF(Таблица_Металлопроцессинг_детализированный[[#This Row],[Инициатор+исполнитель]],1,IF(Таблица_Металлопроцессинг_детализированный[[#This Row],[Оборот за месяц по контрагенту]]<1000000,0.5,0.7)) -> 1 | J79: =IF(Таблица_Металлопроцессинг_детализированный[[#This Row],[Инициатор+исполнитель]]=TRUE,0,IF(Таблица_Металлопроцессинг_детализированный[[#This Row],[Оборот за месяц по контрагенту]]<1000000,0.5,0.3)) -> 0 | K79: =Таблица_Металлопроцессинг_детализированный[[#This Row],[Сумма наценки]]*Таблица_Металлопроцессинг_детализированный[[#This Row],[Распределение выручки для Куратора договора]] -> 800 | L79: =IF(Таблица_Металлопроцессинг_детализированный[[#This Row],[Распределение выручки для Менеджера договора]]=1,"",Таблица_Металлопроцессинг_детализированный[[#This Row],[Сумма наценки]]*Таблица_Металлопроцессинг_детализированный[[#This Row],[Распределение выручки для Менеджера договора]]) -> 0 | M79: Процессинг | N79: САНКТ-ПЕТЕРБУРГ | O79: ПРОВЕНТУС (Н.Э.) | P79: ООО "ПРОВЕНТУС" | S79: Машиностроение | T79: Сталь листовая Г/к., 4, 1500x6000, Ст.сп/пс (ГОСТ 14637) | V79: 0.11 | W79: т | X79: 2492.6 | Y79: Порезка листового проката (ножницы) | AA79: 800 | AB79: 4 | AC79: 0.163 | AE79: САНКТ-ПЕТЕРБУРГ | AF79: Центр | AG79: 0.11
A80: 1 | B80: САНКТ-ПЕТЕРБУРГ | C80: Центр | D80: Молчанова Е.М. | E80: Матросова Л.Ш. | F80: Дауэнгауэр Н.Э. | G80: =IF(Таблица_Металлопроцессинг_детализированный[[#This Row],[Куратор договора]]=Таблица_Металлопроцессинг_детализированный[[#This Row],[Менеджер]],TRUE,FALSE) -> FALSE | H80: =SUMIFS(AA80:AA1708,O80:O1708,Таблица_Металлопроцессинг_детализированный[[#This Row],[Контрагент]],A80:A1708,Таблица_Металлопроцессинг_детализированный[[#This Row],[Месяц отгрузки]]) -> 2740 | I80: =IF(Таблица_Металлопроцессинг_детализированный[[#This Row],[Инициатор+исполнитель]],1,IF(Таблица_Металлопроцессинг_детализированный[[#This Row],[Оборот за месяц по контрагенту]]<1000000,0.5,0.7)) -> 0.5 | J80: =IF(Таблица_Металлопроцессинг_детализированный[[#This Row],[Инициатор+исполнитель]]=TRUE,0,IF(Таблица_Металлопроцессинг_детализированный[[#This Row],[Оборот за месяц по контрагенту]]<1000000,0.5,0.3)) -> 0.5 | K80: =Таблица_Металлопроцессинг_детализированный[[#This Row],[Сумма наценки]]*Таблица_Металлопроцессинг_детализированный[[#This Row],[Распределение выручки для Куратора договора]] -> 1370 | L80: =IF(Таблица_Металлопроцессинг_детализированный[[#This Row],[Распределение выручки для Менеджера договора]]=1,"",Таблица_Металлопроцессинг_детализированный[[#This Row],[Сумма наценки]]*Таблица_Металлопроцессинг_детализированный[[#This Row],[Распределение выручки для Менеджера договора]]) -> 1370 | M80: Процессинг | N80: САНКТ-ПЕТЕРБУРГ | O80: Меркурий СПб | P80: ООО "Меркурий" | S80: Металлоторговля | T80: Арматура B500C, 10, Ст.сп/пс , в бунтах(ГОСТ 52544-2006) | V80: 2.74 | W80: т | X80: 70308.4 | Y80: Размотка/резка арматурного проката | Z80: MELC 16x4 | AA80: 2740 | AB80: 1 | AC80: 3 | AD80: 1 | AE80: САНКТ-ПЕТЕРБУРГ | AF80: Центр | AG80: 2.74
A81: 1 | B81: САНКТ-ПЕТЕРБУРГ | C81: Центр | D81: Хабибуллов М.Р. | E81: Хабибуллов М.Р. | F81: Хабибуллов М.Р. | G81: =IF(Таблица_Металлопроцессинг_детализированный[[#This Row],[Куратор договора]]=Таблица_Металлопроцессинг_детализированный[[#This Row],[Менеджер]],TRUE,FALSE) -> TRUE | H81: =SUMIFS(AA81:AA1713,O81:O1713,Таблица_Металлопроцессинг_детализированный[[#This Row],[Контрагент]],A81:A1713,Таблица_Металлопроцессинг_детализированный[[#This Row],[Месяц отгрузки]]) -> 314850 | I81: =IF(Таблица_Металлопроцессинг_детализированный[[#This Row],[Инициатор+исполнитель]],1,IF(Таблица_Металлопроцессинг_детализированный[[#This Row],[Оборот за месяц по контрагенту]]<1000000,0.5,0.7)) -> 1 | J81: =IF(Таблица_Металлопроцессинг_детализированный[[#This Row],[Инициатор+исполнитель]]=TRUE,0,IF(Таблица_Металлопроцессинг_детализированный[[#This Row],[Оборот за месяц по контрагенту]]<1000000,0.5,0.3)) -> 0 | K81: =Таблица_Металлопроцессинг_детализированный[[#This Row],[Сумма наценки]]*Таблица_Металлопроцессинг_детализированный[[#This Row],[Распределение выручки для Куратора договора]] -> 30031.5 | L81: =IF(Таблица_Металлопроцессинг_детализированный[[#This Row],[Распределение выручки для Менеджера договора]]=1,"",Таблица_Металлопроцессинг_детализированный[[#This Row],[Сумма наценки]]*Таблица_Металлопроцессинг_детализированный[[#This Row],[Распределение выручки для Менеджера договора]]) -> 0 | M81: Процессинг | N81: САНКТ-ПЕТЕРБУРГ | O81: АртЛэнд | P81: ООО "Строительная компания "АртЛэнд" | S81: Стройиндустрия | T81: Шпунт Ларсена Л5-УМ, С255 (ТУ 14-102-8-2003) | V81: 20.021 | W81: т | X81: 790829.5 | Y81: Очистка и покраска проката (грунт ЭМЛАК 263) | Z81: ROSLER | AA81: 30031.5 | AB81: 20.021 | AC81: 20.021 | AD81: 1 | AE81: САНКТ-ПЕТЕРБУРГ | AF81: Центр | AG81: 20.021
A82: 1 | B82: САНКТ-ПЕТЕРБУРГ | C82: Центр | D82: Погорелов И.В. | E82: Погорелов И.В. | F82: Погорелов И.В. | G82: =IF(Таблица_Металлопроцессинг_детализированный[[#This Row],[Куратор договора]]=Таблица_Металлопроцессинг_детализированный[[#This Row],[Менеджер]],TRUE,FALSE) -> TRUE | H82: =SUMIFS(AA82:AA1715,O82:O1715,Таблица_Металлопроцессинг_детализированный[[#This Row],[Контрагент]],A82:A1715,Таблица_Металлопроцессинг_детализированный[[#This Row],[Месяц отгрузки]]) -> 10488 | I82: =IF(Таблица_Металлопроцессинг_детализированный[[#This Row],[Инициатор+исполнитель]],1,IF(Таблица_Металлопроцессинг_детализированный[[#This Row],[Оборот за месяц по контрагенту]]<1000000,0.5,0.7)) -> 1 | J82: =IF(Таблица_Металлопроцессинг_детализированный[[#This Row],[Инициатор+исполнитель]]=TRUE,0,IF(Таблица_Металлопроцессинг_детализированный[[#This Row],[Оборот за месяц по контрагенту]]<1000000,0.5,0.3)) -> 0 | K82: =Таблица_Металлопроцессинг_детализированный[[#This Row],[Сумма наценки]]*Таблица_Металлопроцессинг_детализированный[[#This Row],[Распределение выручки для Куратора договора]] -> 10488 | L82: =IF(Таблица_Металлопроцессинг_детализированный[[#This Row],[Распределение выручки для Менеджера договора]]=1,"",Таблица_Металлопроцессинг_детализированный[[#This Row],[Сумма наценки]]*Таблица_Металлопроцессинг_детализированный[[#This Row],[Распределение выручки для Менеджера договора]]) -> 0 | M82: Процессинг | N82: САНКТ-ПЕТЕРБУРГ | O82: СОТЭКС | P82: ООО "СОТЭКС" | S82: Стройиндустрия | T82: Арматура класс АI, 6, Ст.сп/пс, в бунтах (ГОСТ5781-82) | V82: 5.52 | W82: т | X82: 138000 | Y82: Размотка/резка арматурного проката | Z82: MELC 16x4 | AA82: 10488 | AB82: 1 | AC82: 68 | AD82: 1 | AE82: САНКТ-ПЕТЕРБУРГ | AF82: Центр | AG82: 5.52
A83: 1 | B83: САНКТ-ПЕТЕРБУРГ | C83: Центр | D83: Сафонеев С.А. | E83: Сафонеев С.А. | F83: Сафонеев С.А. | G83: =IF(Таблица_Металлопроцессинг_детализированный[[#This Row],[Куратор договора]]=Таблица_Металлопроцессинг_детализированный[[#This Row],[Менеджер]],TRUE,FALSE) -> TRUE | H83: =SUMIFS(AA83:AA1716,O83:O1716,Таблица_Металлопроцессинг_детализированный[[#This Row],[Контрагент]],A83:A1716,Таблица_Металлопроцессинг_детализированный[[#This Row],[Месяц отгрузки]]) -> 326504.55 | I83: =IF(Таблица_Металлопроцессинг_детализированный[[#This Row],[Инициатор+исполнитель]],1,IF(Таблица_Металлопроцессинг_детализированный[[#This Row],[Оборот за месяц по контрагенту]]<1000000,0.5,0.7)) -> 1 | J83: =IF(Таблица_Металлопроцессинг_детализированный[[#This Row],[Инициатор+исполнитель]]=TRUE,0,IF(Таблица_Металлопроцессинг_детализированный[[#This Row],[Оборот за месяц по контрагенту]]<1000000,0.5,0.3)) -> 0 | K83: =Таблица_Металлопроцессинг_детализированный[[#This Row],[Сумма наценки]]*Таблица_Металлопроцессинг_детализированный[[#This Row],[Распределение выручки для Куратора договора]] -> 25920.08 | L83: =IF(Таблица_Металлопроцессинг_детализированный[[#This Row],[Распределение выручки для Менеджера договора]]=1,"",Таблица_Металлопроцессинг_детализированный[[#This Row],[Сумма наценки]]*Таблица_Металлопроцессинг_детализированный[[#This Row],[Распределение выручки для Менеджера договора]]) -> 0 | M83: Из давальческого сырья | N83: САНКТ-ПЕТЕРБУРГ | O83: НЕВА-МЕТАЛЛТРЭЙД ООО | P83: ООО "Нева-МеталлТрэйд" | Q83: г. Санкт-Петербург | R83: г. Санкт-Петербург | S83: Машиностроение | T83: Изделие | U83: Судосталь, РСД32, 14х2000х8000 | V83: 15.822 | W83: т | X83: 0 | Y83: Очистка и покраска проката (грунт HEMPEL) | Z83: ROSLER | AA83: 25920.08 | AB83: 15.822 | AC83: 15.822 | AD83: 1 | AE83: САНКТ-ПЕТЕРБУРГ | AF83: Центр | AG83: 15.822
A84: 1 | B84: САНКТ-ПЕТЕРБУРГ | C84: Центр | D84: Сафонеев С.А. | E84: Сафонеев С.А. | F84: Сафонеев С.А. | G84: =IF(Таблица_Металлопроцессинг_детализированный[[#This Row],[Куратор договора]]=Таблица_Металлопроцессинг_детализированный[[#This Row],[Менеджер]],TRUE,FALSE) -> TRUE | H84: =SUMIFS(AA84:AA1717,O84:O1717,Таблица_Металлопроцессинг_детализированный[[#This Row],[Контрагент]],A84:A1717,Таблица_Металлопроцессинг_детализированный[[#This Row],[Месяц отгрузки]]) -> 300584.47 | I84: =IF(Таблица_Металлопроцессинг_детализированный[[#This Row],[Инициатор+исполнитель]],1,IF(Таблица_Металлопроцессинг_детализированный[[#This Row],[Оборот за месяц по контрагенту]]<1000000,0.5,0.7)) -> 1 | J84: =IF(Таблица_Металлопроцессинг_детализированный[[#This Row],[Инициатор+исполнитель]]=TRUE,0,IF(Таблица_Металлопроцессинг_детализированный[[#This Row],[Оборот за месяц по контрагенту]]<1000000,0.5,0.3)) -> 0 | K84: =Таблица_Металлопроцессинг_детализированный[[#This Row],[Сумма наценки]]*Таблица_Металлопроцессинг_детализированный[[#This Row],[Распределение выручки для Куратора договора]] -> 5760.02 | L84: =IF(Таблица_Металлопроцессинг_детализированный[[#This Row],[Распределение выручки для Менеджера договора]]=1,"",Таблица_Металлопроцессинг_детализированный[[#This Row],[Сумма наценки]]*Таблица_Металлопроцессинг_детализированный[[#This Row],[Распределение выручки для Менеджера договора]]) -> 0 | M84: Из давальческого сырья | N84: САНКТ-ПЕТЕРБУРГ | O84: НЕВА-МЕТАЛЛТРЭЙД ООО | P84: ООО "Нева-МеталлТрэйд" | Q84: г. Санкт-Петербург | R84: г. Санкт-Петербург | S84: Машиностроение | T84: Изделие | U84: Судосталь, РСД32, 20*2000*8000 | V84: 5.024 | W84: т | X84: 0 | Y84: Очистка и покраска проката (грунт HEMPEL) | Z84: ROSLER | AA84: 5760.02 | AB84: 5.024 | AC84: 5.024 | AD84: 1 | AE84: САНКТ-ПЕТЕРБУРГ | AF84: Центр | AG84: 5.024
A85: 1 | B85: САНКТ-ПЕТЕРБУРГ | C85: Центр | D85: Матросова Л.Ш. | E85: Матросова Л.Ш. | F85: Матросова Л.Ш. | G85: =IF(Таблица_Металлопроцессинг_детализированный[[#This Row],[Куратор договора]]=Таблица_Металлопроцессинг_детализированный[[#This Row],[Менеджер]],TRUE,FALSE) -> TRUE | H85: =SUMIFS(AA85:AA1720,O85:O1720,Таблица_Металлопроцессинг_детализированный[[#This Row],[Контрагент]],A85:A1720,Таблица_Металлопроцессинг_детализированный[[#This Row],[Месяц отгрузки]]) -> 1070 | I85: =IF(Таблица_Металлопроцессинг_детализированный[[#This Row],[Инициатор+исполнитель]],1,IF(Таблица_Металлопроцессинг_детализированный[[#This Row],[Оборот за месяц по контрагенту]]<1000000,0.5,0.7)) -> 1 | J85: =IF(Таблица_Металлопроцессинг_детализированный[[#This Row],[Инициатор+исполнитель]]=TRUE,0,IF(Таблица_Металлопроцессинг_детализированный[[#This Row],[Оборот за месяц по контрагенту]]<1000000,0.5,0.3)) -> 0 | K85: =Таблица_Металлопроцессинг_детализированный[[#This Row],[Сумма наценки]]*Таблица_Металлопроцессинг_детализированный[[#This Row],[Распределение выручки для Куратора договора]] -> 1070 | L85: =IF(Таблица_Металлопроцессинг_детализированный[[#This Row],[Распределение выручки для Менеджера договора]]=1,"",Таблица_Металлопроцессинг_детализированный[[#This Row],[Сумма наценки]]*Таблица_Металлопроцессинг_детализированный[[#This Row],[Распределение выручки для Менеджера договора]]) -> 0 | M85: Процессинг | N85: САНКТ-ПЕТЕРБУРГ | O85: ЕВРАЗ Металл Инпром_РОЗНИЦА | P85: ЕВРАЗ Металл Инпром_РОЗНИЦА | Q85: Ростовская обл. | R85: Ростовская обл. | S85: Розница | T85: Сталь листовая Г/к., 20, 1500x6000, Ст.сп/пс (ГОСТ 14637) | V85: 0.05 | W85: т | X85: 1205 | Y85: Порезка листового проката плазменная PLAZMA | Z85: LINEACORD PCL40 | AA85: 1070 | AB85: 4.28 | AC85: 0.05 | AD85: 1 | AE85: САНКТ-ПЕТЕРБУРГ | AF85: Центр | AG85: 0.05
A86: 1 | B86: САНКТ-ПЕТЕРБУРГ | C86: Центр | D86: Сафонеев С.А. | E86: Сафонеев С.А. | F86: Сафонеев С.А. | G86: =IF(Таблица_Металлопроцессинг_детализированный[[#This Row],[Куратор договора]]=Таблица_Металлопроцессинг_детализированный[[#This Row],[Менеджер]],TRUE,FALSE) -> TRUE | H86: =SUMIFS(AA86:AA1725,O86:O1725,Таблица_Металлопроцессинг_детализированный[[#This Row],[Контрагент]],A86:A1725,Таблица_Металлопроцессинг_детализированный[[#This Row],[Месяц отгрузки]]) -> 294824.45 | I86: =IF(Таблица_Металлопроцессинг_детализированный[[#This Row],[Инициатор+исполнитель]],1,IF(Таблица_Металлопроцессинг_детализированный[[#This Row],[Оборот за месяц по контрагенту]]<1000000,0.5,0.7)) -> 1 | J86: =IF(Таблица_Металлопроцессинг_детализированный[[#This Row],[Инициатор+исполнитель]]=TRUE,0,IF(Таблица_Металлопроцессинг_детализированный[[#This Row],[Оборот за месяц по контрагенту]]<1000000,0.5,0.3)) -> 0 | K86: =Таблица_Металлопроцессинг_детализированный[[#This Row],[Сумма наценки]]*Таблица_Металлопроцессинг_детализированный[[#This Row],[Распределение выручки для Куратора договора]] -> 6235.2 | L86: =IF(Таблица_Металлопроцессинг_детализированный[[#This Row],[Распределение выручки для Менеджера договора]]=1,"",Таблица_Металлопроцессинг_детализированный[[#This Row],[Сумма наценки]]*Таблица_Металлопроцессинг_детализированный[[#This Row],[Распределение выручки для Менеджера договора]]) -> 0 | M86: Из давальческого сырья | N86: САНКТ-ПЕТЕРБУРГ | O86: НЕВА-МЕТАЛЛТРЭЙД ООО | P86: ООО "Нева-МеталлТрэйд" | Q86: г. Санкт-Петербург | R86: г. Санкт-Петербург | S86: Машиностроение | T86: Изделие | U86: Полособульб, РСВ, №12, 6000 | V86: 1.732 | W86: т | X86: 0 | Y86: Очистка и покраска проката (грунт HEMPEL) | Z86: ROSLER | AA86: 6235.2 | AB86: 1.732 | AC86: 1.732 | AD86: 1 | AE86: САНКТ-ПЕТЕРБУРГ | AF86: Центр | AG86: 1.732
A87: 1 | B87: САНКТ-ПЕТЕРБУРГ | C87: Центр | D87: Сафонеев С.А. | E87: Сафонеев С.А. | F87: Сафонеев С.А. | G87: =IF(Таблица_Металлопроцессинг_детализированный[[#This Row],[Куратор договора]]=Таблица_Металлопроцессинг_детализированный[[#This Row],[Менеджер]],TRUE,FALSE) -> TRUE | H87: =SUMIFS(AA87:AA1726,O87:O1726,Таблица_Металлопроцессинг_детализированный[[#This Row],[Контрагент]],A87:A1726,Таблица_Металлопроцессинг_детализированный[[#This Row],[Месяц отгрузки]]) -> 288589.25 | I87: =IF(Таблица_Металлопроцессинг_детализированный[[#This Row],[Инициатор+исполнитель]],1,IF(Таблица_Металлопроцессинг_детализированный[[#This Row],[Оборот за месяц по контрагенту]]<1000000,0.5,0.7)) -> 1 | J87: =IF(Таблица_Металлопроцессинг_детализированный[[#This Row],[Инициатор+исполнитель]]=TRUE,0,IF(Таблица_Металлопроцессинг_детализированный[[#This Row],[Оборот за месяц по контрагенту]]<1000000,0.5,0.3)) -> 0 | K87: =Таблица_Металлопроцессинг_детализированный[[#This Row],[Сумма наценки]]*Таблица_Металлопроцессинг_детализированный[[#This Row],[Распределение выручки для Куратора договора]] -> 50232.35 | L87: =IF(Таблица_Металлопроцессинг_детализированный[[#This Row],[Распределение выручки для Менеджера договора]]=1,"",Таблица_Металлопроцессинг_детализированный[[#This Row],[Сумма наценки]]*Таблица_Металлопроцессинг_детализированный[[#This Row],[Распределение выручки для Менеджера договора]]) -> 0 | M87: Из давальческого сырья | N87: САНКТ-ПЕТЕРБУРГ | O87: НЕВА-МЕТАЛЛТРЭЙД ООО | P87: ООО "Нева-МеталлТрэйд" | Q87: г. Санкт-Петербург | R87: г. Санкт-Петербург | S87: Машиностроение | T87: Изделие | U87: Полособульб, РСВ, №14а, 6000 | V87: 15.647 | W87: т | X87: 0 | Y87: Очистка и покраска проката (грунт HEMPEL) | Z87: ROSLER | AA87: 50232.35 | AB87: 15.647 | AC87: 15.647 | AD87: 1 | AE87: САНКТ-ПЕТЕРБУРГ | AF87: Центр | AG87: 15.647
A88: 1 | B88: САНКТ-ПЕТЕРБУРГ | C88: Центр | D88: Сафонеев С.А. | E88: Сафонеев С.А. | F88: Сафонеев С.А. | G88: =IF(Таблица_Металлопроцессинг_детализированный[[#This Row],[Куратор договора]]=Таблица_Металлопроцессинг_детализированный[[#This Row],[Менеджер]],TRUE,FALSE) -> TRUE | H88: =SUMIFS(AA88:AA1727,O88:O1727,Таблица_Металлопроцессинг_детализированный[[#This Row],[Контрагент]],A88:A1727,Таблица_Металлопроцессинг_детализированный[[#This Row],[Месяц отгрузки]]) -> 238356.9 | I88: =IF(Таблица_Металлопроцессинг_детализированный[[#This Row],[Инициатор+исполнитель]],1,IF(Таблица_Металлопроцессинг_детализированный[[#This Row],[Оборот за месяц по контрагенту]]<1000000,0.5,0.7)) -> 1 | J88: =IF(Таблица_Металлопроцессинг_детализированный[[#This Row],[Инициатор+исполнитель]]=TRUE,0,IF(Таблица_Металлопроцессинг_детализированный[[#This Row],[Оборот за месяц по контрагенту]]<1000000,0.5,0.3)) -> 0 | K88: =Таблица_Металлопроцессинг_детализированный[[#This Row],[Сумма наценки]]*Таблица_Металлопроцессинг_детализированный[[#This Row],[Распределение выручки для Куратора договора]] -> 10988.46 | L88: =IF(Таблица_Металлопроцессинг_детализированный[[#This Row],[Распределение выручки для Менеджера договора]]=1,"",Таблица_Металлопроцессинг_детализированный[[#This Row],[Сумма наценки]]*Таблица_Металлопроцессинг_детализированный[[#This Row],[Распределение выручки для Менеджера договора]]) -> 0 | M88: Из давальческого сырья | N88: САНКТ-ПЕТЕРБУРГ | O88: НЕВА-МЕТАЛЛТРЭЙД ООО | P88: ООО "Нева-МеталлТрэйд" | Q88: г. Санкт-Петербург | R88: г. Санкт-Петербург | S88: Машиностроение | T88: Изделие | U88: Полособульб, РСД32 №18б, 6000 | V88: 4.131 | W88: т | X88: 0 | Y88: Очистка и покраска проката (грунт HEMPEL) | Z88: ROSLER | AA88: 10988.46 | AB88: 4.131 | AC88: 4.131 | AD88: 1 | AE88: САНКТ-ПЕТЕРБУРГ | AF88: Центр | AG88: 4.131
A89: 1 | B89: САНКТ-ПЕТЕРБУРГ | C89: Центр | D89: Дауэнгауэр Н.Э. | E89: Дауэнгауэр Н.Э. | F89: Сафонеев С.А. | G89: =IF(Таблица_Металлопроцессинг_детализированный[[#This Row],[Куратор договора]]=Таблица_Металлопроцессинг_детализированный[[#This Row],[Менеджер]],TRUE,FALSE) -> FALSE | H89: =SUMIFS(AA89:AA1739,O89:O1739,Таблица_Металлопроцессинг_детализированный[[#This Row],[Контрагент]],A89:A1739,Таблица_Металлопроцессинг_детализированный[[#This Row],[Месяц отгрузки]]) -> 25637 | I89: =IF(Таблица_Металлопроцессинг_детализированный[[#This Row],[Инициатор+исполнитель]],1,IF(Таблица_Металлопроцессинг_детализированный[[#This Row],[Оборот за месяц по контрагенту]]<1000000,0.5,0.7)) -> 0.5 | J89: =IF(Таблица_Металлопроцессинг_детализированный[[#This Row],[Инициатор+исполнитель]]=TRUE,0,IF(Таблица_Металлопроцессинг_детализированный[[#This Row],[Оборот за месяц по контрагенту]]<1000000,0.5,0.3)) -> 0.5 | K89: =Таблица_Металлопроцессинг_детализированный[[#This Row],[Сумма наценки]]*Таблица_Металлопроцессинг_детализированный[[#This Row],[Распределение выручки для Куратора договора]] -> 3076.5 | L89: =IF(Таблица_Металлопроцессинг_детализированный[[#This Row],[Распределение выручки для Менеджера договора]]=1,"",Таблица_Металлопроцессинг_детализированный[[#This Row],[Сумма наценки]]*Таблица_Металлопроцессинг_детализированный[[#This Row],[Распределение выручки для Менеджера договора]]) -> 3076.5 | M89: Процессинг | N89: САНКТ-ПЕТЕРБУРГ | O89: НОВАЯ ЭРА | P89: ОАО "Новая ЭРА" | Q89: г. Санкт-Петербург | R89: г. Санкт-Петербург | S89: Машиностроение | T89: Сталь рулонная х/к, 3, 1250, Ст.сп/пс (ТУ 14-106-321-2010) | V89: 2.93 | W89: т | X89: 85907.6 | Y89: Порезка листового проката поперечная | Z89: CAMU RDC 1500/6 | AA89: 6153 | AB89: 1 | AC89: 3 | AD89: 1 | AE89: САНКТ-ПЕТЕРБУРГ | AF89: Центр | AG89: 2.93
A90: 1 | B90: САНКТ-ПЕТЕРБУРГ | C90: Центр | D90: Степура С.Н. | E90: Степура С.Н. | F90: Матросова Л.Ш. | G90: =IF(Таблица_Металлопроцессинг_детализированный[[#This Row],[Куратор договора]]=Таблица_Металлопроцессинг_детализированный[[#This Row],[Менеджер]],TRUE,FALSE) -> FALSE | H90: =SUMIFS(AA90:AA1740,O90:O1740,Таблица_Металлопроцессинг_детализированный[[#This Row],[Контрагент]],A90:A1740,Таблица_Металлопроцессинг_детализированный[[#This Row],[Месяц отгрузки]]) -> 1700 | I90: =IF(Таблица_Металлопроцессинг_детализированный[[#This Row],[Инициатор+исполнитель]],1,IF(Таблица_Металлопроцессинг_детализированный[[#This Row],[Оборот за месяц по контрагенту]]<1000000,0.5,0.7)) -> 0.5 | J90: =IF(Таблица_Металлопроцессинг_детализированный[[#This Row],[Инициатор+исполнитель]]=TRUE,0,IF(Таблица_Металлопроцессинг_детализированный[[#This Row],[Оборот за месяц по контрагенту]]<1000000,0.5,0.3)) -> 0.5 | K90: =Таблица_Металлопроцессинг_детализированный[[#This Row],[Сумма наценки]]*Таблица_Металлопроцессинг_детализированный[[#This Row],[Распределение выручки для Куратора договора]] -> 450 | L90: =IF(Таблица_Металлопроцессинг_детализированный[[#This Row],[Распределение выручки для Менеджера договора]]=1,"",Таблица_Металлопроцессинг_детализированный[[#This Row],[Сумма наценки]]*Таблица_Металлопроцессинг_детализированный[[#This Row],[Распределение выручки для Менеджера договора]]) -> 450 | M90: Процессинг | N90: САНКТ-ПЕТЕРБУРГ | O90: Металлосфера | P90: ООО "Металлосфера" | S90: Металлоторговля | T90: Сталь листовая Г/к., 10, 1500x6000, Ст.сп/пс (ГОСТ 14637) | V90: 0.38 | W90: т | X90: 8523.4 | Y90: Порезка листового проката (ножницы) | Z90: COLGAR CI-34-TR | AA90: 900 | AB90: 1 | AC90: 0.39 | AD90: 1 | AE90: САНКТ-ПЕТЕРБУРГ | AF90: Центр | AG90: 0.38
A91: 1 | B91: САНКТ-ПЕТЕРБУРГ | C91: Центр | D91: Степура С.Н. | E91: Степура С.Н. | F91: Сафонеев С.А. | G91: =IF(Таблица_Металлопроцессинг_детализированный[[#This Row],[Куратор договора]]=Таблица_Металлопроцессинг_детализированный[[#This Row],[Менеджер]],TRUE,FALSE) -> FALSE | H91: =SUMIFS(AA91:AA1741,O91:O1741,Таблица_Металлопроцессинг_детализированный[[#This Row],[Контрагент]],A91:A1741,Таблица_Металлопроцессинг_детализированный[[#This Row],[Месяц отгрузки]]) -> 800 | I91: =IF(Таблица_Металлопроцессинг_детализированный[[#This Row],[Инициатор+исполнитель]],1,IF(Таблица_Металлопроцессинг_детализированный[[#This Row],[Оборот за месяц по контрагенту]]<1000000,0.5,0.7)) -> 0.5 | J91: =IF(Таблица_Металлопроцессинг_детализированный[[#This Row],[Инициатор+исполнитель]]=TRUE,0,IF(Таблица_Металлопроцессинг_детализированный[[#This Row],[Оборот за месяц по контрагенту]]<1000000,0.5,0.3)) -> 0.5 | K91: =Таблица_Металлопроцессинг_детализированный[[#This Row],[Сумма наценки]]*Таблица_Металлопроцессинг_детализированный[[#This Row],[Распределение выручки для Куратора договора]] -> 400 | L91: =IF(Таблица_Металлопроцессинг_детализированный[[#This Row],[Распределение выручки для Менеджера договора]]=1,"",Таблица_Металлопроцессинг_детализированный[[#This Row],[Сумма наценки]]*Таблица_Металлопроцессинг_детализированный[[#This Row],[Распределение выручки для Менеджера договора]]) -> 400 | M91: Процессинг | N91: САНКТ-ПЕТЕРБУРГ | O91: Металлосфера | P91: ООО "Металлосфера" | S91: Металлоторговля | T91: Сталь листовая Г/к., 8, 1500x6000, Ст.сп/пс (ГОСТ 14637) | V91: 0.2 | W91: т | X91: 4486 | Y91: Порезка листового проката (ножницы) | Z91: COLGAR CI-34-TR | AA91: 800 | AB91: 1 | AC91: 0.21 | AD91: 1 | AE91: САНКТ-ПЕТЕРБУРГ | AF91: Центр | AG91: 0.2
A92: 1 | B92: САНКТ-ПЕТЕРБУРГ | C92: Центр | D92: Хабибуллов М.Р. | E92: Хабибуллов М.Р. | F92: Сафонеев С.А. | G92: =IF(Таблица_Металлопроцессинг_детализированный[[#This Row],[Куратор договора]]=Таблица_Металлопроцессинг_детализированный[[#This Row],[Менеджер]],TRUE,FALSE) -> FALSE | H92: =SUMIFS(AA92:AA1743,O92:O1743,Таблица_Металлопроцессинг_детализированный[[#This Row],[Контрагент]],A92:A1743,Таблица_Металлопроцессинг_детализированный[[#This Row],[Месяц отгрузки]]) -> 284818.5 | I92: =IF(Таблица_Металлопроцессинг_детализированный[[#This Row],[Инициатор+исполнитель]],1,IF(Таблица_Металлопроцессинг_детализированный[[#This Row],[Оборот за месяц по контрагенту]]<1000000,0.5,0.7)) -> 0.5 | J92: =IF(Таблица_Металлопроцессинг_детализированный[[#This Row],[Инициатор+исполнитель]]=TRUE,0,IF(Таблица_Металлопроцессинг_детализированный[[#This Row],[Оборот за месяц по контрагенту]]<1000000,0.5,0.3)) -> 0.5 | K92: =Таблица_Металлопроцессинг_детализированный[[#This Row],[Сумма наценки]]*Таблица_Металлопроцессинг_детализированный[[#This Row],[Распределение выручки для Куратора договора]] -> 15002.25 | L92: =IF(Таблица_Металлопроцессинг_детализированный[[#This Row],[Распределение выручки для Менеджера договора]]=1,"",Таблица_Металлопроцессинг_детализированный[[#This Row],[Сумма наценки]]*Таблица_Металлопроцессинг_детализированный[[#This Row],[Распределение выручки для Менеджера договора]]) -> 15002.25 | M92: Процессинг | N92: САНКТ-ПЕТЕРБУРГ | O92: АртЛэнд | P92: ООО "Строительная компания "АртЛэнд" | S92: Стройиндустрия | T92: Шпунт Ларсена Л5-УМ, С255 (ТУ 14-102-8-2003) | V92: 20.003 | W92: т | X92: 790118.5 | Y92: Очистка и покраска проката (грунт ЭМЛАК 263) | Z92: ROSLER | AA92: 30004.5 | AB92: 20.003 | AC92: 20.003 | AD92: 1 | AE92: САНКТ-ПЕТЕРБУРГ | AF92: Центр | AG92: 20.003
A93: 1 | B93: САНКТ-ПЕТЕРБУРГ | C93: Центр | D93: Матросова Л.Ш. | E93: Сафонеев С.А. | F93: Матросова Л.Ш. | G93: =IF(Таблица_Металлопроцессинг_детализированный[[#This Row],[Куратор договора]]=Таблица_Металлопроцессинг_детализированный[[#This Row],[Менеджер]],TRUE,FALSE) -> TRUE | H93: =SUMIFS(AA93:AA1745,O93:O1745,Таблица_Металлопроцессинг_детализированный[[#This Row],[Контрагент]],A93:A1745,Таблица_Металлопроцессинг_детализированный[[#This Row],[Месяц отгрузки]]) -> 1300 | I93: =IF(Таблица_Металлопроцессинг_детализированный[[#This Row],[Инициатор+исполнитель]],1,IF(Таблица_Металлопроцессинг_детализированный[[#This Row],[Оборот за месяц по контрагенту]]<1000000,0.5,0.7)) -> 1 | J93: =IF(Таблица_Металлопроцессинг_детализированный[[#This Row],[Инициатор+исполнитель]]=TRUE,0,IF(Таблица_Металлопроцессинг_детализированный[[#This Row],[Оборот за месяц по контрагенту]]<1000000,0.5,0.3)) -> 0 | K93: =Таблица_Металлопроцессинг_детализированный[[#This Row],[Сумма наценки]]*Таблица_Металлопроцессинг_детализированный[[#This Row],[Распределение выручки для Куратора договора]] -> 1300 | L93: =IF(Таблица_Металлопроцессинг_детализированный[[#This Row],[Распределение выручки для Менеджера договора]]=1,"",Таблица_Металлопроцессинг_детализированный[[#This Row],[Сумма наценки]]*Таблица_Металлопроцессинг_детализированный[[#This Row],[Распределение выручки для Менеджера договора]]) -> 0 | M93: Процессинг | N93: САНКТ-ПЕТЕРБУРГ | O93: НИКОС | P93: ООО "НИКОС" | S93: Металлоконструкции | T93: Швеллер стальной Г/к., 10П, Ст.сп/пс, н/дл (ГОСТ 8240-97) | V93: 0.54 | W93: т | X93: 13251.6 | Y93: Станок ленточнопильный | Z93: PEGASUS | AA93: 1300 | AB93: 13 | AC93: 0.54 | AD93: 1 | AE93: САНКТ-ПЕТЕРБУРГ | AF93: Центр | AG93: 0.54
A94: 1 | B94: САНКТ-ПЕТЕРБУРГ | C94: Центр | D94: Ипатова Е.Н. | E94: Ипатова Е.Н. | F94: Ипатова Е.Н. | G94: =IF(Таблица_Металлопроцессинг_детализированный[[#This Row],[Куратор договора]]=Таблица_Металлопроцессинг_детализированный[[#This Row],[Менеджер]],TRUE,FALSE) -> TRUE | H94: =SUMIFS(AA94:AA1751,O94:O1751,Таблица_Металлопроцессинг_детализированный[[#This Row],[Контрагент]],A94:A1751,Таблица_Металлопроцессинг_детализированный[[#This Row],[Месяц отгрузки]]) -> 9000 | I94: =IF(Таблица_Металлопроцессинг_детализированный[[#This Row],[Инициатор+исполнитель]],1,IF(Таблица_Металлопроцессинг_детализированный[[#This Row],[Оборот за месяц по контрагенту]]<1000000,0.5,0.7)) -> 1 | J94: =IF(Таблица_Металлопроцессинг_детализированный[[#This Row],[Инициатор+исполнитель]]=TRUE,0,IF(Таблица_Металлопроцессинг_детализированный[[#This Row],[Оборот за месяц по контрагенту]]<1000000,0.5,0.3)) -> 0 | K94: =Таблица_Металлопроцессинг_детализированный[[#This Row],[Сумма наценки]]*Таблица_Металлопроцессинг_детализированный[[#This Row],[Распределение выручки для Куратора договора]] -> 9000 | L94: =IF(Таблица_Металлопроцессинг_детализированный[[#This Row],[Распределение выручки для Менеджера договора]]=1,"",Таблица_Металлопроцессинг_детализированный[[#This Row],[Сумма наценки]]*Таблица_Металлопроцессинг_детализированный[[#This Row],[Распределение выручки для Менеджера договора]]) -> 0 | M94: Процессинг | N94: САНКТ-ПЕТЕРБУРГ | O94: НИКОЛЬСКИЙ ЗМК | P94: ООО "Никольский завод металлоконструкций" | Q94: Ленинградская обл. | R94: Ленинградская обл. | S94: Металлоконструкции | T94: Сталь листовая Г/к., 12, 1500x6000, Ст.сп/пс (ГОСТ 14637) | V94: 8.47 | W94: т | X94: 189982.1 | Y94: Очистка проката (дробь 1,0мм, 0,8мм) | Z94: ROSLER | AA94: 9000 | AB94: 90 | AC94: 8.5 | AD94: 1 | AE94: САНКТ-ПЕТЕРБУРГ | AF94: Центр | AG94: 8.47
A95: 1 | B95: САНКТ-ПЕТЕРБУРГ | C95: Центр | D95: Дауэнгауэр Н.Э. | E95: Дауэнгауэр Н.Э. | F95: Дауэнгауэр Н.Э. | G95: =IF(Таблица_Металлопроцессинг_детализированный[[#This Row],[Куратор договора]]=Таблица_Металлопроцессинг_детализированный[[#This Row],[Менеджер]],TRUE,FALSE) -> TRUE | H95: =SUMIFS(AA95:AA1756,O95:O1756,Таблица_Металлопроцессинг_детализированный[[#This Row],[Контрагент]],A95:A1756,Таблица_Металлопроцессинг_детализированный[[#This Row],[Месяц отгрузки]]) -> 21952 | I95: =IF(Таблица_Металлопроцессинг_детализированный[[#This Row],[Инициатор+исполнитель]],1,IF(Таблица_Металлопроцессинг_детализированный[[#This Row],[Оборот за месяц по контрагенту]]<1000000,0.5,0.7)) -> 1 | J95: =IF(Таблица_Металлопроцессинг_детализированный[[#This Row],[Инициатор+исполнитель]]=TRUE,0,IF(Таблица_Металлопроцессинг_детализированный[[#This Row],[Оборот за месяц по контрагенту]]<1000000,0.5,0.3)) -> 0 | K95: =Таблица_Металлопроцессинг_детализированный[[#This Row],[Сумма наценки]]*Таблица_Металлопроцессинг_детализированный[[#This Row],[Распределение выручки для Куратора договора]] -> 15232 | L95: =IF(Таблица_Металлопроцессинг_детализированный[[#This Row],[Распределение выручки для Менеджера договора]]=1,"",Таблица_Металлопроцессинг_детализированный[[#This Row],[Сумма наценки]]*Таблица_Металлопроцессинг_детализированный[[#This Row],[Распределение выручки для Менеджера договора]]) -> 0 | M95: Процессинг | N95: САНКТ-ПЕТЕРБУРГ | O95: ОСТ НПП | P95: ЗАО "НПП ОСТ" | Q95: г. Санкт-Петербург | R95: г. Санкт-Петербург | S95: Машиностроение | T95: Сталь листовая Х/к., 0.8, 1250x2500, Ст.08пс (ГОСТ 16523) | V95: 4.48 | W95: т | X95: 124902.4 | Y95: Порезка листового проката (ножницы) | AA95: 15232 | AB95: 1 | AC95: 4.48 | AE95: САНКТ-ПЕТЕРБУРГ | AF95: Центр | AG95: 4.48
A96: 1 | B96: САНКТ-ПЕТЕРБУРГ | C96: Центр | D96: Дауэнгауэр Н.Э. | E96: Дауэнгауэр Н.Э. | F96: Дауэнгауэр Н.Э. | G96: =IF(Таблица_Металлопроцессинг_детализированный[[#This Row],[Куратор договора]]=Таблица_Металлопроцессинг_детализированный[[#This Row],[Менеджер]],TRUE,FALSE) -> TRUE | H96: =SUMIFS(AA96:AA1757,O96:O1757,Таблица_Металлопроцессинг_детализированный[[#This Row],[Контрагент]],A96:A1757,Таблица_Металлопроцессинг_детализированный[[#This Row],[Месяц отгрузки]]) -> 6720 | I96: =IF(Таблица_Металлопроцессинг_детализированный[[#This Row],[Инициатор+исполнитель]],1,IF(Таблица_Металлопроцессинг_детализированный[[#This Row],[Оборот за месяц по контрагенту]]<1000000,0.5,0.7)) -> 1 | J96: =IF(Таблица_Металлопроцессинг_детализированный[[#This Row],[Инициатор+исполнитель]]=TRUE,0,IF(Таблица_Металлопроцессинг_детализированный[[#This Row],[Оборот за месяц по контрагенту]]<1000000,0.5,0.3)) -> 0 | K96: =Таблица_Металлопроцессинг_детализированный[[#This Row],[Сумма наценки]]*Таблица_Металлопроцессинг_детализированный[[#This Row],[Распределение выручки для Куратора договора]] -> 6720 | L96: =IF(Таблица_Металлопроцессинг_детализированный[[#This Row],[Распределение выручки для Менеджера договора]]=1,"",Таблица_Металлопроцессинг_детализированный[[#This Row],[Сумма наценки]]*Таблица_Металлопроцессинг_детализированный[[#This Row],[Распределение выручки для Менеджера договора]]) -> 0 | M96: Процессинг | N96: САНКТ-ПЕТЕРБУРГ | O96: ОСТ НПП | P96: ЗАО "НПП ОСТ" | Q96: г. Санкт-Петербург | R96: г. Санкт-Петербург | S96: Машиностроение | T96: Сталь листовая Х/к., 2, 1250x2500, Ст.кп/пс (ТУ 14-106-321-2010) | V96: 1.92 | W96: т | X96: 51398.4 | Y96: Порезка листового проката (ножницы) | AA96: 6720 | AB96: 1 | AC96: 2 | AE96: САНКТ-ПЕТЕРБУРГ | AF96: Центр | AG96: 1.92
A97: 1 | B97: САНКТ-ПЕТЕРБУРГ | C97: Центр | D97: Сафонеев С.А. | E97: Сафонеев С.А. | F97: Сафонеев С.А. | G97: =IF(Таблица_Металлопроцессинг_детализированный[[#This Row],[Куратор договора]]=Таблица_Металлопроцессинг_детализированный[[#This Row],[Менеджер]],TRUE,FALSE) -> TRUE | H97: =SUMIFS(AA97:AA1760,O97:O1760,Таблица_Металлопроцессинг_детализированный[[#This Row],[Контрагент]],A97:A1760,Таблица_Металлопроцессинг_детализированный[[#This Row],[Месяц отгрузки]]) -> 227368.44 | I97: =IF(Таблица_Металлопроцессинг_детализированный[[#This Row],[Инициатор+исполнитель]],1,IF(Таблица_Металлопроцессинг_детализированный[[#This Row],[Оборот за месяц по контрагенту]]<1000000,0.5,0.7)) -> 1 | J97: =IF(Таблица_Металлопроцессинг_детализированный[[#This Row],[Инициатор+исполнитель]]=TRUE,0,IF(Таблица_Металлопроцессинг_детализированный[[#This Row],[Оборот за месяц по контрагенту]]<1000000,0.5,0.3)) -> 0 | K97: =Таблица_Металлопроцессинг_детализированный[[#This Row],[Сумма наценки]]*Таблица_Металлопроцессинг_детализированный[[#This Row],[Распределение выручки для Куратора договора]] -> 21021.81 | L97: =IF(Таблица_Металлопроцессинг_детализированный[[#This Row],[Распределение выручки для Менеджера договора]]=1,"",Таблица_Металлопроцессинг_детализированный[[#This Row],[Сумма наценки]]*Таблица_Металлопроцессинг_детализированный[[#This Row],[Распределение выручки для Менеджера договора]]) -> 0 | M97: Из давальческого сырья | N97: САНКТ-ПЕТЕРБУРГ | O97: НЕВА-МЕТАЛЛТРЭЙД ООО | P97: ООО "Нева-МеталлТрэйд" | Q97: г. Санкт-Петербург | R97: г. Санкт-Петербург | S97: Машиностроение | T97: Изделие | U97: Полособульб, РСВ, №14б, 6000 | V97: 6.351 | W97: т | X97: 0 | Y97: Очистка и покраска проката (грунт HEMPEL) | Z97: ROSLER | AA97: 21021.81 | AB97: 6.351 | AC97: 6.351 | AD97: 1 | AE97: САНКТ-ПЕТЕРБУРГ | AF97: Центр | AG97: 6.351
A98: 1 | B98: САНКТ-ПЕТЕРБУРГ | C98: Центр | D98: Сафонеев С.А. | E98: Сафонеев С.А. | F98: Сафонеев С.А. | G98: =IF(Таблица_Металлопроцессинг_детализированный[[#This Row],[Куратор договора]]=Таблица_Металлопроцессинг_детализированный[[#This Row],[Менеджер]],TRUE,FALSE) -> TRUE | H98: =SUMIFS(AA98:AA1761,O98:O1761,Таблица_Металлопроцессинг_детализированный[[#This Row],[Контрагент]],A98:A1761,Таблица_Металлопроцессинг_детализированный[[#This Row],[Месяц отгрузки]]) -> 206346.63 | I98: =IF(Таблица_Металлопроцессинг_детализированный[[#This Row],[Инициатор+исполнитель]],1,IF(Таблица_Металлопроцессинг_детализированный[[#This Row],[Оборот за месяц по контрагенту]]<1000000,0.5,0.7)) -> 1 | J98: =IF(Таблица_Металлопроцессинг_детализированный[[#This Row],[Инициатор+исполнитель]]=TRUE,0,IF(Таблица_Металлопроцессинг_детализированный[[#This Row],[Оборот за месяц по контрагенту]]<1000000,0.5,0.3)) -> 0 | K98: =Таблица_Металлопроцессинг_детализированный[[#This Row],[Сумма наценки]]*Таблица_Металлопроцессинг_детализированный[[#This Row],[Распределение выручки для Куратора договора]] -> 16115 | L98: =IF(Таблица_Металлопроцессинг_детализированный[[#This Row],[Распределение выручки для Менеджера договора]]=1,"",Таблица_Металлопроцессинг_детализированный[[#This Row],[Сумма наценки]]*Таблица_Металлопроцессинг_детализированный[[#This Row],[Распределение выручки для Менеджера договора]]) -> 0 | M98: Из давальческого сырья | N98: САНКТ-ПЕТЕРБУРГ | O98: НЕВА-МЕТАЛЛТРЭЙД ООО | P98: ООО "Нева-МеталлТрэйд" | Q98: г. Санкт-Петербург | R98: г. Санкт-Петербург | S98: Машиностроение | T98: Изделие | U98: Полособульб, РСВ, №16а, 6000 | V98: 5.5 | W98: т | X98: 0 | Y98: Очистка и покраска проката (грунт HEMPEL) | Z98: ROSLER | AA98: 16115 | AB98: 5.5 | AC98: 5.5 | AD98: 1 | AE98: САНКТ-ПЕТЕРБУРГ | AF98: Центр | AG98: 5.5
A99: 1 | B99: САНКТ-ПЕТЕРБУРГ | C99: Центр | D99: Сафонеев С.А. | E99: Сафонеев С.А. | F99: Сафонеев С.А. | G99: =IF(Таблица_Металлопроцессинг_детализированный[[#This Row],[Куратор договора]]=Таблица_Металлопроцессинг_детализированный[[#This Row],[Менеджер]],TRUE,FALSE) -> TRUE | H99: =SUMIFS(AA99:AA1762,O99:O1762,Таблица_Металлопроцессинг_детализированный[[#This Row],[Контрагент]],A99:A1762,Таблица_Металлопроцессинг_детализированный[[#This Row],[Месяц отгрузки]]) -> 190231.63 | I99: =IF(Таблица_Металлопроцессинг_детализированный[[#This Row],[Инициатор+исполнитель]],1,IF(Таблица_Металлопроцессинг_детализированный[[#This Row],[Оборот за месяц по контрагенту]]<1000000,0.5,0.7)) -> 1 | J99: =IF(Таблица_Металлопроцессинг_детализированный[[#This Row],[Инициатор+исполнитель]]=TRUE,0,IF(Таблица_Металлопроцессинг_детализированный[[#This Row],[Оборот за месяц по контрагенту]]<1000000,0.5,0.3)) -> 0 | K99: =Таблица_Металлопроцессинг_детализированный[[#This Row],[Сумма наценки]]*Таблица_Металлопроцессинг_детализированный[[#This Row],[Распределение выручки для Куратора договора]] -> 17875.2 | L99: =IF(Таблица_Металлопроцессинг_детализированный[[#This Row],[Распределение выручки для Менеджера договора]]=1,"",Таблица_Металлопроцессинг_детализированный[[#This Row],[Сумма наценки]]*Таблица_Металлопроцессинг_детализированный[[#This Row],[Распределение выручки для Менеджера договора]]) -> 0 | M99: Из давальческого сырья | N99: САНКТ-ПЕТЕРБУРГ | O99: НЕВА-МЕТАЛЛТРЭЙД ООО | P99: ООО "Нева-МеталлТрэйд" | Q99: г. Санкт-Петербург | R99: г. Санкт-Петербург | S99: Машиностроение | T99: Изделие | U99: Полособульб, РСД32, №18а, 6000 | V99: 6.72 | W99: т | X99: 0 | Y99: Очистка и покраска проката (грунт HEMPEL) | Z99: ROSLER | AA99: 17875.2 | AB99: 6.72 | AC99: 6.72 | AD99: 1 | AE99: САНКТ-ПЕТЕРБУРГ | AF99: Центр | AG99: 6.72
A100: 1 | B100: САНКТ-ПЕТЕРБУРГ | C100: Центр | D100: Степура С.Н. | E100: Степура С.Н. | F100: Сафонеев С.А. | G100: =IF(Таблица_Металлопроцессинг_детализированный[[#This Row],[Куратор договора]]=Таблица_Металлопроцессинг_детализированный[[#This Row],[Менеджер]],TRUE,FALSE) -> FALSE | H100: =SUMIFS(AA100:AA1780,O100:O1780,Таблица_Металлопроцессинг_детализированный[[#This Row],[Контрагент]],A100:A1780,Таблица_Металлопроцессинг_детализированный[[#This Row],[Месяц отгрузки]]) -> 650 | I100: =IF(Таблица_Металлопроцессинг_детализированный[[#This Row],[Инициатор+исполнитель]],1,IF(Таблица_Металлопроцессинг_детализированный[[#This Row],[Оборот за месяц по контрагенту]]<1000000,0.5,0.7)) -> 0.5 | J100: =IF(Таблица_Металлопроцессинг_детализированный[[#This Row],[Инициатор+исполнитель]]=TRUE,0,IF(Таблица_Металлопроцессинг_детализированный[[#This Row],[Оборот за месяц по контрагенту]]<1000000,0.5,0.3)) -> 0.5 | K100: =Таблица_Металлопроцессинг_детализированный[[#This Row],[Сумма наценки]]*Таблица_Металлопроцессинг_детализированный[[#This Row],[Распределение выручки для Куратора договора]] -> 325 | L100: =IF(Таблица_Металлопроцессинг_детализированный[[#This Row],[Распределение выручки для Менеджера договора]]=1,"",Таблица_Металлопроцессинг_детализированный[[#This Row],[Сумма наценки]]*Таблица_Металлопроцессинг_детализированный[[#This Row],[Распределение выручки для Менеджера договора]]) -> 325 | M100: Процессинг | N100: САНКТ-ПЕТЕРБУРГ | O100: СТАЛЬТЕХ | P100: ООО"СТАЛЬТЕХ" | Q100: г. Санкт-Петербург | R100: г. Санкт-Петербург | S100: Машиностроение | T100: Сталь рулонная Г/к., 4, 1500, Ст.сп/пс (19903) | V100: 0.06 | W100: т | X100: 1345.8 | Y100: Порезка листового проката (ножницы) | Z100: COLGAR CI-34-TR | AA100: 650 | AB100: 1 | AC100: 0.06 | AD100: 1 | AE100: САНКТ-ПЕТЕРБУРГ | AF100: Центр | AG100: 0.06
A101: 1 | B101: САНКТ-ПЕТЕРБУРГ | C101: Центр | D101: Ипатов Д.В. | E101: Ипатов Д.В. | F101: Сафонеев С.А. | G101: =IF(Таблица_Металлопроцессинг_детализированный[[#This Row],[Куратор договора]]=Таблица_Металлопроцессинг_детализированный[[#This Row],[Менеджер]],TRUE,FALSE) -> FALSE | H101: =SUMIFS(AA101:AA1783,O101:O1783,Таблица_Металлопроцессинг_детализированный[[#This Row],[Контрагент]],A101:A1783,Таблица_Металлопроцессинг_детализированный[[#This Row],[Месяц отгрузки]]) -> 57000 | I101: =IF(Таблица_Металлопроцессинг_детализированный[[#This Row],[Инициатор+исполнитель]],1,IF(Таблица_Металлопроцессинг_детализированный[[#This Row],[Оборот за месяц по контрагенту]]<1000000,0.5,0.7)) -> 0.5 | J101: =IF(Таблица_Металлопроцессинг_детализированный[[#This Row],[Инициатор+исполнитель]]=TRUE,0,IF(Таблица_Металлопроцессинг_детализированный[[#This Row],[Оборот за месяц по контрагенту]]<1000000,0.5,0.3)) -> 0.5 | K101: =Таблица_Металлопроцессинг_детализированный[[#This Row],[Сумма наценки]]*Таблица_Металлопроцессинг_детализированный[[#This Row],[Распределение выручки для Куратора договора]] -> 28500 | L101: =IF(Таблица_Металлопроцессинг_детализированный[[#This Row],[Распределение выручки для Менеджера договора]]=1,"",Таблица_Металлопроцессинг_детализированный[[#This Row],[Сумма наценки]]*Таблица_Металлопроцессинг_детализированный[[#This Row],[Распределение выручки для Менеджера договора]]) -> 28500 | M101: Из давальческого сырья | N101: САНКТ-ПЕТЕРБУРГ | O101: СК БалтМонтажСтрой | P101: ООО "СК БалтМонтажСтрой" | Q101: Ленинградская обл. | R101: Ленинградская обл. | S101: Стройиндустрия | T101: Труба стальная профильная, 160x160x4, Ст.сп/пс (ГОСТ 30245-03) | V101: 20 | W101: т | X101: 0 | Y101: Очистка и покраска проката (грунт ЭМЛАК 263) | Z101: ROSLER | AA101: 57000 | AB101: 475 | AC101: 475 | AD101: 1 | AE101: САНКТ-ПЕТЕРБУРГ | AF101: Центр | AG101: 20
A102: 1 | B102: САНКТ-ПЕТЕРБУРГ | C102: Центр | D102: Погорелов И.В. | E102: Погорелов И.В. | F102: Погорелов И.В. | G102: =IF(Таблица_Металлопроцессинг_детализированный[[#This Row],[Куратор договора]]=Таблица_Металлопроцессинг_детализированный[[#This Row],[Менеджер]],TRUE,FALSE) -> TRUE | H102: =SUMIFS(AA102:AA1792,O102:O1792,Таблица_Металлопроцессинг_детализированный[[#This Row],[Контрагент]],A102:A1792,Таблица_Металлопроцессинг_детализированный[[#This Row],[Месяц отгрузки]]) -> 1950 | I102: =IF(Таблица_Металлопроцессинг_детализированный[[#This Row],[Инициатор+исполнитель]],1,IF(Таблица_Металлопроцессинг_детализированный[[#This Row],[Оборот за месяц по контрагенту]]<1000000,0.5,0.7)) -> 1 | J102: =IF(Таблица_Металлопроцессинг_детализированный[[#This Row],[Инициатор+исполнитель]]=TRUE,0,IF(Таблица_Металлопроцессинг_детализированный[[#This Row],[Оборот за месяц по контрагенту]]<1000000,0.5,0.3)) -> 0 | K102: =Таблица_Металлопроцессинг_детализированный[[#This Row],[Сумма наценки]]*Таблица_Металлопроцессинг_детализированный[[#This Row],[Распределение выручки для Куратора договора]] -> 1950 | L102: =IF(Таблица_Металлопроцессинг_детализированный[[#This Row],[Распределение выручки для Менеджера договора]]=1,"",Таблица_Металлопроцессинг_детализированный[[#This Row],[Сумма наценки]]*Таблица_Металлопроцессинг_детализированный[[#This Row],[Распределение выручки для Менеджера договора]]) -> 0 | M102: Процессинг | N102: САНКТ-ПЕТЕРБУРГ | O102: РОС-СЕРВИС | P102: ООО "РОС-сервис" | S102: Металлоторговля | T102: Сталь рулонная Г/к., 3, 1500, Ст.09Г2С (19903) | V102: 1.3 | W102: т | X102: 35958 | Y102: Порезка листового проката поперечная | Z102: CAMU RDC 1500/6 | AA102: 1950 | AB102: 1 | AC102: 1.3 | AD102: 1 | AE102: САНКТ-ПЕТЕРБУРГ | AF102: Центр | AG102: 1.3
A103: 1 | B103: САНКТ-ПЕТЕРБУРГ | C103: Центр | D103: Сафонеев С.А. | E103: Сафонеев С.А. | F103: Сафонеев С.А. | G103: =IF(Таблица_Металлопроцессинг_детализированный[[#This Row],[Куратор договора]]=Таблица_Металлопроцессинг_детализированный[[#This Row],[Менеджер]],TRUE,FALSE) -> TRUE | H103: =SUMIFS(AA103:AA1796,O103:O1796,Таблица_Металлопроцессинг_детализированный[[#This Row],[Контрагент]],A103:A1796,Таблица_Металлопроцессинг_детализированный[[#This Row],[Месяц отгрузки]]) -> 172356.43 | I103: =IF(Таблица_Металлопроцессинг_детализированный[[#This Row],[Инициатор+исполнитель]],1,IF(Таблица_Металлопроцессинг_детализированный[[#This Row],[Оборот за месяц по контрагенту]]<1000000,0.5,0.7)) -> 1 | J103: =IF(Таблица_Металлопроцессинг_детализированный[[#This Row],[Инициатор+исполнитель]]=TRUE,0,IF(Таблица_Металлопроцессинг_детализированный[[#This Row],[Оборот за месяц по контрагенту]]<1000000,0.5,0.3)) -> 0 | K103: =Таблица_Металлопроцессинг_детализированный[[#This Row],[Сумма наценки]]*Таблица_Металлопроцессинг_детализированный[[#This Row],[Распределение выручки для Куратора договора]] -> 54257.62 | L103: =IF(Таблица_Металлопроцессинг_детализированный[[#This Row],[Распределение выручки для Менеджера договора]]=1,"",Таблица_Металлопроцессинг_детализированный[[#This Row],[Сумма наценки]]*Таблица_Металлопроцессинг_детализированный[[#This Row],[Распределение выручки для Менеджера договора]]) -> 0 | M103: Из давальческого сырья | N103: САНКТ-ПЕТЕРБУРГ | O103: НЕВА-МЕТАЛЛТРЭЙД ООО | P103: ООО "Нева-МеталлТрэйд" | Q103: г. Санкт-Петербург | R103: г. Санкт-Петербург | S103: Машиностроение | T103: Изделие | U103: Полособульб, РСД32, №20а | V103: 22.664 | W103: т | X103: 0 | Y103: Очистка и покраска проката (грунт HEMPEL) | Z103: ROSLER | AA103: 54257.62 | AB103: 22.664 | AC103: 22.664 | AD103: 1 | AE103: САНКТ-ПЕТЕРБУРГ | AF103: Центр | AG103: 22.664
A104: 1 | B104: САНКТ-ПЕТЕРБУРГ | C104: Центр | D104: Райская Н.А. | E104: Райская Н.А. | F104: Райская Н.А. | G104: =IF(Таблица_Металлопроцессинг_детализированный[[#This Row],[Куратор договора]]=Таблица_Металлопроцессинг_детализированный[[#This Row],[Менеджер]],TRUE,FALSE) -> TRUE | H104: =SUMIFS(AA104:AA1810,O104:O1810,Таблица_Металлопроцессинг_детализированный[[#This Row],[Контрагент]],A104:A1810,Таблица_Металлопроцессинг_детализированный[[#This Row],[Месяц отгрузки]]) -> 1990 | I104: =IF(Таблица_Металлопроцессинг_детализированный[[#This Row],[Инициатор+исполнитель]],1,IF(Таблица_Металлопроцессинг_детализированный[[#This Row],[Оборот за месяц по контрагенту]]<1000000,0.5,0.7)) -> 1 | J104: =IF(Таблица_Металлопроцессинг_детализированный[[#This Row],[Инициатор+исполнитель]]=TRUE,0,IF(Таблица_Металлопроцессинг_детализированный[[#This Row],[Оборот за месяц по контрагенту]]<1000000,0.5,0.3)) -> 0 | K104: =Таблица_Металлопроцессинг_детализированный[[#This Row],[Сумма наценки]]*Таблица_Металлопроцессинг_детализированный[[#This Row],[Распределение выручки для Куратора договора]] -> 1990 | L104: =IF(Таблица_Металлопроцессинг_детализированный[[#This Row],[Распределение выручки для Менеджера договора]]=1,"",Таблица_Металлопроцессинг_детализированный[[#This Row],[Сумма наценки]]*Таблица_Металлопроцессинг_детализированный[[#This Row],[Распределение выручки для Менеджера договора]]) -> 0 | M104: Процессинг | N104: САНКТ-ПЕТЕРБУРГ | O104: СЗЭСС | P104: СПб ф-л ОАО СЗЭСС УПТК и РС | S104: Стройиндустрия | T104: Арматура класс АI, 10, Ст.сп/пс, в бунтах (ГОСТ5781-82) | V104: 1.99 | W104: т | X104: 54366.8 | Y104: Размотка/резка арматурного проката | Z104: MELC 16x4 | AA104: 1990 | AB104: 1 | AC104: 2 | AD104: 1 | AE104: САНКТ-ПЕТЕРБУРГ | AF104: Центр | AG104: 1.99
A105: 1 | B105: САНКТ-ПЕТЕРБУРГ | C105: Центр | D105: Райская Н.А. | E105: Райская Н.А. | F105: Райская Н.А. | G105: =IF(Таблица_Металлопроцессинг_детализированный[[#This Row],[Куратор договора]]=Таблица_Металлопроцессинг_детализированный[[#This Row],[Менеджер]],TRUE,FALSE) -> TRUE | H105: =SUMIFS(AA105:AA1817,O105:O1817,Таблица_Металлопроцессинг_детализированный[[#This Row],[Контрагент]],A105:A1817,Таблица_Металлопроцессинг_детализированный[[#This Row],[Месяц отгрузки]]) -> 1060 | I105: =IF(Таблица_Металлопроцессинг_детализированный[[#This Row],[Инициатор+исполнитель]],1,IF(Таблица_Металлопроцессинг_детализированный[[#This Row],[Оборот за месяц по контрагенту]]<1000000,0.5,0.7)) -> 1 | J105: =IF(Таблица_Металлопроцессинг_детализированный[[#This Row],[Инициатор+исполнитель]]=TRUE,0,IF(Таблица_Металлопроцессинг_детализированный[[#This Row],[Оборот за месяц по контрагенту]]<1000000,0.5,0.3)) -> 0 | K105: =Таблица_Металлопроцессинг_детализированный[[#This Row],[Сумма наценки]]*Таблица_Металлопроцессинг_детализированный[[#This Row],[Распределение выручки для Куратора договора]] -> 620 | L105: =IF(Таблица_Металлопроцессинг_детализированный[[#This Row],[Распределение выручки для Менеджера договора]]=1,"",Таблица_Металлопроцессинг_детализированный[[#This Row],[Сумма наценки]]*Таблица_Металлопроцессинг_детализированный[[#This Row],[Распределение выручки для Менеджера договора]]) -> 0 | M105: Процессинг | N105: САНКТ-ПЕТЕРБУРГ | O105: КонкордМеталл | P105: ООО"КонкордМеталл" | Q105: г. Санкт-Петербург | R105: г. Санкт-Петербург | S105: Металлоторговля | T105: Балка двутавровая, 30Ш1, С245/С255 (СТО АСЧМ 20-93) | V105: 1.388 | W105: т | X105: 58740.16 | Y105: Станок ленточнопильный | Z105: PEGASUS | AA105: 620 | AB105: 2 | AC105: 1.387 | AD105: 1 | AE105: САНКТ-ПЕТЕРБУРГ | AF105: Центр | AG105: 1.388
A106: 1 | B106: САНКТ-ПЕТЕРБУРГ | C106: Центр | D106: Райская Н.А. | E106: Райская Н.А. | F106: Райская Н.А. | G106: =IF(Таблица_Металлопроцессинг_детализированный[[#This Row],[Куратор договора]]=Таблица_Металлопроцессинг_детализированный[[#This Row],[Менеджер]],TRUE,FALSE) -> TRUE | H106: =SUMIFS(AA106:AA1818,O106:O1818,Таблица_Металлопроцессинг_детализированный[[#This Row],[Контрагент]],A106:A1818,Таблица_Металлопроцессинг_детализированный[[#This Row],[Месяц отгрузки]]) -> 440 | I106: =IF(Таблица_Металлопроцессинг_детализированный[[#This Row],[Инициатор+исполнитель]],1,IF(Таблица_Металлопроцессинг_детализированный[[#This Row],[Оборот за месяц по контрагенту]]<1000000,0.5,0.7)) -> 1 | J106: =IF(Таблица_Металлопроцессинг_детализированный[[#This Row],[Инициатор+исполнитель]]=TRUE,0,IF(Таблица_Металлопроцессинг_детализированный[[#This Row],[Оборот за месяц по контрагенту]]<1000000,0.5,0.3)) -> 0 | K106: =Таблица_Металлопроцессинг_детализированный[[#This Row],[Сумма наценки]]*Таблица_Металлопроцессинг_детализированный[[#This Row],[Распределение выручки для Куратора договора]] -> 440 | L106: =IF(Таблица_Металлопроцессинг_детализированный[[#This Row],[Распределение выручки для Менеджера договора]]=1,"",Таблица_Металлопроцессинг_детализированный[[#This Row],[Сумма наценки]]*Таблица_Металлопроцессинг_детализированный[[#This Row],[Распределение выручки для Менеджера договора]]) -> 0 | M106: Процессинг | N106: САНКТ-ПЕТЕРБУРГ | O106: КонкордМеталл | P106: ООО"КонкордМеталл" | Q106: г. Санкт-Петербург | R106: г. Санкт-Петербург | S106: Металлоторговля | T106: Швеллер стальной г/к, 20У, С255 (ГОСТ 27772-88) | V106: 0.17 | W106: т | X106: 5117 | Y106: Станок ленточнопильный | Z106: PEGASUS | AA106: 440 | AB106: 4 | AC106: 0.169 | AD106: 1 | AE106: САНКТ-ПЕТЕРБУРГ | AF106: Центр | AG106: 0.17
A107: 1 | B107: САНКТ-ПЕТЕРБУРГ | C107: Центр | D107: Хабибуллов М.Р. | E107: Хабибуллов М.Р. | F107: Хабибуллов М.Р. | G107: =IF(Таблица_Металлопроцессинг_детализированный[[#This Row],[Куратор договора]]=Таблица_Металлопроцессинг_детализированный[[#This Row],[Менеджер]],TRUE,FALSE) -> TRUE | H107: =SUMIFS(AA107:AA1819,O107:O1819,Таблица_Металлопроцессинг_детализированный[[#This Row],[Контрагент]],A107:A1819,Таблица_Металлопроцессинг_детализированный[[#This Row],[Месяц отгрузки]]) -> 254814 | I107: =IF(Таблица_Металлопроцессинг_детализированный[[#This Row],[Инициатор+исполнитель]],1,IF(Таблица_Металлопроцессинг_детализированный[[#This Row],[Оборот за месяц по контрагенту]]<1000000,0.5,0.7)) -> 1 | J107: =IF(Таблица_Металлопроцессинг_детализированный[[#This Row],[Инициатор+исполнитель]]=TRUE,0,IF(Таблица_Металлопроцессинг_детализированный[[#This Row],[Оборот за месяц по контрагенту]]<1000000,0.5,0.3)) -> 0 | K107: =Таблица_Металлопроцессинг_детализированный[[#This Row],[Сумма наценки]]*Таблица_Металлопроцессинг_детализированный[[#This Row],[Распределение выручки для Куратора договора]] -> 29863.5 | L107: =IF(Таблица_Металлопроцессинг_детализированный[[#This Row],[Распределение выручки для Менеджера договора]]=1,"",Таблица_Металлопроцессинг_детализированный[[#This Row],[Сумма наценки]]*Таблица_Металлопроцессинг_детализированный[[#This Row],[Распределение выручки для Менеджера договора]]) -> 0 | M107: Процессинг | N107: САНКТ-ПЕТЕРБУРГ | O107: АртЛэнд | P107: ООО "Строительная компания "АртЛэнд" | S107: Стройиндустрия | T107: Шпунт Ларсена Л5-УМ, С255 (ТУ 14-102-8-2003) | V107: 19.909 | W107: т | X107: 786405.5 | Y107: Очистка и покраска проката (грунт ЭМЛАК 263) | Z107: ROSLER | AA107: 29863.5 | AB107: 19.909 | AC107: 36.526 | AD107: 1 | AE107: САНКТ-ПЕТЕРБУРГ | AF107: Центр | AG107: 19.909
A108: 1 | B108: САНКТ-ПЕТЕРБУРГ | C108: Центр | D108: Дауэнгауэр Н.Э. | E108: Дауэнгауэр Н.Э. | F108: Дауэнгауэр Н.Э. | G108: =IF(Таблица_Металлопроцессинг_детализированный[[#This Row],[Куратор договора]]=Таблица_Металлопроцессинг_детализированный[[#This Row],[Менеджер]],TRUE,FALSE) -> TRUE | H108: =SUMIFS(AA108:AA1820,O108:O1820,Таблица_Металлопроцессинг_детализированный[[#This Row],[Контрагент]],A108:A1820,Таблица_Металлопроцессинг_детализированный[[#This Row],[Месяц отгрузки]]) -> 212578.8 | I108: =IF(Таблица_Металлопроцессинг_детализированный[[#This Row],[Инициатор+исполнитель]],1,IF(Таблица_Металлопроцессинг_детализированный[[#This Row],[Оборот за месяц по контрагенту]]<1000000,0.5,0.7)) -> 1 | J108: =IF(Таблица_Металлопроцессинг_детализированный[[#This Row],[Инициатор+исполнитель]]=TRUE,0,IF(Таблица_Металлопроцессинг_детализированный[[#This Row],[Оборот за месяц по контрагенту]]<1000000,0.5,0.3)) -> 0 | K108: =Таблица_Металлопроцессинг_детализированный[[#This Row],[Сумма наценки]]*Таблица_Металлопроцессинг_детализированный[[#This Row],[Распределение выручки для Куратора договора]] -> 1695 | L108: =IF(Таблица_Металлопроцессинг_детализированный[[#This Row],[Распределение выручки для Менеджера договора]]=1,"",Таблица_Металлопроцессинг_детализированный[[#This Row],[Сумма наценки]]*Таблица_Металлопроцессинг_детализированный[[#This Row],[Распределение выручки для Менеджера договора]]) -> 0 | M108: Процессинг | N108: САНКТ-ПЕТЕРБУРГ | O108: АМИРА СК | P108: ООО "Амира-СтальКонструкция" | Q108: Санкт-Петербург | R108: Санкт-Петербург | S108: Металлоконструкции | T108: Сталь листовая Г/к., 16, 1500x6000, Ст.09Г2С (ГОСТ 19281) | V108: 1.13 | W108: т | X108: 28995.8 | Y108: Порезка листового проката (ножницы) | AA108: 1695 | AB108: 1 | AC108: 1.13 | AE108: САНКТ-ПЕТЕРБУРГ | AF108: Центр | AG108: 1.13
A109: 1 | B109: САНКТ-ПЕТЕРБУРГ | C109: Центр | D109: Дауэнгауэр Н.Э. | E109: Дауэнгауэр Н.Э. | F109: Сафонеев С.А. | G109: =IF(Таблица_Металлопроцессинг_детализированный[[#This Row],[Куратор договора]]=Таблица_Металлопроцессинг_детализированный[[#This Row],[Менеджер]],TRUE,FALSE) -> FALSE | H109: =SUMIFS(AA109:AA1821,O109:O1821,Таблица_Металлопроцессинг_детализированный[[#This Row],[Контрагент]],A109:A1821,Таблица_Металлопроцессинг_детализированный[[#This Row],[Месяц отгрузки]]) -> 210883.8 | I109: =IF(Таблица_Металлопроцессинг_детализированный[[#This Row],[Инициатор+исполнитель]],1,IF(Таблица_Металлопроцессинг_детализированный[[#This Row],[Оборот за месяц по контрагенту]]<1000000,0.5,0.7)) -> 0.5 | J109: =IF(Таблица_Металлопроцессинг_детализированный[[#This Row],[Инициатор+исполнитель]]=TRUE,0,IF(Таблица_Металлопроцессинг_детализированный[[#This Row],[Оборот за месяц по контрагенту]]<1000000,0.5,0.3)) -> 0.5 | K109: =Таблица_Металлопроцессинг_детализированный[[#This Row],[Сумма наценки]]*Таблица_Металлопроцессинг_детализированный[[#This Row],[Распределение выручки для Куратора договора]] -> 420 | L109: =IF(Таблица_Металлопроцессинг_детализированный[[#This Row],[Распределение выручки для Менеджера договора]]=1,"",Таблица_Металлопроцессинг_детализированный[[#This Row],[Сумма наценки]]*Таблица_Металлопроцессинг_детализированный[[#This Row],[Распределение выручки для Менеджера договора]]) -> 420 | M109: Процессинг | N109: САНКТ-ПЕТЕРБУРГ | O109: АМИРА СК | P109: ООО "Амира-СтальКонструкция" | Q109: Санкт-Петербург | R109: Санкт-Петербург | S109: Металлоконструкции | T109: Сталь листовая Г/к., 4, 1500x6000, Ст.сп/пс (ГОСТ 14637) | V109: 1.4 | W109: т | X109: 31724 | Y109: Порезка листового проката (ножницы) | AA109: 840 | AB109: 1 | AC109: 1.4 | AE109: САНКТ-ПЕТЕРБУРГ | AF109: Центр | AG109: 1.4
A110: 1 | B110: САНКТ-ПЕТЕРБУРГ | C110: Центр | D110: Райская Н.А. | E110: Райская Н.А. | F110: Сафонеев С.А. | G110: =IF(Таблица_Металлопроцессинг_детализированный[[#This Row],[Куратор договора]]=Таблица_Металлопроцессинг_детализированный[[#This Row],[Менеджер]],TRUE,FALSE) -> FALSE | H110: =SUMIFS(AA110:AA1823,O110:O1823,Таблица_Металлопроцессинг_детализированный[[#This Row],[Контрагент]],A110:A1823,Таблица_Металлопроцессинг_детализированный[[#This Row],[Месяц отгрузки]]) -> 990 | I110: =IF(Таблица_Металлопроцессинг_детализированный[[#This Row],[Инициатор+исполнитель]],1,IF(Таблица_Металлопроцессинг_детализированный[[#This Row],[Оборот за месяц по контрагенту]]<1000000,0.5,0.7)) -> 0.5 | J110: =IF(Таблица_Металлопроцессинг_детализированный[[#This Row],[Инициатор+исполнитель]]=TRUE,0,IF(Таблица_Металлопроцессинг_детализированный[[#This Row],[Оборот за месяц по контрагенту]]<1000000,0.5,0.3)) -> 0.5 | K110: =Таблица_Металлопроцессинг_детализированный[[#This Row],[Сумма наценки]]*Таблица_Металлопроцессинг_детализированный[[#This Row],[Распределение выручки для Куратора договора]] -> 495 | L110: =IF(Таблица_Металлопроцессинг_детализированный[[#This Row],[Распределение выручки для Менеджера договора]]=1,"",Таблица_Металлопроцессинг_детализированный[[#This Row],[Сумма наценки]]*Таблица_Металлопроцессинг_детализированный[[#This Row],[Распределение выручки для Менеджера договора]]) -> 495 | M110: Процессинг | N110: САНКТ-ПЕТЕРБУРГ | O110: ГАРАНТ-СЕРВИС СПб | P110: ООО "ГАРАНТ-СЕРВИС" | S110: Металлоторговля | T110: Арматура класс АI, 8, Ст.сп/пс, в бунтах (ГОСТ5781-82) | V110: 0.55 | W110: т | X110: 14113 | Y110: Размотка/резка арматурного проката | Z110: MELC 16x4 | AA110: 990 | AB110: 1 | AC110: 0.55 | AD110: 1 | AE110: САНКТ-ПЕТЕРБУРГ | AF110: Центр | AG110: 0.55
A111: 1 | B111: САНКТ-ПЕТЕРБУРГ | C111: Центр | D111: Сафонеев С.А. | E111: Сафонеев С.А. | F111: Сафонеев С.А. | G111: =IF(Таблица_Металлопроцессинг_детализированный[[#This Row],[Куратор договора]]=Таблица_Металлопроцессинг_детализированный[[#This Row],[Менеджер]],TRUE,FALSE) -> TRUE | H111: =SUMIFS(AA111:AA2585,O111:O2585,Таблица_Металлопроцессинг_детализированный[[#This Row],[Контрагент]],A111:A2585,Таблица_Металлопроцессинг_детализированный[[#This Row],[Месяц отгрузки]]) -> 118098.81 | I111: =IF(Таблица_Металлопроцессинг_детализированный[[#This Row],[Инициатор+исполнитель]],1,IF(Таблица_Металлопроцессинг_детализированный[[#This Row],[Оборот за месяц по контрагенту]]<1000000,0.5,0.7)) -> 1 | J111: =IF(Таблица_Металлопроцессинг_детализированный[[#This Row],[Инициатор+исполнитель]]=TRUE,0,IF(Таблица_Металлопроцессинг_детализированный[[#This Row],[Оборот за месяц по контрагенту]]<1000000,0.5,0.3)) -> 0 | K111: =Таблица_Металлопроцессинг_детализированный[[#This Row],[Сумма наценки]]*Таблица_Металлопроцессинг_детализированный[[#This Row],[Распределение выручки для Куратора договора]] -> 50850.95 | L111: =IF(Таблица_Металлопроцессинг_детализированный[[#This Row],[Распределение выручки для Менеджера договора]]=1,"",Таблица_Металлопроцессинг_детализированный[[#This Row],[Сумма наценки]]*Таблица_Металлопроцессинг_детализированный[[#This Row],[Распределение выручки для Менеджера договора]]) -> 0 | M111: Из давальческого сырья | N111: САНКТ-ПЕТЕРБУРГ | O111: НЕВА-МЕТАЛЛТРЭЙД ООО | P111: ООО "Нева-МеталлТрэйд" | Q111: г. Санкт-Петербург | R111: г. Санкт-Петербург | S111: Машиностроение | T111: Изделие | U111: Полособульб, РСД32, №20а | V111: 21.241 | W111: т | X111: 0 | Y111: Очистка и покраска проката (грунт HEMPEL) | Z111: ROSLER | AA111: 50850.95 | AB111: 21.241 | AC111: 21.241 | AD111: 1 | AE111: САНКТ-ПЕТЕРБУРГ | AF111: Центр | AG111: 21.241
A112: 1 | B112: САНКТ-ПЕТЕРБУРГ | C112: Центр | D112: Зиновьев С.Ю. | E112: Зиновьев С.Ю. | F112: Зиновьев С.Ю. | G112: =IF(Таблица_Металлопроцессинг_детализированный[[#This Row],[Куратор договора]]=Таблица_Металлопроцессинг_детализированный[[#This Row],[Менеджер]],TRUE,FALSE) -> TRUE | H112: =SUMIFS(AA112:AA2588,O112:O2588,Таблица_Металлопроцессинг_детализированный[[#This Row],[Контрагент]],A112:A2588,Таблица_Металлопроцессинг_детализированный[[#This Row],[Месяц отгрузки]]) -> 54720 | I112: =IF(Таблица_Металлопроцессинг_детализированный[[#This Row],[Инициатор+исполнитель]],1,IF(Таблица_Металлопроцессинг_детализированный[[#This Row],[Оборот за месяц по контрагенту]]<1000000,0.5,0.7)) -> 1 | J112: =IF(Таблица_Металлопроцессинг_детализированный[[#This Row],[Инициатор+исполнитель]]=TRUE,0,IF(Таблица_Металлопроцессинг_детализированный[[#This Row],[Оборот за месяц по контрагенту]]<1000000,0.5,0.3)) -> 0 | K112: =Таблица_Металлопроцессинг_детализированный[[#This Row],[Сумма наценки]]*Таблица_Металлопроцессинг_детализированный[[#This Row],[Распределение выручки для Куратора договора]] -> 20320 | L112: =IF(Таблица_Металлопроцессинг_детализированный[[#This Row],[Распределение выручки для Менеджера договора]]=1,"",Таблица_Металлопроцессинг_детализированный[[#This Row],[Сумма наценки]]*Таблица_Металлопроцессинг_детализированный[[#This Row],[Распределение выручки для Менеджера договора]]) -> 0 | M112: Из давальческого сырья | N112: САНКТ-ПЕТЕРБУРГ | O112: Птицефабрика Роскар | P112: ЗАО "Птицефабрика Роскар" | Q112: Ленинградская обл. | R112: Ленинградская обл. | S112: Другое | T112: Изделие | U112: Профильная труба 100х60х4 | V112: 3.696 | W112: т | X112: 0 | Y112: Очистка и покраска проката (грунт ЭМЛАК 263) | Z112: ROSLER | AA112: 20320 | AB112: 127 | AC112: 3.696 | AD112: 1 | AE112: САНКТ-ПЕТЕРБУРГ | AF112: Центр | AG112: 3.696
A113: 1 | B113: САНКТ-ПЕТЕРБУРГ | C113: Центр | D113: Зиновьев С.Ю. | E113: Зиновьев С.Ю. | F113: Зиновьев С.Ю. | G113: =IF(Таблица_Металлопроцессинг_детализированный[[#This Row],[Куратор договора]]=Таблица_Металлопроцессинг_детализированный[[#This Row],[Менеджер]],TRUE,FALSE) -> TRUE | H113: =SUMIFS(AA113:AA2589,O113:O2589,Таблица_Металлопроцессинг_детализированный[[#This Row],[Контрагент]],A113:A2589,Таблица_Металлопроцессинг_детализированный[[#This Row],[Месяц отгрузки]]) -> 34400 | I113: =IF(Таблица_Металлопроцессинг_детализированный[[#This Row],[Инициатор+исполнитель]],1,IF(Таблица_Металлопроцессинг_детализированный[[#This Row],[Оборот за месяц по контрагенту]]<1000000,0.5,0.7)) -> 1 | J113: =IF(Таблица_Металлопроцессинг_детализированный[[#This Row],[Инициатор+исполнитель]]=TRUE,0,IF(Таблица_Металлопроцессинг_детализированный[[#This Row],[Оборот за месяц по контрагенту]]<1000000,0.5,0.3)) -> 0 | K113: =Таблица_Металлопроцессинг_детализированный[[#This Row],[Сумма наценки]]*Таблица_Металлопроцессинг_детализированный[[#This Row],[Распределение выручки для Куратора договора]] -> 30400 | L113: =IF(Таблица_Металлопроцессинг_детализированный[[#This Row],[Распределение выручки для Менеджера договора]]=1,"",Таблица_Металлопроцессинг_детализированный[[#This Row],[Сумма наценки]]*Таблица_Металлопроцессинг_детализированный[[#This Row],[Распределение выручки для Менеджера договора]]) -> 0 | M113: Из давальческого сырья | N113: САНКТ-ПЕТЕРБУРГ | O113: Птицефабрика Роскар | P113: ЗАО "Птицефабрика Роскар" | Q113: Ленинградская обл. | R113: Ленинградская обл. | S113: Другое | T113: Изделие | U113: Профильная труба 50х50х3 | V113: 4.045 | W113: т | X113: 0 | Y113: Очистка и покраска проката (грунт ЭМЛАК 263) | Z113: ROSLER | AA113: 30400 | AB113: 190 | AC113: 4.045 | AD113: 1 | AE113: САНКТ-ПЕТЕРБУРГ | AF113: Центр | AG113: 4.045
A114: 1 | B114: САНКТ-ПЕТЕРБУРГ | C114: Центр | D114: Зиновьев С.Ю. | E114: Зиновьев С.Ю. | F114: Зиновьев С.Ю. | G114: =IF(Таблица_Металлопроцессинг_детализированный[[#This Row],[Куратор договора]]=Таблица_Металлопроцессинг_детализированный[[#This Row],[Менеджер]],TRUE,FALSE) -> TRUE | H114: =SUMIFS(AA114:AA2590,O114:O2590,Таблица_Металлопроцессинг_детализированный[[#This Row],[Контрагент]],A114:A2590,Таблица_Металлопроцессинг_детализированный[[#This Row],[Месяц отгрузки]]) -> 4000 | I114: =IF(Таблица_Металлопроцессинг_детализированный[[#This Row],[Инициатор+исполнитель]],1,IF(Таблица_Металлопроцессинг_детализированный[[#This Row],[Оборот за месяц по контрагенту]]<1000000,0.5,0.7)) -> 1 | J114: =IF(Таблица_Металлопроцессинг_детализированный[[#This Row],[Инициатор+исполнитель]]=TRUE,0,IF(Таблица_Металлопроцессинг_детализированный[[#This Row],[Оборот за месяц по контрагенту]]<1000000,0.5,0.3)) -> 0 | K114: =Таблица_Металлопроцессинг_детализированный[[#This Row],[Сумма наценки]]*Таблица_Металлопроцессинг_детализированный[[#This Row],[Распределение выручки для Куратора договора]] -> 4000 | L114: =IF(Таблица_Металлопроцессинг_детализированный[[#This Row],[Распределение выручки для Менеджера договора]]=1,"",Таблица_Металлопроцессинг_детализированный[[#This Row],[Сумма наценки]]*Таблица_Металлопроцессинг_детализированный[[#This Row],[Распределение выручки для Менеджера договора]]) -> 0 | M114: Из давальческого сырья | N114: САНКТ-ПЕТЕРБУРГ | O114: Птицефабрика Роскар | P114: ЗАО "Птицефабрика Роскар" | Q114: Ленинградская обл. | R114: Ленинградская обл. | S114: Другое | T114: Изделие | U114: Профильная труба 60х60х3 | V114: 0.68 | W114: т | X114: 0 | Y114: Очистка и покраска проката (грунт ЭМЛАК 263) | Z114: ROSLER | AA114: 4000 | AB114: 25 | AC114: 0.68 | AD114: 1 | AE114: САНКТ-ПЕТЕРБУРГ | AF114: Центр | AG114: 0.68
A115: 1 | B115: САНКТ-ПЕТЕРБУРГ | C115: Центр | D115: Дауэнгауэр Н.Э. | E115: Дауэнгауэр Н.Э. | F115: Дауэнгауэр Н.Э. | G115: =IF(Таблица_Металлопроцессинг_детализированный[[#This Row],[Куратор договора]]=Таблица_Металлопроцессинг_детализированный[[#This Row],[Менеджер]],TRUE,FALSE) -> TRUE | H115: =SUMIFS(AA115:AA2599,O115:O2599,Таблица_Металлопроцессинг_детализированный[[#This Row],[Контрагент]],A115:A2599,Таблица_Металлопроцессинг_детализированный[[#This Row],[Месяц отгрузки]]) -> 19484 | I115: =IF(Таблица_Металлопроцессинг_детализированный[[#This Row],[Инициатор+исполнитель]],1,IF(Таблица_Металлопроцессинг_детализированный[[#This Row],[Оборот за месяц по контрагенту]]<1000000,0.5,0.7)) -> 1 | J115: =IF(Таблица_Металлопроцессинг_детализированный[[#This Row],[Инициатор+исполнитель]]=TRUE,0,IF(Таблица_Металлопроцессинг_детализированный[[#This Row],[Оборот за месяц по контрагенту]]<1000000,0.5,0.3)) -> 0 | K115: =Таблица_Металлопроцессинг_детализированный[[#This Row],[Сумма наценки]]*Таблица_Металлопроцессинг_детализированный[[#This Row],[Распределение выручки для Куратора договора]] -> 11400 | L115: =IF(Таблица_Металлопроцессинг_детализированный[[#This Row],[Распределение выручки для Менеджера договора]]=1,"",Таблица_Металлопроцессинг_детализированный[[#This Row],[Сумма наценки]]*Таблица_Металлопроцессинг_детализированный[[#This Row],[Распределение выручки для Менеджера договора]]) -> 0 | M115: Процессинг | N115: САНКТ-ПЕТЕРБУРГ | O115: НОВАЯ ЭРА | P115: ОАО "Новая ЭРА" | Q115: г. Санкт-Петербург | R115: г. Санкт-Петербург | S115: Машиностроение | T115: Сталь листовая Х/к., 3, 1250x2500, Ст.кп/пс (ТУ 14-106-321-2010) | V115: 3 | W115: т | X115: 80310 | Y115: Порезка листового проката (ножницы) | AA115: 11400 | AB115: 1 | AC115: 3 | AE115: САНКТ-ПЕТЕРБУРГ | AF115: Центр | AG115: 3
A116: 1 | B116: САНКТ-ПЕТЕРБУРГ | C116: Центр | D116: Дауэнгауэр Н.Э. | E116: Дауэнгауэр Н.Э. | F116: Дауэнгауэр Н.Э. | G116: =IF(Таблица_Металлопроцессинг_детализированный[[#This Row],[Куратор договора]]=Таблица_Металлопроцессинг_детализированный[[#This Row],[Менеджер]],TRUE,FALSE) -> TRUE | H116: =SUMIFS(AA116:AA2600,O116:O2600,Таблица_Металлопроцессинг_детализированный[[#This Row],[Контрагент]],A116:A2600,Таблица_Металлопроцессинг_детализированный[[#This Row],[Месяц отгрузки]]) -> 8084 | I116: =IF(Таблица_Металлопроцессинг_детализированный[[#This Row],[Инициатор+исполнитель]],1,IF(Таблица_Металлопроцессинг_детализированный[[#This Row],[Оборот за месяц по контрагенту]]<1000000,0.5,0.7)) -> 1 | J116: =IF(Таблица_Металлопроцессинг_детализированный[[#This Row],[Инициатор+исполнитель]]=TRUE,0,IF(Таблица_Металлопроцессинг_детализированный[[#This Row],[Оборот за месяц по контрагенту]]<1000000,0.5,0.3)) -> 0 | K116: =Таблица_Металлопроцессинг_детализированный[[#This Row],[Сумма наценки]]*Таблица_Металлопроцессинг_детализированный[[#This Row],[Распределение выручки для Куратора договора]] -> 8084 | L116: =IF(Таблица_Металлопроцессинг_детализированный[[#This Row],[Распределение выручки для Менеджера договора]]=1,"",Таблица_Металлопроцессинг_детализированный[[#This Row],[Сумма наценки]]*Таблица_Металлопроцессинг_детализированный[[#This Row],[Распределение выручки для Менеджера договора]]) -> 0 | M116: Процессинг | N116: САНКТ-ПЕТЕРБУРГ | O116: НОВАЯ ЭРА | P116: ОАО "Новая ЭРА" | Q116: г. Санкт-Петербург | R116: г. Санкт-Петербург | S116: Машиностроение | T116: Сталь листовая Х/к., 3, 1250x2500, Ст.кп/пс (ТУ 14-106-321-2010) | V116: 1.88 | W116: т | X116: 50327.6 | Y116: Порезка листового проката (ножницы) | AA116: 8084 | AB116: 1 | AC116: 1.88 | AE116: САНКТ-ПЕТЕРБУРГ | AF116: Центр | AG116: 1.88
A117: 1 | B117: САНКТ-ПЕТЕРБУРГ | C117: Центр | D117: Дауэнгауэр Н.Э. | E117: Дауэнгауэр Н.Э. | F117: Дауэнгауэр Н.Э. | G117: =IF(Таблица_Металлопроцессинг_детализированный[[#This Row],[Куратор договора]]=Таблица_Металлопроцессинг_детализированный[[#This Row],[Менеджер]],TRUE,FALSE) -> TRUE | H117: =SUMIFS(AA117:AA2605,O117:O2605,Таблица_Металлопроцессинг_детализированный[[#This Row],[Контрагент]],A117:A2605,Таблица_Металлопроцессинг_детализированный[[#This Row],[Месяц отгрузки]]) -> 210043.8 | I117: =IF(Таблица_Металлопроцессинг_детализированный[[#This Row],[Инициатор+исполнитель]],1,IF(Таблица_Металлопроцессинг_детализированный[[#This Row],[Оборот за месяц по контрагенту]]<1000000,0.5,0.7)) -> 1 | J117: =IF(Таблица_Металлопроцессинг_детализированный[[#This Row],[Инициатор+исполнитель]]=TRUE,0,IF(Таблица_Металлопроцессинг_детализированный[[#This Row],[Оборот за месяц по контрагенту]]<1000000,0.5,0.3)) -> 0 | K117: =Таблица_Металлопроцессинг_детализированный[[#This Row],[Сумма наценки]]*Таблица_Металлопроцессинг_детализированный[[#This Row],[Распределение выручки для Куратора договора]] -> 82195 | L117: =IF(Таблица_Металлопроцессинг_детализированный[[#This Row],[Распределение выручки для Менеджера договора]]=1,"",Таблица_Металлопроцессинг_детализированный[[#This Row],[Сумма наценки]]*Таблица_Металлопроцессинг_детализированный[[#This Row],[Распределение выручки для Менеджера договора]]) -> 0 | M117: Процессинг | N117: САНКТ-ПЕТЕРБУРГ | O117: АМИРА СК | P117: ООО "Амира-СтальКонструкция" | Q117: Санкт-Петербург | R117: Санкт-Петербург | S117: Металлоконструкции | T117: Сталь рулонная Г/к., 3, 1250, Ст.сп/пс (19903) | V117: 9.67 | W117: т | X117: 213707 | Y117: Порезка листового проката поперечная | Z117: CAMU RDC 1500/6 | AA117: 82195 | AB117: 1 | AC117: 9.12 | AD117: 1 | AE117: САНКТ-ПЕТЕРБУРГ | AF117: Центр | AG117: 9.67
A118: 1 | B118: САНКТ-ПЕТЕРБУРГ | C118: Центр | D118: Хабибуллов М.Р. | E118: Хабибуллов М.Р. | F118: Хабибуллов М.Р. | G118: =IF(Таблица_Металлопроцессинг_детализированный[[#This Row],[Куратор договора]]=Таблица_Металлопроцессинг_детализированный[[#This Row],[Менеджер]],TRUE,FALSE) -> TRUE | H118: =SUMIFS(AA118:AA2606,O118:O2606,Таблица_Металлопроцессинг_детализированный[[#This Row],[Контрагент]],A118:A2606,Таблица_Металлопроцессинг_детализированный[[#This Row],[Месяц отгрузки]]) -> 224950.5 | I118: =IF(Таблица_Металлопроцессинг_детализированный[[#This Row],[Инициатор+исполнитель]],1,IF(Таблица_Металлопроцессинг_детализированный[[#This Row],[Оборот за месяц по контрагенту]]<1000000,0.5,0.7)) -> 1 | J118: =IF(Таблица_Металлопроцессинг_детализированный[[#This Row],[Инициатор+исполнитель]]=TRUE,0,IF(Таблица_Металлопроцессинг_детализированный[[#This Row],[Оборот за месяц по контрагенту]]<1000000,0.5,0.3)) -> 0 | K118: =Таблица_Металлопроцессинг_детализированный[[#This Row],[Сумма наценки]]*Таблица_Металлопроцессинг_детализированный[[#This Row],[Распределение выручки для Куратора договора]] -> 30006 | L118: =IF(Таблица_Металлопроцессинг_детализированный[[#This Row],[Распределение выручки для Менеджера договора]]=1,"",Таблица_Металлопроцессинг_детализированный[[#This Row],[Сумма наценки]]*Таблица_Металлопроцессинг_детализированный[[#This Row],[Распределение выручки для Менеджера договора]]) -> 0 | M118: Процессинг | N118: САНКТ-ПЕТЕРБУРГ | O118: АртЛэнд | P118: ООО "Строительная компания "АртЛэнд" | S118: Стройиндустрия | T118: Шпунт Ларсена Л5-УМ, С255 (ТУ 14-102-8-2003) | V118: 20.004 | W118: т | X118: 790158 | Y118: Очистка и покраска проката (грунт ЭМЛАК 263) | Z118: ROSLER | AA118: 30006 | AB118: 20.004 | AC118: 20.004 | AD118: 1 | AE118: САНКТ-ПЕТЕРБУРГ | AF118: Центр | AG118: 20.004
A119: 1 | B119: САНКТ-ПЕТЕРБУРГ | C119: Центр | D119: Дауэнгауэр Н.Э. | E119: Дауэнгауэр Н.Э. | F119: Райская Н.А. | G119: =IF(Таблица_Металлопроцессинг_детализированный[[#This Row],[Куратор договора]]=Таблица_Металлопроцессинг_детализированный[[#This Row],[Менеджер]],TRUE,FALSE) -> FALSE | H119: =SUMIFS(AA119:AA2607,O119:O2607,Таблица_Металлопроцессинг_детализированный[[#This Row],[Контрагент]],A119:A2607,Таблица_Металлопроцессинг_детализированный[[#This Row],[Месяц отгрузки]]) -> 127848.8 | I119: =IF(Таблица_Металлопроцессинг_детализированный[[#This Row],[Инициатор+исполнитель]],1,IF(Таблица_Металлопроцессинг_детализированный[[#This Row],[Оборот за месяц по контрагенту]]<1000000,0.5,0.7)) -> 0.5 | J119: =IF(Таблица_Металлопроцессинг_детализированный[[#This Row],[Инициатор+исполнитель]]=TRUE,0,IF(Таблица_Металлопроцессинг_детализированный[[#This Row],[Оборот за месяц по контрагенту]]<1000000,0.5,0.3)) -> 0.5 | K119: =Таблица_Металлопроцессинг_детализированный[[#This Row],[Сумма наценки]]*Таблица_Металлопроцессинг_детализированный[[#This Row],[Распределение выручки для Куратора договора]] -> 1364.4 | L119: =IF(Таблица_Металлопроцессинг_детализированный[[#This Row],[Распределение выручки для Менеджера договора]]=1,"",Таблица_Металлопроцессинг_детализированный[[#This Row],[Сумма наценки]]*Таблица_Металлопроцессинг_детализированный[[#This Row],[Распределение выручки для Менеджера договора]]) -> 1364.4 | M119: Процессинг | N119: МОСКВА | O119: АМИРА СК | P119: ООО "Амира-СтальКонструкция" | Q119: Санкт-Петербург | R119: Санкт-Петербург | S119: Металлоконструкции | T119: Сталь листовая Г/к., 16, 1500x6000, Ст.09Г2С (ГОСТ 19281) | V119: 2.274 | W119: т | X119: 58350.84 | Y119: Порезка листового проката (ножницы) | AA119: 2728.8 | AB119: 1 | AC119: 2.26 | AE119: САНКТ-ПЕТЕРБУРГ | AF119: Центр | AG119: 2.274
A120: 1 | B120: САНКТ-ПЕТЕРБУРГ | C120: Центр | D120: Дауэнгауэр Н.Э. | E120: Дауэнгауэр Н.Э. | F120: Хабибуллов М.Р. | G120: =IF(Таблица_Металлопроцессинг_детализированный[[#This Row],[Куратор договора]]=Таблица_Металлопроцессинг_детализированный[[#This Row],[Менеджер]],TRUE,FALSE) -> FALSE | H120: =SUMIFS(AA120:AA2608,O120:O2608,Таблица_Металлопроцессинг_детализированный[[#This Row],[Контрагент]],A120:A2608,Таблица_Металлопроцессинг_детализированный[[#This Row],[Месяц отгрузки]]) -> 125120 | I120: =IF(Таблица_Металлопроцессинг_детализированный[[#This Row],[Инициатор+исполнитель]],1,IF(Таблица_Металлопроцессинг_детализированный[[#This Row],[Оборот за месяц по контрагенту]]<1000000,0.5,0.7)) -> 0.5 | J120: =IF(Таблица_Металлопроцессинг_детализированный[[#This Row],[Инициатор+исполнитель]]=TRUE,0,IF(Таблица_Металлопроцессинг_детализированный[[#This Row],[Оборот за месяц по контрагенту]]<1000000,0.5,0.3)) -> 0.5 | K120: =Таблица_Металлопроцессинг_детализированный[[#This Row],[Сумма наценки]]*Таблица_Металлопроцессинг_детализированный[[#This Row],[Распределение выручки для Куратора договора]] -> 2856 | L120: =IF(Таблица_Металлопроцессинг_детализированный[[#This Row],[Распределение выручки для Менеджера договора]]=1,"",Таблица_Металлопроцессинг_детализированный[[#This Row],[Сумма наценки]]*Таблица_Металлопроцессинг_детализированный[[#This Row],[Распределение выручки для Менеджера договора]]) -> 2856 | M120: Процессинг | N120: МОСКВА | O120: АМИРА СК | P120: ООО "Амира-СтальКонструкция" | Q120: Санкт-Петербург | R120: Санкт-Петербург | S120: Металлоконструкции | T120: Сталь листовая Г/к., 20, 1500x6000, Ст.09Г2С (ГОСТ 19281) | V120: 2.856 | W120: т | X120: 73284.96 | Y120: Порезка листового проката (ножницы) | AA120: 5712 | AB120: 1 | AC120: 2.856 | AE120: САНКТ-ПЕТЕРБУРГ | AF120: Центр | AG120: 2.856
A121: 1 | B121: САНКТ-ПЕТЕРБУРГ | C121: Центр | D121: Матросова Л.Ш. | E121: Матросова Л.Ш. | F121: Матросова Л.Ш. | G121: =IF(Таблица_Металлопроцессинг_детализированный[[#This Row],[Куратор договора]]=Таблица_Металлопроцессинг_детализированный[[#This Row],[Менеджер]],TRUE,FALSE) -> TRUE | H121: =SUMIFS(AA121:AA2617,O121:O2617,Таблица_Металлопроцессинг_детализированный[[#This Row],[Контрагент]],A121:A2617,Таблица_Металлопроцессинг_детализированный[[#This Row],[Месяц отгрузки]]) -> 8530 | I121: =IF(Таблица_Металлопроцессинг_детализированный[[#This Row],[Инициатор+исполнитель]],1,IF(Таблица_Металлопроцессинг_детализированный[[#This Row],[Оборот за месяц по контрагенту]]<1000000,0.5,0.7)) -> 1 | J121: =IF(Таблица_Металлопроцессинг_детализированный[[#This Row],[Инициатор+исполнитель]]=TRUE,0,IF(Таблица_Металлопроцессинг_детализированный[[#This Row],[Оборот за месяц по контрагенту]]<1000000,0.5,0.3)) -> 0 | K121: =Таблица_Металлопроцессинг_детализированный[[#This Row],[Сумма наценки]]*Таблица_Металлопроцессинг_детализированный[[#This Row],[Распределение выручки для Куратора договора]] -> 4020 | L121: =IF(Таблица_Металлопроцессинг_детализированный[[#This Row],[Распределение выручки для Менеджера договора]]=1,"",Таблица_Металлопроцессинг_детализированный[[#This Row],[Сумма наценки]]*Таблица_Металлопроцессинг_детализированный[[#This Row],[Распределение выручки для Менеджера договора]]) -> 0 | M121: Процессинг | N121: САНКТ-ПЕТЕРБУРГ | O121: Металлсоюз Спб | P121: ООО "Металлсоюз" | S121: Металлоторговля | T121: Арматура B500C, 8, Ст.сп/пс , в бунтах(ГОСТ 52544-2006) | V121: 4.02 | W121: т | X121: 103153.2 | Y121: Размотка/резка арматурного проката | Z121: MELC 16x4 | AA121: 4020 | AB121: 1 | AC121: 10 | AD121: 1 | AE121: САНКТ-ПЕТЕРБУРГ | AF121: Центр | AG121: 4.02
A122: 1 | B122: САНКТ-ПЕТЕРБУРГ | C122: Центр | D122: Матросова Л.Ш. | E122: Матросова Л.Ш. | F122: Райская Н.А. | G122: =IF(Таблица_Металлопроцессинг_детализированный[[#This Row],[Куратор договора]]=Таблица_Металлопроцессинг_детализированный[[#This Row],[Менеджер]],TRUE,FALSE) -> FALSE | H122: =SUMIFS(AA122:AA2618,O122:O2618,Таблица_Металлопроцессинг_детализированный[[#This Row],[Контрагент]],A122:A2618,Таблица_Металлопроцессинг_детализированный[[#This Row],[Месяц отгрузки]]) -> 4510 | I122: =IF(Таблица_Металлопроцессинг_детализированный[[#This Row],[Инициатор+исполнитель]],1,IF(Таблица_Металлопроцессинг_детализированный[[#This Row],[Оборот за месяц по контрагенту]]<1000000,0.5,0.7)) -> 0.5 | J122: =IF(Таблица_Металлопроцессинг_детализированный[[#This Row],[Инициатор+исполнитель]]=TRUE,0,IF(Таблица_Металлопроцессинг_детализированный[[#This Row],[Оборот за месяц по контрагенту]]<1000000,0.5,0.3)) -> 0.5 | K122: =Таблица_Металлопроцессинг_детализированный[[#This Row],[Сумма наценки]]*Таблица_Металлопроцессинг_детализированный[[#This Row],[Распределение выручки для Куратора договора]] -> 2255 | L122: =IF(Таблица_Металлопроцессинг_детализированный[[#This Row],[Распределение выручки для Менеджера договора]]=1,"",Таблица_Металлопроцессинг_детализированный[[#This Row],[Сумма наценки]]*Таблица_Металлопроцессинг_детализированный[[#This Row],[Распределение выручки для Менеджера договора]]) -> 2255 | M122: Процессинг | N122: САНКТ-ПЕТЕРБУРГ | O122: Металлсоюз Спб | P122: ООО "Металлсоюз" | S122: Металлоторговля | T122: Арматура B500C, 8, Ст.сп/пс , в бунтах(ГОСТ 52544-2006) | V122: 4.51 | W122: т | X122: 115726.6 | Y122: Размотка/резка арматурного проката | Z122: MELC 16x4 | AA122: 4510 | AB122: 1 | AC122: 0 | AD122: 1 | AE122: САНКТ-ПЕТЕРБУРГ | AF122: Центр | AG122: 4.51
A123: 1 | B123: САНКТ-ПЕТЕРБУРГ | C123: Центр | D123: Матросова Л.Ш. | E123: Матросова Л.Ш. | F123: Матросова Л.Ш. | G123: =IF(Таблица_Металлопроцессинг_детализированный[[#This Row],[Куратор договора]]=Таблица_Металлопроцессинг_детализированный[[#This Row],[Менеджер]],TRUE,FALSE) -> TRUE | H123: =SUMIFS(AA123:AA2649,O123:O2649,Таблица_Металлопроцессинг_детализированный[[#This Row],[Контрагент]],A123:A2649,Таблица_Металлопроцессинг_детализированный[[#This Row],[Месяц отгрузки]]) -> 540 | I123: =IF(Таблица_Металлопроцессинг_детализированный[[#This Row],[Инициатор+исполнитель]],1,IF(Таблица_Металлопроцессинг_детализированный[[#This Row],[Оборот за месяц по контрагенту]]<1000000,0.5,0.7)) -> 1 | J123: =IF(Таблица_Металлопроцессинг_детализированный[[#This Row],[Инициатор+исполнитель]]=TRUE,0,IF(Таблица_Металлопроцессинг_детализированный[[#This Row],[Оборот за месяц по контрагенту]]<1000000,0.5,0.3)) -> 0 | K123: =Таблица_Металлопроцессинг_детализированный[[#This Row],[Сумма наценки]]*Таблица_Металлопроцессинг_детализированный[[#This Row],[Распределение выручки для Куратора договора]] -> 540 | L123: =IF(Таблица_Металлопроцессинг_детализированный[[#This Row],[Распределение выручки для Менеджера договора]]=1,"",Таблица_Металлопроцессинг_детализированный[[#This Row],[Сумма наценки]]*Таблица_Металлопроцессинг_детализированный[[#This Row],[Распределение выручки для Менеджера договора]]) -> 0 | M123: Процессинг | N123: САНКТ-ПЕТЕРБУРГ | O123: ФЕРРОАРТ | P123: ООО "ФЕРРОАРТ" | S123: Металлоконструкции | T123: Швеллер стальной г/к, 27У, С255 (ГОСТ 27772-88) | V123: 0.665 | W123: т | X123: 22457.05 | Y123: Станок ленточнопильный | Z123: PEGASUS | AA123: 540 | AB123: 2 | AC123: 0.674 | AD123: 1 | AE123: САНКТ-ПЕТЕРБУРГ | AF123: Центр | AG123: 0.665
A124: 1 | B124: САНКТ-ПЕТЕРБУРГ | C124: Центр | D124: Сафонеев С.А. | E124: Сафонеев С.А. | F124: Сафонеев С.А. | G124: =IF(Таблица_Металлопроцессинг_детализированный[[#This Row],[Куратор договора]]=Таблица_Металлопроцессинг_детализированный[[#This Row],[Менеджер]],TRUE,FALSE) -> TRUE | H124: =SUMIFS(AA124:AA2650,O124:O2650,Таблица_Металлопроцессинг_детализированный[[#This Row],[Контрагент]],A124:A2650,Таблица_Металлопроцессинг_детализированный[[#This Row],[Месяц отгрузки]]) -> 67247.86 | I124: =IF(Таблица_Металлопроцессинг_детализированный[[#This Row],[Инициатор+исполнитель]],1,IF(Таблица_Металлопроцессинг_детализированный[[#This Row],[Оборот за месяц по контрагенту]]<1000000,0.5,0.7)) -> 1 | J124: =IF(Таблица_Металлопроцессинг_детализированный[[#This Row],[Инициатор+исполнитель]]=TRUE,0,IF(Таблица_Металлопроцессинг_детализированный[[#This Row],[Оборот за месяц по контрагенту]]<1000000,0.5,0.3)) -> 0 | K124: =Таблица_Металлопроцессинг_детализированный[[#This Row],[Сумма наценки]]*Таблица_Металлопроцессинг_детализированный[[#This Row],[Распределение выручки для Куратора договора]] -> 41866.77 | L124: =IF(Таблица_Металлопроцессинг_детализированный[[#This Row],[Распределение выручки для Менеджера договора]]=1,"",Таблица_Металлопроцессинг_детализированный[[#This Row],[Сумма наценки]]*Таблица_Металлопроцессинг_детализированный[[#This Row],[Распределение выручки для Менеджера договора]]) -> 0 | M124: Из давальческого сырья | N124: САНКТ-ПЕТЕРБУРГ | O124: НЕВА-МЕТАЛЛТРЭЙД ООО | P124: ООО "Нева-МеталлТрэйд" | Q124: г. Санкт-Петербург | R124: г. Санкт-Петербург | S124: Машиностроение | T124: Изделие | U124: Полособульб РСД32 №16а, 6000мм | V124: 14.289 | W124: т | X124: 0 | Y124: Очистка и покраска проката (грунт HEMPEL) | Z124: ROSLER | AA124: 41866.77 | AB124: 14.289 | AC124: 14.289 | AD124: 1 | AE124: САНКТ-ПЕТЕРБУРГ | AF124: Центр | AG124: 14.289
A125: 1 | B125: САНКТ-ПЕТЕРБУРГ | C125: Центр | D125: Сафонеев С.А. | E125: Сафонеев С.А. | F125: Сафонеев С.А. | G125: =IF(Таблица_Металлопроцессинг_детализированный[[#This Row],[Куратор договора]]=Таблица_Металлопроцессинг_детализированный[[#This Row],[Менеджер]],TRUE,FALSE) -> TRUE | H125: =SUMIFS(AA125:AA2651,O125:O2651,Таблица_Металлопроцессинг_детализированный[[#This Row],[Контрагент]],A125:A2651,Таблица_Металлопроцессинг_детализированный[[#This Row],[Месяц отгрузки]]) -> 25381.09 | I125: =IF(Таблица_Металлопроцессинг_детализированный[[#This Row],[Инициатор+исполнитель]],1,IF(Таблица_Металлопроцессинг_детализированный[[#This Row],[Оборот за месяц по контрагенту]]<1000000,0.5,0.7)) -> 1 | J125: =IF(Таблица_Металлопроцессинг_детализированный[[#This Row],[Инициатор+исполнитель]]=TRUE,0,IF(Таблица_Металлопроцессинг_детализированный[[#This Row],[Оборот за месяц по контрагенту]]<1000000,0.5,0.3)) -> 0 | K125: =Таблица_Металлопроцессинг_детализированный[[#This Row],[Сумма наценки]]*Таблица_Металлопроцессинг_детализированный[[#This Row],[Распределение выручки для Куратора договора]] -> 13564.4 | L125: =IF(Таблица_Металлопроцессинг_детализированный[[#This Row],[Распределение выручки для Менеджера договора]]=1,"",Таблица_Металлопроцессинг_детализированный[[#This Row],[Сумма наценки]]*Таблица_Металлопроцессинг_детализированный[[#This Row],[Распределение выручки для Менеджера договора]]) -> 0 | M125: Из давальческого сырья | N125: САНКТ-ПЕТЕРБУРГ | O125: НЕВА-МЕТАЛЛТРЭЙД ООО | P125: ООО "Нева-МеталлТрэйд" | Q125: г. Санкт-Петербург | R125: г. Санкт-Петербург | S125: Машиностроение | T125: Изделие | U125: Полособульб РСД32 №20а, 6000мм | V125: 5.666 | W125: т | X125: 0 | Y125: Очистка и покраска проката (грунт HEMPEL) | Z125: ROSLER | AA125: 13564.4 | AB125: 5.666 | AC125: 5.666 | AD125: 1 | AE125: САНКТ-ПЕТЕРБУРГ | AF125: Центр | AG125: 5.666
A126: 1 | B126: САНКТ-ПЕТЕРБУРГ | C126: Центр | D126: Сафонеев С.А. | E126: Сафонеев С.А. | F126: Сафонеев С.А. | G126: =IF(Таблица_Металлопроцессинг_детализированный[[#This Row],[Куратор договора]]=Таблица_Металлопроцессинг_детализированный[[#This Row],[Менеджер]],TRUE,FALSE) -> TRUE | H126: =SUMIFS(AA126:AA2652,O126:O2652,Таблица_Металлопроцессинг_детализированный[[#This Row],[Контрагент]],A126:A2652,Таблица_Металлопроцессинг_детализированный[[#This Row],[Месяц отгрузки]]) -> 11816.69 | I126: =IF(Таблица_Металлопроцессинг_детализированный[[#This Row],[Инициатор+исполнитель]],1,IF(Таблица_Металлопроцессинг_детализированный[[#This Row],[Оборот за месяц по контрагенту]]<1000000,0.5,0.7)) -> 1 | J126: =IF(Таблица_Металлопроцессинг_детализированный[[#This Row],[Инициатор+исполнитель]]=TRUE,0,IF(Таблица_Металлопроцессинг_детализированный[[#This Row],[Оборот за месяц по контрагенту]]<1000000,0.5,0.3)) -> 0 | K126: =Таблица_Металлопроцессинг_детализированный[[#This Row],[Сумма наценки]]*Таблица_Металлопроцессинг_детализированный[[#This Row],[Распределение выручки для Куратора договора]] -> 7333.79 | L126: =IF(Таблица_Металлопроцессинг_детализированный[[#This Row],[Распределение выручки для Менеджера договора]]=1,"",Таблица_Металлопроцессинг_детализированный[[#This Row],[Сумма наценки]]*Таблица_Металлопроцессинг_детализированный[[#This Row],[Распределение выручки для Менеджера договора]]) -> 0 | M126: Из давальческого сырья | N126: САНКТ-ПЕТЕРБУРГ | O126: НЕВА-МЕТАЛЛТРЭЙД ООО | P126: ООО "Нева-МеталлТрэйд" | Q126: г. Санкт-Петербург | R126: г. Санкт-Петербург | S126: Машиностроение | T126: Изделие | U126: Полособьульб РСД32 №16б, 6000мм | V126: 2.503 | W126: т | X126: 0 | Y126: Очистка и покраска проката (грунт HEMPEL) | Z126: ROSLER | AA126: 7333.79 | AB126: 2.503 | AC126: 2.503 | AD126: 1 | AE126: САНКТ-ПЕТЕРБУРГ | AF126: Центр | AG126: 2.503
A127: 1 | B127: САНКТ-ПЕТЕРБУРГ | C127: Центр | D127: Сафонеев С.А. | E127: Сафонеев С.А. | F127: Сафонеев С.А. | G127: =IF(Таблица_Металлопроцессинг_детализированный[[#This Row],[Куратор договора]]=Таблица_Металлопроцессинг_детализированный[[#This Row],[Менеджер]],TRUE,FALSE) -> TRUE | H127: =SUMIFS(AA127:AA2653,O127:O2653,Таблица_Металлопроцессинг_детализированный[[#This Row],[Контрагент]],A127:A2653,Таблица_Металлопроцессинг_детализированный[[#This Row],[Месяц отгрузки]]) -> 4482.9 | I127: =IF(Таблица_Металлопроцессинг_детализированный[[#This Row],[Инициатор+исполнитель]],1,IF(Таблица_Металлопроцессинг_детализированный[[#This Row],[Оборот за месяц по контрагенту]]<1000000,0.5,0.7)) -> 1 | J127: =IF(Таблица_Металлопроцессинг_детализированный[[#This Row],[Инициатор+исполнитель]]=TRUE,0,IF(Таблица_Металлопроцессинг_детализированный[[#This Row],[Оборот за месяц по контрагенту]]<1000000,0.5,0.3)) -> 0 | K127: =Таблица_Металлопроцессинг_детализированный[[#This Row],[Сумма наценки]]*Таблица_Металлопроцессинг_детализированный[[#This Row],[Распределение выручки для Куратора договора]] -> 4482.9 | L127: =IF(Таблица_Металлопроцессинг_детализированный[[#This Row],[Распределение выручки для Менеджера договора]]=1,"",Таблица_Металлопроцессинг_детализированный[[#This Row],[Сумма наценки]]*Таблица_Металлопроцессинг_детализированный[[#This Row],[Распределение выручки для Менеджера договора]]) -> 0 | M127: Из давальческого сырья | N127: САНКТ-ПЕТЕРБУРГ | O127: НЕВА-МЕТАЛЛТРЭЙД ООО | P127: ООО "Нева-МеталлТрэйд" | Q127: г. Санкт-Петербург | R127: г. Санкт-Петербург | S127: Машиностроение | T127: Изделие | U127: Полособульб РСД32, №16а, L=6000 | V127: 1.53 | W127: т | X127: 0 | Y127: Очистка и покраска проката (грунт HEMPEL) | Z127: ROSLER | AA127: 4482.9 | AB127: 1.53 | AC127: 1.53 | AD127: 1 | AE127: САНКТ-ПЕТЕРБУРГ | AF127: Центр | AG127: 1.53
A128: 1 | B128: САНКТ-ПЕТЕРБУРГ | C128: Центр | D128: Молчанова Е.М. | E128: Молчанова Е.М. | F128: Молчанова Е.М. | G128: =IF(Таблица_Металлопроцессинг_детализированный[[#This Row],[Куратор договора]]=Таблица_Металлопроцессинг_детализированный[[#This Row],[Менеджер]],TRUE,FALSE) -> TRUE | H128: =SUMIFS(AA128:AA2661,O128:O2661,Таблица_Металлопроцессинг_детализированный[[#This Row],[Контрагент]],A128:A2661,Таблица_Металлопроцессинг_детализированный[[#This Row],[Месяц отгрузки]]) -> 98360 | I128: =IF(Таблица_Металлопроцессинг_детализированный[[#This Row],[Инициатор+исполнитель]],1,IF(Таблица_Металлопроцессинг_детализированный[[#This Row],[Оборот за месяц по контрагенту]]<1000000,0.5,0.7)) -> 1 | J128: =IF(Таблица_Металлопроцессинг_детализированный[[#This Row],[Инициатор+исполнитель]]=TRUE,0,IF(Таблица_Металлопроцессинг_детализированный[[#This Row],[Оборот за месяц по контрагенту]]<1000000,0.5,0.3)) -> 0 | K128: =Таблица_Металлопроцессинг_детализированный[[#This Row],[Сумма наценки]]*Таблица_Металлопроцессинг_детализированный[[#This Row],[Распределение выручки для Куратора договора]] -> 33900 | L128: =IF(Таблица_Металлопроцессинг_детализированный[[#This Row],[Распределение выручки для Менеджера договора]]=1,"",Таблица_Металлопроцессинг_детализированный[[#This Row],[Сумма наценки]]*Таблица_Металлопроцессинг_детализированный[[#This Row],[Распределение выручки для Менеджера договора]]) -> 0 | M128: Процессинг | N128: САНКТ-ПЕТЕРБУРГ | O128: НЕВСКИЙ МЕТАЛЛ (СПб) | P128: ООО "НЕВСКИЙ МЕТАЛЛ" | S128: Металлоторговля | T128: Сталь рулонная Г/к., 4, 1500, Ст.сп/пс (19903) | V128: 2.9 | W128: т | X128: 65047 | Y128: Порезка листового проката (ножницы) | Z128: COLGAR CI-34-TR | AA128: 33900 | AB128: 452 | AC128: 2.9 | AD128: 1 | AE128: САНКТ-ПЕТЕРБУРГ | AF128: Центр | AG128: 2.9
A129: 1 | B129: САНКТ-ПЕТЕРБУРГ | C129: Центр | D129: Хабибуллов М.Р. | E129: Хабибуллов М.Р. | F129: Хабибуллов М.Р. | G129: =IF(Таблица_Металлопроцессинг_детализированный[[#This Row],[Куратор договора]]=Таблица_Металлопроцессинг_детализированный[[#This Row],[Менеджер]],TRUE,FALSE) -> TRUE | H129: =SUMIFS(AA129:AA2662,O129:O2662,Таблица_Металлопроцессинг_детализированный[[#This Row],[Контрагент]],A129:A2662,Таблица_Металлопроцессинг_детализированный[[#This Row],[Месяц отгрузки]]) -> 194944.5 | I129: =IF(Таблица_Металлопроцессинг_детализированный[[#This Row],[Инициатор+исполнитель]],1,IF(Таблица_Металлопроцессинг_детализированный[[#This Row],[Оборот за месяц по контрагенту]]<1000000,0.5,0.7)) -> 1 | J129: =IF(Таблица_Металлопроцессинг_детализированный[[#This Row],[Инициатор+исполнитель]]=TRUE,0,IF(Таблица_Металлопроцессинг_детализированный[[#This Row],[Оборот за месяц по контрагенту]]<1000000,0.5,0.3)) -> 0 | K129: =Таблица_Металлопроцессинг_детализированный[[#This Row],[Сумма наценки]]*Таблица_Металлопроцессинг_детализированный[[#This Row],[Распределение выручки для Куратора договора]] -> 29982 | L129: =IF(Таблица_Металлопроцессинг_детализированный[[#This Row],[Распределение выручки для Менеджера договора]]=1,"",Таблица_Металлопроцессинг_детализированный[[#This Row],[Сумма наценки]]*Таблица_Металлопроцессинг_детализированный[[#This Row],[Распределение выручки для Менеджера договора]]) -> 0 | M129: Процессинг | N129: САНКТ-ПЕТЕРБУРГ | O129: АртЛэнд | P129: ООО "Строительная компания "АртЛэнд" | S129: Стройиндустрия | T129: Шпунт Ларсена Л5-УМ, С255 (ТУ 14-102-8-2003) | V129: 19.988 | W129: т | X129: 789526 | Y129: Очистка и покраска проката (грунт ЭМЛАК 263) | Z129: ROSLER | AA129: 29982 | AB129: 19.988 | AC129: 66.224 | AD129: 1 | AE129: САНКТ-ПЕТЕРБУРГ | AF129: Центр | AG129: 19.988
A130: 1 | B130: САНКТ-ПЕТЕРБУРГ | C130: Центр | D130: Молчанова Е.М. | E130: Молчанова Е.М. | F130: Молчанова Е.М. | G130: =IF(Таблица_Металлопроцессинг_детализированный[[#This Row],[Куратор договора]]=Таблица_Металлопроцессинг_детализированный[[#This Row],[Менеджер]],TRUE,FALSE) -> TRUE | H130: =SUMIFS(AA130:AA2676,O130:O2676,Таблица_Металлопроцессинг_детализированный[[#This Row],[Контрагент]],A130:A2676,Таблица_Металлопроцессинг_детализированный[[#This Row],[Месяц отгрузки]]) -> 12124.2 | I130: =IF(Таблица_Металлопроцессинг_детализированный[[#This Row],[Инициатор+исполнитель]],1,IF(Таблица_Металлопроцессинг_детализированный[[#This Row],[Оборот за месяц по контрагенту]]<1000000,0.5,0.7)) -> 1 | J130: =IF(Таблица_Металлопроцессинг_детализированный[[#This Row],[Инициатор+исполнитель]]=TRUE,0,IF(Таблица_Металлопроцессинг_детализированный[[#This Row],[Оборот за месяц по контрагенту]]<1000000,0.5,0.3)) -> 0 | K130: =Таблица_Металлопроцессинг_детализированный[[#This Row],[Сумма наценки]]*Таблица_Металлопроцессинг_детализированный[[#This Row],[Распределение выручки для Куратора договора]] -> 3090 | L130: =IF(Таблица_Металлопроцессинг_детализированный[[#This Row],[Распределение выручки для Менеджера договора]]=1,"",Таблица_Металлопроцессинг_детализированный[[#This Row],[Сумма наценки]]*Таблица_Металлопроцессинг_детализированный[[#This Row],[Распределение выручки для Менеджера договора]]) -> 0 | M130: Процессинг | N130: САНКТ-ПЕТЕРБУРГ | O130: ПСМ-25 | P130: ООО "ПромСтройМонтаж - 25" | S130: Стройиндустрия | T130: Арматура B500C, 10, Ст.сп/пс , в бунтах(ГОСТ 52544-2006) | V130: 2.06 | W130: т | X130: 52859.6 | Y130: Размотка/резка арматурного проката | Z130: MELC 16x4 | AA130: 3090 | AB130: 1 | AC130: 2 | AD130: 1 | AE130: САНКТ-ПЕТЕРБУРГ | AF130: Центр | AG130: 2.06
A131: 1 | B131: САНКТ-ПЕТЕРБУРГ | C131: Центр | D131: Молчанова Е.М. | E131: Молчанова Е.М. | F131: Молчанова Е.М. | G131: =IF(Таблица_Металлопроцессинг_детализированный[[#This Row],[Куратор договора]]=Таблица_Металлопроцессинг_детализированный[[#This Row],[Менеджер]],TRUE,FALSE) -> TRUE | H131: =SUMIFS(AA131:AA2677,O131:O2677,Таблица_Металлопроцессинг_детализированный[[#This Row],[Контрагент]],A131:A2677,Таблица_Металлопроцессинг_детализированный[[#This Row],[Месяц отгрузки]]) -> 9034.2 | I131: =IF(Таблица_Металлопроцессинг_детализированный[[#This Row],[Инициатор+исполнитель]],1,IF(Таблица_Металлопроцессинг_детализированный[[#This Row],[Оборот за месяц по контрагенту]]<1000000,0.5,0.7)) -> 1 | J131: =IF(Таблица_Металлопроцессинг_детализированный[[#This Row],[Инициатор+исполнитель]]=TRUE,0,IF(Таблица_Металлопроцессинг_детализированный[[#This Row],[Оборот за месяц по контрагенту]]<1000000,0.5,0.3)) -> 0 | K131: =Таблица_Металлопроцессинг_детализированный[[#This Row],[Сумма наценки]]*Таблица_Металлопроцессинг_детализированный[[#This Row],[Распределение выручки для Куратора договора]] -> 2925 | L131: =IF(Таблица_Металлопроцессинг_детализированный[[#This Row],[Распределение выручки для Менеджера договора]]=1,"",Таблица_Металлопроцессинг_детализированный[[#This Row],[Сумма наценки]]*Таблица_Металлопроцессинг_детализированный[[#This Row],[Распределение выручки для Менеджера договора]]) -> 0 | M131: Процессинг | N131: САНКТ-ПЕТЕРБУРГ | O131: ПСМ-25 | P131: ООО "ПромСтройМонтаж - 25" | S131: Стройиндустрия | T131: Арматура класс АI, 8, Ст.сп/пс, в бунтах (ГОСТ5781-82) | V131: 1.95 | W131: т | X131: 50037 | Y131: Размотка/резка арматурного проката | Z131: MELC 16x4 | AA131: 2925 | AB131: 1 | AC131: 2 | AD131: 1 | AE131: САНКТ-ПЕТЕРБУРГ | AF131: Центр | AG131: 1.95
A132: 1 | B132: САНКТ-ПЕТЕРБУРГ | C132: Центр | D132: Молчанова Е.М. | E132: Молчанова Е.М. | F132: Райская Н.А. | G132: =IF(Таблица_Металлопроцессинг_детализированный[[#This Row],[Куратор договора]]=Таблица_Металлопроцессинг_детализированный[[#This Row],[Менеджер]],TRUE,FALSE) -> FALSE | H132: =SUMIFS(AA132:AA2678,O132:O2678,Таблица_Металлопроцессинг_детализированный[[#This Row],[Контрагент]],A132:A2678,Таблица_Металлопроцессинг_детализированный[[#This Row],[Месяц отгрузки]]) -> 6109.2 | I132: =IF(Таблица_Металлопроцессинг_детализированный[[#This Row],[Инициатор+исполнитель]],1,IF(Таблица_Металлопроцессинг_детализированный[[#This Row],[Оборот за месяц по контрагенту]]<1000000,0.5,0.7)) -> 0.5 | J132: =IF(Таблица_Металлопроцессинг_детализированный[[#This Row],[Инициатор+исполнитель]]=TRUE,0,IF(Таблица_Металлопроцессинг_детализированный[[#This Row],[Оборот за месяц по контрагенту]]<1000000,0.5,0.3)) -> 0.5 | K132: =Таблица_Металлопроцессинг_детализированный[[#This Row],[Сумма наценки]]*Таблица_Металлопроцессинг_детализированный[[#This Row],[Распределение выручки для Куратора договора]] -> 2385 | L132: =IF(Таблица_Металлопроцессинг_детализированный[[#This Row],[Распределение выручки для Менеджера договора]]=1,"",Таблица_Металлопроцессинг_детализированный[[#This Row],[Сумма наценки]]*Таблица_Металлопроцессинг_детализированный[[#This Row],[Распределение выручки для Менеджера договора]]) -> 2385 | M132: Процессинг | N132: САНКТ-ПЕТЕРБУРГ | O132: ПСМ-25 | P132: ООО "ПромСтройМонтаж - 25" | S132: Стройиндустрия | T132: Арматура класс АIII (А400), 8, Ст.35ГС, в бунтах (ГОСТ5781-82) | V132: 3.18 | W132: т | X132: 83347.8 | Y132: Размотка/резка арматурного проката | Z132: MELC 16x4 | AA132: 4770 | AB132: 1 | AC132: 3 | AD132: 1 | AE132: САНКТ-ПЕТЕРБУРГ | AF132: Центр | AG132: 3.18
A133: 1 | B133: САНКТ-ПЕТЕРБУРГ | C133: Центр | D133: Молчанова Е.М. | E133: Молчанова Е.М. | F133: Хабибуллов М.Р. | G133: =IF(Таблица_Металлопроцессинг_детализированный[[#This Row],[Куратор договора]]=Таблица_Металлопроцессинг_детализированный[[#This Row],[Менеджер]],TRUE,FALSE) -> FALSE | H133: =SUMIFS(AA133:AA2679,O133:O2679,Таблица_Металлопроцессинг_детализированный[[#This Row],[Контрагент]],A133:A2679,Таблица_Металлопроцессинг_детализированный[[#This Row],[Месяц отгрузки]]) -> 1339.2 | I133: =IF(Таблица_Металлопроцессинг_детализированный[[#This Row],[Инициатор+исполнитель]],1,IF(Таблица_Металлопроцессинг_детализированный[[#This Row],[Оборот за месяц по контрагенту]]<1000000,0.5,0.7)) -> 0.5 | J133: =IF(Таблица_Металлопроцессинг_детализированный[[#This Row],[Инициатор+исполнитель]]=TRUE,0,IF(Таблица_Металлопроцессинг_детализированный[[#This Row],[Оборот за месяц по контрагенту]]<1000000,0.5,0.3)) -> 0.5 | K133: =Таблица_Металлопроцессинг_детализированный[[#This Row],[Сумма наценки]]*Таблица_Металлопроцессинг_детализированный[[#This Row],[Распределение выручки для Куратора договора]] -> 669.6 | L133: =IF(Таблица_Металлопроцессинг_детализированный[[#This Row],[Распределение выручки для Менеджера договора]]=1,"",Таблица_Металлопроцессинг_детализированный[[#This Row],[Сумма наценки]]*Таблица_Металлопроцессинг_детализированный[[#This Row],[Распределение выручки для Менеджера договора]]) -> 669.6 | M133: Процессинг | N133: САНКТ-ПЕТЕРБУРГ | O133: ПСМ-25 | P133: ООО "ПромСтройМонтаж - 25" | S133: Стройиндустрия | T133: Катанка, 6.5, Ст.08Г2С (ТУ 14-1-4782-90) | V133: 0.48 | W133: т | X133: 12796.8 | Y133: Размотка/резка арматурного проката | Z133: MELC 16x4 | AA133: 1339.2 | AB133: 1 | AC133: 0.55 | AD133: 1 | AE133: САНКТ-ПЕТЕРБУРГ | AF133: Центр | AG133: 0.48
A134: 1 | B134: САНКТ-ПЕТЕРБУРГ | C134: Центр | D134: Хабибуллов М.Р. | E134: Хабибуллов М.Р. | F134: Дауэнгауэр Н.Э. | G134: =IF(Таблица_Металлопроцессинг_детализированный[[#This Row],[Куратор договора]]=Таблица_Металлопроцессинг_детализированный[[#This Row],[Менеджер]],TRUE,FALSE) -> FALSE | H134: =SUMIFS(AA134:AA2680,O134:O2680,Таблица_Металлопроцессинг_детализированный[[#This Row],[Контрагент]],A134:A2680,Таблица_Металлопроцессинг_детализированный[[#This Row],[Месяц отгрузки]]) -> 124850 | I134: =IF(Таблица_Металлопроцессинг_детализированный[[#This Row],[Инициатор+исполнитель]],1,IF(Таблица_Металлопроцессинг_детализированный[[#This Row],[Оборот за месяц по контрагенту]]<1000000,0.5,0.7)) -> 0.5 | J134: =IF(Таблица_Металлопроцессинг_детализированный[[#This Row],[Инициатор+исполнитель]]=TRUE,0,IF(Таблица_Металлопроцессинг_детализированный[[#This Row],[Оборот за месяц по контрагенту]]<1000000,0.5,0.3)) -> 0.5 | K134: =Таблица_Металлопроцессинг_детализированный[[#This Row],[Сумма наценки]]*Таблица_Металлопроцессинг_детализированный[[#This Row],[Распределение выручки для Куратора договора]] -> 21105 | L134: =IF(Таблица_Металлопроцессинг_детализированный[[#This Row],[Распределение выручки для Менеджера договора]]=1,"",Таблица_Металлопроцессинг_детализированный[[#This Row],[Сумма наценки]]*Таблица_Металлопроцессинг_детализированный[[#This Row],[Распределение выручки для Менеджера договора]]) -> 21105 | M134: Процессинг | N134: САНКТ-ПЕТЕРБУРГ | O134: РОССИНКОМ | P134: ООО "Строительная инновационная компания "РОССИНКОМ" | S134: Стройиндустрия | T134: Шпунт Ларсена Л5-УМ, С255 (ТУ 0925-008-00186269-2012) | V134: 21.105 | W134: т | X134: 833436.45 | Y134: Очистка и покраска проката (грунт HEMPEL) | Z134: ROSLER | AA134: 42210 | AB134: 21.105 | AC134: 60.28 | AD134: 1 | AE134: САНКТ-ПЕТЕРБУРГ | AF134: Центр | AG134: 21.105
A135: 1 | B135: САНКТ-ПЕТЕРБУРГ | C135: Центр | D135: Молчанова Е.М. | E135: Молчанова Е.М. | F135: Дауэнгауэр Н.Э. | G135: =IF(Таблица_Металлопроцессинг_детализированный[[#This Row],[Куратор договора]]=Таблица_Металлопроцессинг_детализированный[[#This Row],[Менеджер]],TRUE,FALSE) -> FALSE | H135: =SUMIFS(AA135:AA2681,O135:O2681,Таблица_Металлопроцессинг_детализированный[[#This Row],[Контрагент]],A135:A2681,Таблица_Металлопроцессинг_детализированный[[#This Row],[Месяц отгрузки]]) -> 11700 | I135: =IF(Таблица_Металлопроцессинг_детализированный[[#This Row],[Инициатор+исполнитель]],1,IF(Таблица_Металлопроцессинг_детализированный[[#This Row],[Оборот за месяц по контрагенту]]<1000000,0.5,0.7)) -> 0.5 | J135: =IF(Таблица_Металлопроцессинг_детализированный[[#This Row],[Инициатор+исполнитель]]=TRUE,0,IF(Таблица_Металлопроцессинг_детализированный[[#This Row],[Оборот за месяц по контрагенту]]<1000000,0.5,0.3)) -> 0.5 | K135: =Таблица_Металлопроцессинг_детализированный[[#This Row],[Сумма наценки]]*Таблица_Металлопроцессинг_детализированный[[#This Row],[Распределение выручки для Куратора договора]] -> 5850 | L135: =IF(Таблица_Металлопроцессинг_детализированный[[#This Row],[Распределение выручки для Менеджера договора]]=1,"",Таблица_Металлопроцессинг_детализированный[[#This Row],[Сумма наценки]]*Таблица_Металлопроцессинг_детализированный[[#This Row],[Распределение выручки для Менеджера договора]]) -> 5850 | M135: Процессинг | N135: САНКТ-ПЕТЕРБУРГ | O135: Трест 68 ЗАО | P135: ЗАО "Трест 68" | Q135: г. Санкт-Петербург | R135: г. Санкт-Петербург | S135: Стройиндустрия | T135: Сталь листовая Г/к. рифленая, 4, 1500x6000, Ст.сп/пс (ГОСТ 8568-77) | V135: 1.54 | W135: т | X135: 40871.6 | Y135: Порезка листового проката (ножницы) | Z135: COLGAR CI-34-TR | AA135: 11700 | AB135: 78 | AC135: 1.5 | AD135: 1 | AE135: САНКТ-ПЕТЕРБУРГ | AF135: Центр | AG135: 1.54
A136: 1 | B136: САНКТ-ПЕТЕРБУРГ | C136: Центр | D136: Хабибуллов М.Р. | E136: Хабибуллов М.Р. | F136: Хабибуллов М.Р. | G136: =IF(Таблица_Металлопроцессинг_детализированный[[#This Row],[Куратор договора]]=Таблица_Металлопроцессинг_детализированный[[#This Row],[Менеджер]],TRUE,FALSE) -> TRUE | H136: =SUMIFS(AA136:AA2685,O136:O2685,Таблица_Металлопроцессинг_детализированный[[#This Row],[Контрагент]],A136:A2685,Таблица_Металлопроцессинг_детализированный[[#This Row],[Месяц отгрузки]]) -> 164962.5 | I136: =IF(Таблица_Металлопроцессинг_детализированный[[#This Row],[Инициатор+исполнитель]],1,IF(Таблица_Металлопроцессинг_детализированный[[#This Row],[Оборот за месяц по контрагенту]]<1000000,0.5,0.7)) -> 1 | J136: =IF(Таблица_Металлопроцессинг_детализированный[[#This Row],[Инициатор+исполнитель]]=TRUE,0,IF(Таблица_Металлопроцессинг_детализированный[[#This Row],[Оборот за месяц по контрагенту]]<1000000,0.5,0.3)) -> 0 | K136: =Таблица_Металлопроцессинг_детализированный[[#This Row],[Сумма наценки]]*Таблица_Металлопроцессинг_детализированный[[#This Row],[Распределение выручки для Куратора договора]] -> 29997 | L136: =IF(Таблица_Металлопроцессинг_детализированный[[#This Row],[Распределение выручки для Менеджера договора]]=1,"",Таблица_Металлопроцессинг_детализированный[[#This Row],[Сумма наценки]]*Таблица_Металлопроцессинг_детализированный[[#This Row],[Распределение выручки для Менеджера договора]]) -> 0 | M136: Процессинг | N136: САНКТ-ПЕТЕРБУРГ | O136: АртЛэнд | P136: ООО "Строительная компания "АртЛэнд" | S136: Стройиндустрия | T136: Шпунт Ларсена Л5-УМ, С255 (ТУ 14-102-8-2003) | V136: 19.998 | W136: т | X136: 789921 | Y136: Очистка и покраска проката (грунт ЭМЛАК 263) | Z136: ROSLER | AA136: 29997 | AB136: 19.998 | AC136: 19.998 | AD136: 2 | AE136: САНКТ-ПЕТЕРБУРГ | AF136: Центр | AG136: 19.998
A137: 1 | B137: САНКТ-ПЕТЕРБУРГ | C137: Центр | D137: Степура С.Н. | E137: Степура С.Н. | F137: Степура С.Н. | G137: =IF(Таблица_Металлопроцессинг_детализированный[[#This Row],[Куратор договора]]=Таблица_Металлопроцессинг_детализированный[[#This Row],[Менеджер]],TRUE,FALSE) -> TRUE | H137: =SUMIFS(AA137:AA2686,O137:O2686,Таблица_Металлопроцессинг_детализированный[[#This Row],[Контрагент]],A137:A2686,Таблица_Металлопроцессинг_детализированный[[#This Row],[Месяц отгрузки]]) -> 17950 | I137: =IF(Таблица_Металлопроцессинг_детализированный[[#This Row],[Инициатор+исполнитель]],1,IF(Таблица_Металлопроцессинг_детализированный[[#This Row],[Оборот за месяц по контрагенту]]<1000000,0.5,0.7)) -> 1 | J137: =IF(Таблица_Металлопроцессинг_детализированный[[#This Row],[Инициатор+исполнитель]]=TRUE,0,IF(Таблица_Металлопроцессинг_детализированный[[#This Row],[Оборот за месяц по контрагенту]]<1000000,0.5,0.3)) -> 0 | K137: =Таблица_Металлопроцессинг_детализированный[[#This Row],[Сумма наценки]]*Таблица_Металлопроцессинг_детализированный[[#This Row],[Распределение выручки для Куратора договора]] -> 12480 | L137: =IF(Таблица_Металлопроцессинг_детализированный[[#This Row],[Распределение выручки для Менеджера договора]]=1,"",Таблица_Металлопроцессинг_детализированный[[#This Row],[Сумма наценки]]*Таблица_Металлопроцессинг_детализированный[[#This Row],[Распределение выручки для Менеджера договора]]) -> 0 | M137: Процессинг | N137: САНКТ-ПЕТЕРБУРГ | O137: СФИНКС | P137: ООО "Сфинкс" | Q137: Ленинградская обл. | R137: Ленинградская обл. | S137: Стройиндустрия | T137: Сталь листовая Г/к., 16, 1500x6000, Ст.сп/пс (ГОСТ 14637) | V137: 1.13 | W137: т | X137: 26227.3 | Y137: Порезка листового проката (ножницы) | Z137: COLGAR CI-34-TR | AA137: 12480 | AB137: 78 | AC137: 1.13 | AD137: 1 | AE137: САНКТ-ПЕТЕРБУРГ | AF137: Центр | AG137: 1.13
A138: 1 | B138: САНКТ-ПЕТЕРБУРГ | C138: Центр | D138: Степура С.Н. | E138: Степура С.Н. | F138: Степура С.Н. | G138: =IF(Таблица_Металлопроцессинг_детализированный[[#This Row],[Куратор договора]]=Таблица_Металлопроцессинг_детализированный[[#This Row],[Менеджер]],TRUE,FALSE) -> TRUE | H138: =SUMIFS(AA138:AA2687,O138:O2687,Таблица_Металлопроцессинг_детализированный[[#This Row],[Контрагент]],A138:A2687,Таблица_Металлопроцессинг_детализированный[[#This Row],[Месяц отгрузки]]) -> 5470 | I138: =IF(Таблица_Металлопроцессинг_детализированный[[#This Row],[Инициатор+исполнитель]],1,IF(Таблица_Металлопроцессинг_детализированный[[#This Row],[Оборот за месяц по контрагенту]]<1000000,0.5,0.7)) -> 1 | J138: =IF(Таблица_Металлопроцессинг_детализированный[[#This Row],[Инициатор+исполнитель]]=TRUE,0,IF(Таблица_Металлопроцессинг_детализированный[[#This Row],[Оборот за месяц по контрагенту]]<1000000,0.5,0.3)) -> 0 | K138: =Таблица_Металлопроцессинг_детализированный[[#This Row],[Сумма наценки]]*Таблица_Металлопроцессинг_детализированный[[#This Row],[Распределение выручки для Куратора договора]] -> 3500 | L138: =IF(Таблица_Металлопроцессинг_детализированный[[#This Row],[Распределение выручки для Менеджера договора]]=1,"",Таблица_Металлопроцессинг_детализированный[[#This Row],[Сумма наценки]]*Таблица_Металлопроцессинг_детализированный[[#This Row],[Распределение выручки для Менеджера договора]]) -> 0 | M138: Процессинг | N138: САНКТ-ПЕТЕРБУРГ | O138: СФИНКС | P138: ООО "Сфинкс" | Q138: Ленинградская обл. | R138: Ленинградская обл. | S138: Стройиндустрия | T138: Уголок стальной г/к равнополочный, 160x10, С255 (ГОСТ 8509-93 / ГОСТ 27772-88) | V138: 0.225 | W138: т | X138: 7546.5 | Y138: Станок ленточнопильный | Z138: PEGASUS | AA138: 3500 | AB138: 50 | AC138: 0.22 | AD138: 1 | AE138: САНКТ-ПЕТЕРБУРГ | AF138: Центр | AG138: 0.225
A139: 1 | B139: САНКТ-ПЕТЕРБУРГ | C139: Центр | D139: Степура С.Н. | E139: Степура С.Н. | F139: Степура С.Н. | G139: =IF(Таблица_Металлопроцессинг_детализированный[[#This Row],[Куратор договора]]=Таблица_Металлопроцессинг_детализированный[[#This Row],[Менеджер]],TRUE,FALSE) -> TRUE | H139: =SUMIFS(AA139:AA2688,O139:O2688,Таблица_Металлопроцессинг_детализированный[[#This Row],[Контрагент]],A139:A2688,Таблица_Металлопроцессинг_детализированный[[#This Row],[Месяц отгрузки]]) -> 1970 | I139: =IF(Таблица_Металлопроцессинг_детализированный[[#This Row],[Инициатор+исполнитель]],1,IF(Таблица_Металлопроцессинг_детализированный[[#This Row],[Оборот за месяц по контрагенту]]<1000000,0.5,0.7)) -> 1 | J139: =IF(Таблица_Металлопроцессинг_детализированный[[#This Row],[Инициатор+исполнитель]]=TRUE,0,IF(Таблица_Металлопроцессинг_детализированный[[#This Row],[Оборот за месяц по контрагенту]]<1000000,0.5,0.3)) -> 0 | K139: =Таблица_Металлопроцессинг_детализированный[[#This Row],[Сумма наценки]]*Таблица_Металлопроцессинг_детализированный[[#This Row],[Распределение выручки для Куратора договора]] -> 1650 | L139: =IF(Таблица_Металлопроцессинг_детализированный[[#This Row],[Распределение выручки для Менеджера договора]]=1,"",Таблица_Металлопроцессинг_детализированный[[#This Row],[Сумма наценки]]*Таблица_Металлопроцессинг_детализированный[[#This Row],[Распределение выручки для Менеджера договора]]) -> 0 | M139: Процессинг | N139: САНКТ-ПЕТЕРБУРГ | O139: СФИНКС | P139: ООО "Сфинкс" | Q139: Ленинградская обл. | R139: Ленинградская обл. | S139: Стройиндустрия | T139: Уголок стальной г/к равнополочный, 50x5, Ст.сп/пс (ГОСТ 8509-93) | V139: 0.49 | W139: т | X139: 13279 | Y139: Станок ленточнопильный | Z139: PEGASUS | AA139: 1650 | AB139: 11 | AC139: 0.5 | AD139: 1 | AE139: САНКТ-ПЕТЕРБУРГ | AF139: Центр | AG139: 0.49
A140: 1 | B140: САНКТ-ПЕТЕРБУРГ | C140: Центр | D140: Степура С.Н. | E140: Степура С.Н. | F140: Райская Н.А. | G140: =IF(Таблица_Металлопроцессинг_детализированный[[#This Row],[Куратор договора]]=Таблица_Металлопроцессинг_детализированный[[#This Row],[Менеджер]],TRUE,FALSE) -> FALSE | H140: =SUMIFS(AA140:AA2689,O140:O2689,Таблица_Металлопроцессинг_детализированный[[#This Row],[Контрагент]],A140:A2689,Таблица_Металлопроцессинг_детализированный[[#This Row],[Месяц отгрузки]]) -> 320 | I140: =IF(Таблица_Металлопроцессинг_детализированный[[#This Row],[Инициатор+исполнитель]],1,IF(Таблица_Металлопроцессинг_детализированный[[#This Row],[Оборот за месяц по контрагенту]]<1000000,0.5,0.7)) -> 0.5 | J140: =IF(Таблица_Металлопроцессинг_детализированный[[#This Row],[Инициатор+исполнитель]]=TRUE,0,IF(Таблица_Металлопроцессинг_детализированный[[#This Row],[Оборот за месяц по контрагенту]]<1000000,0.5,0.3)) -> 0.5 | K140: =Таблица_Металлопроцессинг_детализированный[[#This Row],[Сумма наценки]]*Таблица_Металлопроцессинг_детализированный[[#This Row],[Распределение выручки для Куратора договора]] -> 160 | L140: =IF(Таблица_Металлопроцессинг_детализированный[[#This Row],[Распределение выручки для Менеджера договора]]=1,"",Таблица_Металлопроцессинг_детализированный[[#This Row],[Сумма наценки]]*Таблица_Металлопроцессинг_детализированный[[#This Row],[Распределение выручки для Менеджера договора]]) -> 160 | M140: Процессинг | N140: САНКТ-ПЕТЕРБУРГ | O140: СФИНКС | P140: ООО "Сфинкс" | Q140: Ленинградская обл. | R140: Ленинградская обл. | S140: Стройиндустрия | T140: Уголок стальной г/к равнополочный, 75x6, Ст.сп/пс (ГОСТ 8509-93) | V140: 0.16 | W140: т | X140: 4406.4 | Y140: Станок ленточнопильный | Z140: PEGASUS | AA140: 320 | AB140: 2 | AC140: 0.16 | AD140: 1 | AE140: САНКТ-ПЕТЕРБУРГ | AF140: Центр | AG140: 0.16
A141: 1 | B141: САНКТ-ПЕТЕРБУРГ | C141: Центр | D141: Хабибуллов М.Р. | E141: Хабибуллов М.Р. | F141: Дауэнгауэр Н.Э. | G141: =IF(Таблица_Металлопроцессинг_детализированный[[#This Row],[Куратор договора]]=Таблица_Металлопроцессинг_детализированный[[#This Row],[Менеджер]],TRUE,FALSE) -> FALSE | H141: =SUMIFS(AA141:AA2691,O141:O2691,Таблица_Металлопроцессинг_детализированный[[#This Row],[Контрагент]],A141:A2691,Таблица_Металлопроцессинг_детализированный[[#This Row],[Месяц отгрузки]]) -> 134965.5 | I141: =IF(Таблица_Металлопроцессинг_детализированный[[#This Row],[Инициатор+исполнитель]],1,IF(Таблица_Металлопроцессинг_детализированный[[#This Row],[Оборот за месяц по контрагенту]]<1000000,0.5,0.7)) -> 0.5 | J141: =IF(Таблица_Металлопроцессинг_детализированный[[#This Row],[Инициатор+исполнитель]]=TRUE,0,IF(Таблица_Металлопроцессинг_детализированный[[#This Row],[Оборот за месяц по контрагенту]]<1000000,0.5,0.3)) -> 0.5 | K141: =Таблица_Металлопроцессинг_детализированный[[#This Row],[Сумма наценки]]*Таблица_Металлопроцессинг_детализированный[[#This Row],[Распределение выручки для Куратора договора]] -> 14997.75 | L141: =IF(Таблица_Металлопроцессинг_детализированный[[#This Row],[Распределение выручки для Менеджера договора]]=1,"",Таблица_Металлопроцессинг_детализированный[[#This Row],[Сумма наценки]]*Таблица_Металлопроцессинг_детализированный[[#This Row],[Распределение выручки для Менеджера договора]]) -> 14997.75 | M141: Процессинг | N141: САНКТ-ПЕТЕРБУРГ | O141: АртЛэнд | P141: ООО "Строительная компания "АртЛэнд" | S141: Стройиндустрия | T141: Шпунт Ларсена Л5-УМ, С255 (ТУ 14-102-8-2003) | V141: 19.997 | W141: т | X141: 789881.5 | Y141: Очистка и покраска проката (грунт ЭМЛАК 263) | Z141: ROSLER | AA141: 29995.5 | AB141: 19.997 | AC141: 19.997 | AD141: 1 | AE141: САНКТ-ПЕТЕРБУРГ | AF141: Центр | AG141: 19.997
A142: 1 | B142: САНКТ-ПЕТЕРБУРГ | C142: Центр | D142: Зиновьев С.Ю. | E142: Зиновьев С.Ю. | F142: Райская Н.А. | G142: =IF(Таблица_Металлопроцессинг_детализированный[[#This Row],[Куратор договора]]=Таблица_Металлопроцессинг_детализированный[[#This Row],[Менеджер]],TRUE,FALSE) -> FALSE | H142: =SUMIFS(AA142:AA2693,O142:O2693,Таблица_Металлопроцессинг_детализированный[[#This Row],[Контрагент]],A142:A2693,Таблица_Металлопроцессинг_детализированный[[#This Row],[Месяц отгрузки]]) -> 9300 | I142: =IF(Таблица_Металлопроцессинг_детализированный[[#This Row],[Инициатор+исполнитель]],1,IF(Таблица_Металлопроцессинг_детализированный[[#This Row],[Оборот за месяц по контрагенту]]<1000000,0.5,0.7)) -> 0.5 | J142: =IF(Таблица_Металлопроцессинг_детализированный[[#This Row],[Инициатор+исполнитель]]=TRUE,0,IF(Таблица_Металлопроцессинг_детализированный[[#This Row],[Оборот за месяц по контрагенту]]<1000000,0.5,0.3)) -> 0.5 | K142: =Таблица_Металлопроцессинг_детализированный[[#This Row],[Сумма наценки]]*Таблица_Металлопроцессинг_детализированный[[#This Row],[Распределение выручки для Куратора договора]] -> 3150 | L142: =IF(Таблица_Металлопроцессинг_детализированный[[#This Row],[Распределение выручки для Менеджера договора]]=1,"",Таблица_Металлопроцессинг_детализированный[[#This Row],[Сумма наценки]]*Таблица_Металлопроцессинг_детализированный[[#This Row],[Распределение выручки для Менеджера договора]]) -> 3150 | M142: Процессинг | N142: САНКТ-ПЕТЕРБУРГ | O142: Аспект Плюс СПб | P142: ООО "АСПЕКТ-ПЛЮС" | Q142: г. Санкт-Петербург | R142: г. Санкт-Петербург | S142: Металлоторговля | T142: Арматура класс АIII (А400), 8, Ст.35ГС, в бунтах (ГОСТ5781-82) | V142: 4.2 | W142: т | X142: 107268 | Y142: Размотка/резка в типовой размер арматурного проката | Z142: FORMAT-S | AA142: 6300 | AB142: 1 | AC142: 4.5 | AD142: 1 | AE142: САНКТ-ПЕТЕРБУРГ | AF142: Центр | AG142: 4.2
A143: 1 | B143: САНКТ-ПЕТЕРБУРГ | C143: Центр | D143: Зиновьев С.Ю. | E143: Зиновьев С.Ю. | F143: Сафонеев С.А. | G143: =IF(Таблица_Металлопроцессинг_детализированный[[#This Row],[Куратор договора]]=Таблица_Металлопроцессинг_детализированный[[#This Row],[Менеджер]],TRUE,FALSE) -> FALSE | H143: =SUMIFS(AA143:AA2694,O143:O2694,Таблица_Металлопроцессинг_детализированный[[#This Row],[Контрагент]],A143:A2694,Таблица_Металлопроцессинг_детализированный[[#This Row],[Месяц отгрузки]]) -> 3000 | I143: =IF(Таблица_Металлопроцессинг_детализированный[[#This Row],[Инициатор+исполнитель]],1,IF(Таблица_Металлопроцессинг_детализированный[[#This Row],[Оборот за месяц по контрагенту]]<1000000,0.5,0.7)) -> 0.5 | J143: =IF(Таблица_Металлопроцессинг_детализированный[[#This Row],[Инициатор+исполнитель]]=TRUE,0,IF(Таблица_Металлопроцессинг_детализированный[[#This Row],[Оборот за месяц по контрагенту]]<1000000,0.5,0.3)) -> 0.5 | K143: =Таблица_Металлопроцессинг_детализированный[[#This Row],[Сумма наценки]]*Таблица_Металлопроцессинг_детализированный[[#This Row],[Распределение выручки для Куратора договора]] -> 375 | L143: =IF(Таблица_Металлопроцессинг_детализированный[[#This Row],[Распределение выручки для Менеджера договора]]=1,"",Таблица_Металлопроцессинг_детализированный[[#This Row],[Сумма наценки]]*Таблица_Металлопроцессинг_детализированный[[#This Row],[Распределение выручки для Менеджера договора]]) -> 375 | M143: Процессинг | N143: САНКТ-ПЕТЕРБУРГ | O143: Аспект Плюс СПб | P143: ООО "АСПЕКТ-ПЛЮС" | Q143: г. Санкт-Петербург | R143: г. Санкт-Петербург | S143: Металлоторговля | T143: Арматура класс АIII (А400), 8, Ст.35ГС, в бунтах (ГОСТ5781-82) | V143: 0.5 | W143: т | X143: 12770 | Y143: Размотка/резка в типовой размер арматурного проката | Z143: FORMAT-S | AA143: 750 | AB143: 1 | AC143: 4.5 | AD143: 1 | AE143: САНКТ-ПЕТЕРБУРГ | AF143: Центр | AG143: 0.5
A144: 1 | B144: САНКТ-ПЕТЕРБУРГ | C144: Центр | D144: Молчанова Е.М. | E144: Молчанова Е.М. | F144: Молчанова Е.М. | G144: =IF(Таблица_Металлопроцессинг_детализированный[[#This Row],[Куратор договора]]=Таблица_Металлопроцессинг_детализированный[[#This Row],[Менеджер]],TRUE,FALSE) -> TRUE | H144: =SUMIFS(AA144:AA2702,O144:O2702,Таблица_Металлопроцессинг_детализированный[[#This Row],[Контрагент]],A144:A2702,Таблица_Металлопроцессинг_детализированный[[#This Row],[Месяц отгрузки]]) -> 5460 | I144: =IF(Таблица_Металлопроцессинг_детализированный[[#This Row],[Инициатор+исполнитель]],1,IF(Таблица_Металлопроцессинг_детализированный[[#This Row],[Оборот за месяц по контрагенту]]<1000000,0.5,0.7)) -> 1 | J144: =IF(Таблица_Металлопроцессинг_детализированный[[#This Row],[Инициатор+исполнитель]]=TRUE,0,IF(Таблица_Металлопроцессинг_детализированный[[#This Row],[Оборот за месяц по контрагенту]]<1000000,0.5,0.3)) -> 0 | K144: =Таблица_Металлопроцессинг_детализированный[[#This Row],[Сумма наценки]]*Таблица_Металлопроцессинг_детализированный[[#This Row],[Распределение выручки для Куратора договора]] -> 5460 | L144: =IF(Таблица_Металлопроцессинг_детализированный[[#This Row],[Распределение выручки для Менеджера договора]]=1,"",Таблица_Металлопроцессинг_детализированный[[#This Row],[Сумма наценки]]*Таблица_Металлопроцессинг_детализированный[[#This Row],[Распределение выручки для Менеджера договора]]) -> 0 | M144: Процессинг | N144: САНКТ-ПЕТЕРБУРГ | O144: МГСЗ | P144: ООО "МеталлГрупп Северо-Запад" | S144: Металлоторговля | T144: Сталь рулонная Г/к., 2, 1250, Ст.сп/пс (19903) | V144: 0.35 | W144: т | X144: 8589 | Y144: Порезка листового проката (ножницы) | Z144: COLGAR CI-34-TR | AA144: 5460 | AB144: 42 | AC144: 0.35 | AD144: 1 | AE144: САНКТ-ПЕТЕРБУРГ | AF144: Центр | AG144: 0.35
A145: 1 | B145: САНКТ-ПЕТЕРБУРГ | C145: Центр | D145: Молчанова Е.М. | E145: Молчанова Е.М. | F145: Молчанова Е.М. | G145: =IF(Таблица_Металлопроцессинг_детализированный[[#This Row],[Куратор договора]]=Таблица_Металлопроцессинг_детализированный[[#This Row],[Менеджер]],TRUE,FALSE) -> TRUE | H145: =SUMIFS(AA145:AA2706,O145:O2706,Таблица_Металлопроцессинг_детализированный[[#This Row],[Контрагент]],A145:A2706,Таблица_Металлопроцессинг_детализированный[[#This Row],[Месяц отгрузки]]) -> 64460 | I145: =IF(Таблица_Металлопроцессинг_детализированный[[#This Row],[Инициатор+исполнитель]],1,IF(Таблица_Металлопроцессинг_детализированный[[#This Row],[Оборот за месяц по контрагенту]]<1000000,0.5,0.7)) -> 1 | J145: =IF(Таблица_Металлопроцессинг_детализированный[[#This Row],[Инициатор+исполнитель]]=TRUE,0,IF(Таблица_Металлопроцессинг_детализированный[[#This Row],[Оборот за месяц по контрагенту]]<1000000,0.5,0.3)) -> 0 | K145: =Таблица_Металлопроцессинг_детализированный[[#This Row],[Сумма наценки]]*Таблица_Металлопроцессинг_детализированный[[#This Row],[Распределение выручки для Куратора договора]] -> 17820 | L145: =IF(Таблица_Металлопроцессинг_детализированный[[#This Row],[Распределение выручки для Менеджера договора]]=1,"",Таблица_Металлопроцессинг_детализированный[[#This Row],[Сумма наценки]]*Таблица_Металлопроцессинг_детализированный[[#This Row],[Распределение выручки для Менеджера договора]]) -> 0 | M145: Из давальческого сырья | N145: САНКТ-ПЕТЕРБУРГ | O145: НЕВСКИЙ МЕТАЛЛ (СПб) | P145: ООО "НЕВСКИЙ МЕТАЛЛ" | S145: Металлоторговля | T145: Изделие | U145: 10г/к дробь, Эмлак | V145: 162 | W145: м2 | X145: 0 | Y145: Очистка и покраска проката (грунт ЭМЛАК 263) | Z145: ROSLER | AA145: 17820 | AB145: 162 | AC145: 2.9 | AD145: 1 | AE145: САНКТ-ПЕТЕРБУРГ | AF145: Центр | AG145: 6.3
A146: 1 | B146: САНКТ-ПЕТЕРБУРГ | C146: Центр | D146: Молчанова Е.М. | E146: Молчанова Е.М. | F146: Молчанова Е.М. | G146: =IF(Таблица_Металлопроцессинг_детализированный[[#This Row],[Куратор договора]]=Таблица_Металлопроцессинг_детализированный[[#This Row],[Менеджер]],TRUE,FALSE) -> TRUE | H146: =SUMIFS(AA146:AA2707,O146:O2707,Таблица_Металлопроцессинг_детализированный[[#This Row],[Контрагент]],A146:A2707,Таблица_Металлопроцессинг_детализированный[[#This Row],[Месяц отгрузки]]) -> 46640 | I146: =IF(Таблица_Металлопроцессинг_детализированный[[#This Row],[Инициатор+исполнитель]],1,IF(Таблица_Металлопроцессинг_детализированный[[#This Row],[Оборот за месяц по контрагенту]]<1000000,0.5,0.7)) -> 1 | J146: =IF(Таблица_Металлопроцессинг_детализированный[[#This Row],[Инициатор+исполнитель]]=TRUE,0,IF(Таблица_Металлопроцессинг_детализированный[[#This Row],[Оборот за месяц по контрагенту]]<1000000,0.5,0.3)) -> 0 | K146: =Таблица_Металлопроцессинг_детализированный[[#This Row],[Сумма наценки]]*Таблица_Металлопроцессинг_детализированный[[#This Row],[Распределение выручки для Куратора договора]] -> 7920 | L146: =IF(Таблица_Металлопроцессинг_детализированный[[#This Row],[Распределение выручки для Менеджера договора]]=1,"",Таблица_Металлопроцессинг_детализированный[[#This Row],[Сумма наценки]]*Таблица_Металлопроцессинг_детализированный[[#This Row],[Распределение выручки для Менеджера договора]]) -> 0 | M146: Из давальческого сырья | N146: САНКТ-ПЕТЕРБУРГ | O146: НЕВСКИЙ МЕТАЛЛ (СПб) | P146: ООО "НЕВСКИЙ МЕТАЛЛ" | S146: Металлоторговля | T146: Изделие | U146: 16г/к дробь, Эмлак | V146: 72 | W146: м2 | X146: 0 | Y146: Очистка и покраска проката (грунт ЭМЛАК 263) | Z146: ROSLER | AA146: 7920 | AB146: 72 | AC146: 72 | AD146: 1 | AE146: САНКТ-ПЕТЕРБУРГ | AF146: Центр | AG146: 4.47
A147: 1 | B147: САНКТ-ПЕТЕРБУРГ | C147: Центр | D147: Молчанова Е.М. | E147: Молчанова Е.М. | F147: Молчанова Е.М. | G147: =IF(Таблица_Металлопроцессинг_детализированный[[#This Row],[Куратор договора]]=Таблица_Металлопроцессинг_детализированный[[#This Row],[Менеджер]],TRUE,FALSE) -> TRUE | H147: =SUMIFS(AA147:AA2708,O147:O2708,Таблица_Металлопроцессинг_детализированный[[#This Row],[Контрагент]],A147:A2708,Таблица_Металлопроцессинг_детализированный[[#This Row],[Месяц отгрузки]]) -> 38720 | I147: =IF(Таблица_Металлопроцессинг_детализированный[[#This Row],[Инициатор+исполнитель]],1,IF(Таблица_Металлопроцессинг_детализированный[[#This Row],[Оборот за месяц по контрагенту]]<1000000,0.5,0.7)) -> 1 | J147: =IF(Таблица_Металлопроцессинг_детализированный[[#This Row],[Инициатор+исполнитель]]=TRUE,0,IF(Таблица_Металлопроцессинг_детализированный[[#This Row],[Оборот за месяц по контрагенту]]<1000000,0.5,0.3)) -> 0 | K147: =Таблица_Металлопроцессинг_детализированный[[#This Row],[Сумма наценки]]*Таблица_Металлопроцессинг_детализированный[[#This Row],[Распределение выручки для Куратора договора]] -> 27720 | L147: =IF(Таблица_Металлопроцессинг_детализированный[[#This Row],[Распределение выручки для Менеджера договора]]=1,"",Таблица_Металлопроцессинг_детализированный[[#This Row],[Сумма наценки]]*Таблица_Металлопроцессинг_детализированный[[#This Row],[Распределение выручки для Менеджера договора]]) -> 0 | M147: Из давальческого сырья | N147: САНКТ-ПЕТЕРБУРГ | O147: НЕВСКИЙ МЕТАЛЛ (СПб) | P147: ООО "НЕВСКИЙ МЕТАЛЛ" | S147: Металлоторговля | T147: Изделие | U147: 8г/к дробь, Эмлак | V147: 252 | W147: м2 | X147: 0 | Y147: Очистка и покраска проката (грунт ЭМЛАК 263) | Z147: ROSLER | AA147: 27720 | AB147: 252 | AC147: 252 | AD147: 1 | AE147: САНКТ-ПЕТЕРБУРГ | AF147: Центр | AG147: 7.72
A148: 1 | B148: САНКТ-ПЕТЕРБУРГ | C148: Центр | D148: Молчанова Е.М. | E148: Молчанова Е.М. | F148: Молчанова Е.М. | G148: =IF(Таблица_Металлопроцессинг_детализированный[[#This Row],[Куратор договора]]=Таблица_Металлопроцессинг_детализированный[[#This Row],[Менеджер]],TRUE,FALSE) -> TRUE | H148: =SUMIFS(AA148:AA2709,O148:O2709,Таблица_Металлопроцессинг_детализированный[[#This Row],[Контрагент]],A148:A2709,Таблица_Металлопроцессинг_детализированный[[#This Row],[Месяц отгрузки]]) -> 11000 | I148: =IF(Таблица_Металлопроцессинг_детализированный[[#This Row],[Инициатор+исполнитель]],1,IF(Таблица_Металлопроцессинг_детализированный[[#This Row],[Оборот за месяц по контрагенту]]<1000000,0.5,0.7)) -> 1 | J148: =IF(Таблица_Металлопроцессинг_детализированный[[#This Row],[Инициатор+исполнитель]]=TRUE,0,IF(Таблица_Металлопроцессинг_детализированный[[#This Row],[Оборот за месяц по контрагенту]]<1000000,0.5,0.3)) -> 0 | K148: =Таблица_Металлопроцессинг_детализированный[[#This Row],[Сумма наценки]]*Таблица_Металлопроцессинг_детализированный[[#This Row],[Распределение выручки для Куратора договора]] -> 11000 | L148: =IF(Таблица_Металлопроцессинг_детализированный[[#This Row],[Распределение выручки для Менеджера договора]]=1,"",Таблица_Металлопроцессинг_детализированный[[#This Row],[Сумма наценки]]*Таблица_Металлопроцессинг_детализированный[[#This Row],[Распределение выручки для Менеджера договора]]) -> 0 | M148: Из давальческого сырья | N148: САНКТ-ПЕТЕРБУРГ | O148: НЕВСКИЙ МЕТАЛЛ (СПб) | P148: ООО "НЕВСКИЙ МЕТАЛЛ" | S148: Металлоторговля | T148: Изделие | U148: лист ПВЛ дробь, Эмлак | V148: 100 | W148: м2 | X148: 0 | Y148: Очистка и покраска проката (грунт ЭМЛАК 263) | Z148: ROSLER | AA148: 11000 | AB148: 100 | AC148: 100 | AD148: 1 | AE148: САНКТ-ПЕТЕРБУРГ | AF148: Центр | AG148: 1.1
A149: 1 | B149: САНКТ-ПЕТЕРБУРГ | C149: Центр | D149: Степура С.Н. | E149: Степура С.Н. | F149: Степура С.Н. | G149: =IF(Таблица_Металлопроцессинг_детализированный[[#This Row],[Куратор договора]]=Таблица_Металлопроцессинг_детализированный[[#This Row],[Менеджер]],TRUE,FALSE) -> TRUE | H149: =SUMIFS(AA149:AA2712,O149:O2712,Таблица_Металлопроцессинг_детализированный[[#This Row],[Контрагент]],A149:A2712,Таблица_Металлопроцессинг_детализированный[[#This Row],[Месяц отгрузки]]) -> 23680 | I149: =IF(Таблица_Металлопроцессинг_детализированный[[#This Row],[Инициатор+исполнитель]],1,IF(Таблица_Металлопроцессинг_детализированный[[#This Row],[Оборот за месяц по контрагенту]]<1000000,0.5,0.7)) -> 1 | J149: =IF(Таблица_Металлопроцессинг_детализированный[[#This Row],[Инициатор+исполнитель]]=TRUE,0,IF(Таблица_Металлопроцессинг_детализированный[[#This Row],[Оборот за месяц по контрагенту]]<1000000,0.5,0.3)) -> 0 | K149: =Таблица_Металлопроцессинг_детализированный[[#This Row],[Сумма наценки]]*Таблица_Металлопроцессинг_детализированный[[#This Row],[Распределение выручки для Куратора договора]] -> 3240 | L149: =IF(Таблица_Металлопроцессинг_детализированный[[#This Row],[Распределение выручки для Менеджера договора]]=1,"",Таблица_Металлопроцессинг_детализированный[[#This Row],[Сумма наценки]]*Таблица_Металлопроцессинг_детализированный[[#This Row],[Распределение выручки для Менеджера договора]]) -> 0 | M149: Заказное | N149: САНКТ-ПЕТЕРБУРГ | O149: УралСибТрейд-СПБ | P149: ООО"УралСибТрейд-СПБ" | Q149: г. Санкт-Петербург | S149: ТЭК | T149: Изделие | U149: Пластины 10х320х200 - 144 шт, изделия согласно эскизов 342 шт, допуск +/-2мм | V149: 1.39 | W149: т | X149: 51574.9631 | Y149: Очистка проката (дробь 1,0мм, 0,8мм) | Z149: ROSLER | AA149: 3240 | AB149: 36 | AC149: 1.39 | AD149: 1 | AE149: САНКТ-ПЕТЕРБУРГ | AF149: Центр | AG149: 1.39
A150: 1 | B150: САНКТ-ПЕТЕРБУРГ | C150: Центр | D150: Степура С.Н. | E150: Степура С.Н. | F150: Степура С.Н. | G150: =IF(Таблица_Металлопроцессинг_детализированный[[#This Row],[Куратор договора]]=Таблица_Металлопроцессинг_детализированный[[#This Row],[Менеджер]],TRUE,FALSE) -> TRUE | H150: =SUMIFS(AA150:AA2713,O150:O2713,Таблица_Металлопроцессинг_детализированный[[#This Row],[Контрагент]],A150:A2713,Таблица_Металлопроцессинг_детализированный[[#This Row],[Месяц отгрузки]]) -> 20440 | I150: =IF(Таблица_Металлопроцессинг_детализированный[[#This Row],[Инициатор+исполнитель]],1,IF(Таблица_Металлопроцессинг_детализированный[[#This Row],[Оборот за месяц по контрагенту]]<1000000,0.5,0.7)) -> 1 | J150: =IF(Таблица_Металлопроцессинг_детализированный[[#This Row],[Инициатор+исполнитель]]=TRUE,0,IF(Таблица_Металлопроцессинг_детализированный[[#This Row],[Оборот за месяц по контрагенту]]<1000000,0.5,0.3)) -> 0 | K150: =Таблица_Металлопроцессинг_детализированный[[#This Row],[Сумма наценки]]*Таблица_Металлопроцессинг_детализированный[[#This Row],[Распределение выручки для Куратора договора]] -> 20440 | L150: =IF(Таблица_Металлопроцессинг_детализированный[[#This Row],[Распределение выручки для Менеджера договора]]=1,"",Таблица_Металлопроцессинг_детализированный[[#This Row],[Сумма наценки]]*Таблица_Металлопроцессинг_детализированный[[#This Row],[Распределение выручки для Менеджера договора]]) -> 0 | M150: Заказное | N150: САНКТ-ПЕТЕРБУРГ | O150: УралСибТрейд-СПБ | P150: ООО"УралСибТрейд-СПБ" | Q150: г. Санкт-Петербург | S150: ТЭК | T150: Изделие | U150: Пластины 10х320х200 - 144 шт, изделия согласно эскизов 342 шт, допуск +/-2мм | V150: 1.39 | W150: т | X150: 51574.9631 | Y150: Порезка листового проката плазменная PLAZMA | Z150: LINEACORD PCL40 | AA150: 20440 | AB150: 292 | AC150: 1.39 | AD150: 1 | AE150: САНКТ-ПЕТЕРБУРГ | AF150: Центр | AG150: 1.39
A151: 1 | B151: САНКТ-ПЕТЕРБУРГ | C151: Центр | D151: Молчанова Е.М. | E151: Молчанова Е.М. | F151: Молчанова Е.М. | G151: =IF(Таблица_Металлопроцессинг_детализированный[[#This Row],[Куратор договора]]=Таблица_Металлопроцессинг_детализированный[[#This Row],[Менеджер]],TRUE,FALSE) -> TRUE | H151: =SUMIFS(AA151:AA2715,O151:O2715,Таблица_Металлопроцессинг_детализированный[[#This Row],[Контрагент]],A151:A2715,Таблица_Металлопроцессинг_детализированный[[#This Row],[Месяц отгрузки]]) -> 11425.7 | I151: =IF(Таблица_Металлопроцессинг_детализированный[[#This Row],[Инициатор+исполнитель]],1,IF(Таблица_Металлопроцессинг_детализированный[[#This Row],[Оборот за месяц по контрагенту]]<1000000,0.5,0.7)) -> 1 | J151: =IF(Таблица_Металлопроцессинг_детализированный[[#This Row],[Инициатор+исполнитель]]=TRUE,0,IF(Таблица_Металлопроцессинг_детализированный[[#This Row],[Оборот за месяц по контрагенту]]<1000000,0.5,0.3)) -> 0 | K151: =Таблица_Металлопроцессинг_детализированный[[#This Row],[Сумма наценки]]*Таблица_Металлопроцессинг_детализированный[[#This Row],[Распределение выручки для Куратора договора]] -> 11425.7 | L151: =IF(Таблица_Металлопроцессинг_детализированный[[#This Row],[Распределение выручки для Менеджера договора]]=1,"",Таблица_Металлопроцессинг_детализированный[[#This Row],[Сумма наценки]]*Таблица_Металлопроцессинг_детализированный[[#This Row],[Распределение выручки для Менеджера договора]]) -> 0 | M151: Процессинг | N151: САНКТ-ПЕТЕРБУРГ | O151: АБТ ГРУПП | P151: ООО "АБТ ГРУПП" | S151: Металлоторговля | T151: Сталь рулонная Г/к., 3, 1500, Ст.09Г2С (19903) | V151: 5.17 | W151: т | X151: 143002.2 | Y151: Порезка листового проката поперечная | Z151: CAMU RDC 1500/6 | AA151: 11425.7 | AB151: 1 | AC151: 4.24 | AD151: 1 | AE151: САНКТ-ПЕТЕРБУРГ | AF151: Центр | AG151: 5.17
A152: 1 | B152: САНКТ-ПЕТЕРБУРГ | C152: Центр | D152: Молчанова Е.М. | E152: Молчанова Е.М. | F152: Молчанова Е.М. | G152: =IF(Таблица_Металлопроцессинг_детализированный[[#This Row],[Куратор договора]]=Таблица_Металлопроцессинг_детализированный[[#This Row],[Менеджер]],TRUE,FALSE) -> TRUE | H152: =SUMIFS(AA152:AA2717,O152:O2717,Таблица_Металлопроцессинг_детализированный[[#This Row],[Контрагент]],A152:A2717,Таблица_Металлопроцессинг_детализированный[[#This Row],[Месяц отгрузки]]) -> 23380 | I152: =IF(Таблица_Металлопроцессинг_детализированный[[#This Row],[Инициатор+исполнитель]],1,IF(Таблица_Металлопроцессинг_детализированный[[#This Row],[Оборот за месяц по контрагенту]]<1000000,0.5,0.7)) -> 1 | J152: =IF(Таблица_Металлопроцессинг_детализированный[[#This Row],[Инициатор+исполнитель]]=TRUE,0,IF(Таблица_Металлопроцессинг_детализированный[[#This Row],[Оборот за месяц по контрагенту]]<1000000,0.5,0.3)) -> 0 | K152: =Таблица_Металлопроцессинг_детализированный[[#This Row],[Сумма наценки]]*Таблица_Металлопроцессинг_детализированный[[#This Row],[Распределение выручки для Куратора договора]] -> 23380 | L152: =IF(Таблица_Металлопроцессинг_детализированный[[#This Row],[Распределение выручки для Менеджера договора]]=1,"",Таблица_Металлопроцессинг_детализированный[[#This Row],[Сумма наценки]]*Таблица_Металлопроцессинг_детализированный[[#This Row],[Распределение выручки для Менеджера договора]]) -> 0 | M152: Процессинг | N152: САНКТ-ПЕТЕРБУРГ | O152: ФРИРАЙДЕР СПБ | P152: ООО "Фрирайдер СПб" | Q152: Санкт-Петербург | R152: Санкт-Петербург | S152: Металлоторговля | T152: Уголок стальной г/к равнополочный, 100x10, Ст.сп/пс (ГОСТ 8509-93) | V152: 0.9 | W152: т | X152: 25389 | Y152: Станок ленточнопильный | Z152: PEGASUS | AA152: 23380 | AB152: 668 | AC152: 7.12 | AD152: 1 | AE152: САНКТ-ПЕТЕРБУРГ | AF152: Центр | AG152: 0.9
A153: 1 | B153: САНКТ-ПЕТЕРБУРГ | C153: Центр | D153: Петров А.Б. (уволен) | E153: Петров(С.-П.) А.Б. | F153: Петров А.Б. (уволен) | G153: =IF(Таблица_Металлопроцессинг_детализированный[[#This Row],[Куратор договора]]=Таблица_Металлопроцессинг_детализированный[[#This Row],[Менеджер]],TRUE,FALSE) -> TRUE | H153: =SUMIFS(AA153:AA2718,O153:O2718,Таблица_Металлопроцессинг_детализированный[[#This Row],[Контрагент]],A153:A2718,Таблица_Металлопроцессинг_детализированный[[#This Row],[Месяц отгрузки]]) -> 17892.8 | I153: =IF(Таблица_Металлопроцессинг_детализированный[[#This Row],[Инициатор+исполнитель]],1,IF(Таблица_Металлопроцессинг_детализированный[[#This Row],[Оборот за месяц по контрагенту]]<1000000,0.5,0.7)) -> 1 | J153: =IF(Таблица_Металлопроцессинг_детализированный[[#This Row],[Инициатор+исполнитель]]=TRUE,0,IF(Таблица_Металлопроцессинг_детализированный[[#This Row],[Оборот за месяц по контрагенту]]<1000000,0.5,0.3)) -> 0 | K153: =Таблица_Металлопроцессинг_детализированный[[#This Row],[Сумма наценки]]*Таблица_Металлопроцессинг_детализированный[[#This Row],[Распределение выручки для Куратора договора]] -> 11892.8 | L153: =IF(Таблица_Металлопроцессинг_детализированный[[#This Row],[Распределение выручки для Менеджера договора]]=1,"",Таблица_Металлопроцессинг_детализированный[[#This Row],[Сумма наценки]]*Таблица_Металлопроцессинг_детализированный[[#This Row],[Распределение выручки для Менеджера договора]]) -> 0 | M153: Из давальческого сырья | N153: САНКТ-ПЕТЕРБУРГ | O153: АСТ СПБ | P153: ЗАО "АСТ" | S153: Стройиндустрия | T153: Изделие | U153: Каркас поддерживающий Вариант 1(с изм 1) | V153: 160 | W153: шт | X153: 41003.2 | Y153: Изготовление металлоконструкций из давальческого сырья | Z153: Дуга 318МА | AA153: 11892.8 | AB153: 160 | AC153: 160 | AD153: 1 | AE153: САНКТ-ПЕТЕРБУРГ | AF153: Центр | AG153: 1.162
A154: 1 | B154: САНКТ-ПЕТЕРБУРГ | C154: Центр | D154: Петров А.Б. (уволен) | E154: Петров(С.-П.) А.Б. | F154: Петров А.Б. (уволен) | G154: =IF(Таблица_Металлопроцессинг_детализированный[[#This Row],[Куратор договора]]=Таблица_Металлопроцессинг_детализированный[[#This Row],[Менеджер]],TRUE,FALSE) -> TRUE | H154: =SUMIFS(AA154:AA2719,O154:O2719,Таблица_Металлопроцессинг_детализированный[[#This Row],[Контрагент]],A154:A2719,Таблица_Металлопроцессинг_детализированный[[#This Row],[Месяц отгрузки]]) -> 6000 | I154: =IF(Таблица_Металлопроцессинг_детализированный[[#This Row],[Инициатор+исполнитель]],1,IF(Таблица_Металлопроцессинг_детализированный[[#This Row],[Оборот за месяц по контрагенту]]<1000000,0.5,0.7)) -> 1 | J154: =IF(Таблица_Металлопроцессинг_детализированный[[#This Row],[Инициатор+исполнитель]]=TRUE,0,IF(Таблица_Металлопроцессинг_детализированный[[#This Row],[Оборот за месяц по контрагенту]]<1000000,0.5,0.3)) -> 0 | K154: =Таблица_Металлопроцессинг_детализированный[[#This Row],[Сумма наценки]]*Таблица_Металлопроцессинг_детализированный[[#This Row],[Распределение выручки для Куратора договора]] -> 6000 | L154: =IF(Таблица_Металлопроцессинг_детализированный[[#This Row],[Распределение выручки для Менеджера договора]]=1,"",Таблица_Металлопроцессинг_детализированный[[#This Row],[Сумма наценки]]*Таблица_Металлопроцессинг_детализированный[[#This Row],[Распределение выручки для Менеджера договора]]) -> 0 | M154: Из давальческого сырья | N154: САНКТ-ПЕТЕРБУРГ | O154: АСТ СПБ | P154: ЗАО "АСТ" | S154: Стройиндустрия | T154: Изделие | U154: Каркас поддерживающий Вариант 3 с изм.1 | V154: 50 | W154: шт | X154: 18729.5 | Y154: Изготовление металлоконструкций из давальческого сырья | Z154: Дуга 318МА | AA154: 6000 | AB154: 50 | AC154: 50 | AD154: 1 | AE154: САНКТ-ПЕТЕРБУРГ | AF154: Центр | AG154: 0.5
A155: 1 | B155: САНКТ-ПЕТЕРБУРГ | C155: Центр | D155: Ипатова Е.Н. | E155: Ипатова Е.Н. | F155: Ипатова Е.Н. | G155: =IF(Таблица_Металлопроцессинг_детализированный[[#This Row],[Куратор договора]]=Таблица_Металлопроцессинг_детализированный[[#This Row],[Менеджер]],TRUE,FALSE) -> TRUE | H155: =SUMIFS(AA155:AA2724,O155:O2724,Таблица_Металлопроцессинг_детализированный[[#This Row],[Контрагент]],A155:A2724,Таблица_Металлопроцессинг_детализированный[[#This Row],[Месяц отгрузки]]) -> 221356.04 | I155: =IF(Таблица_Металлопроцессинг_детализированный[[#This Row],[Инициатор+исполнитель]],1,IF(Таблица_Металлопроцессинг_детализированный[[#This Row],[Оборот за месяц по контрагенту]]<1000000,0.5,0.7)) -> 1 | J155: =IF(Таблица_Металлопроцессинг_детализированный[[#This Row],[Инициатор+исполнитель]]=TRUE,0,IF(Таблица_Металлопроцессинг_детализированный[[#This Row],[Оборот за месяц по контрагенту]]<1000000,0.5,0.3)) -> 0 | K155: =Таблица_Металлопроцессинг_детализированный[[#This Row],[Сумма наценки]]*Таблица_Металлопроцессинг_детализированный[[#This Row],[Распределение выручки для Куратора договора]] -> 24210.82 | L155: =IF(Таблица_Металлопроцессинг_детализированный[[#This Row],[Распределение выручки для Менеджера договора]]=1,"",Таблица_Металлопроцессинг_детализированный[[#This Row],[Сумма наценки]]*Таблица_Металлопроцессинг_детализированный[[#This Row],[Распределение выручки для Менеджера договора]]) -> 0 | M155: Из давальческого сырья | N155: САНКТ-ПЕТЕРБУРГ | O155: СНСЗ | P155: ОАО "СРЕДНЕ-НЕВСКИЙ СУДОСТРОИТЕЛЬНЫЙ ЗАВОД" | S155: Машиностроение | T155: Изделие | U155: Лист 6*1600*6000 PCD ГОСТ19903 , ГОСТ5521-93 | V155: 6.69 | W155: т | X155: 0 | Y155: Очистка и покраска проката (грунт HEMPEL) | Z155: ROSLER | AA155: 24210.82 | AB155: 268.8 | AC155: 268.8 | AD155: 1 | AE155: САНКТ-ПЕТЕРБУРГ | AF155: Центр | AG155: 6.69
A156: 1 | B156: САНКТ-ПЕТЕРБУРГ | C156: Центр | D156: Ипатова Е.Н. | E156: Ипатова Е.Н. | F156: Ипатова Е.Н. | G156: =IF(Таблица_Металлопроцессинг_детализированный[[#This Row],[Куратор договора]]=Таблица_Металлопроцессинг_детализированный[[#This Row],[Менеджер]],TRUE,FALSE) -> TRUE | H156: =SUMIFS(AA156:AA2725,O156:O2725,Таблица_Металлопроцессинг_детализированный[[#This Row],[Контрагент]],A156:A2725,Таблица_Металлопроцессинг_детализированный[[#This Row],[Месяц отгрузки]]) -> 197145.22 | I156: =IF(Таблица_Металлопроцессинг_детализированный[[#This Row],[Инициатор+исполнитель]],1,IF(Таблица_Металлопроцессинг_детализированный[[#This Row],[Оборот за месяц по контрагенту]]<1000000,0.5,0.7)) -> 1 | J156: =IF(Таблица_Металлопроцессинг_детализированный[[#This Row],[Инициатор+исполнитель]]=TRUE,0,IF(Таблица_Металлопроцессинг_детализированный[[#This Row],[Оборот за месяц по контрагенту]]<1000000,0.5,0.3)) -> 0 | K156: =Таблица_Металлопроцессинг_детализированный[[#This Row],[Сумма наценки]]*Таблица_Металлопроцессинг_детализированный[[#This Row],[Распределение выручки для Куратора договора]] -> 48457.66 | L156: =IF(Таблица_Металлопроцессинг_детализированный[[#This Row],[Распределение выручки для Менеджера договора]]=1,"",Таблица_Металлопроцессинг_детализированный[[#This Row],[Сумма наценки]]*Таблица_Металлопроцессинг_детализированный[[#This Row],[Распределение выручки для Менеджера договора]]) -> 0 | M156: Из давальческого сырья | N156: САНКТ-ПЕТЕРБУРГ | O156: СНСЗ | P156: ОАО "СРЕДНЕ-НЕВСКИЙ СУДОСТРОИТЕЛЬНЫЙ ЗАВОД" | S156: Машиностроение | T156: Изделие | U156: Лист 7*1600*6000 PCD ГОСТ19903 , ГОСТ5521-93 | V156: 15.4 | W156: т | X156: 0 | Y156: Очистка и покраска проката (грунт HEMPEL) | Z156: ROSLER | AA156: 48457.66 | AB156: 538 | AC156: 538 | AD156: 1 | AE156: САНКТ-ПЕТЕРБУРГ | AF156: Центр | AG156: 15.4
A157: 1 | B157: САНКТ-ПЕТЕРБУРГ | C157: Центр | D157: Молчанова Е.М. | E157: Молчанова Е.М. | F157: Молчанова Е.М. | G157: =IF(Таблица_Металлопроцессинг_детализированный[[#This Row],[Куратор договора]]=Таблица_Металлопроцессинг_детализированный[[#This Row],[Менеджер]],TRUE,FALSE) -> TRUE | H157: =SUMIFS(AA157:AA2726,O157:O2726,Таблица_Металлопроцессинг_детализированный[[#This Row],[Контрагент]],A157:A2726,Таблица_Металлопроцессинг_детализированный[[#This Row],[Месяц отгрузки]]) -> 28500 | I157: =IF(Таблица_Металлопроцессинг_детализированный[[#This Row],[Инициатор+исполнитель]],1,IF(Таблица_Металлопроцессинг_детализированный[[#This Row],[Оборот за месяц по контрагенту]]<1000000,0.5,0.7)) -> 1 | J157: =IF(Таблица_Металлопроцессинг_детализированный[[#This Row],[Инициатор+исполнитель]]=TRUE,0,IF(Таблица_Металлопроцессинг_детализированный[[#This Row],[Оборот за месяц по контрагенту]]<1000000,0.5,0.3)) -> 0 | K157: =Таблица_Металлопроцессинг_детализированный[[#This Row],[Сумма наценки]]*Таблица_Металлопроцессинг_детализированный[[#This Row],[Распределение выручки для Куратора договора]] -> 21600 | L157: =IF(Таблица_Металлопроцессинг_детализированный[[#This Row],[Распределение выручки для Менеджера договора]]=1,"",Таблица_Металлопроцессинг_детализированный[[#This Row],[Сумма наценки]]*Таблица_Металлопроцессинг_детализированный[[#This Row],[Распределение выручки для Менеджера договора]]) -> 0 | M157: Процессинг | N157: САНКТ-ПЕТЕРБУРГ | O157: ГРАНИТ ТД | P157: ООО "Торговый Дом "ГРАНИТ" | S157: Металлоторговля | T157: Сталь листовая Г/к., 10, 1500x6000, Ст.сп/пс (ГОСТ 14637) | V157: 2.47 | W157: т | X157: 55402.1 | Y157: Порезка листового проката (ножницы) | Z157: COLGAR CI-34-TR | AA157: 21600 | AB157: 146 | AC157: 1.8 | AD157: 2 | AE157: САНКТ-ПЕТЕРБУРГ | AF157: Центр | AG157: 2.47
A158: 1 | B158: САНКТ-ПЕТЕРБУРГ | C158: Центр | D158: Молчанова Е.М. | E158: Молчанова Е.М. | F158: Молчанова Е.М. | G158: =IF(Таблица_Металлопроцессинг_детализированный[[#This Row],[Куратор договора]]=Таблица_Металлопроцессинг_детализированный[[#This Row],[Менеджер]],TRUE,FALSE) -> TRUE | H158: =SUMIFS(AA158:AA2727,O158:O2727,Таблица_Металлопроцессинг_детализированный[[#This Row],[Контрагент]],A158:A2727,Таблица_Металлопроцессинг_детализированный[[#This Row],[Месяц отгрузки]]) -> 6900 | I158: =IF(Таблица_Металлопроцессинг_детализированный[[#This Row],[Инициатор+исполнитель]],1,IF(Таблица_Металлопроцессинг_детализированный[[#This Row],[Оборот за месяц по контрагенту]]<1000000,0.5,0.7)) -> 1 | J158: =IF(Таблица_Металлопроцессинг_детализированный[[#This Row],[Инициатор+исполнитель]]=TRUE,0,IF(Таблица_Металлопроцессинг_детализированный[[#This Row],[Оборот за месяц по контрагенту]]<1000000,0.5,0.3)) -> 0 | K158: =Таблица_Металлопроцессинг_детализированный[[#This Row],[Сумма наценки]]*Таблица_Металлопроцессинг_детализированный[[#This Row],[Распределение выручки для Куратора договора]] -> 2250 | L158: =IF(Таблица_Металлопроцессинг_детализированный[[#This Row],[Распределение выручки для Менеджера договора]]=1,"",Таблица_Металлопроцессинг_детализированный[[#This Row],[Сумма наценки]]*Таблица_Металлопроцессинг_детализированный[[#This Row],[Распределение выручки для Менеджера договора]]) -> 0 | M158: Процессинг | N158: САНКТ-ПЕТЕРБУРГ | O158: ГРАНИТ ТД | P158: ООО "Торговый Дом "ГРАНИТ" | S158: Металлоторговля | T158: Сталь листовая Г/к., 4, 1500x6000, Ст.сп/пс (ГОСТ 14637) | V158: 0.2 | W158: т | X158: 4532 | Y158: Порезка листового проката (ножницы) | Z158: COLGAR CI-34-TR | AA158: 2250 | AB158: 45 | AC158: 0.203 | AD158: 1 | AE158: САНКТ-ПЕТЕРБУРГ | AF158: Центр | AG158: 0.2
A159: 1 | B159: САНКТ-ПЕТЕРБУРГ | C159: Центр | D159: Молчанова Е.М. | E159: Молчанова Е.М. | F159: Молчанова Е.М. | G159: =IF(Таблица_Металлопроцессинг_детализированный[[#This Row],[Куратор договора]]=Таблица_Металлопроцессинг_детализированный[[#This Row],[Менеджер]],TRUE,FALSE) -> TRUE | H159: =SUMIFS(AA159:AA2728,O159:O2728,Таблица_Металлопроцессинг_детализированный[[#This Row],[Контрагент]],A159:A2728,Таблица_Металлопроцессинг_детализированный[[#This Row],[Месяц отгрузки]]) -> 4650 | I159: =IF(Таблица_Металлопроцессинг_детализированный[[#This Row],[Инициатор+исполнитель]],1,IF(Таблица_Металлопроцессинг_детализированный[[#This Row],[Оборот за месяц по контрагенту]]<1000000,0.5,0.7)) -> 1 | J159: =IF(Таблица_Металлопроцессинг_детализированный[[#This Row],[Инициатор+исполнитель]]=TRUE,0,IF(Таблица_Металлопроцессинг_детализированный[[#This Row],[Оборот за месяц по контрагенту]]<1000000,0.5,0.3)) -> 0 | K159: =Таблица_Металлопроцессинг_детализированный[[#This Row],[Сумма наценки]]*Таблица_Металлопроцессинг_детализированный[[#This Row],[Распределение выручки для Куратора договора]] -> 4650 | L159: =IF(Таблица_Металлопроцессинг_детализированный[[#This Row],[Распределение выручки для Менеджера договора]]=1,"",Таблица_Металлопроцессинг_детализированный[[#This Row],[Сумма наценки]]*Таблица_Металлопроцессинг_детализированный[[#This Row],[Распределение выручки для Менеджера договора]]) -> 0 | M159: Процессинг | N159: САНКТ-ПЕТЕРБУРГ | O159: ГРАНИТ ТД | P159: ООО "Торговый Дом "ГРАНИТ" | S159: Металлоторговля | T159: Сталь листовая Г/к., 8, 1500x6000, Ст.сп/пс (ГОСТ 14637) | V159: 0.56 | W159: т | X159: 12560.8 | Y159: Порезка листового проката (ножницы) | Z159: COLGAR CI-34-TR | AA159: 4650 | AB159: 31 | AC159: 0.56 | AD159: 1 | AE159: САНКТ-ПЕТЕРБУРГ | AF159: Центр | AG159: 0.56
A160: 1 | B160: САНКТ-ПЕТЕРБУРГ | C160: Центр | D160: Зиновьев С.Ю. | E160: Зиновьев С.Ю. | F160: Зиновьев С.Ю. | G160: =IF(Таблица_Металлопроцессинг_детализированный[[#This Row],[Куратор договора]]=Таблица_Металлопроцессинг_детализированный[[#This Row],[Менеджер]],TRUE,FALSE) -> TRUE | H160: =SUMIFS(AA160:AA2736,O160:O2736,Таблица_Металлопроцессинг_детализированный[[#This Row],[Контрагент]],A160:A2736,Таблица_Металлопроцессинг_детализированный[[#This Row],[Месяц отгрузки]]) -> 2250 | I160: =IF(Таблица_Металлопроцессинг_детализированный[[#This Row],[Инициатор+исполнитель]],1,IF(Таблица_Металлопроцессинг_детализированный[[#This Row],[Оборот за месяц по контрагенту]]<1000000,0.5,0.7)) -> 1 | J160: =IF(Таблица_Металлопроцессинг_детализированный[[#This Row],[Инициатор+исполнитель]]=TRUE,0,IF(Таблица_Металлопроцессинг_детализированный[[#This Row],[Оборот за месяц по контрагенту]]<1000000,0.5,0.3)) -> 0 | K160: =Таблица_Металлопроцессинг_детализированный[[#This Row],[Сумма наценки]]*Таблица_Металлопроцессинг_детализированный[[#This Row],[Распределение выручки для Куратора договора]] -> 2250 | L160: =IF(Таблица_Металлопроцессинг_детализированный[[#This Row],[Распределение выручки для Менеджера договора]]=1,"",Таблица_Металлопроцессинг_детализированный[[#This Row],[Сумма наценки]]*Таблица_Металлопроцессинг_детализированный[[#This Row],[Распределение выручки для Менеджера договора]]) -> 0 | M160: Процессинг | N160: САНКТ-ПЕТЕРБУРГ | O160: Аспект Плюс СПб | P160: ООО "АСПЕКТ-ПЛЮС" | Q160: г. Санкт-Петербург | R160: г. Санкт-Петербург | S160: Металлоторговля | T160: Арматура класс АIII (А400), 8, Ст.35ГС, в бунтах (ГОСТ5781-82) | V160: 1.5 | W160: т | X160: 38310 | Y160: Размотка/резка в типовой размер арматурного проката | Z160: FORMAT-S | AA160: 2250 | AB160: 1 | AC160: 4.5 | AD160: 1 | AE160: САНКТ-ПЕТЕРБУРГ | AF160: Центр | AG160: 1.5
A161: 1 | B161: САНКТ-ПЕТЕРБУРГ | C161: Центр | D161: Степура С.Н. | E161: Степура С.Н. | F161: Степура С.Н. | G161: =IF(Таблица_Металлопроцессинг_детализированный[[#This Row],[Куратор договора]]=Таблица_Металлопроцессинг_детализированный[[#This Row],[Менеджер]],TRUE,FALSE) -> TRUE | H161: =SUMIFS(AA161:AA2738,O161:O2738,Таблица_Металлопроцессинг_детализированный[[#This Row],[Контрагент]],A161:A2738,Таблица_Металлопроцессинг_детализированный[[#This Row],[Месяц отгрузки]]) -> 1470 | I161: =IF(Таблица_Металлопроцессинг_детализированный[[#This Row],[Инициатор+исполнитель]],1,IF(Таблица_Металлопроцессинг_детализированный[[#This Row],[Оборот за месяц по контрагенту]]<1000000,0.5,0.7)) -> 1 | J161: =IF(Таблица_Металлопроцессинг_детализированный[[#This Row],[Инициатор+исполнитель]]=TRUE,0,IF(Таблица_Металлопроцессинг_детализированный[[#This Row],[Оборот за месяц по контрагенту]]<1000000,0.5,0.3)) -> 0 | K161: =Таблица_Металлопроцессинг_детализированный[[#This Row],[Сумма наценки]]*Таблица_Металлопроцессинг_детализированный[[#This Row],[Распределение выручки для Куратора договора]] -> 1470 | L161: =IF(Таблица_Металлопроцессинг_детализированный[[#This Row],[Распределение выручки для Менеджера договора]]=1,"",Таблица_Металлопроцессинг_детализированный[[#This Row],[Сумма наценки]]*Таблица_Металлопроцессинг_детализированный[[#This Row],[Распределение выручки для Менеджера договора]]) -> 0 | M161: Процессинг | N161: САНКТ-ПЕТЕРБУРГ | O161: ПРОМ-ЭНЕРГО СЕРВИС ООО | P161: ООО "Пром-Энерго Сервис" | Q161: г. Санкт-Петербург | R161: г. Санкт-Петербург | S161: Металлоконструкции | T161: Сталь рулонная Г/к., 5, 1500, Ст.сп/пс (19903) | V161: 0.015 | W161: т | X161: 336.45 | Y161: Порезка листового проката (ножницы) | Z161: COLGAR CI-34-TR | AA161: 1470 | AB161: 14 | AC161: 0.05 | AD161: 1 | AE161: САНКТ-ПЕТЕРБУРГ | AF161: Центр | AG161: 0.015
A162: 1 | B162: САНКТ-ПЕТЕРБУРГ | C162: Центр | D162: Ипатова Е.Н. | E162: Ипатова Е.Н. | F162: Ипатова Е.Н. | G162: =IF(Таблица_Металлопроцессинг_детализированный[[#This Row],[Куратор договора]]=Таблица_Металлопроцессинг_детализированный[[#This Row],[Менеджер]],TRUE,FALSE) -> TRUE | H162: =SUMIFS(AA162:AA2752,O162:O2752,Таблица_Металлопроцессинг_детализированный[[#This Row],[Контрагент]],A162:A2752,Таблица_Металлопроцессинг_детализированный[[#This Row],[Месяц отгрузки]]) -> 148687.56 | I162: =IF(Таблица_Металлопроцессинг_детализированный[[#This Row],[Инициатор+исполнитель]],1,IF(Таблица_Металлопроцессинг_детализированный[[#This Row],[Оборот за месяц по контрагенту]]<1000000,0.5,0.7)) -> 1 | J162: =IF(Таблица_Металлопроцессинг_детализированный[[#This Row],[Инициатор+исполнитель]]=TRUE,0,IF(Таблица_Металлопроцессинг_детализированный[[#This Row],[Оборот за месяц по контрагенту]]<1000000,0.5,0.3)) -> 0 | K162: =Таблица_Металлопроцессинг_детализированный[[#This Row],[Сумма наценки]]*Таблица_Металлопроцессинг_детализированный[[#This Row],[Распределение выручки для Куратора договора]] -> 72587.41 | L162: =IF(Таблица_Металлопроцессинг_детализированный[[#This Row],[Распределение выручки для Менеджера договора]]=1,"",Таблица_Металлопроцессинг_детализированный[[#This Row],[Сумма наценки]]*Таблица_Металлопроцессинг_детализированный[[#This Row],[Распределение выручки для Менеджера договора]]) -> 0 | M162: Из давальческого сырья | N162: САНКТ-ПЕТЕРБУРГ | O162: СНСЗ | P162: ОАО "СРЕДНЕ-НЕВСКИЙ СУДОСТРОИТЕЛЬНЫЙ ЗАВОД" | S162: Машиностроение | T162: Изделие | U162: Лист 7*1600*6000 PCD ГОСТ19903 , ГОСТ5521-93 | V162: 23.07 | W162: т | X162: 0 | Y162: Очистка и покраска проката (грунт HEMPEL) | Z162: ROSLER | AA162: 72587.41 | AB162: 805.9 | AC162: 805.9 | AD162: 1 | AE162: САНКТ-ПЕТЕРБУРГ | AF162: Центр | AG162: 23.07
A163: 1 | B163: САНКТ-ПЕТЕРБУРГ | C163: Центр | D163: Дауэнгауэр Н.Э. | E163: Погорелов И.В. | F163: Дауэнгауэр Н.Э. | G163: =IF(Таблица_Металлопроцессинг_детализированный[[#This Row],[Куратор договора]]=Таблица_Металлопроцессинг_детализированный[[#This Row],[Менеджер]],TRUE,FALSE) -> TRUE | H163: =SUMIFS(AA163:AA2764,O163:O2764,Таблица_Металлопроцессинг_детализированный[[#This Row],[Контрагент]],A163:A2764,Таблица_Металлопроцессинг_детализированный[[#This Row],[Месяц отгрузки]]) -> 119408 | I163: =IF(Таблица_Металлопроцессинг_детализированный[[#This Row],[Инициатор+исполнитель]],1,IF(Таблица_Металлопроцессинг_детализированный[[#This Row],[Оборот за месяц по контрагенту]]<1000000,0.5,0.7)) -> 1 | J163: =IF(Таблица_Металлопроцессинг_детализированный[[#This Row],[Инициатор+исполнитель]]=TRUE,0,IF(Таблица_Металлопроцессинг_детализированный[[#This Row],[Оборот за месяц по контрагенту]]<1000000,0.5,0.3)) -> 0 | K163: =Таблица_Металлопроцессинг_детализированный[[#This Row],[Сумма наценки]]*Таблица_Металлопроцессинг_детализированный[[#This Row],[Распределение выручки для Куратора договора]] -> 8568 | L163: =IF(Таблица_Металлопроцессинг_детализированный[[#This Row],[Распределение выручки для Менеджера договора]]=1,"",Таблица_Металлопроцессинг_детализированный[[#This Row],[Сумма наценки]]*Таблица_Металлопроцессинг_детализированный[[#This Row],[Распределение выручки для Менеджера договора]]) -> 0 | M163: Процессинг | N163: САНКТ-ПЕТЕРБУРГ | O163: АМИРА СК | P163: ООО "Амира-СтальКонструкция" | Q163: Санкт-Петербург | R163: Санкт-Петербург | S163: Металлоконструкции | T163: Сталь листовая Г/к., 20, 1500x6000, Ст.09Г2С (ГОСТ 19281) | V163: 4.284 | W163: т | X163: 109927.44 | Y163: Порезка листового проката (ножницы) | AA163: 8568 | AB163: 1 | AC163: 4.22 | AE163: САНКТ-ПЕТЕРБУРГ | AF163: Центр | AG163: 4.284
A164: 1 | B164: САНКТ-ПЕТЕРБУРГ | C164: Центр | D164: Дауэнгауэр Н.Э. | E164: Дауэнгауэр Н.Э. | F164: Дауэнгауэр Н.Э. | G164: =IF(Таблица_Металлопроцессинг_детализированный[[#This Row],[Куратор договора]]=Таблица_Металлопроцессинг_детализированный[[#This Row],[Менеджер]],TRUE,FALSE) -> TRUE | H164: =SUMIFS(AA164:AA2766,O164:O2766,Таблица_Металлопроцессинг_детализированный[[#This Row],[Контрагент]],A164:A2766,Таблица_Металлопроцессинг_детализированный[[#This Row],[Месяц отгрузки]]) -> 23424 | I164: =IF(Таблица_Металлопроцессинг_детализированный[[#This Row],[Инициатор+исполнитель]],1,IF(Таблица_Металлопроцессинг_детализированный[[#This Row],[Оборот за месяц по контрагенту]]<1000000,0.5,0.7)) -> 1 | J164: =IF(Таблица_Металлопроцессинг_детализированный[[#This Row],[Инициатор+исполнитель]]=TRUE,0,IF(Таблица_Металлопроцессинг_детализированный[[#This Row],[Оборот за месяц по контрагенту]]<1000000,0.5,0.3)) -> 0 | K164: =Таблица_Металлопроцессинг_детализированный[[#This Row],[Сумма наценки]]*Таблица_Металлопроцессинг_детализированный[[#This Row],[Распределение выручки для Куратора договора]] -> 23424 | L164: =IF(Таблица_Металлопроцессинг_детализированный[[#This Row],[Распределение выручки для Менеджера договора]]=1,"",Таблица_Металлопроцессинг_детализированный[[#This Row],[Сумма наценки]]*Таблица_Металлопроцессинг_детализированный[[#This Row],[Распределение выручки для Менеджера договора]]) -> 0 | M164: Процессинг | N164: САНКТ-ПЕТЕРБУРГ | O164: СКМ Фирма | P164: ООО "Фирма СКМ" | Q164: Ленинградская обл. | R164: Ленинградская обл. | S164: Машиностроение | T164: Сталь рулонная Х/к., 1.5, 1250, Ст.кп/пс (19904) | V164: 3.84 | W164: т | X164: 100646.4 | Y164: Порезка листового проката поперечная | Z164: CAMU RDC 1500/6 | AA164: 23424 | AB164: 1 | AC164: 4 | AD164: 1 | AE164: САНКТ-ПЕТЕРБУРГ | AF164: Центр | AG164: 3.84
A165: 1 | B165: САНКТ-ПЕТЕРБУРГ | C165: Центр | D165: Ипатова Е.Н. | E165: Ипатова Е.Н. | F165: Райская Н.А. | G165: =IF(Таблица_Металлопроцессинг_детализированный[[#This Row],[Куратор договора]]=Таблица_Металлопроцессинг_детализированный[[#This Row],[Менеджер]],TRUE,FALSE) -> FALSE | H165: =SUMIFS(AA165:AA2767,O165:O2767,Таблица_Металлопроцессинг_детализированный[[#This Row],[Контрагент]],A165:A2767,Таблица_Металлопроцессинг_детализированный[[#This Row],[Месяц отгрузки]]) -> 76100.15 | I165: =IF(Таблица_Металлопроцессинг_детализированный[[#This Row],[Инициатор+исполнитель]],1,IF(Таблица_Металлопроцессинг_детализированный[[#This Row],[Оборот за месяц по контрагенту]]<1000000,0.5,0.7)) -> 0.5 | J165: =IF(Таблица_Металлопроцессинг_детализированный[[#This Row],[Инициатор+исполнитель]]=TRUE,0,IF(Таблица_Металлопроцессинг_детализированный[[#This Row],[Оборот за месяц по контрагенту]]<1000000,0.5,0.3)) -> 0.5 | K165: =Таблица_Металлопроцессинг_детализированный[[#This Row],[Сумма наценки]]*Таблица_Металлопроцессинг_детализированный[[#This Row],[Распределение выручки для Куратора договора]] -> 15573.105 | L165: =IF(Таблица_Металлопроцессинг_детализированный[[#This Row],[Распределение выручки для Менеджера договора]]=1,"",Таблица_Металлопроцессинг_детализированный[[#This Row],[Сумма наценки]]*Таблица_Металлопроцессинг_детализированный[[#This Row],[Распределение выручки для Менеджера договора]]) -> 15573.105 | M165: Из давальческого сырья | N165: САНКТ-ПЕТЕРБУРГ | O165: СНСЗ | P165: ОАО "СРЕДНЕ-НЕВСКИЙ СУДОСТРОИТЕЛЬНЫЙ ЗАВОД" | S165: Машиностроение | T165: Изделие | U165: Лист 7*1600*6000 PCD ГОСТ19903 , ГОСТ5521-93 | V165: 9.9 | W165: т | X165: 0 | Y165: Очистка и покраска проката (грунт HEMPEL) | Z165: ROSLER | AA165: 31146.21 | AB165: 345.8 | AC165: 345.8 | AD165: 1 | AE165: САНКТ-ПЕТЕРБУРГ | AF165: Центр | AG165: 9.9
A166: 1 | B166: САНКТ-ПЕТЕРБУРГ | C166: Центр | D166: Дауэнгауэр Н.Э. | E166: Погорелов И.В. | F166: Дауэнгауэр Н.Э. | G166: =IF(Таблица_Металлопроцессинг_детализированный[[#This Row],[Куратор договора]]=Таблица_Металлопроцессинг_детализированный[[#This Row],[Менеджер]],TRUE,FALSE) -> TRUE | H166: =SUMIFS(AA166:AA3638,O166:O3638,Таблица_Металлопроцессинг_детализированный[[#This Row],[Контрагент]],A166:A3638,Таблица_Металлопроцессинг_детализированный[[#This Row],[Месяц отгрузки]]) -> 110840 | I166: =IF(Таблица_Металлопроцессинг_детализированный[[#This Row],[Инициатор+исполнитель]],1,IF(Таблица_Металлопроцессинг_детализированный[[#This Row],[Оборот за месяц по контрагенту]]<1000000,0.5,0.7)) -> 1 | J166: =IF(Таблица_Металлопроцессинг_детализированный[[#This Row],[Инициатор+исполнитель]]=TRUE,0,IF(Таблица_Металлопроцессинг_детализированный[[#This Row],[Оборот за месяц по контрагенту]]<1000000,0.5,0.3)) -> 0 | K166: =Таблица_Металлопроцессинг_детализированный[[#This Row],[Сумма наценки]]*Таблица_Металлопроцессинг_детализированный[[#This Row],[Распределение выручки для Куратора договора]] -> 110840 | L166: =IF(Таблица_Металлопроцессинг_детализированный[[#This Row],[Распределение выручки для Менеджера договора]]=1,"",Таблица_Металлопроцессинг_детализированный[[#This Row],[Сумма наценки]]*Таблица_Металлопроцессинг_детализированный[[#This Row],[Распределение выручки для Менеджера договора]]) -> 0 | M166: Процессинг | N166: САНКТ-ПЕТЕРБУРГ | O166: АМИРА СК | P166: ООО "Амира-СтальКонструкция" | Q166: Санкт-Петербург | R166: Санкт-Петербург | S166: Металлоконструкции | T166: Сталь рулонная Г/к., 3, 1500, Ст.сп/пс (19903) | V166: 13.04 | W166: т | X166: 288184 | Y166: Порезка листового проката поперечная | Z166: CAMU RDC 1500/6 | AA166: 110840 | AB166: 1 | AC166: 9 | AD166: 1 | AE166: САНКТ-ПЕТЕРБУРГ | AF166: Центр | AG166: 13.04
